Workbook

Sheet Control
A1: Sheets | B1: Text File Names | C1: Description | E1: Notes: 50 sheets maximum
A2: P_Flows | B2: Flows\NorthMet_Flow_Output.txt | C2: Project flow in the Partridge River (all locations) | E2: Referenced text files must be in same root folder as this spreadsheet
A3: NA_Flows | B3: Flows\NoAct_Flow_Output.txt | C3: No Action flows in the Partridge River (all locations)
F8: Run Time Min: | G8: =MIN(P_Flows!B5,NA_Flows!B5) -> 2014-12-15T22:56:18
F9: Run Time Max: | G9: =MAX(P_Flows!B5,NA_Flows!B5) -> 2014-12-15T22:56:18

Sheet PlotControl
A2: Model Name: | B2: Mine Site Version 6.0
A4: Plot: | B4: Annual Average | C4: =B2 & " Model " & IF(B4="Annual Max", "Annual Maximum", B4) & " of Flow Statistics Partridge River at " & B6 -> Mine Site Version 6.0 Model Annual Average of Flow Statistics Partridge River at SW-004a | V4: Directory to save PDFs to: | W4: C:\Users\jem4\Desktop\temp
C5: =B2 & " Model Monthly Flow Statistics Partridge River at " & B6 -> Mine Site Version 6.0 Model Monthly Flow Statistics Partridge River at SW-004a | V5: Starting figure caption | W5: Figure A-1-0001
A6: Location to Plot (dropdown): | B6: SW-004a | C6: =MATCH(B6,$A$13:$A$21,0) -> 5
V7: Note: This loops through the plots and location drop down menus.
A8: Initial Time for Monthly Plot (yr): | B8: 100
B9: =B8+20 -> 120
A12: Locations
A13: SW-001
A14: SW-002
A15: SW-003
A16: SW-004
A17: SW-004a
A18: SW-004b
A19: SW-005
A20: SW-006
A21: Colby Lake
C23: Annual Project Results | F23: Annual No-Action Results | K23: Monthly Project Results | N23: Monthly No-Action Results
A24: Plot | B24: Time | C24: P10 | D24: P50 | E24: P90 | F24: P10 | G24: P50 | H24: P90 | J24: Time | K24: P10 | L24: P50 | M24: P90 | N24: P10 | O24: P50 | P24: P90
A25: Annual Average | B25: 1 | C25: =VLOOKUP($B25,P_All!$A$5:$AB$204,3*($C$6-1)+2) -> 9.045158333 | D25: =VLOOKUP($B25,P_All!$A$5:$AB$204,3*($C$6-1)+3) -> 29.90450833 | E25: =VLOOKUP($B25,P_All!$A$5:$AB$204,3*($C$6-1)+4) -> 112.7039917 | F25: =VLOOKUP($B25,NA_All!$A$5:$AB$204,3*($C$6-1)+2) -> 9.09105 | G25: =VLOOKUP($B25,NA_All!$A$5:$AB$204,3*($C$6-1)+3) -> 30.09593333 | H25: =VLOOKUP($B25,NA_All!$A$5:$AB$204,3*($C$6-1)+4) -> 113.4967 | J25: =B8 -> 100 | K25: =VLOOKUP($J25,P_All!$AD$5:$BE$245,3*($C$6-1)+2) -> 1.5909 | L25: =VLOOKUP($J25,P_All!$AD$5:$BE$245,3*($C$6-1)+3) -> 4.4147 | M25: =VLOOKUP($J25,P_All!$AD$5:$BE$245,3*($C$6-1)+4) -> 8.1353 | N25: =VLOOKUP($J25,NA_All!$AD$5:$BE$245,3*($C$6-1)+2) -> 0.96934 | O25: =VLOOKUP($J25,NA_All!$AD$5:$BE$245,3*($C$6-1)+3) -> 3.8477 | P25: =VLOOKUP($J25,NA_All!$AD$5:$BE$245,3*($C$6-1)+4) -> 7.5706
A26: Annual Max | B26: 2 | C26: =VLOOKUP($B26,P_All!$A$5:$AB$204,3*($C$6-1)+2) -> 8.518475 | D26: =VLOOKUP($B26,P_All!$A$5:$AB$204,3*($C$6-1)+3) -> 28.7433 | E26: =VLOOKUP($B26,P_All!$A$5:$AB$204,3*($C$6-1)+4) -> 110.2576417 | F26: =VLOOKUP($B26,NA_All!$A$5:$AB$204,3*($C$6-1)+2) -> 8.620725 | G26: =VLOOKUP($B26,NA_All!$A$5:$AB$204,3*($C$6-1)+3) -> 29.19370833 | H26: =VLOOKUP($B26,NA_All!$A$5:$AB$204,3*($C$6-1)+4) -> 112.1145917 | J26: =J25+1/12 -> 100.0833333 | K26: =VLOOKUP($J26,P_All!$AD$5:$BE$245,3*($C$6-1)+2) -> 1.1926 | L26: =VLOOKUP($J26,P_All!$AD$5:$BE$245,3*($C$6-1)+3) -> 1.9838 | M26: =VLOOKUP($J26,P_All!$AD$5:$BE$245,3*($C$6-1)+4) -> 8.7536 | N26: =VLOOKUP($J26,NA_All!$AD$5:$BE$245,3*($C$6-1)+2) -> 0.56783 | O26: =VLOOKUP($J26,NA_All!$AD$5:$BE$245,3*($C$6-1)+3) -> 1.3534 | P26: =VLOOKUP($J26,NA_All!$AD$5:$BE$245,3*($C$6-1)+4) -> 8.2156
B27: 3 | C27: =VLOOKUP($B27,P_All!$A$5:$AB$204,3*($C$6-1)+2) -> 8.466741667 | D27: =VLOOKUP($B27,P_All!$A$5:$AB$204,3*($C$6-1)+3) -> 29.44273333 | E27: =VLOOKUP($B27,P_All!$A$5:$AB$204,3*($C$6-1)+4) -> 109.2028667 | F27: =VLOOKUP($B27,NA_All!$A$5:$AB$204,3*($C$6-1)+2) -> 8.586166667 | G27: =VLOOKUP($B27,NA_All!$A$5:$AB$204,3*($C$6-1)+3) -> 29.98750833 | H27: =VLOOKUP($B27,NA_All!$A$5:$AB$204,3*($C$6-1)+4) -> 111.3682417 | J27: =J26+1/12 -> 100.1666667 | K27: =VLOOKUP($J27,P_All!$AD$5:$BE$245,3*($C$6-1)+2) -> 1.2222 | L27: =VLOOKUP($J27,P_All!$AD$5:$BE$245,3*($C$6-1)+3) -> 4.0418 | M27: =VLOOKUP($J27,P_All!$AD$5:$BE$245,3*($C$6-1)+4) -> 40.524 | N27: =VLOOKUP($J27,NA_All!$AD$5:$BE$245,3*($C$6-1)+2) -> 0.59434 | O27: =VLOOKUP($J27,NA_All!$AD$5:$BE$245,3*($C$6-1)+3) -> 3.448 | P27: =VLOOKUP($J27,NA_All!$AD$5:$BE$245,3*($C$6-1)+4) -> 40.372
B28: 4 | C28: =VLOOKUP($B28,P_All!$A$5:$AB$204,3*($C$6-1)+2) -> 8.4856 | D28: =VLOOKUP($B28,P_All!$A$5:$AB$204,3*($C$6-1)+3) -> 28.413325 | E28: =VLOOKUP($B28,P_All!$A$5:$AB$204,3*($C$6-1)+4) -> 112.643175 | F28: =VLOOKUP($B28,NA_All!$A$5:$AB$204,3*($C$6-1)+2) -> 8.622491667 | G28: =VLOOKUP($B28,NA_All!$A$5:$AB$204,3*($C$6-1)+3) -> 29.01335833 | H28: =VLOOKUP($B28,NA_All!$A$5:$AB$204,3*($C$6-1)+4) -> 115.2006 | J28: 100.25 | K28: =VLOOKUP($J28,P_All!$AD$5:$BE$245,3*($C$6-1)+2) -> 18.97 | L28: =VLOOKUP($J28,P_All!$AD$5:$BE$245,3*($C$6-1)+3) -> 75.263 | M28: =VLOOKUP($J28,P_All!$AD$5:$BE$245,3*($C$6-1)+4) -> 230.52 | N28: =VLOOKUP($J28,NA_All!$AD$5:$BE$245,3*($C$6-1)+2) -> 18.555 | O28: =VLOOKUP($J28,NA_All!$AD$5:$BE$245,3*($C$6-1)+3) -> 75.524 | P28: =VLOOKUP($J28,NA_All!$AD$5:$BE$245,3*($C$6-1)+4) -> 232.64
B29: 5 | C29: =VLOOKUP($B29,P_All!$A$5:$AB$204,3*($C$6-1)+2) -> 8.467825 | D29: =VLOOKUP($B29,P_All!$A$5:$AB$204,3*($C$6-1)+3) -> 29.43596667 | E29: =VLOOKUP($B29,P_All!$A$5:$AB$204,3*($C$6-1)+4) -> 113.2776583 | F29: =VLOOKUP($B29,NA_All!$A$5:$AB$204,3*($C$6-1)+2) -> 8.6216 | G29: =VLOOKUP($B29,NA_All!$A$5:$AB$204,3*($C$6-1)+3) -> 30.136875 | H29: =VLOOKUP($B29,NA_All!$A$5:$AB$204,3*($C$6-1)+4) -> 116.17495 | J29: 100.3333333 | K29: =VLOOKUP($J29,P_All!$AD$5:$BE$245,3*($C$6-1)+2) -> 21.206 | L29: =VLOOKUP($J29,P_All!$AD$5:$BE$245,3*($C$6-1)+3) -> 85.367 | M29: =VLOOKUP($J29,P_All!$AD$5:$BE$245,3*($C$6-1)+4) -> 272.81 | N29: =VLOOKUP($J29,NA_All!$AD$5:$BE$245,3*($C$6-1)+2) -> 20.59 | O29: =VLOOKUP($J29,NA_All!$AD$5:$BE$245,3*($C$6-1)+3) -> 85.413 | P29: =VLOOKUP($J29,NA_All!$AD$5:$BE$245,3*($C$6-1)+4) -> 274.75
B30: 6 | C30: =VLOOKUP($B30,P_All!$A$5:$AB$204,3*($C$6-1)+2) -> 8.739925 | D30: =VLOOKUP($B30,P_All!$A$5:$AB$204,3*($C$6-1)+3) -> 30.91164167 | E30: =VLOOKUP($B30,P_All!$A$5:$AB$204,3*($C$6-1)+4) -> 111.6125833 | F30: =VLOOKUP($B30,NA_All!$A$5:$AB$204,3*($C$6-1)+2) -> 8.918583333 | G30: =VLOOKUP($B30,NA_All!$A$5:$AB$204,3*($C$6-1)+3) -> 31.73329167 | H30: =VLOOKUP($B30,NA_All!$A$5:$AB$204,3*($C$6-1)+4) -> 114.7874167 | J30: 100.4166667 | K30: =VLOOKUP($J30,P_All!$AD$5:$BE$245,3*($C$6-1)+2) -> 5.5605 | L30: =VLOOKUP($J30,P_All!$AD$5:$BE$245,3*($C$6-1)+3) -> 36.051 | M30: =VLOOKUP($J30,P_All!$AD$5:$BE$245,3*($C$6-1)+4) -> 95.554 | N30: =VLOOKUP($J30,NA_All!$AD$5:$BE$245,3*($C$6-1)+2) -> 4.8881 | O30: =VLOOKUP($J30,NA_All!$AD$5:$BE$245,3*($C$6-1)+3) -> 35.669 | P30: =VLOOKUP($J30,NA_All!$AD$5:$BE$245,3*($C$6-1)+4) -> 96.011
B31: 7 | C31: =VLOOKUP($B31,P_All!$A$5:$AB$204,3*($C$6-1)+2) -> 8.516033333 | D31: =VLOOKUP($B31,P_All!$A$5:$AB$204,3*($C$6-1)+3) -> 29.34439167 | E31: =VLOOKUP($B31,P_All!$A$5:$AB$204,3*($C$6-1)+4) -> 108.0520833 | F31: =VLOOKUP($B31,NA_All!$A$5:$AB$204,3*($C$6-1)+2) -> 8.705716667 | G31: =VLOOKUP($B31,NA_All!$A$5:$AB$204,3*($C$6-1)+3) -> 30.20043333 | H31: =VLOOKUP($B31,NA_All!$A$5:$AB$204,3*($C$6-1)+4) -> 111.4335167 | J31: 100.5 | K31: =VLOOKUP($J31,P_All!$AD$5:$BE$245,3*($C$6-1)+2) -> 2.0366 | L31: =VLOOKUP($J31,P_All!$AD$5:$BE$245,3*($C$6-1)+3) -> 18.687 | M31: =VLOOKUP($J31,P_All!$AD$5:$BE$245,3*($C$6-1)+4) -> 242.11 | N31: =VLOOKUP($J31,NA_All!$AD$5:$BE$245,3*($C$6-1)+2) -> 1.3158 | O31: =VLOOKUP($J31,NA_All!$AD$5:$BE$245,3*($C$6-1)+3) -> 18.196 | P31: =VLOOKUP($J31,NA_All!$AD$5:$BE$245,3*($C$6-1)+4) -> 244.03
B32: 8 | C32: =VLOOKUP($B32,P_All!$A$5:$AB$204,3*($C$6-1)+2) -> 8.514133333 | D32: =VLOOKUP($B32,P_All!$A$5:$AB$204,3*($C$6-1)+3) -> 29.94785 | E32: =VLOOKUP($B32,P_All!$A$5:$AB$204,3*($C$6-1)+4) -> 109.945875 | F32: =VLOOKUP($B32,NA_All!$A$5:$AB$204,3*($C$6-1)+2) -> 8.721441667 | G32: =VLOOKUP($B32,NA_All!$A$5:$AB$204,3*($C$6-1)+3) -> 30.90515 | H32: =VLOOKUP($B32,NA_All!$A$5:$AB$204,3*($C$6-1)+4) -> 113.7103333 | J32: 100.5833333 | K32: =VLOOKUP($J32,P_All!$AD$5:$BE$245,3*($C$6-1)+2) -> 6.0404 | L32: =VLOOKUP($J32,P_All!$AD$5:$BE$245,3*($C$6-1)+3) -> 18.829 | M32: =VLOOKUP($J32,P_All!$AD$5:$BE$245,3*($C$6-1)+4) -> 140.37 | N32: =VLOOKUP($J32,NA_All!$AD$5:$BE$245,3*($C$6-1)+2) -> 5.47 | O32: =VLOOKUP($J32,NA_All!$AD$5:$BE$245,3*($C$6-1)+3) -> 18.411 | P32: =VLOOKUP($J32,NA_All!$AD$5:$BE$245,3*($C$6-1)+4) -> 141.4
B33: 9 | C33: =VLOOKUP($B33,P_All!$A$5:$AB$204,3*($C$6-1)+2) -> 8.780591667 | D33: =VLOOKUP($B33,P_All!$A$5:$AB$204,3*($C$6-1)+3) -> 28.98720833 | E33: =VLOOKUP($B33,P_All!$A$5:$AB$204,3*($C$6-1)+4) -> 112.4477667 | F33: =VLOOKUP($B33,NA_All!$A$5:$AB$204,3*($C$6-1)+2) -> 9.015691667 | G33: =VLOOKUP($B33,NA_All!$A$5:$AB$204,3*($C$6-1)+3) -> 29.98995833 | H33: =VLOOKUP($B33,NA_All!$A$5:$AB$204,3*($C$6-1)+4) -> 116.628175 | J33: 100.6666667 | K33: =VLOOKUP($J33,P_All!$AD$5:$BE$245,3*($C$6-1)+2) -> 4.2213 | L33: =VLOOKUP($J33,P_All!$AD$5:$BE$245,3*($C$6-1)+3) -> 32.055 | M33: =VLOOKUP($J33,P_All!$AD$5:$BE$245,3*($C$6-1)+4) -> 85.027 | N33: =VLOOKUP($J33,NA_All!$AD$5:$BE$245,3*($C$6-1)+2) -> 3.459 | O33: =VLOOKUP($J33,NA_All!$AD$5:$BE$245,3*($C$6-1)+3) -> 31.868 | P33: =VLOOKUP($J33,NA_All!$AD$5:$BE$245,3*($C$6-1)+4) -> 85.368
B34: 10 | C34: =VLOOKUP($B34,P_All!$A$5:$AB$204,3*($C$6-1)+2) -> 9.169691667 | D34: =VLOOKUP($B34,P_All!$A$5:$AB$204,3*($C$6-1)+3) -> 31.414825 | E34: =VLOOKUP($B34,P_All!$A$5:$AB$204,3*($C$6-1)+4) -> 111.70925 | F34: =VLOOKUP($B34,NA_All!$A$5:$AB$204,3*($C$6-1)+2) -> 9.439275 | G34: =VLOOKUP($B34,NA_All!$A$5:$AB$204,3*($C$6-1)+3) -> 32.595225 | H34: =VLOOKUP($B34,NA_All!$A$5:$AB$204,3*($C$6-1)+4) -> 116.19055 | J34: 100.75 | K34: =VLOOKUP($J34,P_All!$AD$5:$BE$245,3*($C$6-1)+2) -> 9.5023 | L34: =VLOOKUP($J34,P_All!$AD$5:$BE$245,3*($C$6-1)+3) -> 32.75 | M34: =VLOOKUP($J34,P_All!$AD$5:$BE$245,3*($C$6-1)+4) -> 132.29 | N34: =VLOOKUP($J34,NA_All!$AD$5:$BE$245,3*($C$6-1)+2) -> 8.5312 | O34: =VLOOKUP($J34,NA_All!$AD$5:$BE$245,3*($C$6-1)+3) -> 32.479 | P34: =VLOOKUP($J34,NA_All!$AD$5:$BE$245,3*($C$6-1)+4) -> 132.91
B35: 11 | C35: =VLOOKUP($B35,P_All!$A$5:$AB$204,3*($C$6-1)+2) -> 8.800525 | D35: =VLOOKUP($B35,P_All!$A$5:$AB$204,3*($C$6-1)+3) -> 30.14973333 | E35: =VLOOKUP($B35,P_All!$A$5:$AB$204,3*($C$6-1)+4) -> 111.6234583 | F35: =VLOOKUP($B35,NA_All!$A$5:$AB$204,3*($C$6-1)+2) -> 9.073466667 | G35: =VLOOKUP($B35,NA_All!$A$5:$AB$204,3*($C$6-1)+3) -> 31.36155 | H35: =VLOOKUP($B35,NA_All!$A$5:$AB$204,3*($C$6-1)+4) -> 116.4305167 | J35: 100.8333333 | K35: =VLOOKUP($J35,P_All!$AD$5:$BE$245,3*($C$6-1)+2) -> 7.3991 | L35: =VLOOKUP($J35,P_All!$AD$5:$BE$245,3*($C$6-1)+3) -> 18.787 | M35: =VLOOKUP($J35,P_All!$AD$5:$BE$245,3*($C$6-1)+4) -> 70.026 | N35: =VLOOKUP($J35,NA_All!$AD$5:$BE$245,3*($C$6-1)+2) -> 6.4528 | O35: =VLOOKUP($J35,NA_All!$AD$5:$BE$245,3*($C$6-1)+3) -> 18.342 | P35: =VLOOKUP($J35,NA_All!$AD$5:$BE$245,3*($C$6-1)+4) -> 70.218
B36: 12 | C36: =VLOOKUP($B36,P_All!$A$5:$AB$204,3*($C$6-1)+2) -> 8.301325 | D36: =VLOOKUP($B36,P_All!$A$5:$AB$204,3*($C$6-1)+3) -> 30.05611667 | E36: =VLOOKUP($B36,P_All!$A$5:$AB$204,3*($C$6-1)+4) -> 115.07905 | F36: =VLOOKUP($B36,NA_All!$A$5:$AB$204,3*($C$6-1)+2) -> 8.556216667 | G36: =VLOOKUP($B36,NA_All!$A$5:$AB$204,3*($C$6-1)+3) -> 31.284525 | H36: =VLOOKUP($B36,NA_All!$A$5:$AB$204,3*($C$6-1)+4) -> 120.11425 | J36: 100.9166667 | K36: =VLOOKUP($J36,P_All!$AD$5:$BE$245,3*($C$6-1)+2) -> 3.7832 | L36: =VLOOKUP($J36,P_All!$AD$5:$BE$245,3*($C$6-1)+3) -> 7.46 | M36: =VLOOKUP($J36,P_All!$AD$5:$BE$245,3*($C$6-1)+4) -> 14.913 | N36: =VLOOKUP($J36,NA_All!$AD$5:$BE$245,3*($C$6-1)+2) -> 3.1711 | O36: =VLOOKUP($J36,NA_All!$AD$5:$BE$245,3*($C$6-1)+3) -> 6.7564 | P36: =VLOOKUP($J36,NA_All!$AD$5:$BE$245,3*($C$6-1)+4) -> 14.296
B37: 13 | C37: =VLOOKUP($B37,P_All!$A$5:$AB$204,3*($C$6-1)+2) -> 8.829466667 | D37: =VLOOKUP($B37,P_All!$A$5:$AB$204,3*($C$6-1)+3) -> 29.42689167 | E37: =VLOOKUP($B37,P_All!$A$5:$AB$204,3*($C$6-1)+4) -> 112.931375 | F37: =VLOOKUP($B37,NA_All!$A$5:$AB$204,3*($C$6-1)+2) -> 9.094908333 | G37: =VLOOKUP($B37,NA_All!$A$5:$AB$204,3*($C$6-1)+3) -> 30.57104167 | H37: =VLOOKUP($B37,NA_All!$A$5:$AB$204,3*($C$6-1)+4) -> 117.6376167 | J37: 101 | K37: =VLOOKUP($J37,P_All!$AD$5:$BE$245,3*($C$6-1)+2) -> 1.5833 | L37: =VLOOKUP($J37,P_All!$AD$5:$BE$245,3*($C$6-1)+3) -> 4.4949 | M37: =VLOOKUP($J37,P_All!$AD$5:$BE$245,3*($C$6-1)+4) -> 7.9594 | N37: =VLOOKUP($J37,NA_All!$AD$5:$BE$245,3*($C$6-1)+2) -> 0.95933 | O37: =VLOOKUP($J37,NA_All!$AD$5:$BE$245,3*($C$6-1)+3) -> 3.858 | P37: =VLOOKUP($J37,NA_All!$AD$5:$BE$245,3*($C$6-1)+4) -> 7.3865
B38: 14 | C38: =VLOOKUP($B38,P_All!$A$5:$AB$204,3*($C$6-1)+2) -> 8.8082 | D38: =VLOOKUP($B38,P_All!$A$5:$AB$204,3*($C$6-1)+3) -> 30.197775 | E38: =VLOOKUP($B38,P_All!$A$5:$AB$204,3*($C$6-1)+4) -> 109.364175 | F38: =VLOOKUP($B38,NA_All!$A$5:$AB$204,3*($C$6-1)+2) -> 9.059825 | G38: =VLOOKUP($B38,NA_All!$A$5:$AB$204,3*($C$6-1)+3) -> 31.31735833 | H38: =VLOOKUP($B38,NA_All!$A$5:$AB$204,3*($C$6-1)+4) -> 113.6955333 | J38: 101.0833333 | K38: =VLOOKUP($J38,P_All!$AD$5:$BE$245,3*($C$6-1)+2) -> 1.1865 | L38: =VLOOKUP($J38,P_All!$AD$5:$BE$245,3*($C$6-1)+3) -> 1.5894 | M38: =VLOOKUP($J38,P_All!$AD$5:$BE$245,3*($C$6-1)+4) -> 8.4112 | N38: =VLOOKUP($J38,NA_All!$AD$5:$BE$245,3*($C$6-1)+2) -> 0.55846 | O38: =VLOOKUP($J38,NA_All!$AD$5:$BE$245,3*($C$6-1)+3) -> 0.96029 | P38: =VLOOKUP($J38,NA_All!$AD$5:$BE$245,3*($C$6-1)+4) -> 7.8691
B39: 15 | C39: =VLOOKUP($B39,P_All!$A$5:$AB$204,3*($C$6-1)+2) -> 7.997591667 | D39: =VLOOKUP($B39,P_All!$A$5:$AB$204,3*($C$6-1)+3) -> 28.84865833 | E39: =VLOOKUP($B39,P_All!$A$5:$AB$204,3*($C$6-1)+4) -> 116.9246667 | F39: =VLOOKUP($B39,NA_All!$A$5:$AB$204,3*($C$6-1)+2) -> 8.204925 | G39: =VLOOKUP($B39,NA_All!$A$5:$AB$204,3*($C$6-1)+3) -> 29.85801667 | H39: =VLOOKUP($B39,NA_All!$A$5:$AB$204,3*($C$6-1)+4) -> 121.3222167 | J39: 101.1666667 | K39: =VLOOKUP($J39,P_All!$AD$5:$BE$245,3*($C$6-1)+2) -> 1.2975 | L39: =VLOOKUP($J39,P_All!$AD$5:$BE$245,3*($C$6-1)+3) -> 5.0662 | M39: =VLOOKUP($J39,P_All!$AD$5:$BE$245,3*($C$6-1)+4) -> 45.359 | N39: =VLOOKUP($J39,NA_All!$AD$5:$BE$245,3*($C$6-1)+2) -> 0.6712 | O39: =VLOOKUP($J39,NA_All!$AD$5:$BE$245,3*($C$6-1)+3) -> 4.4847 | P39: =VLOOKUP($J39,NA_All!$AD$5:$BE$245,3*($C$6-1)+4) -> 45.265
B40: 16 | C40: =VLOOKUP($B40,P_All!$A$5:$AB$204,3*($C$6-1)+2) -> 9.009208333 | D40: =VLOOKUP($B40,P_All!$A$5:$AB$204,3*($C$6-1)+3) -> 29.81406667 | E40: =VLOOKUP($B40,P_All!$A$5:$AB$204,3*($C$6-1)+4) -> 110.6251167 | F40: =VLOOKUP($B40,NA_All!$A$5:$AB$204,3*($C$6-1)+2) -> 9.2423 | G40: =VLOOKUP($B40,NA_All!$A$5:$AB$204,3*($C$6-1)+3) -> 30.80415833 | H40: =VLOOKUP($B40,NA_All!$A$5:$AB$204,3*($C$6-1)+4) -> 114.556375 | J40: 101.25 | K40: =VLOOKUP($J40,P_All!$AD$5:$BE$245,3*($C$6-1)+2) -> 21.797 | L40: =VLOOKUP($J40,P_All!$AD$5:$BE$245,3*($C$6-1)+3) -> 92.176 | M40: =VLOOKUP($J40,P_All!$AD$5:$BE$245,3*($C$6-1)+4) -> 234.41 | N40: =VLOOKUP($J40,NA_All!$AD$5:$BE$245,3*($C$6-1)+2) -> 21.417 | O40: =VLOOKUP($J40,NA_All!$AD$5:$BE$245,3*($C$6-1)+3) -> 92.64 | P40: =VLOOKUP($J40,NA_All!$AD$5:$BE$245,3*($C$6-1)+4) -> 236.59
B41: 17 | C41: =VLOOKUP($B41,P_All!$A$5:$AB$204,3*($C$6-1)+2) -> 8.767958333 | D41: =VLOOKUP($B41,P_All!$A$5:$AB$204,3*($C$6-1)+3) -> 29.51549167 | E41: =VLOOKUP($B41,P_All!$A$5:$AB$204,3*($C$6-1)+4) -> 111.636675 | F41: =VLOOKUP($B41,NA_All!$A$5:$AB$204,3*($C$6-1)+2) -> 8.979608333 | G41: =VLOOKUP($B41,NA_All!$A$5:$AB$204,3*($C$6-1)+3) -> 30.43935 | H41: =VLOOKUP($B41,NA_All!$A$5:$AB$204,3*($C$6-1)+4) -> 115.3792083 | J41: 101.3333333 | K41: =VLOOKUP($J41,P_All!$AD$5:$BE$245,3*($C$6-1)+2) -> 17.348 | L41: =VLOOKUP($J41,P_All!$AD$5:$BE$245,3*($C$6-1)+3) -> 83.541 | M41: =VLOOKUP($J41,P_All!$AD$5:$BE$245,3*($C$6-1)+4) -> 274.98 | N41: =VLOOKUP($J41,NA_All!$AD$5:$BE$245,3*($C$6-1)+2) -> 16.91 | O41: =VLOOKUP($J41,NA_All!$AD$5:$BE$245,3*($C$6-1)+3) -> 83.632 | P41: =VLOOKUP($J41,NA_All!$AD$5:$BE$245,3*($C$6-1)+4) -> 277.27
B42: 18 | C42: =VLOOKUP($B42,P_All!$A$5:$AB$204,3*($C$6-1)+2) -> 8.677841667 | D42: =VLOOKUP($B42,P_All!$A$5:$AB$204,3*($C$6-1)+3) -> 30.07141667 | E42: =VLOOKUP($B42,P_All!$A$5:$AB$204,3*($C$6-1)+4) -> 115.4370417 | F42: =VLOOKUP($B42,NA_All!$A$5:$AB$204,3*($C$6-1)+2) -> 8.873825 | G42: =VLOOKUP($B42,NA_All!$A$5:$AB$204,3*($C$6-1)+3) -> 30.9576 | H42: =VLOOKUP($B42,NA_All!$A$5:$AB$204,3*($C$6-1)+4) -> 119.0756583 | J42: 101.4166667 | K42: =VLOOKUP($J42,P_All!$AD$5:$BE$245,3*($C$6-1)+2) -> 5.5013 | L42: =VLOOKUP($J42,P_All!$AD$5:$BE$245,3*($C$6-1)+3) -> 37.652 | M42: =VLOOKUP($J42,P_All!$AD$5:$BE$245,3*($C$6-1)+4) -> 99.636 | N42: =VLOOKUP($J42,NA_All!$AD$5:$BE$245,3*($C$6-1)+2) -> 4.8171 | O42: =VLOOKUP($J42,NA_All!$AD$5:$BE$245,3*($C$6-1)+3) -> 37.225 | P42: =VLOOKUP($J42,NA_All!$AD$5:$BE$245,3*($C$6-1)+4) -> 100.04
B43: 19 | C43: =VLOOKUP($B43,P_All!$A$5:$AB$204,3*($C$6-1)+2) -> 8.770691667 | D43: =VLOOKUP($B43,P_All!$A$5:$AB$204,3*($C$6-1)+3) -> 30.03364167 | E43: =VLOOKUP($B43,P_All!$A$5:$AB$204,3*($C$6-1)+4) -> 115.5005833 | F43: =VLOOKUP($B43,NA_All!$A$5:$AB$204,3*($C$6-1)+2) -> 8.956933333 | G43: =VLOOKUP($B43,NA_All!$A$5:$AB$204,3*($C$6-1)+3) -> 30.862025 | H43: =VLOOKUP($B43,NA_All!$A$5:$AB$204,3*($C$6-1)+4) -> 118.9103333 | J43: 101.5 | K43: =VLOOKUP($J43,P_All!$AD$5:$BE$245,3*($C$6-1)+2) -> 2.2072 | L43: =VLOOKUP($J43,P_All!$AD$5:$BE$245,3*($C$6-1)+3) -> 20.225 | M43: =VLOOKUP($J43,P_All!$AD$5:$BE$245,3*($C$6-1)+4) -> 254.58 | N43: =VLOOKUP($J43,NA_All!$AD$5:$BE$245,3*($C$6-1)+2) -> 1.5545 | O43: =VLOOKUP($J43,NA_All!$AD$5:$BE$245,3*($C$6-1)+3) -> 19.823 | P43: =VLOOKUP($J43,NA_All!$AD$5:$BE$245,3*($C$6-1)+4) -> 256.96
B44: 20 | C44: =VLOOKUP($B44,P_All!$A$5:$AB$204,3*($C$6-1)+2) -> 8.919725 | D44: =VLOOKUP($B44,P_All!$A$5:$AB$204,3*($C$6-1)+3) -> 29.32855 | E44: =VLOOKUP($B44,P_All!$A$5:$AB$204,3*($C$6-1)+4) -> 109.413175 | F44: =VLOOKUP($B44,NA_All!$A$5:$AB$204,3*($C$6-1)+2) -> 9.0975 | G44: =VLOOKUP($B44,NA_All!$A$5:$AB$204,3*($C$6-1)+3) -> 30.081 | H44: =VLOOKUP($B44,NA_All!$A$5:$AB$204,3*($C$6-1)+4) -> 112.4203833 | J44: 101.5833333 | K44: =VLOOKUP($J44,P_All!$AD$5:$BE$245,3*($C$6-1)+2) -> 4.887 | L44: =VLOOKUP($J44,P_All!$AD$5:$BE$245,3*($C$6-1)+3) -> 24.357 | M44: =VLOOKUP($J44,P_All!$AD$5:$BE$245,3*($C$6-1)+4) -> 131.11 | N44: =VLOOKUP($J44,NA_All!$AD$5:$BE$245,3*($C$6-1)+2) -> 4.3028 | O44: =VLOOKUP($J44,NA_All!$AD$5:$BE$245,3*($C$6-1)+3) -> 24.005 | P44: =VLOOKUP($J44,NA_All!$AD$5:$BE$245,3*($C$6-1)+4) -> 132.04
B45: 21 | C45: =VLOOKUP($B45,P_All!$A$5:$AB$204,3*($C$6-1)+2) -> 9.020966667 | D45: =VLOOKUP($B45,P_All!$A$5:$AB$204,3*($C$6-1)+3) -> 28.478175 | E45: =VLOOKUP($B45,P_All!$A$5:$AB$204,3*($C$6-1)+4) -> 109.4366833 | F45: =VLOOKUP($B45,NA_All!$A$5:$AB$204,3*($C$6-1)+2) -> 9.212666667 | G45: =VLOOKUP($B45,NA_All!$A$5:$AB$204,3*($C$6-1)+3) -> 29.248775 | H45: =VLOOKUP($B45,NA_All!$A$5:$AB$204,3*($C$6-1)+4) -> 112.6336667 | J45: 101.6666667 | K45: =VLOOKUP($J45,P_All!$AD$5:$BE$245,3*($C$6-1)+2) -> 3.9361 | L45: =VLOOKUP($J45,P_All!$AD$5:$BE$245,3*($C$6-1)+3) -> 32.1 | M45: =VLOOKUP($J45,P_All!$AD$5:$BE$245,3*($C$6-1)+4) -> 88.875 | N45: =VLOOKUP($J45,NA_All!$AD$5:$BE$245,3*($C$6-1)+2) -> 3.3122 | O45: =VLOOKUP($J45,NA_All!$AD$5:$BE$245,3*($C$6-1)+3) -> 31.508 | P45: =VLOOKUP($J45,NA_All!$AD$5:$BE$245,3*($C$6-1)+4) -> 89.261
B46: 22 | C46: =VLOOKUP($B46,P_All!$A$5:$AB$204,3*($C$6-1)+2) -> 8.7337 | D46: =VLOOKUP($B46,P_All!$A$5:$AB$204,3*($C$6-1)+3) -> 30.17500833 | E46: =VLOOKUP($B46,P_All!$A$5:$AB$204,3*($C$6-1)+4) -> 116.404425 | F46: =VLOOKUP($B46,NA_All!$A$5:$AB$204,3*($C$6-1)+2) -> 8.935466667 | G46: =VLOOKUP($B46,NA_All!$A$5:$AB$204,3*($C$6-1)+3) -> 31.081525 | H46: =VLOOKUP($B46,NA_All!$A$5:$AB$204,3*($C$6-1)+4) -> 120.1496333 | J46: 101.75 | K46: =VLOOKUP($J46,P_All!$AD$5:$BE$245,3*($C$6-1)+2) -> 9.2054 | L46: =VLOOKUP($J46,P_All!$AD$5:$BE$245,3*($C$6-1)+3) -> 33.636 | M46: =VLOOKUP($J46,P_All!$AD$5:$BE$245,3*($C$6-1)+4) -> 161.37 | N46: =VLOOKUP($J46,NA_All!$AD$5:$BE$245,3*($C$6-1)+2) -> 8.3681 | O46: =VLOOKUP($J46,NA_All!$AD$5:$BE$245,3*($C$6-1)+3) -> 33.135 | P46: =VLOOKUP($J46,NA_All!$AD$5:$BE$245,3*($C$6-1)+4) -> 162.66
B47: 23 | C47: =VLOOKUP($B47,P_All!$A$5:$AB$204,3*($C$6-1)+2) -> 8.989975 | D47: =VLOOKUP($B47,P_All!$A$5:$AB$204,3*($C$6-1)+3) -> 30.16410833 | E47: =VLOOKUP($B47,P_All!$A$5:$AB$204,3*($C$6-1)+4) -> 113.9548083 | F47: =VLOOKUP($B47,NA_All!$A$5:$AB$204,3*($C$6-1)+2) -> 9.195266667 | G47: =VLOOKUP($B47,NA_All!$A$5:$AB$204,3*($C$6-1)+3) -> 31.0496 | H47: =VLOOKUP($B47,NA_All!$A$5:$AB$204,3*($C$6-1)+4) -> 117.5361667 | J47: 101.8333333 | K47: =VLOOKUP($J47,P_All!$AD$5:$BE$245,3*($C$6-1)+2) -> 7.1419 | L47: =VLOOKUP($J47,P_All!$AD$5:$BE$245,3*($C$6-1)+3) -> 17.523 | M47: =VLOOKUP($J47,P_All!$AD$5:$BE$245,3*($C$6-1)+4) -> 63.862 | N47: =VLOOKUP($J47,NA_All!$AD$5:$BE$245,3*($C$6-1)+2) -> 6.4218 | O47: =VLOOKUP($J47,NA_All!$AD$5:$BE$245,3*($C$6-1)+3) -> 16.945 | P47: =VLOOKUP($J47,NA_All!$AD$5:$BE$245,3*($C$6-1)+4) -> 63.98
B48: 24 | C48: =VLOOKUP($B48,P_All!$A$5:$AB$204,3*($C$6-1)+2) -> 8.782125 | D48: =VLOOKUP($B48,P_All!$A$5:$AB$204,3*($C$6-1)+3) -> 28.86745833 | E48: =VLOOKUP($B48,P_All!$A$5:$AB$204,3*($C$6-1)+4) -> 106.3733333 | F48: =VLOOKUP($B48,NA_All!$A$5:$AB$204,3*($C$6-1)+2) -> 8.976133333 | G48: =VLOOKUP($B48,NA_All!$A$5:$AB$204,3*($C$6-1)+3) -> 29.6918 | H48: =VLOOKUP($B48,NA_All!$A$5:$AB$204,3*($C$6-1)+4) -> 109.6325417 | J48: 101.9166667 | K48: =VLOOKUP($J48,P_All!$AD$5:$BE$245,3*($C$6-1)+2) -> 3.6989 | L48: =VLOOKUP($J48,P_All!$AD$5:$BE$245,3*($C$6-1)+3) -> 7.0361 | M48: =VLOOKUP($J48,P_All!$AD$5:$BE$245,3*($C$6-1)+4) -> 15.15 | N48: =VLOOKUP($J48,NA_All!$AD$5:$BE$245,3*($C$6-1)+2) -> 3.0586 | O48: =VLOOKUP($J48,NA_All!$AD$5:$BE$245,3*($C$6-1)+3) -> 6.4498 | P48: =VLOOKUP($J48,NA_All!$AD$5:$BE$245,3*($C$6-1)+4) -> 14.528
B49: 25 | C49: =VLOOKUP($B49,P_All!$A$5:$AB$204,3*($C$6-1)+2) -> 8.399316667 | D49: =VLOOKUP($B49,P_All!$A$5:$AB$204,3*($C$6-1)+3) -> 28.66649167 | E49: =VLOOKUP($B49,P_All!$A$5:$AB$204,3*($C$6-1)+4) -> 106.3811833 | F49: =VLOOKUP($B49,NA_All!$A$5:$AB$204,3*($C$6-1)+2) -> 8.576883333 | G49: =VLOOKUP($B49,NA_All!$A$5:$AB$204,3*($C$6-1)+3) -> 29.464575 | H49: =VLOOKUP($B49,NA_All!$A$5:$AB$204,3*($C$6-1)+4) -> 109.5635417 | J49: 102 | K49: =VLOOKUP($J49,P_All!$AD$5:$BE$245,3*($C$6-1)+2) -> 1.6096 | L49: =VLOOKUP($J49,P_All!$AD$5:$BE$245,3*($C$6-1)+3) -> 4.7156 | M49: =VLOOKUP($J49,P_All!$AD$5:$BE$245,3*($C$6-1)+4) -> 8.3559 | N49: =VLOOKUP($J49,NA_All!$AD$5:$BE$245,3*($C$6-1)+2) -> 0.98597 | O49: =VLOOKUP($J49,NA_All!$AD$5:$BE$245,3*($C$6-1)+3) -> 4.1106 | P49: =VLOOKUP($J49,NA_All!$AD$5:$BE$245,3*($C$6-1)+4) -> 7.7915
B50: 26 | C50: =VLOOKUP($B50,P_All!$A$5:$AB$204,3*($C$6-1)+2) -> 8.6836 | D50: =VLOOKUP($B50,P_All!$A$5:$AB$204,3*($C$6-1)+3) -> 28.94408333 | E50: =VLOOKUP($B50,P_All!$A$5:$AB$204,3*($C$6-1)+4) -> 113.3185417 | F50: =VLOOKUP($B50,NA_All!$A$5:$AB$204,3*($C$6-1)+2) -> 8.865575 | G50: =VLOOKUP($B50,NA_All!$A$5:$AB$204,3*($C$6-1)+3) -> 29.73125833 | H50: =VLOOKUP($B50,NA_All!$A$5:$AB$204,3*($C$6-1)+4) -> 116.6310333 | J50: 102.0833333 | K50: =VLOOKUP($J50,P_All!$AD$5:$BE$245,3*($C$6-1)+2) -> 1.1843 | L50: =VLOOKUP($J50,P_All!$AD$5:$BE$245,3*($C$6-1)+3) -> 1.6925 | M50: =VLOOKUP($J50,P_All!$AD$5:$BE$245,3*($C$6-1)+4) -> 7.8235 | N50: =VLOOKUP($J50,NA_All!$AD$5:$BE$245,3*($C$6-1)+2) -> 0.56208 | O50: =VLOOKUP($J50,NA_All!$AD$5:$BE$245,3*($C$6-1)+3) -> 0.97365 | P50: =VLOOKUP($J50,NA_All!$AD$5:$BE$245,3*($C$6-1)+4) -> 7.2744
B51: 27 | C51: =VLOOKUP($B51,P_All!$A$5:$AB$204,3*($C$6-1)+2) -> 8.613175 | D51: =VLOOKUP($B51,P_All!$A$5:$AB$204,3*($C$6-1)+3) -> 30.65719167 | E51: =VLOOKUP($B51,P_All!$A$5:$AB$204,3*($C$6-1)+4) -> 110.4209583 | F51: =VLOOKUP($B51,NA_All!$A$5:$AB$204,3*($C$6-1)+2) -> 8.7884 | G51: =VLOOKUP($B51,NA_All!$A$5:$AB$204,3*($C$6-1)+3) -> 31.47455833 | H51: =VLOOKUP($B51,NA_All!$A$5:$AB$204,3*($C$6-1)+4) -> 113.5665917 | J51: 102.1666667 | K51: =VLOOKUP($J51,P_All!$AD$5:$BE$245,3*($C$6-1)+2) -> 1.2459 | L51: =VLOOKUP($J51,P_All!$AD$5:$BE$245,3*($C$6-1)+3) -> 4.8514 | M51: =VLOOKUP($J51,P_All!$AD$5:$BE$245,3*($C$6-1)+4) -> 46.98 | N51: =VLOOKUP($J51,NA_All!$AD$5:$BE$245,3*($C$6-1)+2) -> 0.61879 | O51: =VLOOKUP($J51,NA_All!$AD$5:$BE$245,3*($C$6-1)+3) -> 4.2674 | P51: =VLOOKUP($J51,NA_All!$AD$5:$BE$245,3*($C$6-1)+4) -> 46.905
B52: 28 | C52: =VLOOKUP($B52,P_All!$A$5:$AB$204,3*($C$6-1)+2) -> 8.8781 | D52: =VLOOKUP($B52,P_All!$A$5:$AB$204,3*($C$6-1)+3) -> 28.98114167 | E52: =VLOOKUP($B52,P_All!$A$5:$AB$204,3*($C$6-1)+4) -> 112.7759167 | F52: =VLOOKUP($B52,NA_All!$A$5:$AB$204,3*($C$6-1)+2) -> 9.056358333 | G52: =VLOOKUP($B52,NA_All!$A$5:$AB$204,3*($C$6-1)+3) -> 29.729975 | H52: =VLOOKUP($B52,NA_All!$A$5:$AB$204,3*($C$6-1)+4) -> 115.9083583 | J52: 102.25 | K52: =VLOOKUP($J52,P_All!$AD$5:$BE$245,3*($C$6-1)+2) -> 18.885 | L52: =VLOOKUP($J52,P_All!$AD$5:$BE$245,3*($C$6-1)+3) -> 76.057 | M52: =VLOOKUP($J52,P_All!$AD$5:$BE$245,3*($C$6-1)+4) -> 237.33 | N52: =VLOOKUP($J52,NA_All!$AD$5:$BE$245,3*($C$6-1)+2) -> 18.469 | O52: =VLOOKUP($J52,NA_All!$AD$5:$BE$245,3*($C$6-1)+3) -> 76.329 | P52: =VLOOKUP($J52,NA_All!$AD$5:$BE$245,3*($C$6-1)+4) -> 239.54
B53: 29 | C53: =VLOOKUP($B53,P_All!$A$5:$AB$204,3*($C$6-1)+2) -> 8.503391667 | D53: =VLOOKUP($B53,P_All!$A$5:$AB$204,3*($C$6-1)+3) -> 29.65553333 | E53: =VLOOKUP($B53,P_All!$A$5:$AB$204,3*($C$6-1)+4) -> 109.3376167 | F53: =VLOOKUP($B53,NA_All!$A$5:$AB$204,3*($C$6-1)+2) -> 8.666541667 | G53: =VLOOKUP($B53,NA_All!$A$5:$AB$204,3*($C$6-1)+3) -> 30.40356667 | H53: =VLOOKUP($B53,NA_All!$A$5:$AB$204,3*($C$6-1)+4) -> 112.291725 | J53: 102.3333333 | K53: =VLOOKUP($J53,P_All!$AD$5:$BE$245,3*($C$6-1)+2) -> 21.841 | L53: =VLOOKUP($J53,P_All!$AD$5:$BE$245,3*($C$6-1)+3) -> 82.809 | M53: =VLOOKUP($J53,P_All!$AD$5:$BE$245,3*($C$6-1)+4) -> 272.43 | N53: =VLOOKUP($J53,NA_All!$AD$5:$BE$245,3*($C$6-1)+2) -> 21.229 | O53: =VLOOKUP($J53,NA_All!$AD$5:$BE$245,3*($C$6-1)+3) -> 82.824 | P53: =VLOOKUP($J53,NA_All!$AD$5:$BE$245,3*($C$6-1)+4) -> 274.69
B54: 30 | C54: =VLOOKUP($B54,P_All!$A$5:$AB$204,3*($C$6-1)+2) -> 8.7434 | D54: =VLOOKUP($B54,P_All!$A$5:$AB$204,3*($C$6-1)+3) -> 30.76788333 | E54: =VLOOKUP($B54,P_All!$A$5:$AB$204,3*($C$6-1)+4) -> 108.7162583 | F54: =VLOOKUP($B54,NA_All!$A$5:$AB$204,3*($C$6-1)+2) -> 8.9088 | G54: =VLOOKUP($B54,NA_All!$A$5:$AB$204,3*($C$6-1)+3) -> 31.52585 | H54: =VLOOKUP($B54,NA_All!$A$5:$AB$204,3*($C$6-1)+4) -> 111.57595 | J54: 102.4166667 | K54: =VLOOKUP($J54,P_All!$AD$5:$BE$245,3*($C$6-1)+2) -> 5.6504 | L54: =VLOOKUP($J54,P_All!$AD$5:$BE$245,3*($C$6-1)+3) -> 37.745 | M54: =VLOOKUP($J54,P_All!$AD$5:$BE$245,3*($C$6-1)+4) -> 107.28 | N54: =VLOOKUP($J54,NA_All!$AD$5:$BE$245,3*($C$6-1)+2) -> 4.9006 | O54: =VLOOKUP($J54,NA_All!$AD$5:$BE$245,3*($C$6-1)+3) -> 37.537 | P54: =VLOOKUP($J54,NA_All!$AD$5:$BE$245,3*($C$6-1)+4) -> 107.88
B55: 31 | C55: =VLOOKUP($B55,P_All!$A$5:$AB$204,3*($C$6-1)+2) -> 8.4822 | D55: =VLOOKUP($B55,P_All!$A$5:$AB$204,3*($C$6-1)+3) -> 30.51391667 | E55: =VLOOKUP($B55,P_All!$A$5:$AB$204,3*($C$6-1)+4) -> 110.1514083 | F55: =VLOOKUP($B55,NA_All!$A$5:$AB$204,3*($C$6-1)+2) -> 8.636183333 | G55: =VLOOKUP($B55,NA_All!$A$5:$AB$204,3*($C$6-1)+3) -> 31.24411667 | H55: =VLOOKUP($B55,NA_All!$A$5:$AB$204,3*($C$6-1)+4) -> 112.9684167 | J55: 102.5 | K55: =VLOOKUP($J55,P_All!$AD$5:$BE$245,3*($C$6-1)+2) -> 2.9308 | L55: =VLOOKUP($J55,P_All!$AD$5:$BE$245,3*($C$6-1)+3) -> 20.488 | M55: =VLOOKUP($J55,P_All!$AD$5:$BE$245,3*($C$6-1)+4) -> 252.03 | N55: =VLOOKUP($J55,NA_All!$AD$5:$BE$245,3*($C$6-1)+2) -> 2.288 | O55: =VLOOKUP($J55,NA_All!$AD$5:$BE$245,3*($C$6-1)+3) -> 20 | P55: =VLOOKUP($J55,NA_All!$AD$5:$BE$245,3*($C$6-1)+4) -> 254.39
B56: 32 | C56: =VLOOKUP($B56,P_All!$A$5:$AB$204,3*($C$6-1)+2) -> 8.604966667 | D56: =VLOOKUP($B56,P_All!$A$5:$AB$204,3*($C$6-1)+3) -> 29.97486667 | E56: =VLOOKUP($B56,P_All!$A$5:$AB$204,3*($C$6-1)+4) -> 116.076875 | F56: =VLOOKUP($B56,NA_All!$A$5:$AB$204,3*($C$6-1)+2) -> 8.757675 | G56: =VLOOKUP($B56,NA_All!$A$5:$AB$204,3*($C$6-1)+3) -> 30.6706 | H56: =VLOOKUP($B56,NA_All!$A$5:$AB$204,3*($C$6-1)+4) -> 118.9651917 | J56: 102.5833333 | K56: =VLOOKUP($J56,P_All!$AD$5:$BE$245,3*($C$6-1)+2) -> 6.0328 | L56: =VLOOKUP($J56,P_All!$AD$5:$BE$245,3*($C$6-1)+3) -> 17.807 | M56: =VLOOKUP($J56,P_All!$AD$5:$BE$245,3*($C$6-1)+4) -> 130.57 | N56: =VLOOKUP($J56,NA_All!$AD$5:$BE$245,3*($C$6-1)+2) -> 5.4668 | O56: =VLOOKUP($J56,NA_All!$AD$5:$BE$245,3*($C$6-1)+3) -> 17.377 | P56: =VLOOKUP($J56,NA_All!$AD$5:$BE$245,3*($C$6-1)+4) -> 131.49
B57: 33 | C57: =VLOOKUP($B57,P_All!$A$5:$AB$204,3*($C$6-1)+2) -> 9.02285 | D57: =VLOOKUP($B57,P_All!$A$5:$AB$204,3*($C$6-1)+3) -> 29.59634167 | E57: =VLOOKUP($B57,P_All!$A$5:$AB$204,3*($C$6-1)+4) -> 113.4240833 | F57: =VLOOKUP($B57,NA_All!$A$5:$AB$204,3*($C$6-1)+2) -> 9.181391667 | G57: =VLOOKUP($B57,NA_All!$A$5:$AB$204,3*($C$6-1)+3) -> 30.26233333 | H57: =VLOOKUP($B57,NA_All!$A$5:$AB$204,3*($C$6-1)+4) -> 116.1614917 | J57: 102.6666667 | K57: =VLOOKUP($J57,P_All!$AD$5:$BE$245,3*($C$6-1)+2) -> 4.9703 | L57: =VLOOKUP($J57,P_All!$AD$5:$BE$245,3*($C$6-1)+3) -> 33.051 | M57: =VLOOKUP($J57,P_All!$AD$5:$BE$245,3*($C$6-1)+4) -> 77.405 | N57: =VLOOKUP($J57,NA_All!$AD$5:$BE$245,3*($C$6-1)+2) -> 4.3854 | O57: =VLOOKUP($J57,NA_All!$AD$5:$BE$245,3*($C$6-1)+3) -> 32.469 | P57: =VLOOKUP($J57,NA_All!$AD$5:$BE$245,3*($C$6-1)+4) -> 77.658
B58: 34 | C58: =VLOOKUP($B58,P_All!$A$5:$AB$204,3*($C$6-1)+2) -> 8.186025 | D58: =VLOOKUP($B58,P_All!$A$5:$AB$204,3*($C$6-1)+3) -> 29.5783 | E58: =VLOOKUP($B58,P_All!$A$5:$AB$204,3*($C$6-1)+4) -> 113.2393333 | F58: =VLOOKUP($B58,NA_All!$A$5:$AB$204,3*($C$6-1)+2) -> 8.319791667 | G58: =VLOOKUP($B58,NA_All!$A$5:$AB$204,3*($C$6-1)+3) -> 30.22393333 | H58: =VLOOKUP($B58,NA_All!$A$5:$AB$204,3*($C$6-1)+4) -> 115.8905667 | J58: 102.75 | K58: =VLOOKUP($J58,P_All!$AD$5:$BE$245,3*($C$6-1)+2) -> 8.9012 | L58: =VLOOKUP($J58,P_All!$AD$5:$BE$245,3*($C$6-1)+3) -> 28.832 | M58: =VLOOKUP($J58,P_All!$AD$5:$BE$245,3*($C$6-1)+4) -> 112.3 | N58: =VLOOKUP($J58,NA_All!$AD$5:$BE$245,3*($C$6-1)+2) -> 8.362 | O58: =VLOOKUP($J58,NA_All!$AD$5:$BE$245,3*($C$6-1)+3) -> 28.535 | P58: =VLOOKUP($J58,NA_All!$AD$5:$BE$245,3*($C$6-1)+4) -> 112.68
B59: 35 | C59: =VLOOKUP($B59,P_All!$A$5:$AB$204,3*($C$6-1)+2) -> 8.419733333 | D59: =VLOOKUP($B59,P_All!$A$5:$AB$204,3*($C$6-1)+3) -> 29.425725 | E59: =VLOOKUP($B59,P_All!$A$5:$AB$204,3*($C$6-1)+4) -> 108.6695 | F59: =VLOOKUP($B59,NA_All!$A$5:$AB$204,3*($C$6-1)+2) -> 8.554783333 | G59: =VLOOKUP($B59,NA_All!$A$5:$AB$204,3*($C$6-1)+3) -> 30.048225 | H59: =VLOOKUP($B59,NA_All!$A$5:$AB$204,3*($C$6-1)+4) -> 111.13275 | J59: 102.8333333 | K59: =VLOOKUP($J59,P_All!$AD$5:$BE$245,3*($C$6-1)+2) -> 7.3548 | L59: =VLOOKUP($J59,P_All!$AD$5:$BE$245,3*($C$6-1)+3) -> 16.231 | M59: =VLOOKUP($J59,P_All!$AD$5:$BE$245,3*($C$6-1)+4) -> 54.282 | N59: =VLOOKUP($J59,NA_All!$AD$5:$BE$245,3*($C$6-1)+2) -> 6.4218 | O59: =VLOOKUP($J59,NA_All!$AD$5:$BE$245,3*($C$6-1)+3) -> 15.854 | P59: =VLOOKUP($J59,NA_All!$AD$5:$BE$245,3*($C$6-1)+4) -> 54.286
B60: 36 | C60: =VLOOKUP($B60,P_All!$A$5:$AB$204,3*($C$6-1)+2) -> 8.861358333 | D60: =VLOOKUP($B60,P_All!$A$5:$AB$204,3*($C$6-1)+3) -> 30.77875 | E60: =VLOOKUP($B60,P_All!$A$5:$AB$204,3*($C$6-1)+4) -> 110.4508667 | F60: =VLOOKUP($B60,NA_All!$A$5:$AB$204,3*($C$6-1)+2) -> 9.002141667 | G60: =VLOOKUP($B60,NA_All!$A$5:$AB$204,3*($C$6-1)+3) -> 31.41179167 | H60: =VLOOKUP($B60,NA_All!$A$5:$AB$204,3*($C$6-1)+4) -> 112.8761417 | J60: 102.9166667 | K60: =VLOOKUP($J60,P_All!$AD$5:$BE$245,3*($C$6-1)+2) -> 3.8138 | L60: =VLOOKUP($J60,P_All!$AD$5:$BE$245,3*($C$6-1)+3) -> 7.5219 | M60: =VLOOKUP($J60,P_All!$AD$5:$BE$245,3*($C$6-1)+4) -> 15.541 | N60: =VLOOKUP($J60,NA_All!$AD$5:$BE$245,3*($C$6-1)+2) -> 3.1655 | O60: =VLOOKUP($J60,NA_All!$AD$5:$BE$245,3*($C$6-1)+3) -> 6.9519 | P60: =VLOOKUP($J60,NA_All!$AD$5:$BE$245,3*($C$6-1)+4) -> 15.002
B61: 37 | C61: =VLOOKUP($B61,P_All!$A$5:$AB$204,3*($C$6-1)+2) -> 8.482766667 | D61: =VLOOKUP($B61,P_All!$A$5:$AB$204,3*($C$6-1)+3) -> 30.181375 | E61: =VLOOKUP($B61,P_All!$A$5:$AB$204,3*($C$6-1)+4) -> 115.6940167 | F61: =VLOOKUP($B61,NA_All!$A$5:$AB$204,3*($C$6-1)+2) -> 8.610775 | G61: =VLOOKUP($B61,NA_All!$A$5:$AB$204,3*($C$6-1)+3) -> 30.78051667 | H61: =VLOOKUP($B61,NA_All!$A$5:$AB$204,3*($C$6-1)+4) -> 118.1544833 | J61: 103 | K61: =VLOOKUP($J61,P_All!$AD$5:$BE$245,3*($C$6-1)+2) -> 1.5824 | L61: =VLOOKUP($J61,P_All!$AD$5:$BE$245,3*($C$6-1)+3) -> 4.2809 | M61: =VLOOKUP($J61,P_All!$AD$5:$BE$245,3*($C$6-1)+4) -> 7.9163 | N61: =VLOOKUP($J61,NA_All!$AD$5:$BE$245,3*($C$6-1)+2) -> 0.95914 | O61: =VLOOKUP($J61,NA_All!$AD$5:$BE$245,3*($C$6-1)+3) -> 3.6884 | P61: =VLOOKUP($J61,NA_All!$AD$5:$BE$245,3*($C$6-1)+4) -> 7.3502
B62: 38 | C62: =VLOOKUP($B62,P_All!$A$5:$AB$204,3*($C$6-1)+2) -> 8.162316667 | D62: =VLOOKUP($B62,P_All!$A$5:$AB$204,3*($C$6-1)+3) -> 28.94304167 | E62: =VLOOKUP($B62,P_All!$A$5:$AB$204,3*($C$6-1)+4) -> 118.4400167 | F62: =VLOOKUP($B62,NA_All!$A$5:$AB$204,3*($C$6-1)+2) -> 8.279041667 | G62: =VLOOKUP($B62,NA_All!$A$5:$AB$204,3*($C$6-1)+3) -> 29.49601667 | H62: =VLOOKUP($B62,NA_All!$A$5:$AB$204,3*($C$6-1)+4) -> 120.874725 | J62: 103.0833333 | K62: =VLOOKUP($J62,P_All!$AD$5:$BE$245,3*($C$6-1)+2) -> 1.1969 | L62: =VLOOKUP($J62,P_All!$AD$5:$BE$245,3*($C$6-1)+3) -> 1.6009 | M62: =VLOOKUP($J62,P_All!$AD$5:$BE$245,3*($C$6-1)+4) -> 8.1078 | N62: =VLOOKUP($J62,NA_All!$AD$5:$BE$245,3*($C$6-1)+2) -> 0.57858 | O62: =VLOOKUP($J62,NA_All!$AD$5:$BE$245,3*($C$6-1)+3) -> 0.96367 | P62: =VLOOKUP($J62,NA_All!$AD$5:$BE$245,3*($C$6-1)+4) -> 7.5621
B63: 39 | C63: =VLOOKUP($B63,P_All!$A$5:$AB$204,3*($C$6-1)+2) -> 8.165916667 | D63: =VLOOKUP($B63,P_All!$A$5:$AB$204,3*($C$6-1)+3) -> 28.45595833 | E63: =VLOOKUP($B63,P_All!$A$5:$AB$204,3*($C$6-1)+4) -> 110.6782917 | F63: =VLOOKUP($B63,NA_All!$A$5:$AB$204,3*($C$6-1)+2) -> 8.278625 | G63: =VLOOKUP($B63,NA_All!$A$5:$AB$204,3*($C$6-1)+3) -> 28.979425 | H63: =VLOOKUP($B63,NA_All!$A$5:$AB$204,3*($C$6-1)+4) -> 112.8684917 | J63: 103.1666667 | K63: =VLOOKUP($J63,P_All!$AD$5:$BE$245,3*($C$6-1)+2) -> 1.179 | L63: =VLOOKUP($J63,P_All!$AD$5:$BE$245,3*($C$6-1)+3) -> 4.0599 | M63: =VLOOKUP($J63,P_All!$AD$5:$BE$245,3*($C$6-1)+4) -> 46.126 | N63: =VLOOKUP($J63,NA_All!$AD$5:$BE$245,3*($C$6-1)+2) -> 0.55064 | O63: =VLOOKUP($J63,NA_All!$AD$5:$BE$245,3*($C$6-1)+3) -> 3.4663 | P63: =VLOOKUP($J63,NA_All!$AD$5:$BE$245,3*($C$6-1)+4) -> 46.041
B64: 40 | C64: =VLOOKUP($B64,P_All!$A$5:$AB$204,3*($C$6-1)+2) -> 8.832591667 | D64: =VLOOKUP($B64,P_All!$A$5:$AB$204,3*($C$6-1)+3) -> 29.45136667 | E64: =VLOOKUP($B64,P_All!$A$5:$AB$204,3*($C$6-1)+4) -> 116.5546083 | F64: =VLOOKUP($B64,NA_All!$A$5:$AB$204,3*($C$6-1)+2) -> 8.954316667 | G64: =VLOOKUP($B64,NA_All!$A$5:$AB$204,3*($C$6-1)+3) -> 29.97559167 | H64: =VLOOKUP($B64,NA_All!$A$5:$AB$204,3*($C$6-1)+4) -> 118.7812417 | J64: 103.25 | K64: =VLOOKUP($J64,P_All!$AD$5:$BE$245,3*($C$6-1)+2) -> 19.794 | L64: =VLOOKUP($J64,P_All!$AD$5:$BE$245,3*($C$6-1)+3) -> 82.073 | M64: =VLOOKUP($J64,P_All!$AD$5:$BE$245,3*($C$6-1)+4) -> 251.13 | N64: =VLOOKUP($J64,NA_All!$AD$5:$BE$245,3*($C$6-1)+2) -> 19.389 | O64: =VLOOKUP($J64,NA_All!$AD$5:$BE$245,3*($C$6-1)+3) -> 82.416 | P64: =VLOOKUP($J64,NA_All!$AD$5:$BE$245,3*($C$6-1)+4) -> 253.24
B65: 41 | C65: =VLOOKUP($B65,P_All!$A$5:$AB$204,3*($C$6-1)+2) -> 8.545416667 | D65: =VLOOKUP($B65,P_All!$A$5:$AB$204,3*($C$6-1)+3) -> 29.00506667 | E65: =VLOOKUP($B65,P_All!$A$5:$AB$204,3*($C$6-1)+4) -> 108.1995333 | F65: =VLOOKUP($B65,NA_All!$A$5:$AB$204,3*($C$6-1)+2) -> 8.657191667 | G65: =VLOOKUP($B65,NA_All!$A$5:$AB$204,3*($C$6-1)+3) -> 29.50115 | H65: =VLOOKUP($B65,NA_All!$A$5:$AB$204,3*($C$6-1)+4) -> 110.1863333 | J65: 103.3333333 | K65: =VLOOKUP($J65,P_All!$AD$5:$BE$245,3*($C$6-1)+2) -> 20.731 | L65: =VLOOKUP($J65,P_All!$AD$5:$BE$245,3*($C$6-1)+3) -> 80.473 | M65: =VLOOKUP($J65,P_All!$AD$5:$BE$245,3*($C$6-1)+4) -> 276.24 | N65: =VLOOKUP($J65,NA_All!$AD$5:$BE$245,3*($C$6-1)+2) -> 19.794 | O65: =VLOOKUP($J65,NA_All!$AD$5:$BE$245,3*($C$6-1)+3) -> 80.483 | P65: =VLOOKUP($J65,NA_All!$AD$5:$BE$245,3*($C$6-1)+4) -> 278.54
B66: 42 | C66: =VLOOKUP($B66,P_All!$A$5:$AB$204,3*($C$6-1)+2) -> 8.856891667 | D66: =VLOOKUP($B66,P_All!$A$5:$AB$204,3*($C$6-1)+3) -> 30.300025 | E66: =VLOOKUP($B66,P_All!$A$5:$AB$204,3*($C$6-1)+4) -> 111.2892333 | F66: =VLOOKUP($B66,NA_All!$A$5:$AB$204,3*($C$6-1)+2) -> 8.969933333 | G66: =VLOOKUP($B66,NA_All!$A$5:$AB$204,3*($C$6-1)+3) -> 30.799975 | H66: =VLOOKUP($B66,NA_All!$A$5:$AB$204,3*($C$6-1)+4) -> 113.2558583 | J66: 103.4166667 | K66: =VLOOKUP($J66,P_All!$AD$5:$BE$245,3*($C$6-1)+2) -> 5.3742 | L66: =VLOOKUP($J66,P_All!$AD$5:$BE$245,3*($C$6-1)+3) -> 36.461 | M66: =VLOOKUP($J66,P_All!$AD$5:$BE$245,3*($C$6-1)+4) -> 97.696 | N66: =VLOOKUP($J66,NA_All!$AD$5:$BE$245,3*($C$6-1)+2) -> 4.7363 | O66: =VLOOKUP($J66,NA_All!$AD$5:$BE$245,3*($C$6-1)+3) -> 36.239 | P66: =VLOOKUP($J66,NA_All!$AD$5:$BE$245,3*($C$6-1)+4) -> 97.577
B67: 43 | C67: =VLOOKUP($B67,P_All!$A$5:$AB$204,3*($C$6-1)+2) -> 8.455475 | D67: =VLOOKUP($B67,P_All!$A$5:$AB$204,3*($C$6-1)+3) -> 30.79504167 | E67: =VLOOKUP($B67,P_All!$A$5:$AB$204,3*($C$6-1)+4) -> 112.8811917 | F67: =VLOOKUP($B67,NA_All!$A$5:$AB$204,3*($C$6-1)+2) -> 8.557033333 | G67: =VLOOKUP($B67,NA_All!$A$5:$AB$204,3*($C$6-1)+3) -> 31.28363333 | H67: =VLOOKUP($B67,NA_All!$A$5:$AB$204,3*($C$6-1)+4) -> 114.7937167 | J67: 103.5 | K67: =VLOOKUP($J67,P_All!$AD$5:$BE$245,3*($C$6-1)+2) -> 2.4576 | L67: =VLOOKUP($J67,P_All!$AD$5:$BE$245,3*($C$6-1)+3) -> 22.589 | M67: =VLOOKUP($J67,P_All!$AD$5:$BE$245,3*($C$6-1)+4) -> 232.07 | N67: =VLOOKUP($J67,NA_All!$AD$5:$BE$245,3*($C$6-1)+2) -> 1.8443 | O67: =VLOOKUP($J67,NA_All!$AD$5:$BE$245,3*($C$6-1)+3) -> 22.215 | P67: =VLOOKUP($J67,NA_All!$AD$5:$BE$245,3*($C$6-1)+4) -> 234.19
B68: 44 | C68: =VLOOKUP($B68,P_All!$A$5:$AB$204,3*($C$6-1)+2) -> 8.80345 | D68: =VLOOKUP($B68,P_All!$A$5:$AB$204,3*($C$6-1)+3) -> 29.22129167 | E68: =VLOOKUP($B68,P_All!$A$5:$AB$204,3*($C$6-1)+4) -> 109.6216167 | F68: =VLOOKUP($B68,NA_All!$A$5:$AB$204,3*($C$6-1)+2) -> 8.906558333 | G68: =VLOOKUP($B68,NA_All!$A$5:$AB$204,3*($C$6-1)+3) -> 29.663125 | H68: =VLOOKUP($B68,NA_All!$A$5:$AB$204,3*($C$6-1)+4) -> 111.3996833 | J68: 103.5833333 | K68: =VLOOKUP($J68,P_All!$AD$5:$BE$245,3*($C$6-1)+2) -> 6.1344 | L68: =VLOOKUP($J68,P_All!$AD$5:$BE$245,3*($C$6-1)+3) -> 23.121 | M68: =VLOOKUP($J68,P_All!$AD$5:$BE$245,3*($C$6-1)+4) -> 131.29 | N68: =VLOOKUP($J68,NA_All!$AD$5:$BE$245,3*($C$6-1)+2) -> 5.5651 | O68: =VLOOKUP($J68,NA_All!$AD$5:$BE$245,3*($C$6-1)+3) -> 22.754 | P68: =VLOOKUP($J68,NA_All!$AD$5:$BE$245,3*($C$6-1)+4) -> 132.21
B69: 45 | C69: =VLOOKUP($B69,P_All!$A$5:$AB$204,3*($C$6-1)+2) -> 8.61115 | D69: =VLOOKUP($B69,P_All!$A$5:$AB$204,3*($C$6-1)+3) -> 30.95961667 | E69: =VLOOKUP($B69,P_All!$A$5:$AB$204,3*($C$6-1)+4) -> 117.57635 | F69: =VLOOKUP($B69,NA_All!$A$5:$AB$204,3*($C$6-1)+2) -> 8.70655 | G69: =VLOOKUP($B69,NA_All!$A$5:$AB$204,3*($C$6-1)+3) -> 31.41034167 | H69: =VLOOKUP($B69,NA_All!$A$5:$AB$204,3*($C$6-1)+4) -> 119.403525 | J69: 103.6666667 | K69: =VLOOKUP($J69,P_All!$AD$5:$BE$245,3*($C$6-1)+2) -> 3.9468 | L69: =VLOOKUP($J69,P_All!$AD$5:$BE$245,3*($C$6-1)+3) -> 29.137 | M69: =VLOOKUP($J69,P_All!$AD$5:$BE$245,3*($C$6-1)+4) -> 77.835 | N69: =VLOOKUP($J69,NA_All!$AD$5:$BE$245,3*($C$6-1)+2) -> 3.3339 | O69: =VLOOKUP($J69,NA_All!$AD$5:$BE$245,3*($C$6-1)+3) -> 28.754 | P69: =VLOOKUP($J69,NA_All!$AD$5:$BE$245,3*($C$6-1)+4) -> 78.093
B70: 46 | C70: =VLOOKUP($B70,P_All!$A$5:$AB$204,3*($C$6-1)+2) -> 8.687925 | D70: =VLOOKUP($B70,P_All!$A$5:$AB$204,3*($C$6-1)+3) -> 29.91784167 | E70: =VLOOKUP($B70,P_All!$A$5:$AB$204,3*($C$6-1)+4) -> 113.0927667 | F70: =VLOOKUP($B70,NA_All!$A$5:$AB$204,3*($C$6-1)+2) -> 8.780183333 | G70: =VLOOKUP($B70,NA_All!$A$5:$AB$204,3*($C$6-1)+3) -> 30.33174167 | H70: =VLOOKUP($B70,NA_All!$A$5:$AB$204,3*($C$6-1)+4) -> 114.7679167 | J70: 103.75 | K70: =VLOOKUP($J70,P_All!$AD$5:$BE$245,3*($C$6-1)+2) -> 9.501 | L70: =VLOOKUP($J70,P_All!$AD$5:$BE$245,3*($C$6-1)+3) -> 31.514 | M70: =VLOOKUP($J70,P_All!$AD$5:$BE$245,3*($C$6-1)+4) -> 133.26 | N70: =VLOOKUP($J70,NA_All!$AD$5:$BE$245,3*($C$6-1)+2) -> 8.5214 | O70: =VLOOKUP($J70,NA_All!$AD$5:$BE$245,3*($C$6-1)+3) -> 30.914 | P70: =VLOOKUP($J70,NA_All!$AD$5:$BE$245,3*($C$6-1)+4) -> 134.22
B71: 47 | C71: =VLOOKUP($B71,P_All!$A$5:$AB$204,3*($C$6-1)+2) -> 8.633033333 | D71: =VLOOKUP($B71,P_All!$A$5:$AB$204,3*($C$6-1)+3) -> 29.2096 | E71: =VLOOKUP($B71,P_All!$A$5:$AB$204,3*($C$6-1)+4) -> 111.2307333 | F71: =VLOOKUP($B71,NA_All!$A$5:$AB$204,3*($C$6-1)+2) -> 8.712075 | G71: =VLOOKUP($B71,NA_All!$A$5:$AB$204,3*($C$6-1)+3) -> 29.59305 | H71: =VLOOKUP($B71,NA_All!$A$5:$AB$204,3*($C$6-1)+4) -> 112.7996333 | J71: 103.8333333 | K71: =VLOOKUP($J71,P_All!$AD$5:$BE$245,3*($C$6-1)+2) -> 7.2367 | L71: =VLOOKUP($J71,P_All!$AD$5:$BE$245,3*($C$6-1)+3) -> 18.217 | M71: =VLOOKUP($J71,P_All!$AD$5:$BE$245,3*($C$6-1)+4) -> 61.473 | N71: =VLOOKUP($J71,NA_All!$AD$5:$BE$245,3*($C$6-1)+2) -> 6.4218 | O71: =VLOOKUP($J71,NA_All!$AD$5:$BE$245,3*($C$6-1)+3) -> 17.568 | P71: =VLOOKUP($J71,NA_All!$AD$5:$BE$245,3*($C$6-1)+4) -> 61.563
B72: 48 | C72: =VLOOKUP($B72,P_All!$A$5:$AB$204,3*($C$6-1)+2) -> 8.987391667 | D72: =VLOOKUP($B72,P_All!$A$5:$AB$204,3*($C$6-1)+3) -> 29.93286667 | E72: =VLOOKUP($B72,P_All!$A$5:$AB$204,3*($C$6-1)+4) -> 111.8335333 | F72: =VLOOKUP($B72,NA_All!$A$5:$AB$204,3*($C$6-1)+2) -> 9.045375 | G72: =VLOOKUP($B72,NA_All!$A$5:$AB$204,3*($C$6-1)+3) -> 30.27874167 | H72: =VLOOKUP($B72,NA_All!$A$5:$AB$204,3*($C$6-1)+4) -> 113.3139083 | J72: 103.9166667 | K72: =VLOOKUP($J72,P_All!$AD$5:$BE$245,3*($C$6-1)+2) -> 3.7634 | L72: =VLOOKUP($J72,P_All!$AD$5:$BE$245,3*($C$6-1)+3) -> 7.3958 | M72: =VLOOKUP($J72,P_All!$AD$5:$BE$245,3*($C$6-1)+4) -> 16.901 | N72: =VLOOKUP($J72,NA_All!$AD$5:$BE$245,3*($C$6-1)+2) -> 3.1388 | O72: =VLOOKUP($J72,NA_All!$AD$5:$BE$245,3*($C$6-1)+3) -> 6.7806 | P72: =VLOOKUP($J72,NA_All!$AD$5:$BE$245,3*($C$6-1)+4) -> 16.462
B73: 49 | C73: =VLOOKUP($B73,P_All!$A$5:$AB$204,3*($C$6-1)+2) -> 9.291741667 | D73: =VLOOKUP($B73,P_All!$A$5:$AB$204,3*($C$6-1)+3) -> 31.84585833 | E73: =VLOOKUP($B73,P_All!$A$5:$AB$204,3*($C$6-1)+4) -> 117.5574583 | F73: =VLOOKUP($B73,NA_All!$A$5:$AB$204,3*($C$6-1)+2) -> 9.304558333 | G73: =VLOOKUP($B73,NA_All!$A$5:$AB$204,3*($C$6-1)+3) -> 32.12939167 | H73: =VLOOKUP($B73,NA_All!$A$5:$AB$204,3*($C$6-1)+4) -> 118.9889917 | J73: 104 | K73: =VLOOKUP($J73,P_All!$AD$5:$BE$245,3*($C$6-1)+2) -> 1.5838 | L73: =VLOOKUP($J73,P_All!$AD$5:$BE$245,3*($C$6-1)+3) -> 4.4622 | M73: =VLOOKUP($J73,P_All!$AD$5:$BE$245,3*($C$6-1)+4) -> 8.0063 | N73: =VLOOKUP($J73,NA_All!$AD$5:$BE$245,3*($C$6-1)+2) -> 0.97084 | O73: =VLOOKUP($J73,NA_All!$AD$5:$BE$245,3*($C$6-1)+3) -> 3.8725 | P73: =VLOOKUP($J73,NA_All!$AD$5:$BE$245,3*($C$6-1)+4) -> 7.4571
B74: 50 | C74: =VLOOKUP($B74,P_All!$A$5:$AB$204,3*($C$6-1)+2) -> 9.230158333 | D74: =VLOOKUP($B74,P_All!$A$5:$AB$204,3*($C$6-1)+3) -> 30.716575 | E74: =VLOOKUP($B74,P_All!$A$5:$AB$204,3*($C$6-1)+4) -> 114.2943417 | F74: =VLOOKUP($B74,NA_All!$A$5:$AB$204,3*($C$6-1)+2) -> 9.1622 | G74: =VLOOKUP($B74,NA_All!$A$5:$AB$204,3*($C$6-1)+3) -> 30.93563333 | H74: =VLOOKUP($B74,NA_All!$A$5:$AB$204,3*($C$6-1)+4) -> 115.5416417 | J74: 104.0833333 | K74: =VLOOKUP($J74,P_All!$AD$5:$BE$245,3*($C$6-1)+2) -> 1.1748 | L74: =VLOOKUP($J74,P_All!$AD$5:$BE$245,3*($C$6-1)+3) -> 1.7911 | M74: =VLOOKUP($J74,P_All!$AD$5:$BE$245,3*($C$6-1)+4) -> 7.9778 | N74: =VLOOKUP($J74,NA_All!$AD$5:$BE$245,3*($C$6-1)+2) -> 0.54977 | O74: =VLOOKUP($J74,NA_All!$AD$5:$BE$245,3*($C$6-1)+3) -> 1.1643 | P74: =VLOOKUP($J74,NA_All!$AD$5:$BE$245,3*($C$6-1)+4) -> 7.4306
B75: 51 | C75: =VLOOKUP($B75,P_All!$A$5:$AB$204,3*($C$6-1)+2) -> 9.185475 | D75: =VLOOKUP($B75,P_All!$A$5:$AB$204,3*($C$6-1)+3) -> 29.75490833 | E75: =VLOOKUP($B75,P_All!$A$5:$AB$204,3*($C$6-1)+4) -> 111.1063417 | F75: =VLOOKUP($B75,NA_All!$A$5:$AB$204,3*($C$6-1)+2) -> 9.042433333 | G75: =VLOOKUP($B75,NA_All!$A$5:$AB$204,3*($C$6-1)+3) -> 29.87888333 | H75: =VLOOKUP($B75,NA_All!$A$5:$AB$204,3*($C$6-1)+4) -> 112.0793917 | J75: 104.1666667 | K75: =VLOOKUP($J75,P_All!$AD$5:$BE$245,3*($C$6-1)+2) -> 1.2 | L75: =VLOOKUP($J75,P_All!$AD$5:$BE$245,3*($C$6-1)+3) -> 3.9923 | M75: =VLOOKUP($J75,P_All!$AD$5:$BE$245,3*($C$6-1)+4) -> 53.748 | N75: =VLOOKUP($J75,NA_All!$AD$5:$BE$245,3*($C$6-1)+2) -> 0.57679 | O75: =VLOOKUP($J75,NA_All!$AD$5:$BE$245,3*($C$6-1)+3) -> 3.416 | P75: =VLOOKUP($J75,NA_All!$AD$5:$BE$245,3*($C$6-1)+4) -> 53.755
B76: 52 | C76: =VLOOKUP($B76,P_All!$A$5:$AB$204,3*($C$6-1)+2) -> 8.948616667 | D76: =VLOOKUP($B76,P_All!$A$5:$AB$204,3*($C$6-1)+3) -> 29.01935833 | E76: =VLOOKUP($B76,P_All!$A$5:$AB$204,3*($C$6-1)+4) -> 117.1145417 | F76: =VLOOKUP($B76,NA_All!$A$5:$AB$204,3*($C$6-1)+2) -> 8.7459 | G76: =VLOOKUP($B76,NA_All!$A$5:$AB$204,3*($C$6-1)+3) -> 28.95780833 | H76: =VLOOKUP($B76,NA_All!$A$5:$AB$204,3*($C$6-1)+4) -> 118.0981583 | J76: 104.25 | K76: =VLOOKUP($J76,P_All!$AD$5:$BE$245,3*($C$6-1)+2) -> 21.42 | L76: =VLOOKUP($J76,P_All!$AD$5:$BE$245,3*($C$6-1)+3) -> 80.653 | M76: =VLOOKUP($J76,P_All!$AD$5:$BE$245,3*($C$6-1)+4) -> 234.78 | N76: =VLOOKUP($J76,NA_All!$AD$5:$BE$245,3*($C$6-1)+2) -> 21.035 | O76: =VLOOKUP($J76,NA_All!$AD$5:$BE$245,3*($C$6-1)+3) -> 80.979 | P76: =VLOOKUP($J76,NA_All!$AD$5:$BE$245,3*($C$6-1)+4) -> 236.96
B77: 53 | C77: =VLOOKUP($B77,P_All!$A$5:$AB$204,3*($C$6-1)+2) -> 9.219875 | D77: =VLOOKUP($B77,P_All!$A$5:$AB$204,3*($C$6-1)+3) -> 29.53473333 | E77: =VLOOKUP($B77,P_All!$A$5:$AB$204,3*($C$6-1)+4) -> 116.9625417 | F77: =VLOOKUP($B77,NA_All!$A$5:$AB$204,3*($C$6-1)+2) -> 8.938791667 | G77: =VLOOKUP($B77,NA_All!$A$5:$AB$204,3*($C$6-1)+3) -> 29.3757 | H77: =VLOOKUP($B77,NA_All!$A$5:$AB$204,3*($C$6-1)+4) -> 117.9124083 | J77: 104.3333333 | K77: =VLOOKUP($J77,P_All!$AD$5:$BE$245,3*($C$6-1)+2) -> 17.838 | L77: =VLOOKUP($J77,P_All!$AD$5:$BE$245,3*($C$6-1)+3) -> 81.136 | M77: =VLOOKUP($J77,P_All!$AD$5:$BE$245,3*($C$6-1)+4) -> 251.99 | N77: =VLOOKUP($J77,NA_All!$AD$5:$BE$245,3*($C$6-1)+2) -> 17.406 | O77: =VLOOKUP($J77,NA_All!$AD$5:$BE$245,3*($C$6-1)+3) -> 81.131 | P77: =VLOOKUP($J77,NA_All!$AD$5:$BE$245,3*($C$6-1)+4) -> 254.32
B78: 54 | C78: =VLOOKUP($B78,P_All!$A$5:$AB$204,3*($C$6-1)+2) -> 9.339908333 | D78: =VLOOKUP($B78,P_All!$A$5:$AB$204,3*($C$6-1)+3) -> 30.66275833 | E78: =VLOOKUP($B78,P_All!$A$5:$AB$204,3*($C$6-1)+4) -> 110.7629667 | F78: =VLOOKUP($B78,NA_All!$A$5:$AB$204,3*($C$6-1)+2) -> 8.940241667 | G78: =VLOOKUP($B78,NA_All!$A$5:$AB$204,3*($C$6-1)+3) -> 30.40274167 | H78: =VLOOKUP($B78,NA_All!$A$5:$AB$204,3*($C$6-1)+4) -> 111.5192 | J78: 104.4166667 | K78: =VLOOKUP($J78,P_All!$AD$5:$BE$245,3*($C$6-1)+2) -> 5.7688 | L78: =VLOOKUP($J78,P_All!$AD$5:$BE$245,3*($C$6-1)+3) -> 35.541 | M78: =VLOOKUP($J78,P_All!$AD$5:$BE$245,3*($C$6-1)+4) -> 105.26 | N78: =VLOOKUP($J78,NA_All!$AD$5:$BE$245,3*($C$6-1)+2) -> 5.0514 | O78: =VLOOKUP($J78,NA_All!$AD$5:$BE$245,3*($C$6-1)+3) -> 35.308 | P78: =VLOOKUP($J78,NA_All!$AD$5:$BE$245,3*($C$6-1)+4) -> 105.83
B79: 55 | C79: =VLOOKUP($B79,P_All!$A$5:$AB$204,3*($C$6-1)+2) -> 9.218375 | D79: =VLOOKUP($B79,P_All!$A$5:$AB$204,3*($C$6-1)+3) -> 30.21633333 | E79: =VLOOKUP($B79,P_All!$A$5:$AB$204,3*($C$6-1)+4) -> 111.7965833 | F79: =VLOOKUP($B79,NA_All!$A$5:$AB$204,3*($C$6-1)+2) -> 8.73915 | G79: =VLOOKUP($B79,NA_All!$A$5:$AB$204,3*($C$6-1)+3) -> 29.94434167 | H79: =VLOOKUP($B79,NA_All!$A$5:$AB$204,3*($C$6-1)+4) -> 112.5843083 | J79: 104.5 | K79: =VLOOKUP($J79,P_All!$AD$5:$BE$245,3*($C$6-1)+2) -> 2.1337 | L79: =VLOOKUP($J79,P_All!$AD$5:$BE$245,3*($C$6-1)+3) -> 20.236 | M79: =VLOOKUP($J79,P_All!$AD$5:$BE$245,3*($C$6-1)+4) -> 215.27 | N79: =VLOOKUP($J79,NA_All!$AD$5:$BE$245,3*($C$6-1)+2) -> 1.5433 | O79: =VLOOKUP($J79,NA_All!$AD$5:$BE$245,3*($C$6-1)+3) -> 19.717 | P79: =VLOOKUP($J79,NA_All!$AD$5:$BE$245,3*($C$6-1)+4) -> 217.18
B80: 56 | C80: =VLOOKUP($B80,P_All!$A$5:$AB$204,3*($C$6-1)+2) -> 6.816791667 | D80: =VLOOKUP($B80,P_All!$A$5:$AB$204,3*($C$6-1)+3) -> 28.49154167 | E80: =VLOOKUP($B80,P_All!$A$5:$AB$204,3*($C$6-1)+4) -> 117.3113667 | F80: =VLOOKUP($B80,NA_All!$A$5:$AB$204,3*($C$6-1)+2) -> 6.273063333 | G80: =VLOOKUP($B80,NA_All!$A$5:$AB$204,3*($C$6-1)+3) -> 28.17302417 | H80: =VLOOKUP($B80,NA_All!$A$5:$AB$204,3*($C$6-1)+4) -> 117.9880417 | J80: 104.5833333 | K80: =VLOOKUP($J80,P_All!$AD$5:$BE$245,3*($C$6-1)+2) -> 5.7957 | L80: =VLOOKUP($J80,P_All!$AD$5:$BE$245,3*($C$6-1)+3) -> 19.169 | M80: =VLOOKUP($J80,P_All!$AD$5:$BE$245,3*($C$6-1)+4) -> 149.91 | N80: =VLOOKUP($J80,NA_All!$AD$5:$BE$245,3*($C$6-1)+2) -> 5.2223 | O80: =VLOOKUP($J80,NA_All!$AD$5:$BE$245,3*($C$6-1)+3) -> 18.755 | P80: =VLOOKUP($J80,NA_All!$AD$5:$BE$245,3*($C$6-1)+4) -> 151.06
B81: 57 | C81: =VLOOKUP($B81,P_All!$A$5:$AB$204,3*($C$6-1)+2) -> 6.978208333 | D81: =VLOOKUP($B81,P_All!$A$5:$AB$204,3*($C$6-1)+3) -> 28.47055 | E81: =VLOOKUP($B81,P_All!$A$5:$AB$204,3*($C$6-1)+4) -> 117.504025 | F81: =VLOOKUP($B81,NA_All!$A$5:$AB$204,3*($C$6-1)+2) -> 6.431686667 | G81: =VLOOKUP($B81,NA_All!$A$5:$AB$204,3*($C$6-1)+3) -> 28.19449917 | H81: =VLOOKUP($B81,NA_All!$A$5:$AB$204,3*($C$6-1)+4) -> 118.2846167 | J81: 104.6666667 | K81: =VLOOKUP($J81,P_All!$AD$5:$BE$245,3*($C$6-1)+2) -> 4.2926 | L81: =VLOOKUP($J81,P_All!$AD$5:$BE$245,3*($C$6-1)+3) -> 31.846 | M81: =VLOOKUP($J81,P_All!$AD$5:$BE$245,3*($C$6-1)+4) -> 77.633 | N81: =VLOOKUP($J81,NA_All!$AD$5:$BE$245,3*($C$6-1)+2) -> 3.6989 | O81: =VLOOKUP($J81,NA_All!$AD$5:$BE$245,3*($C$6-1)+3) -> 31.572 | P81: =VLOOKUP($J81,NA_All!$AD$5:$BE$245,3*($C$6-1)+4) -> 77.888
B82: 58 | C82: =VLOOKUP($B82,P_All!$A$5:$AB$204,3*($C$6-1)+2) -> 6.725975 | D82: =VLOOKUP($B82,P_All!$A$5:$AB$204,3*($C$6-1)+3) -> 28.476 | E82: =VLOOKUP($B82,P_All!$A$5:$AB$204,3*($C$6-1)+4) -> 114.118375 | F82: =VLOOKUP($B82,NA_All!$A$5:$AB$204,3*($C$6-1)+2) -> 6.125533333 | G82: =VLOOKUP($B82,NA_All!$A$5:$AB$204,3*($C$6-1)+3) -> 28.161675 | H82: =VLOOKUP($B82,NA_All!$A$5:$AB$204,3*($C$6-1)+4) -> 114.8900333 | J82: 104.75 | K82: =VLOOKUP($J82,P_All!$AD$5:$BE$245,3*($C$6-1)+2) -> 9.3777 | L82: =VLOOKUP($J82,P_All!$AD$5:$BE$245,3*($C$6-1)+3) -> 32.687 | M82: =VLOOKUP($J82,P_All!$AD$5:$BE$245,3*($C$6-1)+4) -> 134.15 | N82: =VLOOKUP($J82,NA_All!$AD$5:$BE$245,3*($C$6-1)+2) -> 8.3741 | O82: =VLOOKUP($J82,NA_All!$AD$5:$BE$245,3*($C$6-1)+3) -> 32.187 | P82: =VLOOKUP($J82,NA_All!$AD$5:$BE$245,3*($C$6-1)+4) -> 135.11
B83: 59 | C83: =VLOOKUP($B83,P_All!$A$5:$AB$204,3*($C$6-1)+2) -> 6.687641667 | D83: =VLOOKUP($B83,P_All!$A$5:$AB$204,3*($C$6-1)+3) -> 27.18226667 | E83: =VLOOKUP($B83,P_All!$A$5:$AB$204,3*($C$6-1)+4) -> 117.950975 | F83: =VLOOKUP($B83,NA_All!$A$5:$AB$204,3*($C$6-1)+2) -> 6.106455833 | G83: =VLOOKUP($B83,NA_All!$A$5:$AB$204,3*($C$6-1)+3) -> 26.85056083 | H83: =VLOOKUP($B83,NA_All!$A$5:$AB$204,3*($C$6-1)+4) -> 118.6980167 | J83: 104.8333333 | K83: =VLOOKUP($J83,P_All!$AD$5:$BE$245,3*($C$6-1)+2) -> 7.5441 | L83: =VLOOKUP($J83,P_All!$AD$5:$BE$245,3*($C$6-1)+3) -> 17.858 | M83: =VLOOKUP($J83,P_All!$AD$5:$BE$245,3*($C$6-1)+4) -> 67.728 | N83: =VLOOKUP($J83,NA_All!$AD$5:$BE$245,3*($C$6-1)+2) -> 6.6543 | O83: =VLOOKUP($J83,NA_All!$AD$5:$BE$245,3*($C$6-1)+3) -> 17.243 | P83: =VLOOKUP($J83,NA_All!$AD$5:$BE$245,3*($C$6-1)+4) -> 67.776
B84: 60 | C84: =VLOOKUP($B84,P_All!$A$5:$AB$204,3*($C$6-1)+2) -> 6.857016667 | D84: =VLOOKUP($B84,P_All!$A$5:$AB$204,3*($C$6-1)+3) -> 26.07643333 | E84: =VLOOKUP($B84,P_All!$A$5:$AB$204,3*($C$6-1)+4) -> 107.8968667 | F84: =VLOOKUP($B84,NA_All!$A$5:$AB$204,3*($C$6-1)+2) -> 6.262968333 | G84: =VLOOKUP($B84,NA_All!$A$5:$AB$204,3*($C$6-1)+3) -> 25.71289417 | H84: =VLOOKUP($B84,NA_All!$A$5:$AB$204,3*($C$6-1)+4) -> 108.5779583 | J84: 104.9166667 | K84: =VLOOKUP($J84,P_All!$AD$5:$BE$245,3*($C$6-1)+2) -> 3.7208 | L84: =VLOOKUP($J84,P_All!$AD$5:$BE$245,3*($C$6-1)+3) -> 6.9594 | M84: =VLOOKUP($J84,P_All!$AD$5:$BE$245,3*($C$6-1)+4) -> 16.379 | N84: =VLOOKUP($J84,NA_All!$AD$5:$BE$245,3*($C$6-1)+2) -> 3.0764 | O84: =VLOOKUP($J84,NA_All!$AD$5:$BE$245,3*($C$6-1)+3) -> 6.3525 | P84: =VLOOKUP($J84,NA_All!$AD$5:$BE$245,3*($C$6-1)+4) -> 16.045
B85: 61 | C85: =VLOOKUP($B85,P_All!$A$5:$AB$204,3*($C$6-1)+2) -> 6.923916667 | D85: =VLOOKUP($B85,P_All!$A$5:$AB$204,3*($C$6-1)+3) -> 27.89974167 | E85: =VLOOKUP($B85,P_All!$A$5:$AB$204,3*($C$6-1)+4) -> 110.473925 | F85: =VLOOKUP($B85,NA_All!$A$5:$AB$204,3*($C$6-1)+2) -> 6.32438 | G85: =VLOOKUP($B85,NA_All!$A$5:$AB$204,3*($C$6-1)+3) -> 27.5443 | H85: =VLOOKUP($B85,NA_All!$A$5:$AB$204,3*($C$6-1)+4) -> 111.1443167 | J85: 105 | K85: =VLOOKUP($J85,P_All!$AD$5:$BE$245,3*($C$6-1)+2) -> 1.5998 | L85: =VLOOKUP($J85,P_All!$AD$5:$BE$245,3*($C$6-1)+3) -> 4.4743 | M85: =VLOOKUP($J85,P_All!$AD$5:$BE$245,3*($C$6-1)+4) -> 8.1735 | N85: =VLOOKUP($J85,NA_All!$AD$5:$BE$245,3*($C$6-1)+2) -> 0.98573 | O85: =VLOOKUP($J85,NA_All!$AD$5:$BE$245,3*($C$6-1)+3) -> 3.899 | P85: =VLOOKUP($J85,NA_All!$AD$5:$BE$245,3*($C$6-1)+4) -> 7.5991
B86: 62 | C86: =VLOOKUP($B86,P_All!$A$5:$AB$204,3*($C$6-1)+2) -> 6.989625 | D86: =VLOOKUP($B86,P_All!$A$5:$AB$204,3*($C$6-1)+3) -> 27.58398333 | E86: =VLOOKUP($B86,P_All!$A$5:$AB$204,3*($C$6-1)+4) -> 111.12625 | F86: =VLOOKUP($B86,NA_All!$A$5:$AB$204,3*($C$6-1)+2) -> 6.4211825 | G86: =VLOOKUP($B86,NA_All!$A$5:$AB$204,3*($C$6-1)+3) -> 27.250745 | H86: =VLOOKUP($B86,NA_All!$A$5:$AB$204,3*($C$6-1)+4) -> 111.807725 | J86: 105.0833333 | K86: =VLOOKUP($J86,P_All!$AD$5:$BE$245,3*($C$6-1)+2) -> 1.18 | L86: =VLOOKUP($J86,P_All!$AD$5:$BE$245,3*($C$6-1)+3) -> 1.5977 | M86: =VLOOKUP($J86,P_All!$AD$5:$BE$245,3*($C$6-1)+4) -> 7.1694 | N86: =VLOOKUP($J86,NA_All!$AD$5:$BE$245,3*($C$6-1)+2) -> 0.55744 | O86: =VLOOKUP($J86,NA_All!$AD$5:$BE$245,3*($C$6-1)+3) -> 0.97418 | P86: =VLOOKUP($J86,NA_All!$AD$5:$BE$245,3*($C$6-1)+4) -> 6.6125
B87: 63 | C87: =VLOOKUP($B87,P_All!$A$5:$AB$204,3*($C$6-1)+2) -> 6.756533333 | D87: =VLOOKUP($B87,P_All!$A$5:$AB$204,3*($C$6-1)+3) -> 28.55499167 | E87: =VLOOKUP($B87,P_All!$A$5:$AB$204,3*($C$6-1)+4) -> 108.8843917 | F87: =VLOOKUP($B87,NA_All!$A$5:$AB$204,3*($C$6-1)+2) -> 6.149185833 | G87: =VLOOKUP($B87,NA_All!$A$5:$AB$204,3*($C$6-1)+3) -> 28.17914 | H87: =VLOOKUP($B87,NA_All!$A$5:$AB$204,3*($C$6-1)+4) -> 109.4818333 | J87: 105.1666667 | K87: =VLOOKUP($J87,P_All!$AD$5:$BE$245,3*($C$6-1)+2) -> 1.1881 | L87: =VLOOKUP($J87,P_All!$AD$5:$BE$245,3*($C$6-1)+3) -> 4.8423 | M87: =VLOOKUP($J87,P_All!$AD$5:$BE$245,3*($C$6-1)+4) -> 51.427 | N87: =VLOOKUP($J87,NA_All!$AD$5:$BE$245,3*($C$6-1)+2) -> 0.58665 | O87: =VLOOKUP($J87,NA_All!$AD$5:$BE$245,3*($C$6-1)+3) -> 4.2581 | P87: =VLOOKUP($J87,NA_All!$AD$5:$BE$245,3*($C$6-1)+4) -> 51.406
B88: 64 | C88: =VLOOKUP($B88,P_All!$A$5:$AB$204,3*($C$6-1)+2) -> 7.037675 | D88: =VLOOKUP($B88,P_All!$A$5:$AB$204,3*($C$6-1)+3) -> 28.69866667 | E88: =VLOOKUP($B88,P_All!$A$5:$AB$204,3*($C$6-1)+4) -> 111.1768833 | F88: =VLOOKUP($B88,NA_All!$A$5:$AB$204,3*($C$6-1)+2) -> 6.468255 | G88: =VLOOKUP($B88,NA_All!$A$5:$AB$204,3*($C$6-1)+3) -> 28.3724275 | H88: =VLOOKUP($B88,NA_All!$A$5:$AB$204,3*($C$6-1)+4) -> 111.81905 | J88: 105.25 | K88: =VLOOKUP($J88,P_All!$AD$5:$BE$245,3*($C$6-1)+2) -> 17.014 | L88: =VLOOKUP($J88,P_All!$AD$5:$BE$245,3*($C$6-1)+3) -> 90.414 | M88: =VLOOKUP($J88,P_All!$AD$5:$BE$245,3*($C$6-1)+4) -> 244.54 | N88: =VLOOKUP($J88,NA_All!$AD$5:$BE$245,3*($C$6-1)+2) -> 16.576 | O88: =VLOOKUP($J88,NA_All!$AD$5:$BE$245,3*($C$6-1)+3) -> 90.857 | P88: =VLOOKUP($J88,NA_All!$AD$5:$BE$245,3*($C$6-1)+4) -> 246.83
B89: 65 | C89: =VLOOKUP($B89,P_All!$A$5:$AB$204,3*($C$6-1)+2) -> 6.758558333 | D89: =VLOOKUP($B89,P_All!$A$5:$AB$204,3*($C$6-1)+3) -> 27.15174167 | E89: =VLOOKUP($B89,P_All!$A$5:$AB$204,3*($C$6-1)+4) -> 110.142925 | F89: =VLOOKUP($B89,NA_All!$A$5:$AB$204,3*($C$6-1)+2) -> 6.082481667 | G89: =VLOOKUP($B89,NA_All!$A$5:$AB$204,3*($C$6-1)+3) -> 26.789775 | H89: =VLOOKUP($B89,NA_All!$A$5:$AB$204,3*($C$6-1)+4) -> 110.8015 | J89: 105.3333333 | K89: =VLOOKUP($J89,P_All!$AD$5:$BE$245,3*($C$6-1)+2) -> 20.075 | L89: =VLOOKUP($J89,P_All!$AD$5:$BE$245,3*($C$6-1)+3) -> 84.146 | M89: =VLOOKUP($J89,P_All!$AD$5:$BE$245,3*($C$6-1)+4) -> 287.59 | N89: =VLOOKUP($J89,NA_All!$AD$5:$BE$245,3*($C$6-1)+2) -> 19.556 | O89: =VLOOKUP($J89,NA_All!$AD$5:$BE$245,3*($C$6-1)+3) -> 84.343 | P89: =VLOOKUP($J89,NA_All!$AD$5:$BE$245,3*($C$6-1)+4) -> 290.35
B90: 66 | C90: =VLOOKUP($B90,P_All!$A$5:$AB$204,3*($C$6-1)+2) -> 6.558516667 | D90: =VLOOKUP($B90,P_All!$A$5:$AB$204,3*($C$6-1)+3) -> 28.47106667 | E90: =VLOOKUP($B90,P_All!$A$5:$AB$204,3*($C$6-1)+4) -> 112.1001333 | F90: =VLOOKUP($B90,NA_All!$A$5:$AB$204,3*($C$6-1)+2) -> 5.934219167 | G90: =VLOOKUP($B90,NA_All!$A$5:$AB$204,3*($C$6-1)+3) -> 28.110695 | H90: =VLOOKUP($B90,NA_All!$A$5:$AB$204,3*($C$6-1)+4) -> 112.7908083 | J90: 105.4166667 | K90: =VLOOKUP($J90,P_All!$AD$5:$BE$245,3*($C$6-1)+2) -> 5.525 | L90: =VLOOKUP($J90,P_All!$AD$5:$BE$245,3*($C$6-1)+3) -> 36.559 | M90: =VLOOKUP($J90,P_All!$AD$5:$BE$245,3*($C$6-1)+4) -> 101.99 | N90: =VLOOKUP($J90,NA_All!$AD$5:$BE$245,3*($C$6-1)+2) -> 4.908 | O90: =VLOOKUP($J90,NA_All!$AD$5:$BE$245,3*($C$6-1)+3) -> 36.337 | P90: =VLOOKUP($J90,NA_All!$AD$5:$BE$245,3*($C$6-1)+4) -> 102.2
B91: 67 | C91: =VLOOKUP($B91,P_All!$A$5:$AB$204,3*($C$6-1)+2) -> 6.775116667 | D91: =VLOOKUP($B91,P_All!$A$5:$AB$204,3*($C$6-1)+3) -> 28.79999167 | E91: =VLOOKUP($B91,P_All!$A$5:$AB$204,3*($C$6-1)+4) -> 115.4710833 | F91: =VLOOKUP($B91,NA_All!$A$5:$AB$204,3*($C$6-1)+2) -> 6.171224167 | G91: =VLOOKUP($B91,NA_All!$A$5:$AB$204,3*($C$6-1)+3) -> 28.49745833 | H91: =VLOOKUP($B91,NA_All!$A$5:$AB$204,3*($C$6-1)+4) -> 116.1319917 | J91: =J90+1/12 -> 105.5 | K91: =VLOOKUP($J91,P_All!$AD$5:$BE$245,3*($C$6-1)+2) -> 2.2575 | L91: =VLOOKUP($J91,P_All!$AD$5:$BE$245,3*($C$6-1)+3) -> 22.973 | M91: =VLOOKUP($J91,P_All!$AD$5:$BE$245,3*($C$6-1)+4) -> 236.69 | N91: =VLOOKUP($J91,NA_All!$AD$5:$BE$245,3*($C$6-1)+2) -> 1.614 | O91: =VLOOKUP($J91,NA_All!$AD$5:$BE$245,3*($C$6-1)+3) -> 22.603 | P91: =VLOOKUP($J91,NA_All!$AD$5:$BE$245,3*($C$6-1)+4) -> 238.86
B92: 68 | C92: =VLOOKUP($B92,P_All!$A$5:$AB$204,3*($C$6-1)+2) -> 6.623741667 | D92: =VLOOKUP($B92,P_All!$A$5:$AB$204,3*($C$6-1)+3) -> 28.74674167 | E92: =VLOOKUP($B92,P_All!$A$5:$AB$204,3*($C$6-1)+4) -> 113.2956083 | F92: =VLOOKUP($B92,NA_All!$A$5:$AB$204,3*($C$6-1)+2) -> 5.990248333 | G92: =VLOOKUP($B92,NA_All!$A$5:$AB$204,3*($C$6-1)+3) -> 28.40361667 | H92: =VLOOKUP($B92,NA_All!$A$5:$AB$204,3*($C$6-1)+4) -> 113.97035 | J92: 105.5833333 | K92: =VLOOKUP($J92,P_All!$AD$5:$BE$245,3*($C$6-1)+2) -> 6.0792 | L92: =VLOOKUP($J92,P_All!$AD$5:$BE$245,3*($C$6-1)+3) -> 21.82 | M92: =VLOOKUP($J92,P_All!$AD$5:$BE$245,3*($C$6-1)+4) -> 140.94 | N92: =VLOOKUP($J92,NA_All!$AD$5:$BE$245,3*($C$6-1)+2) -> 5.5092 | O92: =VLOOKUP($J92,NA_All!$AD$5:$BE$245,3*($C$6-1)+3) -> 21.588 | P92: =VLOOKUP($J92,NA_All!$AD$5:$BE$245,3*($C$6-1)+4) -> 141.98
B93: 69 | C93: =VLOOKUP($B93,P_All!$A$5:$AB$204,3*($C$6-1)+2) -> 6.861475 | D93: =VLOOKUP($B93,P_All!$A$5:$AB$204,3*($C$6-1)+3) -> 27.782675 | E93: =VLOOKUP($B93,P_All!$A$5:$AB$204,3*($C$6-1)+4) -> 119.173725 | F93: =VLOOKUP($B93,NA_All!$A$5:$AB$204,3*($C$6-1)+2) -> 6.200595 | G93: =VLOOKUP($B93,NA_All!$A$5:$AB$204,3*($C$6-1)+3) -> 27.40471833 | H93: =VLOOKUP($B93,NA_All!$A$5:$AB$204,3*($C$6-1)+4) -> 119.9344083 | J93: 105.6666667 | K93: =VLOOKUP($J93,P_All!$AD$5:$BE$245,3*($C$6-1)+2) -> 3.8964 | L93: =VLOOKUP($J93,P_All!$AD$5:$BE$245,3*($C$6-1)+3) -> 31.712 | M93: =VLOOKUP($J93,P_All!$AD$5:$BE$245,3*($C$6-1)+4) -> 78.238 | N93: =VLOOKUP($J93,NA_All!$AD$5:$BE$245,3*($C$6-1)+2) -> 3.2921 | O93: =VLOOKUP($J93,NA_All!$AD$5:$BE$245,3*($C$6-1)+3) -> 31.436 | P93: =VLOOKUP($J93,NA_All!$AD$5:$BE$245,3*($C$6-1)+4) -> 78.179
B94: 70 | C94: =VLOOKUP($B94,P_All!$A$5:$AB$204,3*($C$6-1)+2) -> 7.122775 | D94: =VLOOKUP($B94,P_All!$A$5:$AB$204,3*($C$6-1)+3) -> 28.43505833 | E94: =VLOOKUP($B94,P_All!$A$5:$AB$204,3*($C$6-1)+4) -> 114.8216417 | F94: =VLOOKUP($B94,NA_All!$A$5:$AB$204,3*($C$6-1)+2) -> 6.52507 | G94: =VLOOKUP($B94,NA_All!$A$5:$AB$204,3*($C$6-1)+3) -> 28.0971 | H94: =VLOOKUP($B94,NA_All!$A$5:$AB$204,3*($C$6-1)+4) -> 115.4396333 | J94: 105.75 | K94: =VLOOKUP($J94,P_All!$AD$5:$BE$245,3*($C$6-1)+2) -> 8.9056 | L94: =VLOOKUP($J94,P_All!$AD$5:$BE$245,3*($C$6-1)+3) -> 30.047 | M94: =VLOOKUP($J94,P_All!$AD$5:$BE$245,3*($C$6-1)+4) -> 133.75 | N94: =VLOOKUP($J94,NA_All!$AD$5:$BE$245,3*($C$6-1)+2) -> 8.3636 | O94: =VLOOKUP($J94,NA_All!$AD$5:$BE$245,3*($C$6-1)+3) -> 29.765 | P94: =VLOOKUP($J94,NA_All!$AD$5:$BE$245,3*($C$6-1)+4) -> 134.71
B95: 71 | C95: =VLOOKUP($B95,P_All!$A$5:$AB$204,3*($C$6-1)+2) -> 6.9856 | D95: =VLOOKUP($B95,P_All!$A$5:$AB$204,3*($C$6-1)+3) -> 28.22726667 | E95: =VLOOKUP($B95,P_All!$A$5:$AB$204,3*($C$6-1)+4) -> 110.7381083 | F95: =VLOOKUP($B95,NA_All!$A$5:$AB$204,3*($C$6-1)+2) -> 6.35479 | G95: =VLOOKUP($B95,NA_All!$A$5:$AB$204,3*($C$6-1)+3) -> 27.864475 | H95: =VLOOKUP($B95,NA_All!$A$5:$AB$204,3*($C$6-1)+4) -> 111.3160667 | J95: 105.8333333 | K95: =VLOOKUP($J95,P_All!$AD$5:$BE$245,3*($C$6-1)+2) -> 6.9812 | L95: =VLOOKUP($J95,P_All!$AD$5:$BE$245,3*($C$6-1)+3) -> 17.324 | M95: =VLOOKUP($J95,P_All!$AD$5:$BE$245,3*($C$6-1)+4) -> 58.483 | N95: =VLOOKUP($J95,NA_All!$AD$5:$BE$245,3*($C$6-1)+2) -> 6.4218 | O95: =VLOOKUP($J95,NA_All!$AD$5:$BE$245,3*($C$6-1)+3) -> 16.887 | P95: =VLOOKUP($J95,NA_All!$AD$5:$BE$245,3*($C$6-1)+4) -> 58.503
B96: 72 | C96: =VLOOKUP($B96,P_All!$A$5:$AB$204,3*($C$6-1)+2) -> 6.862558333 | D96: =VLOOKUP($B96,P_All!$A$5:$AB$204,3*($C$6-1)+3) -> 27.61235 | E96: =VLOOKUP($B96,P_All!$A$5:$AB$204,3*($C$6-1)+4) -> 115.2371083 | F96: =VLOOKUP($B96,NA_All!$A$5:$AB$204,3*($C$6-1)+2) -> 6.221773333 | G96: =VLOOKUP($B96,NA_All!$A$5:$AB$204,3*($C$6-1)+3) -> 27.29402333 | H96: =VLOOKUP($B96,NA_All!$A$5:$AB$204,3*($C$6-1)+4) -> 115.9628 | J96: 105.9166667 | K96: =VLOOKUP($J96,P_All!$AD$5:$BE$245,3*($C$6-1)+2) -> 3.7639 | L96: =VLOOKUP($J96,P_All!$AD$5:$BE$245,3*($C$6-1)+3) -> 6.8337 | M96: =VLOOKUP($J96,P_All!$AD$5:$BE$245,3*($C$6-1)+4) -> 15.928 | N96: =VLOOKUP($J96,NA_All!$AD$5:$BE$245,3*($C$6-1)+2) -> 3.1153 | O96: =VLOOKUP($J96,NA_All!$AD$5:$BE$245,3*($C$6-1)+3) -> 6.1323 | P96: =VLOOKUP($J96,NA_All!$AD$5:$BE$245,3*($C$6-1)+4) -> 15.341
B97: 73 | C97: =VLOOKUP($B97,P_All!$A$5:$AB$204,3*($C$6-1)+2) -> 6.872508333 | D97: =VLOOKUP($B97,P_All!$A$5:$AB$204,3*($C$6-1)+3) -> 28.66281667 | E97: =VLOOKUP($B97,P_All!$A$5:$AB$204,3*($C$6-1)+4) -> 116.0124083 | F97: =VLOOKUP($B97,NA_All!$A$5:$AB$204,3*($C$6-1)+2) -> 6.273250833 | G97: =VLOOKUP($B97,NA_All!$A$5:$AB$204,3*($C$6-1)+3) -> 28.30535833 | H97: =VLOOKUP($B97,NA_All!$A$5:$AB$204,3*($C$6-1)+4) -> 116.7300333 | J97: 106 | K97: =VLOOKUP($J97,P_All!$AD$5:$BE$245,3*($C$6-1)+2) -> 1.5873 | L97: =VLOOKUP($J97,P_All!$AD$5:$BE$245,3*($C$6-1)+3) -> 4.6993 | M97: =VLOOKUP($J97,P_All!$AD$5:$BE$245,3*($C$6-1)+4) -> 7.9276 | N97: =VLOOKUP($J97,NA_All!$AD$5:$BE$245,3*($C$6-1)+2) -> 0.96338 | O97: =VLOOKUP($J97,NA_All!$AD$5:$BE$245,3*($C$6-1)+3) -> 4.1116 | P97: =VLOOKUP($J97,NA_All!$AD$5:$BE$245,3*($C$6-1)+4) -> 7.3775
B98: 74 | C98: =VLOOKUP($B98,P_All!$A$5:$AB$204,3*($C$6-1)+2) -> 6.884141667 | D98: =VLOOKUP($B98,P_All!$A$5:$AB$204,3*($C$6-1)+3) -> 28.42089167 | E98: =VLOOKUP($B98,P_All!$A$5:$AB$204,3*($C$6-1)+4) -> 108.9940667 | F98: =VLOOKUP($B98,NA_All!$A$5:$AB$204,3*($C$6-1)+2) -> 6.187463333 | G98: =VLOOKUP($B98,NA_All!$A$5:$AB$204,3*($C$6-1)+3) -> 28.08548333 | H98: =VLOOKUP($B98,NA_All!$A$5:$AB$204,3*($C$6-1)+4) -> 109.5529333 | J98: 106.0833333 | K98: =VLOOKUP($J98,P_All!$AD$5:$BE$245,3*($C$6-1)+2) -> 1.2074 | L98: =VLOOKUP($J98,P_All!$AD$5:$BE$245,3*($C$6-1)+3) -> 1.8951 | M98: =VLOOKUP($J98,P_All!$AD$5:$BE$245,3*($C$6-1)+4) -> 8.0995 | N98: =VLOOKUP($J98,NA_All!$AD$5:$BE$245,3*($C$6-1)+2) -> 0.58709 | O98: =VLOOKUP($J98,NA_All!$AD$5:$BE$245,3*($C$6-1)+3) -> 1.2395 | P98: =VLOOKUP($J98,NA_All!$AD$5:$BE$245,3*($C$6-1)+4) -> 7.5537
B99: 75 | C99: =VLOOKUP($B99,P_All!$A$5:$AB$204,3*($C$6-1)+2) -> 6.996975 | D99: =VLOOKUP($B99,P_All!$A$5:$AB$204,3*($C$6-1)+3) -> 28.78255 | E99: =VLOOKUP($B99,P_All!$A$5:$AB$204,3*($C$6-1)+4) -> 110.662325 | F99: =VLOOKUP($B99,NA_All!$A$5:$AB$204,3*($C$6-1)+2) -> 6.3477475 | G99: =VLOOKUP($B99,NA_All!$A$5:$AB$204,3*($C$6-1)+3) -> 28.46905 | H99: =VLOOKUP($B99,NA_All!$A$5:$AB$204,3*($C$6-1)+4) -> 111.2781417 | J99: 106.1666667 | K99: =VLOOKUP($J99,P_All!$AD$5:$BE$245,3*($C$6-1)+2) -> 1.1843 | L99: =VLOOKUP($J99,P_All!$AD$5:$BE$245,3*($C$6-1)+3) -> 3.8812 | M99: =VLOOKUP($J99,P_All!$AD$5:$BE$245,3*($C$6-1)+4) -> 49.572 | N99: =VLOOKUP($J99,NA_All!$AD$5:$BE$245,3*($C$6-1)+2) -> 0.56312 | O99: =VLOOKUP($J99,NA_All!$AD$5:$BE$245,3*($C$6-1)+3) -> 3.2917 | P99: =VLOOKUP($J99,NA_All!$AD$5:$BE$245,3*($C$6-1)+4) -> 49.529
B100: 76 | C100: =VLOOKUP($B100,P_All!$A$5:$AB$204,3*($C$6-1)+2) -> 6.737458333 | D100: =VLOOKUP($B100,P_All!$A$5:$AB$204,3*($C$6-1)+3) -> 27.8191 | E100: =VLOOKUP($B100,P_All!$A$5:$AB$204,3*($C$6-1)+4) -> 116.3216083 | F100: =VLOOKUP($B100,NA_All!$A$5:$AB$204,3*($C$6-1)+2) -> 6.109253333 | G100: =VLOOKUP($B100,NA_All!$A$5:$AB$204,3*($C$6-1)+3) -> 27.46965833 | H100: =VLOOKUP($B100,NA_All!$A$5:$AB$204,3*($C$6-1)+4) -> 117.0118333 | J100: 106.25 | K100: =VLOOKUP($J100,P_All!$AD$5:$BE$245,3*($C$6-1)+2) -> 21.021 | L100: =VLOOKUP($J100,P_All!$AD$5:$BE$245,3*($C$6-1)+3) -> 76.261 | M100: =VLOOKUP($J100,P_All!$AD$5:$BE$245,3*($C$6-1)+4) -> 244.82 | N100: =VLOOKUP($J100,NA_All!$AD$5:$BE$245,3*($C$6-1)+2) -> 20.631 | O100: =VLOOKUP($J100,NA_All!$AD$5:$BE$245,3*($C$6-1)+3) -> 76.534 | P100: =VLOOKUP($J100,NA_All!$AD$5:$BE$245,3*($C$6-1)+4) -> 247.28
B101: 77 | C101: =VLOOKUP($B101,P_All!$A$5:$AB$204,3*($C$6-1)+2) -> 6.677908333 | D101: =VLOOKUP($B101,P_All!$A$5:$AB$204,3*($C$6-1)+3) -> 28.42989167 | E101: =VLOOKUP($B101,P_All!$A$5:$AB$204,3*($C$6-1)+4) -> 112.6855 | F101: =VLOOKUP($B101,NA_All!$A$5:$AB$204,3*($C$6-1)+2) -> 6.060043333 | G101: =VLOOKUP($B101,NA_All!$A$5:$AB$204,3*($C$6-1)+3) -> 28.05992667 | H101: =VLOOKUP($B101,NA_All!$A$5:$AB$204,3*($C$6-1)+4) -> 113.3167583 | J101: 106.3333333 | K101: =VLOOKUP($J101,P_All!$AD$5:$BE$245,3*($C$6-1)+2) -> 19.658 | L101: =VLOOKUP($J101,P_All!$AD$5:$BE$245,3*($C$6-1)+3) -> 75.55 | M101: =VLOOKUP($J101,P_All!$AD$5:$BE$245,3*($C$6-1)+4) -> 236.25 | N101: =VLOOKUP($J101,NA_All!$AD$5:$BE$245,3*($C$6-1)+2) -> 19.039 | O101: =VLOOKUP($J101,NA_All!$AD$5:$BE$245,3*($C$6-1)+3) -> 75.801 | P101: =VLOOKUP($J101,NA_All!$AD$5:$BE$245,3*($C$6-1)+4) -> 238.08
B102: 78 | C102: =VLOOKUP($B102,P_All!$A$5:$AB$204,3*($C$6-1)+2) -> 7.0539 | D102: =VLOOKUP($B102,P_All!$A$5:$AB$204,3*($C$6-1)+3) -> 28.46421667 | E102: =VLOOKUP($B102,P_All!$A$5:$AB$204,3*($C$6-1)+4) -> 111.6951167 | F102: =VLOOKUP($B102,NA_All!$A$5:$AB$204,3*($C$6-1)+2) -> 6.419610833 | G102: =VLOOKUP($B102,NA_All!$A$5:$AB$204,3*($C$6-1)+3) -> 28.08470833 | H102: =VLOOKUP($B102,NA_All!$A$5:$AB$204,3*($C$6-1)+4) -> 112.3088667 | J102: 106.4166667 | K102: =VLOOKUP($J102,P_All!$AD$5:$BE$245,3*($C$6-1)+2) -> 6.2059 | L102: =VLOOKUP($J102,P_All!$AD$5:$BE$245,3*($C$6-1)+3) -> 38.563 | M102: =VLOOKUP($J102,P_All!$AD$5:$BE$245,3*($C$6-1)+4) -> 99.558 | N102: =VLOOKUP($J102,NA_All!$AD$5:$BE$245,3*($C$6-1)+2) -> 5.4426 | O102: =VLOOKUP($J102,NA_All!$AD$5:$BE$245,3*($C$6-1)+3) -> 38.178 | P102: =VLOOKUP($J102,NA_All!$AD$5:$BE$245,3*($C$6-1)+4) -> 99.74
B103: 79 | C103: =VLOOKUP($B103,P_All!$A$5:$AB$204,3*($C$6-1)+2) -> 7.52545 | D103: =VLOOKUP($B103,P_All!$A$5:$AB$204,3*($C$6-1)+3) -> 28.50515833 | E103: =VLOOKUP($B103,P_All!$A$5:$AB$204,3*($C$6-1)+4) -> 110.857975 | F103: =VLOOKUP($B103,NA_All!$A$5:$AB$204,3*($C$6-1)+2) -> 6.884873333 | G103: =VLOOKUP($B103,NA_All!$A$5:$AB$204,3*($C$6-1)+3) -> 28.13955 | H103: =VLOOKUP($B103,NA_All!$A$5:$AB$204,3*($C$6-1)+4) -> 111.4037667 | J103: 106.5 | K103: =VLOOKUP($J103,P_All!$AD$5:$BE$245,3*($C$6-1)+2) -> 2.1239 | L103: =VLOOKUP($J103,P_All!$AD$5:$BE$245,3*($C$6-1)+3) -> 22.711 | M103: =VLOOKUP($J103,P_All!$AD$5:$BE$245,3*($C$6-1)+4) -> 241.04 | N103: =VLOOKUP($J103,NA_All!$AD$5:$BE$245,3*($C$6-1)+2) -> 1.5066 | O103: =VLOOKUP($J103,NA_All!$AD$5:$BE$245,3*($C$6-1)+3) -> 22.059 | P103: =VLOOKUP($J103,NA_All!$AD$5:$BE$245,3*($C$6-1)+4) -> 243.01
B104: 80 | C104: =VLOOKUP($B104,P_All!$A$5:$AB$204,3*($C$6-1)+2) -> 6.620108333 | D104: =VLOOKUP($B104,P_All!$A$5:$AB$204,3*($C$6-1)+3) -> 28.970675 | E104: =VLOOKUP($B104,P_All!$A$5:$AB$204,3*($C$6-1)+4) -> 114.362975 | F104: =VLOOKUP($B104,NA_All!$A$5:$AB$204,3*($C$6-1)+2) -> 5.990993333 | G104: =VLOOKUP($B104,NA_All!$A$5:$AB$204,3*($C$6-1)+3) -> 28.57321667 | H104: =VLOOKUP($B104,NA_All!$A$5:$AB$204,3*($C$6-1)+4) -> 115.0041083 | J104: 106.5833333 | K104: =VLOOKUP($J104,P_All!$AD$5:$BE$245,3*($C$6-1)+2) -> 5.4916 | L104: =VLOOKUP($J104,P_All!$AD$5:$BE$245,3*($C$6-1)+3) -> 30.388 | M104: =VLOOKUP($J104,P_All!$AD$5:$BE$245,3*($C$6-1)+4) -> 149.3 | N104: =VLOOKUP($J104,NA_All!$AD$5:$BE$245,3*($C$6-1)+2) -> 4.9146 | O104: =VLOOKUP($J104,NA_All!$AD$5:$BE$245,3*($C$6-1)+3) -> 30.108 | P104: =VLOOKUP($J104,NA_All!$AD$5:$BE$245,3*($C$6-1)+4) -> 150.44
B105: 81 | C105: =VLOOKUP($B105,P_All!$A$5:$AB$204,3*($C$6-1)+2) -> 6.737758333 | D105: =VLOOKUP($B105,P_All!$A$5:$AB$204,3*($C$6-1)+3) -> 28.83630833 | E105: =VLOOKUP($B105,P_All!$A$5:$AB$204,3*($C$6-1)+4) -> 114.9725167 | F105: =VLOOKUP($B105,NA_All!$A$5:$AB$204,3*($C$6-1)+2) -> 6.098555833 | G105: =VLOOKUP($B105,NA_All!$A$5:$AB$204,3*($C$6-1)+3) -> 28.50984417 | H105: =VLOOKUP($B105,NA_All!$A$5:$AB$204,3*($C$6-1)+4) -> 115.7050833 | J105: 106.6666667 | K105: =VLOOKUP($J105,P_All!$AD$5:$BE$245,3*($C$6-1)+2) -> 4.0272 | L105: =VLOOKUP($J105,P_All!$AD$5:$BE$245,3*($C$6-1)+3) -> 27.838 | M105: =VLOOKUP($J105,P_All!$AD$5:$BE$245,3*($C$6-1)+4) -> 77.683 | N105: =VLOOKUP($J105,NA_All!$AD$5:$BE$245,3*($C$6-1)+2) -> 3.4315 | O105: =VLOOKUP($J105,NA_All!$AD$5:$BE$245,3*($C$6-1)+3) -> 27.517 | P105: =VLOOKUP($J105,NA_All!$AD$5:$BE$245,3*($C$6-1)+4) -> 77.939
B106: 82 | C106: =VLOOKUP($B106,P_All!$A$5:$AB$204,3*($C$6-1)+2) -> 6.7281 | D106: =VLOOKUP($B106,P_All!$A$5:$AB$204,3*($C$6-1)+3) -> 28.4999 | E106: =VLOOKUP($B106,P_All!$A$5:$AB$204,3*($C$6-1)+4) -> 107.0167167 | F106: =VLOOKUP($B106,NA_All!$A$5:$AB$204,3*($C$6-1)+2) -> 6.072548333 | G106: =VLOOKUP($B106,NA_All!$A$5:$AB$204,3*($C$6-1)+3) -> 28.17155833 | H106: =VLOOKUP($B106,NA_All!$A$5:$AB$204,3*($C$6-1)+4) -> 107.603775 | J106: 106.75 | K106: =VLOOKUP($J106,P_All!$AD$5:$BE$245,3*($C$6-1)+2) -> 9.3345 | L106: =VLOOKUP($J106,P_All!$AD$5:$BE$245,3*($C$6-1)+3) -> 29.236 | M106: =VLOOKUP($J106,P_All!$AD$5:$BE$245,3*($C$6-1)+4) -> 149.07 | N106: =VLOOKUP($J106,NA_All!$AD$5:$BE$245,3*($C$6-1)+2) -> 8.3653 | O106: =VLOOKUP($J106,NA_All!$AD$5:$BE$245,3*($C$6-1)+3) -> 29.067 | P106: =VLOOKUP($J106,NA_All!$AD$5:$BE$245,3*($C$6-1)+4) -> 149.9
B107: 83 | C107: =VLOOKUP($B107,P_All!$A$5:$AB$204,3*($C$6-1)+2) -> 6.807633333 | D107: =VLOOKUP($B107,P_All!$A$5:$AB$204,3*($C$6-1)+3) -> 29.04071667 | E107: =VLOOKUP($B107,P_All!$A$5:$AB$204,3*($C$6-1)+4) -> 113.0402083 | F107: =VLOOKUP($B107,NA_All!$A$5:$AB$204,3*($C$6-1)+2) -> 6.173755833 | G107: =VLOOKUP($B107,NA_All!$A$5:$AB$204,3*($C$6-1)+3) -> 28.71991667 | H107: =VLOOKUP($B107,NA_All!$A$5:$AB$204,3*($C$6-1)+4) -> 113.7015833 | J107: 106.8333333 | K107: =VLOOKUP($J107,P_All!$AD$5:$BE$245,3*($C$6-1)+2) -> 7.2906 | L107: =VLOOKUP($J107,P_All!$AD$5:$BE$245,3*($C$6-1)+3) -> 17.478 | M107: =VLOOKUP($J107,P_All!$AD$5:$BE$245,3*($C$6-1)+4) -> 71.772 | N107: =VLOOKUP($J107,NA_All!$AD$5:$BE$245,3*($C$6-1)+2) -> 6.5322 | O107: =VLOOKUP($J107,NA_All!$AD$5:$BE$245,3*($C$6-1)+3) -> 16.879 | P107: =VLOOKUP($J107,NA_All!$AD$5:$BE$245,3*($C$6-1)+4) -> 71.663
B108: 84 | C108: =VLOOKUP($B108,P_All!$A$5:$AB$204,3*($C$6-1)+2) -> 7.160683333 | D108: =VLOOKUP($B108,P_All!$A$5:$AB$204,3*($C$6-1)+3) -> 29.43105833 | E108: =VLOOKUP($B108,P_All!$A$5:$AB$204,3*($C$6-1)+4) -> 114.8888917 | F108: =VLOOKUP($B108,NA_All!$A$5:$AB$204,3*($C$6-1)+2) -> 6.534003333 | G108: =VLOOKUP($B108,NA_All!$A$5:$AB$204,3*($C$6-1)+3) -> 29.0959 | H108: =VLOOKUP($B108,NA_All!$A$5:$AB$204,3*($C$6-1)+4) -> 115.6073333 | J108: 106.9166667 | K108: =VLOOKUP($J108,P_All!$AD$5:$BE$245,3*($C$6-1)+2) -> 3.7582 | L108: =VLOOKUP($J108,P_All!$AD$5:$BE$245,3*($C$6-1)+3) -> 7.0723 | M108: =VLOOKUP($J108,P_All!$AD$5:$BE$245,3*($C$6-1)+4) -> 15.716 | N108: =VLOOKUP($J108,NA_All!$AD$5:$BE$245,3*($C$6-1)+2) -> 3.0743 | O108: =VLOOKUP($J108,NA_All!$AD$5:$BE$245,3*($C$6-1)+3) -> 6.4973 | P108: =VLOOKUP($J108,NA_All!$AD$5:$BE$245,3*($C$6-1)+4) -> 15.236
B109: 85 | C109: =VLOOKUP($B109,P_All!$A$5:$AB$204,3*($C$6-1)+2) -> 6.914908333 | D109: =VLOOKUP($B109,P_All!$A$5:$AB$204,3*($C$6-1)+3) -> 27.496775 | E109: =VLOOKUP($B109,P_All!$A$5:$AB$204,3*($C$6-1)+4) -> 109.3281417 | F109: =VLOOKUP($B109,NA_All!$A$5:$AB$204,3*($C$6-1)+2) -> 6.31378 | G109: =VLOOKUP($B109,NA_All!$A$5:$AB$204,3*($C$6-1)+3) -> 27.12012583 | H109: =VLOOKUP($B109,NA_All!$A$5:$AB$204,3*($C$6-1)+4) -> 109.9016667 | J109: 107 | K109: =VLOOKUP($J109,P_All!$AD$5:$BE$245,3*($C$6-1)+2) -> 1.6069 | L109: =VLOOKUP($J109,P_All!$AD$5:$BE$245,3*($C$6-1)+3) -> 4.3695 | M109: =VLOOKUP($J109,P_All!$AD$5:$BE$245,3*($C$6-1)+4) -> 8.0702 | N109: =VLOOKUP($J109,NA_All!$AD$5:$BE$245,3*($C$6-1)+2) -> 0.98032 | O109: =VLOOKUP($J109,NA_All!$AD$5:$BE$245,3*($C$6-1)+3) -> 3.7779 | P109: =VLOOKUP($J109,NA_All!$AD$5:$BE$245,3*($C$6-1)+4) -> 7.5305
B110: 86 | C110: =VLOOKUP($B110,P_All!$A$5:$AB$204,3*($C$6-1)+2) -> 6.871333333 | D110: =VLOOKUP($B110,P_All!$A$5:$AB$204,3*($C$6-1)+3) -> 27.1162 | E110: =VLOOKUP($B110,P_All!$A$5:$AB$204,3*($C$6-1)+4) -> 109.4239583 | F110: =VLOOKUP($B110,NA_All!$A$5:$AB$204,3*($C$6-1)+2) -> 6.257428333 | G110: =VLOOKUP($B110,NA_All!$A$5:$AB$204,3*($C$6-1)+3) -> 26.75425833 | H110: =VLOOKUP($B110,NA_All!$A$5:$AB$204,3*($C$6-1)+4) -> 110.0534667 | J110: 107.0833333 | K110: =VLOOKUP($J110,P_All!$AD$5:$BE$245,3*($C$6-1)+2) -> 1.2133 | L110: =VLOOKUP($J110,P_All!$AD$5:$BE$245,3*($C$6-1)+3) -> 1.7794 | M110: =VLOOKUP($J110,P_All!$AD$5:$BE$245,3*($C$6-1)+4) -> 7.9628 | N110: =VLOOKUP($J110,NA_All!$AD$5:$BE$245,3*($C$6-1)+2) -> 0.59135 | O110: =VLOOKUP($J110,NA_All!$AD$5:$BE$245,3*($C$6-1)+3) -> 1.134 | P110: =VLOOKUP($J110,NA_All!$AD$5:$BE$245,3*($C$6-1)+4) -> 7.4154
B111: 87 | C111: =VLOOKUP($B111,P_All!$A$5:$AB$204,3*($C$6-1)+2) -> 6.934975 | D111: =VLOOKUP($B111,P_All!$A$5:$AB$204,3*($C$6-1)+3) -> 29.06775833 | E111: =VLOOKUP($B111,P_All!$A$5:$AB$204,3*($C$6-1)+4) -> 113.0990083 | F111: =VLOOKUP($B111,NA_All!$A$5:$AB$204,3*($C$6-1)+2) -> 6.350458333 | G111: =VLOOKUP($B111,NA_All!$A$5:$AB$204,3*($C$6-1)+3) -> 28.70720833 | H111: =VLOOKUP($B111,NA_All!$A$5:$AB$204,3*($C$6-1)+4) -> 113.691375 | J111: 107.1666667 | K111: =VLOOKUP($J111,P_All!$AD$5:$BE$245,3*($C$6-1)+2) -> 1.2036 | L111: =VLOOKUP($J111,P_All!$AD$5:$BE$245,3*($C$6-1)+3) -> 3.9521 | M111: =VLOOKUP($J111,P_All!$AD$5:$BE$245,3*($C$6-1)+4) -> 47.501 | N111: =VLOOKUP($J111,NA_All!$AD$5:$BE$245,3*($C$6-1)+2) -> 0.57798 | O111: =VLOOKUP($J111,NA_All!$AD$5:$BE$245,3*($C$6-1)+3) -> 3.3584 | P111: =VLOOKUP($J111,NA_All!$AD$5:$BE$245,3*($C$6-1)+4) -> 47.433
B112: 88 | C112: =VLOOKUP($B112,P_All!$A$5:$AB$204,3*($C$6-1)+2) -> 6.739483333 | D112: =VLOOKUP($B112,P_All!$A$5:$AB$204,3*($C$6-1)+3) -> 27.86331667 | E112: =VLOOKUP($B112,P_All!$A$5:$AB$204,3*($C$6-1)+4) -> 109.9179917 | F112: =VLOOKUP($B112,NA_All!$A$5:$AB$204,3*($C$6-1)+2) -> 6.068256667 | G112: =VLOOKUP($B112,NA_All!$A$5:$AB$204,3*($C$6-1)+3) -> 27.52493333 | H112: =VLOOKUP($B112,NA_All!$A$5:$AB$204,3*($C$6-1)+4) -> 110.4889917 | J112: 107.25 | K112: =VLOOKUP($J112,P_All!$AD$5:$BE$245,3*($C$6-1)+2) -> 21.183 | L112: =VLOOKUP($J112,P_All!$AD$5:$BE$245,3*($C$6-1)+3) -> 84.711 | M112: =VLOOKUP($J112,P_All!$AD$5:$BE$245,3*($C$6-1)+4) -> 245.02 | N112: =VLOOKUP($J112,NA_All!$AD$5:$BE$245,3*($C$6-1)+2) -> 20.794 | O112: =VLOOKUP($J112,NA_All!$AD$5:$BE$245,3*($C$6-1)+3) -> 85.087 | P112: =VLOOKUP($J112,NA_All!$AD$5:$BE$245,3*($C$6-1)+4) -> 247.32
B113: 89 | C113: =VLOOKUP($B113,P_All!$A$5:$AB$204,3*($C$6-1)+2) -> 7.138208333 | D113: =VLOOKUP($B113,P_All!$A$5:$AB$204,3*($C$6-1)+3) -> 28.254525 | E113: =VLOOKUP($B113,P_All!$A$5:$AB$204,3*($C$6-1)+4) -> 113.394925 | F113: =VLOOKUP($B113,NA_All!$A$5:$AB$204,3*($C$6-1)+2) -> 6.519424167 | G113: =VLOOKUP($B113,NA_All!$A$5:$AB$204,3*($C$6-1)+3) -> 27.88033583 | H113: =VLOOKUP($B113,NA_All!$A$5:$AB$204,3*($C$6-1)+4) -> 114.0391167 | J113: 107.3333333 | K113: =VLOOKUP($J113,P_All!$AD$5:$BE$245,3*($C$6-1)+2) -> 20.756 | L113: =VLOOKUP($J113,P_All!$AD$5:$BE$245,3*($C$6-1)+3) -> 71.668 | M113: =VLOOKUP($J113,P_All!$AD$5:$BE$245,3*($C$6-1)+4) -> 259.23 | N113: =VLOOKUP($J113,NA_All!$AD$5:$BE$245,3*($C$6-1)+2) -> 20.176 | O113: =VLOOKUP($J113,NA_All!$AD$5:$BE$245,3*($C$6-1)+3) -> 71.873 | P113: =VLOOKUP($J113,NA_All!$AD$5:$BE$245,3*($C$6-1)+4) -> 261.33
B114: 90 | C114: =VLOOKUP($B114,P_All!$A$5:$AB$204,3*($C$6-1)+2) -> 6.930908333 | D114: =VLOOKUP($B114,P_All!$A$5:$AB$204,3*($C$6-1)+3) -> 28.56918333 | E114: =VLOOKUP($B114,P_All!$A$5:$AB$204,3*($C$6-1)+4) -> 111.6734833 | F114: =VLOOKUP($B114,NA_All!$A$5:$AB$204,3*($C$6-1)+2) -> 6.27602 | G114: =VLOOKUP($B114,NA_All!$A$5:$AB$204,3*($C$6-1)+3) -> 28.19878667 | H114: =VLOOKUP($B114,NA_All!$A$5:$AB$204,3*($C$6-1)+4) -> 112.2795917 | J114: 107.4166667 | K114: =VLOOKUP($J114,P_All!$AD$5:$BE$245,3*($C$6-1)+2) -> 5.3175 | L114: =VLOOKUP($J114,P_All!$AD$5:$BE$245,3*($C$6-1)+3) -> 38.334 | M114: =VLOOKUP($J114,P_All!$AD$5:$BE$245,3*($C$6-1)+4) -> 98.598 | N114: =VLOOKUP($J114,NA_All!$AD$5:$BE$245,3*($C$6-1)+2) -> 4.7044 | O114: =VLOOKUP($J114,NA_All!$AD$5:$BE$245,3*($C$6-1)+3) -> 37.811 | P114: =VLOOKUP($J114,NA_All!$AD$5:$BE$245,3*($C$6-1)+4) -> 99.09
B115: 91 | C115: =VLOOKUP($B115,P_All!$A$5:$AB$204,3*($C$6-1)+2) -> 6.498308333 | D115: =VLOOKUP($B115,P_All!$A$5:$AB$204,3*($C$6-1)+3) -> 26.79365833 | E115: =VLOOKUP($B115,P_All!$A$5:$AB$204,3*($C$6-1)+4) -> 112.8144583 | F115: =VLOOKUP($B115,NA_All!$A$5:$AB$204,3*($C$6-1)+2) -> 5.862461667 | G115: =VLOOKUP($B115,NA_All!$A$5:$AB$204,3*($C$6-1)+3) -> 26.4313875 | H115: =VLOOKUP($B115,NA_All!$A$5:$AB$204,3*($C$6-1)+4) -> 113.5002167 | J115: 107.5 | K115: =VLOOKUP($J115,P_All!$AD$5:$BE$245,3*($C$6-1)+2) -> 2.703 | L115: =VLOOKUP($J115,P_All!$AD$5:$BE$245,3*($C$6-1)+3) -> 20.231 | M115: =VLOOKUP($J115,P_All!$AD$5:$BE$245,3*($C$6-1)+4) -> 254.38 | N115: =VLOOKUP($J115,NA_All!$AD$5:$BE$245,3*($C$6-1)+2) -> 2.0926 | O115: =VLOOKUP($J115,NA_All!$AD$5:$BE$245,3*($C$6-1)+3) -> 19.614 | P115: =VLOOKUP($J115,NA_All!$AD$5:$BE$245,3*($C$6-1)+4) -> 256.76
B116: 92 | C116: =VLOOKUP($B116,P_All!$A$5:$AB$204,3*($C$6-1)+2) -> 6.458833333 | D116: =VLOOKUP($B116,P_All!$A$5:$AB$204,3*($C$6-1)+3) -> 27.0997 | E116: =VLOOKUP($B116,P_All!$A$5:$AB$204,3*($C$6-1)+4) -> 109.639175 | F116: =VLOOKUP($B116,NA_All!$A$5:$AB$204,3*($C$6-1)+2) -> 5.790656667 | G116: =VLOOKUP($B116,NA_All!$A$5:$AB$204,3*($C$6-1)+3) -> 26.74069333 | H116: =VLOOKUP($B116,NA_All!$A$5:$AB$204,3*($C$6-1)+4) -> 110.2676583 | J116: 107.5833333 | K116: =VLOOKUP($J116,P_All!$AD$5:$BE$245,3*($C$6-1)+2) -> 5.7125 | L116: =VLOOKUP($J116,P_All!$AD$5:$BE$245,3*($C$6-1)+3) -> 18.328 | M116: =VLOOKUP($J116,P_All!$AD$5:$BE$245,3*($C$6-1)+4) -> 129.21 | N116: =VLOOKUP($J116,NA_All!$AD$5:$BE$245,3*($C$6-1)+2) -> 5.1381 | O116: =VLOOKUP($J116,NA_All!$AD$5:$BE$245,3*($C$6-1)+3) -> 17.916 | P116: =VLOOKUP($J116,NA_All!$AD$5:$BE$245,3*($C$6-1)+4) -> 130.11
B117: 93 | C117: =VLOOKUP($B117,P_All!$A$5:$AB$204,3*($C$6-1)+2) -> 7.013316667 | D117: =VLOOKUP($B117,P_All!$A$5:$AB$204,3*($C$6-1)+3) -> 28.37185 | E117: =VLOOKUP($B117,P_All!$A$5:$AB$204,3*($C$6-1)+4) -> 111.8216333 | F117: =VLOOKUP($B117,NA_All!$A$5:$AB$204,3*($C$6-1)+2) -> 6.397908333 | G117: =VLOOKUP($B117,NA_All!$A$5:$AB$204,3*($C$6-1)+3) -> 28.03224167 | H117: =VLOOKUP($B117,NA_All!$A$5:$AB$204,3*($C$6-1)+4) -> 112.4457917 | J117: 107.6666667 | K117: =VLOOKUP($J117,P_All!$AD$5:$BE$245,3*($C$6-1)+2) -> 4.1991 | L117: =VLOOKUP($J117,P_All!$AD$5:$BE$245,3*($C$6-1)+3) -> 29.966 | M117: =VLOOKUP($J117,P_All!$AD$5:$BE$245,3*($C$6-1)+4) -> 80.635 | N117: =VLOOKUP($J117,NA_All!$AD$5:$BE$245,3*($C$6-1)+2) -> 3.4654 | O117: =VLOOKUP($J117,NA_All!$AD$5:$BE$245,3*($C$6-1)+3) -> 29.67 | P117: =VLOOKUP($J117,NA_All!$AD$5:$BE$245,3*($C$6-1)+4) -> 81.086
B118: 94 | C118: =VLOOKUP($B118,P_All!$A$5:$AB$204,3*($C$6-1)+2) -> 6.9398 | D118: =VLOOKUP($B118,P_All!$A$5:$AB$204,3*($C$6-1)+3) -> 29.19693333 | E118: =VLOOKUP($B118,P_All!$A$5:$AB$204,3*($C$6-1)+4) -> 114.3362 | F118: =VLOOKUP($B118,NA_All!$A$5:$AB$204,3*($C$6-1)+2) -> 6.268883333 | G118: =VLOOKUP($B118,NA_All!$A$5:$AB$204,3*($C$6-1)+3) -> 28.77561417 | H118: =VLOOKUP($B118,NA_All!$A$5:$AB$204,3*($C$6-1)+4) -> 115.0286167 | J118: 107.75 | K118: =VLOOKUP($J118,P_All!$AD$5:$BE$245,3*($C$6-1)+2) -> 9.8586 | L118: =VLOOKUP($J118,P_All!$AD$5:$BE$245,3*($C$6-1)+3) -> 30.185 | M118: =VLOOKUP($J118,P_All!$AD$5:$BE$245,3*($C$6-1)+4) -> 135.99 | N118: =VLOOKUP($J118,NA_All!$AD$5:$BE$245,3*($C$6-1)+2) -> 9.2074 | O118: =VLOOKUP($J118,NA_All!$AD$5:$BE$245,3*($C$6-1)+3) -> 29.617 | P118: =VLOOKUP($J118,NA_All!$AD$5:$BE$245,3*($C$6-1)+4) -> 136.65
B119: 95 | C119: =VLOOKUP($B119,P_All!$A$5:$AB$204,3*($C$6-1)+2) -> 6.633616667 | D119: =VLOOKUP($B119,P_All!$A$5:$AB$204,3*($C$6-1)+3) -> 27.42245 | E119: =VLOOKUP($B119,P_All!$A$5:$AB$204,3*($C$6-1)+4) -> 114.1011667 | F119: =VLOOKUP($B119,NA_All!$A$5:$AB$204,3*($C$6-1)+2) -> 6.021473333 | G119: =VLOOKUP($B119,NA_All!$A$5:$AB$204,3*($C$6-1)+3) -> 27.02393333 | H119: =VLOOKUP($B119,NA_All!$A$5:$AB$204,3*($C$6-1)+4) -> 114.7293417 | J119: 107.8333333 | K119: =VLOOKUP($J119,P_All!$AD$5:$BE$245,3*($C$6-1)+2) -> 7.1917 | L119: =VLOOKUP($J119,P_All!$AD$5:$BE$245,3*($C$6-1)+3) -> 17.452 | M119: =VLOOKUP($J119,P_All!$AD$5:$BE$245,3*($C$6-1)+4) -> 68.078 | N119: =VLOOKUP($J119,NA_All!$AD$5:$BE$245,3*($C$6-1)+2) -> 6.4218 | O119: =VLOOKUP($J119,NA_All!$AD$5:$BE$245,3*($C$6-1)+3) -> 16.996 | P119: =VLOOKUP($J119,NA_All!$AD$5:$BE$245,3*($C$6-1)+4) -> 68.246
B120: 96 | C120: =VLOOKUP($B120,P_All!$A$5:$AB$204,3*($C$6-1)+2) -> 7.020433333 | D120: =VLOOKUP($B120,P_All!$A$5:$AB$204,3*($C$6-1)+3) -> 26.675275 | E120: =VLOOKUP($B120,P_All!$A$5:$AB$204,3*($C$6-1)+4) -> 108.97515 | F120: =VLOOKUP($B120,NA_All!$A$5:$AB$204,3*($C$6-1)+2) -> 6.387125 | G120: =VLOOKUP($B120,NA_All!$A$5:$AB$204,3*($C$6-1)+3) -> 26.318925 | H120: =VLOOKUP($B120,NA_All!$A$5:$AB$204,3*($C$6-1)+4) -> 109.5440167 | J120: 107.9166667 | K120: =VLOOKUP($J120,P_All!$AD$5:$BE$245,3*($C$6-1)+2) -> 3.6299 | L120: =VLOOKUP($J120,P_All!$AD$5:$BE$245,3*($C$6-1)+3) -> 7.0872 | M120: =VLOOKUP($J120,P_All!$AD$5:$BE$245,3*($C$6-1)+4) -> 15.038 | N120: =VLOOKUP($J120,NA_All!$AD$5:$BE$245,3*($C$6-1)+2) -> 3.0057 | O120: =VLOOKUP($J120,NA_All!$AD$5:$BE$245,3*($C$6-1)+3) -> 6.333 | P120: =VLOOKUP($J120,NA_All!$AD$5:$BE$245,3*($C$6-1)+4) -> 14.576
B121: 97 | C121: =VLOOKUP($B121,P_All!$A$5:$AB$204,3*($C$6-1)+2) -> 7.061075 | D121: =VLOOKUP($B121,P_All!$A$5:$AB$204,3*($C$6-1)+3) -> 27.95305833 | E121: =VLOOKUP($B121,P_All!$A$5:$AB$204,3*($C$6-1)+4) -> 113.2983083 | F121: =VLOOKUP($B121,NA_All!$A$5:$AB$204,3*($C$6-1)+2) -> 6.387395833 | G121: =VLOOKUP($B121,NA_All!$A$5:$AB$204,3*($C$6-1)+3) -> 27.64285 | H121: =VLOOKUP($B121,NA_All!$A$5:$AB$204,3*($C$6-1)+4) -> 113.941225 | J121: 108 | K121: =VLOOKUP($J121,P_All!$AD$5:$BE$245,3*($C$6-1)+2) -> 1.6178 | L121: =VLOOKUP($J121,P_All!$AD$5:$BE$245,3*($C$6-1)+3) -> 4.3943 | M121: =VLOOKUP($J121,P_All!$AD$5:$BE$245,3*($C$6-1)+4) -> 7.8556 | N121: =VLOOKUP($J121,NA_All!$AD$5:$BE$245,3*($C$6-1)+2) -> 0.99425 | O121: =VLOOKUP($J121,NA_All!$AD$5:$BE$245,3*($C$6-1)+3) -> 3.7989 | P121: =VLOOKUP($J121,NA_All!$AD$5:$BE$245,3*($C$6-1)+4) -> 7.2961
B122: 98 | C122: =VLOOKUP($B122,P_All!$A$5:$AB$204,3*($C$6-1)+2) -> 7.254975 | D122: =VLOOKUP($B122,P_All!$A$5:$AB$204,3*($C$6-1)+3) -> 28.32454167 | E122: =VLOOKUP($B122,P_All!$A$5:$AB$204,3*($C$6-1)+4) -> 111.1447167 | F122: =VLOOKUP($B122,NA_All!$A$5:$AB$204,3*($C$6-1)+2) -> 6.629654167 | G122: =VLOOKUP($B122,NA_All!$A$5:$AB$204,3*($C$6-1)+3) -> 27.9412225 | H122: =VLOOKUP($B122,NA_All!$A$5:$AB$204,3*($C$6-1)+4) -> 111.7866083 | J122: 108.0833333 | K122: =VLOOKUP($J122,P_All!$AD$5:$BE$245,3*($C$6-1)+2) -> 1.1954 | L122: =VLOOKUP($J122,P_All!$AD$5:$BE$245,3*($C$6-1)+3) -> 1.8479 | M122: =VLOOKUP($J122,P_All!$AD$5:$BE$245,3*($C$6-1)+4) -> 7.4121 | N122: =VLOOKUP($J122,NA_All!$AD$5:$BE$245,3*($C$6-1)+2) -> 0.56962 | O122: =VLOOKUP($J122,NA_All!$AD$5:$BE$245,3*($C$6-1)+3) -> 1.2274 | P122: =VLOOKUP($J122,NA_All!$AD$5:$BE$245,3*($C$6-1)+4) -> 6.8614
B123: 99 | C123: =VLOOKUP($B123,P_All!$A$5:$AB$204,3*($C$6-1)+2) -> 7.019525 | D123: =VLOOKUP($B123,P_All!$A$5:$AB$204,3*($C$6-1)+3) -> 30.18304167 | E123: =VLOOKUP($B123,P_All!$A$5:$AB$204,3*($C$6-1)+4) -> 111.2651167 | F123: =VLOOKUP($B123,NA_All!$A$5:$AB$204,3*($C$6-1)+2) -> 6.406034167 | G123: =VLOOKUP($B123,NA_All!$A$5:$AB$204,3*($C$6-1)+3) -> 29.80791083 | H123: =VLOOKUP($B123,NA_All!$A$5:$AB$204,3*($C$6-1)+4) -> 111.8654667 | J123: 108.1666667 | K123: =VLOOKUP($J123,P_All!$AD$5:$BE$245,3*($C$6-1)+2) -> 1.2091 | L123: =VLOOKUP($J123,P_All!$AD$5:$BE$245,3*($C$6-1)+3) -> 4.5165 | M123: =VLOOKUP($J123,P_All!$AD$5:$BE$245,3*($C$6-1)+4) -> 61.933 | N123: =VLOOKUP($J123,NA_All!$AD$5:$BE$245,3*($C$6-1)+2) -> 0.58777 | O123: =VLOOKUP($J123,NA_All!$AD$5:$BE$245,3*($C$6-1)+3) -> 3.9285 | P123: =VLOOKUP($J123,NA_All!$AD$5:$BE$245,3*($C$6-1)+4) -> 62.146
B124: 100 | C124: =VLOOKUP($B124,P_All!$A$5:$AB$204,3*($C$6-1)+2) -> 6.727008333 | D124: =VLOOKUP($B124,P_All!$A$5:$AB$204,3*($C$6-1)+3) -> 28.00741667 | E124: =VLOOKUP($B124,P_All!$A$5:$AB$204,3*($C$6-1)+4) -> 107.3916 | F124: =VLOOKUP($B124,NA_All!$A$5:$AB$204,3*($C$6-1)+2) -> 6.128600833 | G124: =VLOOKUP($B124,NA_All!$A$5:$AB$204,3*($C$6-1)+3) -> 27.6634825 | H124: =VLOOKUP($B124,NA_All!$A$5:$AB$204,3*($C$6-1)+4) -> 107.9532917 | J124: 108.25 | K124: =VLOOKUP($J124,P_All!$AD$5:$BE$245,3*($C$6-1)+2) -> 23.069 | L124: =VLOOKUP($J124,P_All!$AD$5:$BE$245,3*($C$6-1)+3) -> 88.45 | M124: =VLOOKUP($J124,P_All!$AD$5:$BE$245,3*($C$6-1)+4) -> 229.37 | N124: =VLOOKUP($J124,NA_All!$AD$5:$BE$245,3*($C$6-1)+2) -> 22.704 | O124: =VLOOKUP($J124,NA_All!$AD$5:$BE$245,3*($C$6-1)+3) -> 88.87 | P124: =VLOOKUP($J124,NA_All!$AD$5:$BE$245,3*($C$6-1)+4) -> 231.49
B125: 101 | C125: =VLOOKUP($B125,P_All!$A$5:$AB$204,3*($C$6-1)+2) -> 6.893758333 | D125: =VLOOKUP($B125,P_All!$A$5:$AB$204,3*($C$6-1)+3) -> 27.97410833 | E125: =VLOOKUP($B125,P_All!$A$5:$AB$204,3*($C$6-1)+4) -> 111.7527417 | F125: =VLOOKUP($B125,NA_All!$A$5:$AB$204,3*($C$6-1)+2) -> 6.213709167 | G125: =VLOOKUP($B125,NA_All!$A$5:$AB$204,3*($C$6-1)+3) -> 27.60895833 | H125: =VLOOKUP($B125,NA_All!$A$5:$AB$204,3*($C$6-1)+4) -> 112.3151 | J125: 108.3333333 | K125: =VLOOKUP($J125,P_All!$AD$5:$BE$245,3*($C$6-1)+2) -> 20.564 | L125: =VLOOKUP($J125,P_All!$AD$5:$BE$245,3*($C$6-1)+3) -> 80.064 | M125: =VLOOKUP($J125,P_All!$AD$5:$BE$245,3*($C$6-1)+4) -> 258.65 | N125: =VLOOKUP($J125,NA_All!$AD$5:$BE$245,3*($C$6-1)+2) -> 19.956 | O125: =VLOOKUP($J125,NA_All!$AD$5:$BE$245,3*($C$6-1)+3) -> 80.047 | P125: =VLOOKUP($J125,NA_All!$AD$5:$BE$245,3*($C$6-1)+4) -> 261.07
B126: 102 | C126: =VLOOKUP($B126,P_All!$A$5:$AB$204,3*($C$6-1)+2) -> 6.649175 | D126: =VLOOKUP($B126,P_All!$A$5:$AB$204,3*($C$6-1)+3) -> 29.94971667 | E126: =VLOOKUP($B126,P_All!$A$5:$AB$204,3*($C$6-1)+4) -> 115.4752167 | F126: =VLOOKUP($B126,NA_All!$A$5:$AB$204,3*($C$6-1)+2) -> 6.0292575 | G126: =VLOOKUP($B126,NA_All!$A$5:$AB$204,3*($C$6-1)+3) -> 29.5554825 | H126: =VLOOKUP($B126,NA_All!$A$5:$AB$204,3*($C$6-1)+4) -> 116.1541333 | J126: 108.4166667 | K126: =VLOOKUP($J126,P_All!$AD$5:$BE$245,3*($C$6-1)+2) -> 7.0995 | L126: =VLOOKUP($J126,P_All!$AD$5:$BE$245,3*($C$6-1)+3) -> 37.076 | M126: =VLOOKUP($J126,P_All!$AD$5:$BE$245,3*($C$6-1)+4) -> 102.12 | N126: =VLOOKUP($J126,NA_All!$AD$5:$BE$245,3*($C$6-1)+2) -> 6.5389 | O126: =VLOOKUP($J126,NA_All!$AD$5:$BE$245,3*($C$6-1)+3) -> 36.516 | P126: =VLOOKUP($J126,NA_All!$AD$5:$BE$245,3*($C$6-1)+4) -> 102.66
B127: 103 | C127: =VLOOKUP($B127,P_All!$A$5:$AB$204,3*($C$6-1)+2) -> 7.034991667 | D127: =VLOOKUP($B127,P_All!$A$5:$AB$204,3*($C$6-1)+3) -> 27.65011667 | E127: =VLOOKUP($B127,P_All!$A$5:$AB$204,3*($C$6-1)+4) -> 110.19395 | F127: =VLOOKUP($B127,NA_All!$A$5:$AB$204,3*($C$6-1)+2) -> 6.404578333 | G127: =VLOOKUP($B127,NA_All!$A$5:$AB$204,3*($C$6-1)+3) -> 27.26904583 | H127: =VLOOKUP($B127,NA_All!$A$5:$AB$204,3*($C$6-1)+4) -> 110.7989083 | J127: 108.5 | K127: =VLOOKUP($J127,P_All!$AD$5:$BE$245,3*($C$6-1)+2) -> 2.3062 | L127: =VLOOKUP($J127,P_All!$AD$5:$BE$245,3*($C$6-1)+3) -> 19.119 | M127: =VLOOKUP($J127,P_All!$AD$5:$BE$245,3*($C$6-1)+4) -> 253.4 | N127: =VLOOKUP($J127,NA_All!$AD$5:$BE$245,3*($C$6-1)+2) -> 1.6079 | O127: =VLOOKUP($J127,NA_All!$AD$5:$BE$245,3*($C$6-1)+3) -> 18.704 | P127: =VLOOKUP($J127,NA_All!$AD$5:$BE$245,3*($C$6-1)+4) -> 255.45
B128: 104 | C128: =VLOOKUP($B128,P_All!$A$5:$AB$204,3*($C$6-1)+2) -> 6.908116667 | D128: =VLOOKUP($B128,P_All!$A$5:$AB$204,3*($C$6-1)+3) -> 28.41020833 | E128: =VLOOKUP($B128,P_All!$A$5:$AB$204,3*($C$6-1)+4) -> 111.670425 | F128: =VLOOKUP($B128,NA_All!$A$5:$AB$204,3*($C$6-1)+2) -> 6.23608 | G128: =VLOOKUP($B128,NA_All!$A$5:$AB$204,3*($C$6-1)+3) -> 28.02016417 | H128: =VLOOKUP($B128,NA_All!$A$5:$AB$204,3*($C$6-1)+4) -> 112.254025 | J128: 108.5833333 | K128: =VLOOKUP($J128,P_All!$AD$5:$BE$245,3*($C$6-1)+2) -> 6.2156 | L128: =VLOOKUP($J128,P_All!$AD$5:$BE$245,3*($C$6-1)+3) -> 18.001 | M128: =VLOOKUP($J128,P_All!$AD$5:$BE$245,3*($C$6-1)+4) -> 126.84 | N128: =VLOOKUP($J128,NA_All!$AD$5:$BE$245,3*($C$6-1)+2) -> 5.6777 | O128: =VLOOKUP($J128,NA_All!$AD$5:$BE$245,3*($C$6-1)+3) -> 17.573 | P128: =VLOOKUP($J128,NA_All!$AD$5:$BE$245,3*($C$6-1)+4) -> 127.82
B129: 105 | C129: =VLOOKUP($B129,P_All!$A$5:$AB$204,3*($C$6-1)+2) -> 6.820833333 | D129: =VLOOKUP($B129,P_All!$A$5:$AB$204,3*($C$6-1)+3) -> 28.02758333 | E129: =VLOOKUP($B129,P_All!$A$5:$AB$204,3*($C$6-1)+4) -> 110.2360083 | F129: =VLOOKUP($B129,NA_All!$A$5:$AB$204,3*($C$6-1)+2) -> 6.179925 | G129: =VLOOKUP($B129,NA_All!$A$5:$AB$204,3*($C$6-1)+3) -> 27.64144167 | H129: =VLOOKUP($B129,NA_All!$A$5:$AB$204,3*($C$6-1)+4) -> 110.900975 | J129: 108.6666667 | K129: =VLOOKUP($J129,P_All!$AD$5:$BE$245,3*($C$6-1)+2) -> 3.9894 | L129: =VLOOKUP($J129,P_All!$AD$5:$BE$245,3*($C$6-1)+3) -> 31.183 | M129: =VLOOKUP($J129,P_All!$AD$5:$BE$245,3*($C$6-1)+4) -> 83.685 | N129: =VLOOKUP($J129,NA_All!$AD$5:$BE$245,3*($C$6-1)+2) -> 3.2669 | O129: =VLOOKUP($J129,NA_All!$AD$5:$BE$245,3*($C$6-1)+3) -> 30.83 | P129: =VLOOKUP($J129,NA_All!$AD$5:$BE$245,3*($C$6-1)+4) -> 84.01
B130: 106 | C130: =VLOOKUP($B130,P_All!$A$5:$AB$204,3*($C$6-1)+2) -> 6.538808333 | D130: =VLOOKUP($B130,P_All!$A$5:$AB$204,3*($C$6-1)+3) -> 29.39525 | E130: =VLOOKUP($B130,P_All!$A$5:$AB$204,3*($C$6-1)+4) -> 113.7432417 | F130: =VLOOKUP($B130,NA_All!$A$5:$AB$204,3*($C$6-1)+2) -> 5.957151667 | G130: =VLOOKUP($B130,NA_All!$A$5:$AB$204,3*($C$6-1)+3) -> 29.089965 | H130: =VLOOKUP($B130,NA_All!$A$5:$AB$204,3*($C$6-1)+4) -> 114.3808833 | J130: 108.75 | K130: =VLOOKUP($J130,P_All!$AD$5:$BE$245,3*($C$6-1)+2) -> 9.5458 | L130: =VLOOKUP($J130,P_All!$AD$5:$BE$245,3*($C$6-1)+3) -> 31.918 | M130: =VLOOKUP($J130,P_All!$AD$5:$BE$245,3*($C$6-1)+4) -> 124.13 | N130: =VLOOKUP($J130,NA_All!$AD$5:$BE$245,3*($C$6-1)+2) -> 9.0247 | O130: =VLOOKUP($J130,NA_All!$AD$5:$BE$245,3*($C$6-1)+3) -> 31.658 | P130: =VLOOKUP($J130,NA_All!$AD$5:$BE$245,3*($C$6-1)+4) -> 124.97
B131: 107 | C131: =VLOOKUP($B131,P_All!$A$5:$AB$204,3*($C$6-1)+2) -> 6.907491667 | D131: =VLOOKUP($B131,P_All!$A$5:$AB$204,3*($C$6-1)+3) -> 27.96440833 | E131: =VLOOKUP($B131,P_All!$A$5:$AB$204,3*($C$6-1)+4) -> 112.5673417 | F131: =VLOOKUP($B131,NA_All!$A$5:$AB$204,3*($C$6-1)+2) -> 6.254224167 | G131: =VLOOKUP($B131,NA_All!$A$5:$AB$204,3*($C$6-1)+3) -> 27.606925 | H131: =VLOOKUP($B131,NA_All!$A$5:$AB$204,3*($C$6-1)+4) -> 113.1456833 | J131: 108.8333333 | K131: =VLOOKUP($J131,P_All!$AD$5:$BE$245,3*($C$6-1)+2) -> 7.2085 | L131: =VLOOKUP($J131,P_All!$AD$5:$BE$245,3*($C$6-1)+3) -> 16.417 | M131: =VLOOKUP($J131,P_All!$AD$5:$BE$245,3*($C$6-1)+4) -> 59.352 | N131: =VLOOKUP($J131,NA_All!$AD$5:$BE$245,3*($C$6-1)+2) -> 6.4218 | O131: =VLOOKUP($J131,NA_All!$AD$5:$BE$245,3*($C$6-1)+3) -> 15.97 | P131: =VLOOKUP($J131,NA_All!$AD$5:$BE$245,3*($C$6-1)+4) -> 59.117
B132: 108 | C132: =VLOOKUP($B132,P_All!$A$5:$AB$204,3*($C$6-1)+2) -> 7.047925 | D132: =VLOOKUP($B132,P_All!$A$5:$AB$204,3*($C$6-1)+3) -> 27.3386 | E132: =VLOOKUP($B132,P_All!$A$5:$AB$204,3*($C$6-1)+4) -> 112.4760833 | F132: =VLOOKUP($B132,NA_All!$A$5:$AB$204,3*($C$6-1)+2) -> 6.4295875 | G132: =VLOOKUP($B132,NA_All!$A$5:$AB$204,3*($C$6-1)+3) -> 26.932275 | H132: =VLOOKUP($B132,NA_All!$A$5:$AB$204,3*($C$6-1)+4) -> 113.1289083 | J132: 108.9166667 | K132: =VLOOKUP($J132,P_All!$AD$5:$BE$245,3*($C$6-1)+2) -> 3.7949 | L132: =VLOOKUP($J132,P_All!$AD$5:$BE$245,3*($C$6-1)+3) -> 7.1848 | M132: =VLOOKUP($J132,P_All!$AD$5:$BE$245,3*($C$6-1)+4) -> 15.31 | N132: =VLOOKUP($J132,NA_All!$AD$5:$BE$245,3*($C$6-1)+2) -> 3.1749 | O132: =VLOOKUP($J132,NA_All!$AD$5:$BE$245,3*($C$6-1)+3) -> 6.5711 | P132: =VLOOKUP($J132,NA_All!$AD$5:$BE$245,3*($C$6-1)+4) -> 14.77
B133: 109 | C133: =VLOOKUP($B133,P_All!$A$5:$AB$204,3*($C$6-1)+2) -> 7.317933333 | D133: =VLOOKUP($B133,P_All!$A$5:$AB$204,3*($C$6-1)+3) -> 28.347625 | E133: =VLOOKUP($B133,P_All!$A$5:$AB$204,3*($C$6-1)+4) -> 110.8381417 | F133: =VLOOKUP($B133,NA_All!$A$5:$AB$204,3*($C$6-1)+2) -> 6.71037 | G133: =VLOOKUP($B133,NA_All!$A$5:$AB$204,3*($C$6-1)+3) -> 27.97449167 | H133: =VLOOKUP($B133,NA_All!$A$5:$AB$204,3*($C$6-1)+4) -> 111.4717083 | J133: 109 | K133: =VLOOKUP($J133,P_All!$AD$5:$BE$245,3*($C$6-1)+2) -> 1.615 | L133: =VLOOKUP($J133,P_All!$AD$5:$BE$245,3*($C$6-1)+3) -> 4.7148 | M133: =VLOOKUP($J133,P_All!$AD$5:$BE$245,3*($C$6-1)+4) -> 8.0965 | N133: =VLOOKUP($J133,NA_All!$AD$5:$BE$245,3*($C$6-1)+2) -> 0.98954 | O133: =VLOOKUP($J133,NA_All!$AD$5:$BE$245,3*($C$6-1)+3) -> 4.1014 | P133: =VLOOKUP($J133,NA_All!$AD$5:$BE$245,3*($C$6-1)+4) -> 7.5102
B134: 110 | C134: =VLOOKUP($B134,P_All!$A$5:$AB$204,3*($C$6-1)+2) -> 7.173908333 | D134: =VLOOKUP($B134,P_All!$A$5:$AB$204,3*($C$6-1)+3) -> 27.60295833 | E134: =VLOOKUP($B134,P_All!$A$5:$AB$204,3*($C$6-1)+4) -> 109.4614833 | F134: =VLOOKUP($B134,NA_All!$A$5:$AB$204,3*($C$6-1)+2) -> 6.455970833 | G134: =VLOOKUP($B134,NA_All!$A$5:$AB$204,3*($C$6-1)+3) -> 27.20625833 | H134: =VLOOKUP($B134,NA_All!$A$5:$AB$204,3*($C$6-1)+4) -> 110.0640833 | J134: 109.0833333 | K134: =VLOOKUP($J134,P_All!$AD$5:$BE$245,3*($C$6-1)+2) -> 1.1934 | L134: =VLOOKUP($J134,P_All!$AD$5:$BE$245,3*($C$6-1)+3) -> 2.0218 | M134: =VLOOKUP($J134,P_All!$AD$5:$BE$245,3*($C$6-1)+4) -> 7.2923 | N134: =VLOOKUP($J134,NA_All!$AD$5:$BE$245,3*($C$6-1)+2) -> 0.56504 | O134: =VLOOKUP($J134,NA_All!$AD$5:$BE$245,3*($C$6-1)+3) -> 1.181 | P134: =VLOOKUP($J134,NA_All!$AD$5:$BE$245,3*($C$6-1)+4) -> 6.7368
B135: 111 | C135: =VLOOKUP($B135,P_All!$A$5:$AB$204,3*($C$6-1)+2) -> 6.70605 | D135: =VLOOKUP($B135,P_All!$A$5:$AB$204,3*($C$6-1)+3) -> 27.55719167 | E135: =VLOOKUP($B135,P_All!$A$5:$AB$204,3*($C$6-1)+4) -> 106.9009 | F135: =VLOOKUP($B135,NA_All!$A$5:$AB$204,3*($C$6-1)+2) -> 6.060721667 | G135: =VLOOKUP($B135,NA_All!$A$5:$AB$204,3*($C$6-1)+3) -> 27.14030833 | H135: =VLOOKUP($B135,NA_All!$A$5:$AB$204,3*($C$6-1)+4) -> 107.4824083 | J135: 109.1666667 | K135: =VLOOKUP($J135,P_All!$AD$5:$BE$245,3*($C$6-1)+2) -> 1.254 | L135: =VLOOKUP($J135,P_All!$AD$5:$BE$245,3*($C$6-1)+3) -> 5.5357 | M135: =VLOOKUP($J135,P_All!$AD$5:$BE$245,3*($C$6-1)+4) -> 49.266 | N135: =VLOOKUP($J135,NA_All!$AD$5:$BE$245,3*($C$6-1)+2) -> 0.63267 | O135: =VLOOKUP($J135,NA_All!$AD$5:$BE$245,3*($C$6-1)+3) -> 4.96 | P135: =VLOOKUP($J135,NA_All!$AD$5:$BE$245,3*($C$6-1)+4) -> 49.219
B136: 112 | C136: =VLOOKUP($B136,P_All!$A$5:$AB$204,3*($C$6-1)+2) -> 6.359808333 | D136: =VLOOKUP($B136,P_All!$A$5:$AB$204,3*($C$6-1)+3) -> 26.78545833 | E136: =VLOOKUP($B136,P_All!$A$5:$AB$204,3*($C$6-1)+4) -> 108.8677417 | F136: =VLOOKUP($B136,NA_All!$A$5:$AB$204,3*($C$6-1)+2) -> 5.697121667 | G136: =VLOOKUP($B136,NA_All!$A$5:$AB$204,3*($C$6-1)+3) -> 26.40072083 | H136: =VLOOKUP($B136,NA_All!$A$5:$AB$204,3*($C$6-1)+4) -> 109.4756417 | J136: 109.25 | K136: =VLOOKUP($J136,P_All!$AD$5:$BE$245,3*($C$6-1)+2) -> 19.06 | L136: =VLOOKUP($J136,P_All!$AD$5:$BE$245,3*($C$6-1)+3) -> 80.998 | M136: =VLOOKUP($J136,P_All!$AD$5:$BE$245,3*($C$6-1)+4) -> 247.23 | N136: =VLOOKUP($J136,NA_All!$AD$5:$BE$245,3*($C$6-1)+2) -> 18.646 | O136: =VLOOKUP($J136,NA_All!$AD$5:$BE$245,3*($C$6-1)+3) -> 81.328 | P136: =VLOOKUP($J136,NA_All!$AD$5:$BE$245,3*($C$6-1)+4) -> 249.56
B137: 113 | C137: =VLOOKUP($B137,P_All!$A$5:$AB$204,3*($C$6-1)+2) -> 6.525033333 | D137: =VLOOKUP($B137,P_All!$A$5:$AB$204,3*($C$6-1)+3) -> 27.847825 | E137: =VLOOKUP($B137,P_All!$A$5:$AB$204,3*($C$6-1)+4) -> 111.2002667 | F137: =VLOOKUP($B137,NA_All!$A$5:$AB$204,3*($C$6-1)+2) -> 5.829534167 | G137: =VLOOKUP($B137,NA_All!$A$5:$AB$204,3*($C$6-1)+3) -> 27.45581083 | H137: =VLOOKUP($B137,NA_All!$A$5:$AB$204,3*($C$6-1)+4) -> 111.840775 | J137: 109.3333333 | K137: =VLOOKUP($J137,P_All!$AD$5:$BE$245,3*($C$6-1)+2) -> 21.077 | L137: =VLOOKUP($J137,P_All!$AD$5:$BE$245,3*($C$6-1)+3) -> 76.657 | M137: =VLOOKUP($J137,P_All!$AD$5:$BE$245,3*($C$6-1)+4) -> 262.15 | N137: =VLOOKUP($J137,NA_All!$AD$5:$BE$245,3*($C$6-1)+2) -> 20.305 | O137: =VLOOKUP($J137,NA_All!$AD$5:$BE$245,3*($C$6-1)+3) -> 76.6 | P137: =VLOOKUP($J137,NA_All!$AD$5:$BE$245,3*($C$6-1)+4) -> 264.28
B138: 114 | C138: =VLOOKUP($B138,P_All!$A$5:$AB$204,3*($C$6-1)+2) -> 6.741058333 | D138: =VLOOKUP($B138,P_All!$A$5:$AB$204,3*($C$6-1)+3) -> 28.12601667 | E138: =VLOOKUP($B138,P_All!$A$5:$AB$204,3*($C$6-1)+4) -> 108.4372333 | F138: =VLOOKUP($B138,NA_All!$A$5:$AB$204,3*($C$6-1)+2) -> 6.056228333 | G138: =VLOOKUP($B138,NA_All!$A$5:$AB$204,3*($C$6-1)+3) -> 27.748025 | H138: =VLOOKUP($B138,NA_All!$A$5:$AB$204,3*($C$6-1)+4) -> 109.0521 | J138: 109.4166667 | K138: =VLOOKUP($J138,P_All!$AD$5:$BE$245,3*($C$6-1)+2) -> 7.751 | L138: =VLOOKUP($J138,P_All!$AD$5:$BE$245,3*($C$6-1)+3) -> 41.533 | M138: =VLOOKUP($J138,P_All!$AD$5:$BE$245,3*($C$6-1)+4) -> 100.97 | N138: =VLOOKUP($J138,NA_All!$AD$5:$BE$245,3*($C$6-1)+2) -> 6.6017 | O138: =VLOOKUP($J138,NA_All!$AD$5:$BE$245,3*($C$6-1)+3) -> 41.369 | P138: =VLOOKUP($J138,NA_All!$AD$5:$BE$245,3*($C$6-1)+4) -> 101.49
B139: 115 | C139: =VLOOKUP($B139,P_All!$A$5:$AB$204,3*($C$6-1)+2) -> 6.604416667 | D139: =VLOOKUP($B139,P_All!$A$5:$AB$204,3*($C$6-1)+3) -> 28.087475 | E139: =VLOOKUP($B139,P_All!$A$5:$AB$204,3*($C$6-1)+4) -> 114.738475 | F139: =VLOOKUP($B139,NA_All!$A$5:$AB$204,3*($C$6-1)+2) -> 5.960336667 | G139: =VLOOKUP($B139,NA_All!$A$5:$AB$204,3*($C$6-1)+3) -> 27.71557833 | H139: =VLOOKUP($B139,NA_All!$A$5:$AB$204,3*($C$6-1)+4) -> 115.443275 | J139: 109.5 | K139: =VLOOKUP($J139,P_All!$AD$5:$BE$245,3*($C$6-1)+2) -> 3.0297 | L139: =VLOOKUP($J139,P_All!$AD$5:$BE$245,3*($C$6-1)+3) -> 21.056 | M139: =VLOOKUP($J139,P_All!$AD$5:$BE$245,3*($C$6-1)+4) -> 232.63 | N139: =VLOOKUP($J139,NA_All!$AD$5:$BE$245,3*($C$6-1)+2) -> 2.2555 | O139: =VLOOKUP($J139,NA_All!$AD$5:$BE$245,3*($C$6-1)+3) -> 20.664 | P139: =VLOOKUP($J139,NA_All!$AD$5:$BE$245,3*($C$6-1)+4) -> 234.75
B140: 116 | C140: =VLOOKUP($B140,P_All!$A$5:$AB$204,3*($C$6-1)+2) -> 6.5202 | D140: =VLOOKUP($B140,P_All!$A$5:$AB$204,3*($C$6-1)+3) -> 27.52959167 | E140: =VLOOKUP($B140,P_All!$A$5:$AB$204,3*($C$6-1)+4) -> 113.416775 | F140: =VLOOKUP($B140,NA_All!$A$5:$AB$204,3*($C$6-1)+2) -> 5.916415833 | G140: =VLOOKUP($B140,NA_All!$A$5:$AB$204,3*($C$6-1)+3) -> 27.12630833 | H140: =VLOOKUP($B140,NA_All!$A$5:$AB$204,3*($C$6-1)+4) -> 114.0015 | J140: 109.5833333 | K140: =VLOOKUP($J140,P_All!$AD$5:$BE$245,3*($C$6-1)+2) -> 5.9074 | L140: =VLOOKUP($J140,P_All!$AD$5:$BE$245,3*($C$6-1)+3) -> 18.047 | M140: =VLOOKUP($J140,P_All!$AD$5:$BE$245,3*($C$6-1)+4) -> 127.14 | N140: =VLOOKUP($J140,NA_All!$AD$5:$BE$245,3*($C$6-1)+2) -> 5.3353 | O140: =VLOOKUP($J140,NA_All!$AD$5:$BE$245,3*($C$6-1)+3) -> 17.466 | P140: =VLOOKUP($J140,NA_All!$AD$5:$BE$245,3*($C$6-1)+4) -> 128.02
B141: 117 | C141: =VLOOKUP($B141,P_All!$A$5:$AB$204,3*($C$6-1)+2) -> 7.154191667 | D141: =VLOOKUP($B141,P_All!$A$5:$AB$204,3*($C$6-1)+3) -> 29.46054167 | E141: =VLOOKUP($B141,P_All!$A$5:$AB$204,3*($C$6-1)+4) -> 112.27615 | F141: =VLOOKUP($B141,NA_All!$A$5:$AB$204,3*($C$6-1)+2) -> 6.5154725 | G141: =VLOOKUP($B141,NA_All!$A$5:$AB$204,3*($C$6-1)+3) -> 29.10488667 | H141: =VLOOKUP($B141,NA_All!$A$5:$AB$204,3*($C$6-1)+4) -> 112.88635 | J141: 109.6666667 | K141: =VLOOKUP($J141,P_All!$AD$5:$BE$245,3*($C$6-1)+2) -> 4.9133 | L141: =VLOOKUP($J141,P_All!$AD$5:$BE$245,3*($C$6-1)+3) -> 29.306 | M141: =VLOOKUP($J141,P_All!$AD$5:$BE$245,3*($C$6-1)+4) -> 79.311 | N141: =VLOOKUP($J141,NA_All!$AD$5:$BE$245,3*($C$6-1)+2) -> 4.2512 | O141: =VLOOKUP($J141,NA_All!$AD$5:$BE$245,3*($C$6-1)+3) -> 29.003 | P141: =VLOOKUP($J141,NA_All!$AD$5:$BE$245,3*($C$6-1)+4) -> 79.586
B142: 118 | C142: =VLOOKUP($B142,P_All!$A$5:$AB$204,3*($C$6-1)+2) -> 6.878475 | D142: =VLOOKUP($B142,P_All!$A$5:$AB$204,3*($C$6-1)+3) -> 26.99755833 | E142: =VLOOKUP($B142,P_All!$A$5:$AB$204,3*($C$6-1)+4) -> 110.194 | F142: =VLOOKUP($B142,NA_All!$A$5:$AB$204,3*($C$6-1)+2) -> 6.22069 | G142: =VLOOKUP($B142,NA_All!$A$5:$AB$204,3*($C$6-1)+3) -> 26.63496667 | H142: =VLOOKUP($B142,NA_All!$A$5:$AB$204,3*($C$6-1)+4) -> 110.8076083 | J142: 109.75 | K142: =VLOOKUP($J142,P_All!$AD$5:$BE$245,3*($C$6-1)+2) -> 9.3395 | L142: =VLOOKUP($J142,P_All!$AD$5:$BE$245,3*($C$6-1)+3) -> 27.833 | M142: =VLOOKUP($J142,P_All!$AD$5:$BE$245,3*($C$6-1)+4) -> 126.35 | N142: =VLOOKUP($J142,NA_All!$AD$5:$BE$245,3*($C$6-1)+2) -> 8.3743 | O142: =VLOOKUP($J142,NA_All!$AD$5:$BE$245,3*($C$6-1)+3) -> 27.524 | P142: =VLOOKUP($J142,NA_All!$AD$5:$BE$245,3*($C$6-1)+4) -> 127.15
B143: 119 | C143: =VLOOKUP($B143,P_All!$A$5:$AB$204,3*($C$6-1)+2) -> 7.233741667 | D143: =VLOOKUP($B143,P_All!$A$5:$AB$204,3*($C$6-1)+3) -> 28.56321667 | E143: =VLOOKUP($B143,P_All!$A$5:$AB$204,3*($C$6-1)+4) -> 113.132075 | F143: =VLOOKUP($B143,NA_All!$A$5:$AB$204,3*($C$6-1)+2) -> 6.6207025 | G143: =VLOOKUP($B143,NA_All!$A$5:$AB$204,3*($C$6-1)+3) -> 28.19408 | H143: =VLOOKUP($B143,NA_All!$A$5:$AB$204,3*($C$6-1)+4) -> 113.7989083 | J143: 109.8333333 | K143: =VLOOKUP($J143,P_All!$AD$5:$BE$245,3*($C$6-1)+2) -> 7.2206 | L143: =VLOOKUP($J143,P_All!$AD$5:$BE$245,3*($C$6-1)+3) -> 16.342 | M143: =VLOOKUP($J143,P_All!$AD$5:$BE$245,3*($C$6-1)+4) -> 57.963 | N143: =VLOOKUP($J143,NA_All!$AD$5:$BE$245,3*($C$6-1)+2) -> 6.4218 | O143: =VLOOKUP($J143,NA_All!$AD$5:$BE$245,3*($C$6-1)+3) -> 15.78 | P143: =VLOOKUP($J143,NA_All!$AD$5:$BE$245,3*($C$6-1)+4) -> 57.947
B144: 120 | C144: =VLOOKUP($B144,P_All!$A$5:$AB$204,3*($C$6-1)+2) -> 7.026 | D144: =VLOOKUP($B144,P_All!$A$5:$AB$204,3*($C$6-1)+3) -> 28.57486667 | E144: =VLOOKUP($B144,P_All!$A$5:$AB$204,3*($C$6-1)+4) -> 112.5953583 | F144: =VLOOKUP($B144,NA_All!$A$5:$AB$204,3*($C$6-1)+2) -> 6.3757075 | G144: =VLOOKUP($B144,NA_All!$A$5:$AB$204,3*($C$6-1)+3) -> 28.21962083 | H144: =VLOOKUP($B144,NA_All!$A$5:$AB$204,3*($C$6-1)+4) -> 113.234075 | J144: 109.9166667 | K144: =VLOOKUP($J144,P_All!$AD$5:$BE$245,3*($C$6-1)+2) -> 3.726 | L144: =VLOOKUP($J144,P_All!$AD$5:$BE$245,3*($C$6-1)+3) -> 7.1912 | M144: =VLOOKUP($J144,P_All!$AD$5:$BE$245,3*($C$6-1)+4) -> 15.139 | N144: =VLOOKUP($J144,NA_All!$AD$5:$BE$245,3*($C$6-1)+2) -> 3.0936 | O144: =VLOOKUP($J144,NA_All!$AD$5:$BE$245,3*($C$6-1)+3) -> 6.4987 | P144: =VLOOKUP($J144,NA_All!$AD$5:$BE$245,3*($C$6-1)+4) -> 14.52
B145: 121 | C145: =VLOOKUP($B145,P_All!$A$5:$AB$204,3*($C$6-1)+2) -> 6.82765 | D145: =VLOOKUP($B145,P_All!$A$5:$AB$204,3*($C$6-1)+3) -> 27.07749167 | E145: =VLOOKUP($B145,P_All!$A$5:$AB$204,3*($C$6-1)+4) -> 114.0862333 | F145: =VLOOKUP($B145,NA_All!$A$5:$AB$204,3*($C$6-1)+2) -> 6.180768333 | G145: =VLOOKUP($B145,NA_All!$A$5:$AB$204,3*($C$6-1)+3) -> 26.7193725 | H145: =VLOOKUP($B145,NA_All!$A$5:$AB$204,3*($C$6-1)+4) -> 114.6783917 | J145: 110 | K145: =VLOOKUP($J145,P_All!$AD$5:$BE$245,3*($C$6-1)+2) -> 1.6264 | L145: =VLOOKUP($J145,P_All!$AD$5:$BE$245,3*($C$6-1)+3) -> 4.7628 | M145: =VLOOKUP($J145,P_All!$AD$5:$BE$245,3*($C$6-1)+4) -> 8.0745 | N145: =VLOOKUP($J145,NA_All!$AD$5:$BE$245,3*($C$6-1)+2) -> 0.99931 | O145: =VLOOKUP($J145,NA_All!$AD$5:$BE$245,3*($C$6-1)+3) -> 4.1557 | P145: =VLOOKUP($J145,NA_All!$AD$5:$BE$245,3*($C$6-1)+4) -> 7.5261
B146: 122 | C146: =VLOOKUP($B146,P_All!$A$5:$AB$204,3*($C$6-1)+2) -> 6.926641667 | D146: =VLOOKUP($B146,P_All!$A$5:$AB$204,3*($C$6-1)+3) -> 27.33431667 | E146: =VLOOKUP($B146,P_All!$A$5:$AB$204,3*($C$6-1)+4) -> 114.2049833 | F146: =VLOOKUP($B146,NA_All!$A$5:$AB$204,3*($C$6-1)+2) -> 6.301280833 | G146: =VLOOKUP($B146,NA_All!$A$5:$AB$204,3*($C$6-1)+3) -> 26.97511667 | H146: =VLOOKUP($B146,NA_All!$A$5:$AB$204,3*($C$6-1)+4) -> 114.8478833 | J146: 110.0833333 | K146: =VLOOKUP($J146,P_All!$AD$5:$BE$245,3*($C$6-1)+2) -> 1.2177 | L146: =VLOOKUP($J146,P_All!$AD$5:$BE$245,3*($C$6-1)+3) -> 2.0094 | M146: =VLOOKUP($J146,P_All!$AD$5:$BE$245,3*($C$6-1)+4) -> 8.6263 | N146: =VLOOKUP($J146,NA_All!$AD$5:$BE$245,3*($C$6-1)+2) -> 0.59429 | O146: =VLOOKUP($J146,NA_All!$AD$5:$BE$245,3*($C$6-1)+3) -> 1.2647 | P146: =VLOOKUP($J146,NA_All!$AD$5:$BE$245,3*($C$6-1)+4) -> 8.0868
B147: 123 | C147: =VLOOKUP($B147,P_All!$A$5:$AB$204,3*($C$6-1)+2) -> 7.098758333 | D147: =VLOOKUP($B147,P_All!$A$5:$AB$204,3*($C$6-1)+3) -> 28.77916667 | E147: =VLOOKUP($B147,P_All!$A$5:$AB$204,3*($C$6-1)+4) -> 113.4749167 | F147: =VLOOKUP($B147,NA_All!$A$5:$AB$204,3*($C$6-1)+2) -> 6.495421667 | G147: =VLOOKUP($B147,NA_All!$A$5:$AB$204,3*($C$6-1)+3) -> 28.40973667 | H147: =VLOOKUP($B147,NA_All!$A$5:$AB$204,3*($C$6-1)+4) -> 114.0741833 | J147: 110.1666667 | K147: =VLOOKUP($J147,P_All!$AD$5:$BE$245,3*($C$6-1)+2) -> 1.2107 | L147: =VLOOKUP($J147,P_All!$AD$5:$BE$245,3*($C$6-1)+3) -> 4.1739 | M147: =VLOOKUP($J147,P_All!$AD$5:$BE$245,3*($C$6-1)+4) -> 49.055 | N147: =VLOOKUP($J147,NA_All!$AD$5:$BE$245,3*($C$6-1)+2) -> 0.57856 | O147: =VLOOKUP($J147,NA_All!$AD$5:$BE$245,3*($C$6-1)+3) -> 3.5817 | P147: =VLOOKUP($J147,NA_All!$AD$5:$BE$245,3*($C$6-1)+4) -> 49.006
B148: 124 | C148: =VLOOKUP($B148,P_All!$A$5:$AB$204,3*($C$6-1)+2) -> 6.911808333 | D148: =VLOOKUP($B148,P_All!$A$5:$AB$204,3*($C$6-1)+3) -> 28.07341667 | E148: =VLOOKUP($B148,P_All!$A$5:$AB$204,3*($C$6-1)+4) -> 107.9002917 | F148: =VLOOKUP($B148,NA_All!$A$5:$AB$204,3*($C$6-1)+2) -> 6.252231667 | G148: =VLOOKUP($B148,NA_All!$A$5:$AB$204,3*($C$6-1)+3) -> 27.7217 | H148: =VLOOKUP($B148,NA_All!$A$5:$AB$204,3*($C$6-1)+4) -> 108.4394917 | J148: 110.25 | K148: =VLOOKUP($J148,P_All!$AD$5:$BE$245,3*($C$6-1)+2) -> 18.312 | L148: =VLOOKUP($J148,P_All!$AD$5:$BE$245,3*($C$6-1)+3) -> 83.899 | M148: =VLOOKUP($J148,P_All!$AD$5:$BE$245,3*($C$6-1)+4) -> 239.45 | N148: =VLOOKUP($J148,NA_All!$AD$5:$BE$245,3*($C$6-1)+2) -> 17.568 | O148: =VLOOKUP($J148,NA_All!$AD$5:$BE$245,3*($C$6-1)+3) -> 84.265 | P148: =VLOOKUP($J148,NA_All!$AD$5:$BE$245,3*($C$6-1)+4) -> 241.68
B149: 125 | C149: =VLOOKUP($B149,P_All!$A$5:$AB$204,3*($C$6-1)+2) -> 7.08105 | D149: =VLOOKUP($B149,P_All!$A$5:$AB$204,3*($C$6-1)+3) -> 28.31113333 | E149: =VLOOKUP($B149,P_All!$A$5:$AB$204,3*($C$6-1)+4) -> 113.2200083 | F149: =VLOOKUP($B149,NA_All!$A$5:$AB$204,3*($C$6-1)+2) -> 6.482819167 | G149: =VLOOKUP($B149,NA_All!$A$5:$AB$204,3*($C$6-1)+3) -> 27.91216417 | H149: =VLOOKUP($B149,NA_All!$A$5:$AB$204,3*($C$6-1)+4) -> 113.8428917 | J149: 110.3333333 | K149: =VLOOKUP($J149,P_All!$AD$5:$BE$245,3*($C$6-1)+2) -> 20.146 | L149: =VLOOKUP($J149,P_All!$AD$5:$BE$245,3*($C$6-1)+3) -> 77.134 | M149: =VLOOKUP($J149,P_All!$AD$5:$BE$245,3*($C$6-1)+4) -> 255.6 | N149: =VLOOKUP($J149,NA_All!$AD$5:$BE$245,3*($C$6-1)+2) -> 19.742 | O149: =VLOOKUP($J149,NA_All!$AD$5:$BE$245,3*($C$6-1)+3) -> 77.403 | P149: =VLOOKUP($J149,NA_All!$AD$5:$BE$245,3*($C$6-1)+4) -> 257.76
B150: 126 | C150: =VLOOKUP($B150,P_All!$A$5:$AB$204,3*($C$6-1)+2) -> 6.878191667 | D150: =VLOOKUP($B150,P_All!$A$5:$AB$204,3*($C$6-1)+3) -> 27.21638333 | E150: =VLOOKUP($B150,P_All!$A$5:$AB$204,3*($C$6-1)+4) -> 109.9462917 | F150: =VLOOKUP($B150,NA_All!$A$5:$AB$204,3*($C$6-1)+2) -> 6.245280833 | G150: =VLOOKUP($B150,NA_All!$A$5:$AB$204,3*($C$6-1)+3) -> 26.818375 | H150: =VLOOKUP($B150,NA_All!$A$5:$AB$204,3*($C$6-1)+4) -> 110.5814583 | J150: 110.4166667 | K150: =VLOOKUP($J150,P_All!$AD$5:$BE$245,3*($C$6-1)+2) -> 6.1174 | L150: =VLOOKUP($J150,P_All!$AD$5:$BE$245,3*($C$6-1)+3) -> 35.652 | M150: =VLOOKUP($J150,P_All!$AD$5:$BE$245,3*($C$6-1)+4) -> 96.655 | N150: =VLOOKUP($J150,NA_All!$AD$5:$BE$245,3*($C$6-1)+2) -> 5.5454 | O150: =VLOOKUP($J150,NA_All!$AD$5:$BE$245,3*($C$6-1)+3) -> 35.337 | P150: =VLOOKUP($J150,NA_All!$AD$5:$BE$245,3*($C$6-1)+4) -> 97.125
B151: 127 | C151: =VLOOKUP($B151,P_All!$A$5:$AB$204,3*($C$6-1)+2) -> 6.880575 | D151: =VLOOKUP($B151,P_All!$A$5:$AB$204,3*($C$6-1)+3) -> 28.7292 | E151: =VLOOKUP($B151,P_All!$A$5:$AB$204,3*($C$6-1)+4) -> 109.6110167 | F151: =VLOOKUP($B151,NA_All!$A$5:$AB$204,3*($C$6-1)+2) -> 6.2273975 | G151: =VLOOKUP($B151,NA_All!$A$5:$AB$204,3*($C$6-1)+3) -> 28.33269167 | H151: =VLOOKUP($B151,NA_All!$A$5:$AB$204,3*($C$6-1)+4) -> 110.2415333 | J151: 110.5 | K151: =VLOOKUP($J151,P_All!$AD$5:$BE$245,3*($C$6-1)+2) -> 2.3132 | L151: =VLOOKUP($J151,P_All!$AD$5:$BE$245,3*($C$6-1)+3) -> 19.734 | M151: =VLOOKUP($J151,P_All!$AD$5:$BE$245,3*($C$6-1)+4) -> 209.3 | N151: =VLOOKUP($J151,NA_All!$AD$5:$BE$245,3*($C$6-1)+2) -> 1.6108 | O151: =VLOOKUP($J151,NA_All!$AD$5:$BE$245,3*($C$6-1)+3) -> 19.199 | P151: =VLOOKUP($J151,NA_All!$AD$5:$BE$245,3*($C$6-1)+4) -> 211.14
B152: 128 | C152: =VLOOKUP($B152,P_All!$A$5:$AB$204,3*($C$6-1)+2) -> 7.200908333 | D152: =VLOOKUP($B152,P_All!$A$5:$AB$204,3*($C$6-1)+3) -> 27.94306667 | E152: =VLOOKUP($B152,P_All!$A$5:$AB$204,3*($C$6-1)+4) -> 110.0900333 | F152: =VLOOKUP($B152,NA_All!$A$5:$AB$204,3*($C$6-1)+2) -> 6.539938333 | G152: =VLOOKUP($B152,NA_All!$A$5:$AB$204,3*($C$6-1)+3) -> 27.5961325 | H152: =VLOOKUP($B152,NA_All!$A$5:$AB$204,3*($C$6-1)+4) -> 110.6863167 | J152: 110.5833333 | K152: =VLOOKUP($J152,P_All!$AD$5:$BE$245,3*($C$6-1)+2) -> 5.1142 | L152: =VLOOKUP($J152,P_All!$AD$5:$BE$245,3*($C$6-1)+3) -> 17.956 | M152: =VLOOKUP($J152,P_All!$AD$5:$BE$245,3*($C$6-1)+4) -> 143.95 | N152: =VLOOKUP($J152,NA_All!$AD$5:$BE$245,3*($C$6-1)+2) -> 4.5326 | O152: =VLOOKUP($J152,NA_All!$AD$5:$BE$245,3*($C$6-1)+3) -> 17.528 | P152: =VLOOKUP($J152,NA_All!$AD$5:$BE$245,3*($C$6-1)+4) -> 145.03
B153: 129 | C153: =VLOOKUP($B153,P_All!$A$5:$AB$204,3*($C$6-1)+2) -> 6.814208333 | D153: =VLOOKUP($B153,P_All!$A$5:$AB$204,3*($C$6-1)+3) -> 29.84920833 | E153: =VLOOKUP($B153,P_All!$A$5:$AB$204,3*($C$6-1)+4) -> 111.8966833 | F153: =VLOOKUP($B153,NA_All!$A$5:$AB$204,3*($C$6-1)+2) -> 6.153346667 | G153: =VLOOKUP($B153,NA_All!$A$5:$AB$204,3*($C$6-1)+3) -> 29.5458175 | H153: =VLOOKUP($B153,NA_All!$A$5:$AB$204,3*($C$6-1)+4) -> 112.5596 | J153: 110.6666667 | K153: =VLOOKUP($J153,P_All!$AD$5:$BE$245,3*($C$6-1)+2) -> 3.9509 | L153: =VLOOKUP($J153,P_All!$AD$5:$BE$245,3*($C$6-1)+3) -> 30.492 | M153: =VLOOKUP($J153,P_All!$AD$5:$BE$245,3*($C$6-1)+4) -> 79.895 | N153: =VLOOKUP($J153,NA_All!$AD$5:$BE$245,3*($C$6-1)+2) -> 3.3492 | O153: =VLOOKUP($J153,NA_All!$AD$5:$BE$245,3*($C$6-1)+3) -> 30.167 | P153: =VLOOKUP($J153,NA_All!$AD$5:$BE$245,3*($C$6-1)+4) -> 80.177
B154: 130 | C154: =VLOOKUP($B154,P_All!$A$5:$AB$204,3*($C$6-1)+2) -> 6.645625 | D154: =VLOOKUP($B154,P_All!$A$5:$AB$204,3*($C$6-1)+3) -> 27.503425 | E154: =VLOOKUP($B154,P_All!$A$5:$AB$204,3*($C$6-1)+4) -> 113.071475 | F154: =VLOOKUP($B154,NA_All!$A$5:$AB$204,3*($C$6-1)+2) -> 5.987334167 | G154: =VLOOKUP($B154,NA_All!$A$5:$AB$204,3*($C$6-1)+3) -> 27.1433 | H154: =VLOOKUP($B154,NA_All!$A$5:$AB$204,3*($C$6-1)+4) -> 113.592775 | J154: 110.75 | K154: =VLOOKUP($J154,P_All!$AD$5:$BE$245,3*($C$6-1)+2) -> 9.4755 | L154: =VLOOKUP($J154,P_All!$AD$5:$BE$245,3*($C$6-1)+3) -> 29.619 | M154: =VLOOKUP($J154,P_All!$AD$5:$BE$245,3*($C$6-1)+4) -> 122.69 | N154: =VLOOKUP($J154,NA_All!$AD$5:$BE$245,3*($C$6-1)+2) -> 8.7372 | O154: =VLOOKUP($J154,NA_All!$AD$5:$BE$245,3*($C$6-1)+3) -> 28.818 | P154: =VLOOKUP($J154,NA_All!$AD$5:$BE$245,3*($C$6-1)+4) -> 123.52
B155: 131 | C155: =VLOOKUP($B155,P_All!$A$5:$AB$204,3*($C$6-1)+2) -> 6.889183333 | D155: =VLOOKUP($B155,P_All!$A$5:$AB$204,3*($C$6-1)+3) -> 27.90515833 | E155: =VLOOKUP($B155,P_All!$A$5:$AB$204,3*($C$6-1)+4) -> 114.5725 | F155: =VLOOKUP($B155,NA_All!$A$5:$AB$204,3*($C$6-1)+2) -> 6.214815833 | G155: =VLOOKUP($B155,NA_All!$A$5:$AB$204,3*($C$6-1)+3) -> 27.53713333 | H155: =VLOOKUP($B155,NA_All!$A$5:$AB$204,3*($C$6-1)+4) -> 115.2029 | J155: =J154+1/12 -> 110.8333333 | K155: =VLOOKUP($J155,P_All!$AD$5:$BE$245,3*($C$6-1)+2) -> 7.293 | L155: =VLOOKUP($J155,P_All!$AD$5:$BE$245,3*($C$6-1)+3) -> 18.023 | M155: =VLOOKUP($J155,P_All!$AD$5:$BE$245,3*($C$6-1)+4) -> 54.949 | N155: =VLOOKUP($J155,NA_All!$AD$5:$BE$245,3*($C$6-1)+2) -> 6.4218 | O155: =VLOOKUP($J155,NA_All!$AD$5:$BE$245,3*($C$6-1)+3) -> 17.4 | P155: =VLOOKUP($J155,NA_All!$AD$5:$BE$245,3*($C$6-1)+4) -> 54.64
B156: 132 | C156: =VLOOKUP($B156,P_All!$A$5:$AB$204,3*($C$6-1)+2) -> 7.030675 | D156: =VLOOKUP($B156,P_All!$A$5:$AB$204,3*($C$6-1)+3) -> 27.95069167 | E156: =VLOOKUP($B156,P_All!$A$5:$AB$204,3*($C$6-1)+4) -> 115.1521917 | F156: =VLOOKUP($B156,NA_All!$A$5:$AB$204,3*($C$6-1)+2) -> 6.360470833 | G156: =VLOOKUP($B156,NA_All!$A$5:$AB$204,3*($C$6-1)+3) -> 27.5968925 | H156: =VLOOKUP($B156,NA_All!$A$5:$AB$204,3*($C$6-1)+4) -> 115.7820083 | J156: 110.9166667 | K156: =VLOOKUP($J156,P_All!$AD$5:$BE$245,3*($C$6-1)+2) -> 3.6956 | L156: =VLOOKUP($J156,P_All!$AD$5:$BE$245,3*($C$6-1)+3) -> 7.2312 | M156: =VLOOKUP($J156,P_All!$AD$5:$BE$245,3*($C$6-1)+4) -> 14.566 | N156: =VLOOKUP($J156,NA_All!$AD$5:$BE$245,3*($C$6-1)+2) -> 3.0495 | O156: =VLOOKUP($J156,NA_All!$AD$5:$BE$245,3*($C$6-1)+3) -> 6.5646 | P156: =VLOOKUP($J156,NA_All!$AD$5:$BE$245,3*($C$6-1)+4) -> 14.098
B157: 133 | C157: =VLOOKUP($B157,P_All!$A$5:$AB$204,3*($C$6-1)+2) -> 6.9411 | D157: =VLOOKUP($B157,P_All!$A$5:$AB$204,3*($C$6-1)+3) -> 28.222825 | E157: =VLOOKUP($B157,P_All!$A$5:$AB$204,3*($C$6-1)+4) -> 113.5870083 | F157: =VLOOKUP($B157,NA_All!$A$5:$AB$204,3*($C$6-1)+2) -> 6.2774625 | G157: =VLOOKUP($B157,NA_All!$A$5:$AB$204,3*($C$6-1)+3) -> 27.81216667 | H157: =VLOOKUP($B157,NA_All!$A$5:$AB$204,3*($C$6-1)+4) -> 114.269975 | J157: 111 | K157: =VLOOKUP($J157,P_All!$AD$5:$BE$245,3*($C$6-1)+2) -> 1.6389 | L157: =VLOOKUP($J157,P_All!$AD$5:$BE$245,3*($C$6-1)+3) -> 4.5656 | M157: =VLOOKUP($J157,P_All!$AD$5:$BE$245,3*($C$6-1)+4) -> 7.8979 | N157: =VLOOKUP($J157,NA_All!$AD$5:$BE$245,3*($C$6-1)+2) -> 1.013 | O157: =VLOOKUP($J157,NA_All!$AD$5:$BE$245,3*($C$6-1)+3) -> 3.9763 | P157: =VLOOKUP($J157,NA_All!$AD$5:$BE$245,3*($C$6-1)+4) -> 7.3414
B158: 134 | C158: =VLOOKUP($B158,P_All!$A$5:$AB$204,3*($C$6-1)+2) -> 6.960316667 | D158: =VLOOKUP($B158,P_All!$A$5:$AB$204,3*($C$6-1)+3) -> 27.05414167 | E158: =VLOOKUP($B158,P_All!$A$5:$AB$204,3*($C$6-1)+4) -> 111.7147417 | F158: =VLOOKUP($B158,NA_All!$A$5:$AB$204,3*($C$6-1)+2) -> 6.310815833 | G158: =VLOOKUP($B158,NA_All!$A$5:$AB$204,3*($C$6-1)+3) -> 26.71329417 | H158: =VLOOKUP($B158,NA_All!$A$5:$AB$204,3*($C$6-1)+4) -> 112.3333167 | J158: 111.0833333 | K158: =VLOOKUP($J158,P_All!$AD$5:$BE$245,3*($C$6-1)+2) -> 1.1942 | L158: =VLOOKUP($J158,P_All!$AD$5:$BE$245,3*($C$6-1)+3) -> 1.5874 | M158: =VLOOKUP($J158,P_All!$AD$5:$BE$245,3*($C$6-1)+4) -> 8.441 | N158: =VLOOKUP($J158,NA_All!$AD$5:$BE$245,3*($C$6-1)+2) -> 0.56756 | O158: =VLOOKUP($J158,NA_All!$AD$5:$BE$245,3*($C$6-1)+3) -> 0.95275 | P158: =VLOOKUP($J158,NA_All!$AD$5:$BE$245,3*($C$6-1)+4) -> 7.8993
B159: 135 | C159: =VLOOKUP($B159,P_All!$A$5:$AB$204,3*($C$6-1)+2) -> 6.72145 | D159: =VLOOKUP($B159,P_All!$A$5:$AB$204,3*($C$6-1)+3) -> 28.00829167 | E159: =VLOOKUP($B159,P_All!$A$5:$AB$204,3*($C$6-1)+4) -> 108.2836417 | F159: =VLOOKUP($B159,NA_All!$A$5:$AB$204,3*($C$6-1)+2) -> 6.037561667 | G159: =VLOOKUP($B159,NA_All!$A$5:$AB$204,3*($C$6-1)+3) -> 27.642085 | H159: =VLOOKUP($B159,NA_All!$A$5:$AB$204,3*($C$6-1)+4) -> 108.888 | J159: 111.1666667 | K159: =VLOOKUP($J159,P_All!$AD$5:$BE$245,3*($C$6-1)+2) -> 1.2052 | L159: =VLOOKUP($J159,P_All!$AD$5:$BE$245,3*($C$6-1)+3) -> 3.9009 | M159: =VLOOKUP($J159,P_All!$AD$5:$BE$245,3*($C$6-1)+4) -> 48.191 | N159: =VLOOKUP($J159,NA_All!$AD$5:$BE$245,3*($C$6-1)+2) -> 0.5792 | O159: =VLOOKUP($J159,NA_All!$AD$5:$BE$245,3*($C$6-1)+3) -> 3.2613 | P159: =VLOOKUP($J159,NA_All!$AD$5:$BE$245,3*($C$6-1)+4) -> 48.131
B160: 136 | C160: =VLOOKUP($B160,P_All!$A$5:$AB$204,3*($C$6-1)+2) -> 6.685691667 | D160: =VLOOKUP($B160,P_All!$A$5:$AB$204,3*($C$6-1)+3) -> 27.97469167 | E160: =VLOOKUP($B160,P_All!$A$5:$AB$204,3*($C$6-1)+4) -> 114.27005 | F160: =VLOOKUP($B160,NA_All!$A$5:$AB$204,3*($C$6-1)+2) -> 6.0508525 | G160: =VLOOKUP($B160,NA_All!$A$5:$AB$204,3*($C$6-1)+3) -> 27.61370667 | H160: =VLOOKUP($B160,NA_All!$A$5:$AB$204,3*($C$6-1)+4) -> 114.9275083 | J160: 111.25 | K160: =VLOOKUP($J160,P_All!$AD$5:$BE$245,3*($C$6-1)+2) -> 14.456 | L160: =VLOOKUP($J160,P_All!$AD$5:$BE$245,3*($C$6-1)+3) -> 76.47 | M160: =VLOOKUP($J160,P_All!$AD$5:$BE$245,3*($C$6-1)+4) -> 233.68 | N160: =VLOOKUP($J160,NA_All!$AD$5:$BE$245,3*($C$6-1)+2) -> 13.987 | O160: =VLOOKUP($J160,NA_All!$AD$5:$BE$245,3*($C$6-1)+3) -> 76.746 | P160: =VLOOKUP($J160,NA_All!$AD$5:$BE$245,3*($C$6-1)+4) -> 235.84
B161: 137 | C161: =VLOOKUP($B161,P_All!$A$5:$AB$204,3*($C$6-1)+2) -> 6.742408333 | D161: =VLOOKUP($B161,P_All!$A$5:$AB$204,3*($C$6-1)+3) -> 27.33955 | E161: =VLOOKUP($B161,P_All!$A$5:$AB$204,3*($C$6-1)+4) -> 119.3407833 | F161: =VLOOKUP($B161,NA_All!$A$5:$AB$204,3*($C$6-1)+2) -> 6.150385 | G161: =VLOOKUP($B161,NA_All!$A$5:$AB$204,3*($C$6-1)+3) -> 26.96825833 | H161: =VLOOKUP($B161,NA_All!$A$5:$AB$204,3*($C$6-1)+4) -> 120.1253333 | J161: 111.3333333 | K161: =VLOOKUP($J161,P_All!$AD$5:$BE$245,3*($C$6-1)+2) -> 17.563 | L161: =VLOOKUP($J161,P_All!$AD$5:$BE$245,3*($C$6-1)+3) -> 74.114 | M161: =VLOOKUP($J161,P_All!$AD$5:$BE$245,3*($C$6-1)+4) -> 262.31 | N161: =VLOOKUP($J161,NA_All!$AD$5:$BE$245,3*($C$6-1)+2) -> 16.789 | O161: =VLOOKUP($J161,NA_All!$AD$5:$BE$245,3*($C$6-1)+3) -> 74.347 | P161: =VLOOKUP($J161,NA_All!$AD$5:$BE$245,3*($C$6-1)+4) -> 264.77
B162: 138 | C162: =VLOOKUP($B162,P_All!$A$5:$AB$204,3*($C$6-1)+2) -> 6.99955 | D162: =VLOOKUP($B162,P_All!$A$5:$AB$204,3*($C$6-1)+3) -> 29.0004 | E162: =VLOOKUP($B162,P_All!$A$5:$AB$204,3*($C$6-1)+4) -> 107.5573167 | F162: =VLOOKUP($B162,NA_All!$A$5:$AB$204,3*($C$6-1)+2) -> 6.314031667 | G162: =VLOOKUP($B162,NA_All!$A$5:$AB$204,3*($C$6-1)+3) -> 28.6494 | H162: =VLOOKUP($B162,NA_All!$A$5:$AB$204,3*($C$6-1)+4) -> 108.1211417 | J162: 111.4166667 | K162: =VLOOKUP($J162,P_All!$AD$5:$BE$245,3*($C$6-1)+2) -> 6.5852 | L162: =VLOOKUP($J162,P_All!$AD$5:$BE$245,3*($C$6-1)+3) -> 36.971 | M162: =VLOOKUP($J162,P_All!$AD$5:$BE$245,3*($C$6-1)+4) -> 95.232 | N162: =VLOOKUP($J162,NA_All!$AD$5:$BE$245,3*($C$6-1)+2) -> 6.0187 | O162: =VLOOKUP($J162,NA_All!$AD$5:$BE$245,3*($C$6-1)+3) -> 36.539 | P162: =VLOOKUP($J162,NA_All!$AD$5:$BE$245,3*($C$6-1)+4) -> 95.493
B163: 139 | C163: =VLOOKUP($B163,P_All!$A$5:$AB$204,3*($C$6-1)+2) -> 6.941825 | D163: =VLOOKUP($B163,P_All!$A$5:$AB$204,3*($C$6-1)+3) -> 29.11003333 | E163: =VLOOKUP($B163,P_All!$A$5:$AB$204,3*($C$6-1)+4) -> 117.4750083 | F163: =VLOOKUP($B163,NA_All!$A$5:$AB$204,3*($C$6-1)+2) -> 6.318069167 | G163: =VLOOKUP($B163,NA_All!$A$5:$AB$204,3*($C$6-1)+3) -> 28.75481667 | H163: =VLOOKUP($B163,NA_All!$A$5:$AB$204,3*($C$6-1)+4) -> 118.1800917 | J163: 111.5 | K163: =VLOOKUP($J163,P_All!$AD$5:$BE$245,3*($C$6-1)+2) -> 2.7498 | L163: =VLOOKUP($J163,P_All!$AD$5:$BE$245,3*($C$6-1)+3) -> 21.093 | M163: =VLOOKUP($J163,P_All!$AD$5:$BE$245,3*($C$6-1)+4) -> 205.86 | N163: =VLOOKUP($J163,NA_All!$AD$5:$BE$245,3*($C$6-1)+2) -> 2.1183 | O163: =VLOOKUP($J163,NA_All!$AD$5:$BE$245,3*($C$6-1)+3) -> 20.559 | P163: =VLOOKUP($J163,NA_All!$AD$5:$BE$245,3*($C$6-1)+4) -> 207.66
B164: 140 | C164: =VLOOKUP($B164,P_All!$A$5:$AB$204,3*($C$6-1)+2) -> 6.883808333 | D164: =VLOOKUP($B164,P_All!$A$5:$AB$204,3*($C$6-1)+3) -> 28.500675 | E164: =VLOOKUP($B164,P_All!$A$5:$AB$204,3*($C$6-1)+4) -> 108.469275 | F164: =VLOOKUP($B164,NA_All!$A$5:$AB$204,3*($C$6-1)+2) -> 6.281610833 | G164: =VLOOKUP($B164,NA_All!$A$5:$AB$204,3*($C$6-1)+3) -> 28.048075 | H164: =VLOOKUP($B164,NA_All!$A$5:$AB$204,3*($C$6-1)+4) -> 109.0440417 | J164: 111.5833333 | K164: =VLOOKUP($J164,P_All!$AD$5:$BE$245,3*($C$6-1)+2) -> 6.1215 | L164: =VLOOKUP($J164,P_All!$AD$5:$BE$245,3*($C$6-1)+3) -> 17.538 | M164: =VLOOKUP($J164,P_All!$AD$5:$BE$245,3*($C$6-1)+4) -> 150.2 | N164: =VLOOKUP($J164,NA_All!$AD$5:$BE$245,3*($C$6-1)+2) -> 5.5187 | O164: =VLOOKUP($J164,NA_All!$AD$5:$BE$245,3*($C$6-1)+3) -> 17.154 | P164: =VLOOKUP($J164,NA_All!$AD$5:$BE$245,3*($C$6-1)+4) -> 151.34
B165: 141 | C165: =VLOOKUP($B165,P_All!$A$5:$AB$204,3*($C$6-1)+2) -> 6.774866667 | D165: =VLOOKUP($B165,P_All!$A$5:$AB$204,3*($C$6-1)+3) -> 27.91843333 | E165: =VLOOKUP($B165,P_All!$A$5:$AB$204,3*($C$6-1)+4) -> 114.51745 | F165: =VLOOKUP($B165,NA_All!$A$5:$AB$204,3*($C$6-1)+2) -> 6.1747025 | G165: =VLOOKUP($B165,NA_All!$A$5:$AB$204,3*($C$6-1)+3) -> 27.55834167 | H165: =VLOOKUP($B165,NA_All!$A$5:$AB$204,3*($C$6-1)+4) -> 115.2196667 | J165: 111.6666667 | K165: =VLOOKUP($J165,P_All!$AD$5:$BE$245,3*($C$6-1)+2) -> 4.6112 | L165: =VLOOKUP($J165,P_All!$AD$5:$BE$245,3*($C$6-1)+3) -> 29.79 | M165: =VLOOKUP($J165,P_All!$AD$5:$BE$245,3*($C$6-1)+4) -> 87.884 | N165: =VLOOKUP($J165,NA_All!$AD$5:$BE$245,3*($C$6-1)+2) -> 3.8208 | O165: =VLOOKUP($J165,NA_All!$AD$5:$BE$245,3*($C$6-1)+3) -> 29.492 | P165: =VLOOKUP($J165,NA_All!$AD$5:$BE$245,3*($C$6-1)+4) -> 88.258
B166: 142 | C166: =VLOOKUP($B166,P_All!$A$5:$AB$204,3*($C$6-1)+2) -> 6.819183333 | D166: =VLOOKUP($B166,P_All!$A$5:$AB$204,3*($C$6-1)+3) -> 27.21125833 | E166: =VLOOKUP($B166,P_All!$A$5:$AB$204,3*($C$6-1)+4) -> 109.743775 | F166: =VLOOKUP($B166,NA_All!$A$5:$AB$204,3*($C$6-1)+2) -> 6.1839775 | G166: =VLOOKUP($B166,NA_All!$A$5:$AB$204,3*($C$6-1)+3) -> 26.85097583 | H166: =VLOOKUP($B166,NA_All!$A$5:$AB$204,3*($C$6-1)+4) -> 110.3085583 | J166: 111.75 | K166: =VLOOKUP($J166,P_All!$AD$5:$BE$245,3*($C$6-1)+2) -> 8.8906 | L166: =VLOOKUP($J166,P_All!$AD$5:$BE$245,3*($C$6-1)+3) -> 29.993 | M166: =VLOOKUP($J166,P_All!$AD$5:$BE$245,3*($C$6-1)+4) -> 133.48 | N166: =VLOOKUP($J166,NA_All!$AD$5:$BE$245,3*($C$6-1)+2) -> 8.3546 | O166: =VLOOKUP($J166,NA_All!$AD$5:$BE$245,3*($C$6-1)+3) -> 29.706 | P166: =VLOOKUP($J166,NA_All!$AD$5:$BE$245,3*($C$6-1)+4) -> 134.44
B167: 143 | C167: =VLOOKUP($B167,P_All!$A$5:$AB$204,3*($C$6-1)+2) -> 6.988975 | D167: =VLOOKUP($B167,P_All!$A$5:$AB$204,3*($C$6-1)+3) -> 27.90019167 | E167: =VLOOKUP($B167,P_All!$A$5:$AB$204,3*($C$6-1)+4) -> 110.3728333 | F167: =VLOOKUP($B167,NA_All!$A$5:$AB$204,3*($C$6-1)+2) -> 6.3651725 | G167: =VLOOKUP($B167,NA_All!$A$5:$AB$204,3*($C$6-1)+3) -> 27.55001667 | H167: =VLOOKUP($B167,NA_All!$A$5:$AB$204,3*($C$6-1)+4) -> 111.02685 | J167: 111.8333333 | K167: =VLOOKUP($J167,P_All!$AD$5:$BE$245,3*($C$6-1)+2) -> 7.5142 | L167: =VLOOKUP($J167,P_All!$AD$5:$BE$245,3*($C$6-1)+3) -> 18.17 | M167: =VLOOKUP($J167,P_All!$AD$5:$BE$245,3*($C$6-1)+4) -> 57.701 | N167: =VLOOKUP($J167,NA_All!$AD$5:$BE$245,3*($C$6-1)+2) -> 6.4764 | O167: =VLOOKUP($J167,NA_All!$AD$5:$BE$245,3*($C$6-1)+3) -> 17.449 | P167: =VLOOKUP($J167,NA_All!$AD$5:$BE$245,3*($C$6-1)+4) -> 57.733
B168: 144 | C168: =VLOOKUP($B168,P_All!$A$5:$AB$204,3*($C$6-1)+2) -> 6.714158333 | D168: =VLOOKUP($B168,P_All!$A$5:$AB$204,3*($C$6-1)+3) -> 27.51425833 | E168: =VLOOKUP($B168,P_All!$A$5:$AB$204,3*($C$6-1)+4) -> 112.2974167 | F168: =VLOOKUP($B168,NA_All!$A$5:$AB$204,3*($C$6-1)+2) -> 6.085218333 | G168: =VLOOKUP($B168,NA_All!$A$5:$AB$204,3*($C$6-1)+3) -> 27.12755833 | H168: =VLOOKUP($B168,NA_All!$A$5:$AB$204,3*($C$6-1)+4) -> 112.9603667 | J168: 111.9166667 | K168: =VLOOKUP($J168,P_All!$AD$5:$BE$245,3*($C$6-1)+2) -> 3.7879 | L168: =VLOOKUP($J168,P_All!$AD$5:$BE$245,3*($C$6-1)+3) -> 7.2326 | M168: =VLOOKUP($J168,P_All!$AD$5:$BE$245,3*($C$6-1)+4) -> 15.536 | N168: =VLOOKUP($J168,NA_All!$AD$5:$BE$245,3*($C$6-1)+2) -> 3.1222 | O168: =VLOOKUP($J168,NA_All!$AD$5:$BE$245,3*($C$6-1)+3) -> 6.6263 | P168: =VLOOKUP($J168,NA_All!$AD$5:$BE$245,3*($C$6-1)+4) -> 14.802
B169: 145 | C169: =VLOOKUP($B169,P_All!$A$5:$AB$204,3*($C$6-1)+2) -> 7.20055 | D169: =VLOOKUP($B169,P_All!$A$5:$AB$204,3*($C$6-1)+3) -> 30.31105833 | E169: =VLOOKUP($B169,P_All!$A$5:$AB$204,3*($C$6-1)+4) -> 117.02155 | F169: =VLOOKUP($B169,NA_All!$A$5:$AB$204,3*($C$6-1)+2) -> 6.555203333 | G169: =VLOOKUP($B169,NA_All!$A$5:$AB$204,3*($C$6-1)+3) -> 29.93333333 | H169: =VLOOKUP($B169,NA_All!$A$5:$AB$204,3*($C$6-1)+4) -> 117.6998833 | J169: 112 | K169: =VLOOKUP($J169,P_All!$AD$5:$BE$245,3*($C$6-1)+2) -> 1.6168 | L169: =VLOOKUP($J169,P_All!$AD$5:$BE$245,3*($C$6-1)+3) -> 4.1962 | M169: =VLOOKUP($J169,P_All!$AD$5:$BE$245,3*($C$6-1)+4) -> 7.8147 | N169: =VLOOKUP($J169,NA_All!$AD$5:$BE$245,3*($C$6-1)+2) -> 0.98879 | O169: =VLOOKUP($J169,NA_All!$AD$5:$BE$245,3*($C$6-1)+3) -> 3.6027 | P169: =VLOOKUP($J169,NA_All!$AD$5:$BE$245,3*($C$6-1)+4) -> 7.2633
B170: 146 | C170: =VLOOKUP($B170,P_All!$A$5:$AB$204,3*($C$6-1)+2) -> 7.385083333 | D170: =VLOOKUP($B170,P_All!$A$5:$AB$204,3*($C$6-1)+3) -> 27.293025 | E170: =VLOOKUP($B170,P_All!$A$5:$AB$204,3*($C$6-1)+4) -> 108.2011333 | F170: =VLOOKUP($B170,NA_All!$A$5:$AB$204,3*($C$6-1)+2) -> 6.748626667 | G170: =VLOOKUP($B170,NA_All!$A$5:$AB$204,3*($C$6-1)+3) -> 26.90025167 | H170: =VLOOKUP($B170,NA_All!$A$5:$AB$204,3*($C$6-1)+4) -> 108.798575 | J170: 112.0833333 | K170: =VLOOKUP($J170,P_All!$AD$5:$BE$245,3*($C$6-1)+2) -> 1.1873 | L170: =VLOOKUP($J170,P_All!$AD$5:$BE$245,3*($C$6-1)+3) -> 1.6247 | M170: =VLOOKUP($J170,P_All!$AD$5:$BE$245,3*($C$6-1)+4) -> 7.2345 | N170: =VLOOKUP($J170,NA_All!$AD$5:$BE$245,3*($C$6-1)+2) -> 0.56453 | O170: =VLOOKUP($J170,NA_All!$AD$5:$BE$245,3*($C$6-1)+3) -> 0.96713 | P170: =VLOOKUP($J170,NA_All!$AD$5:$BE$245,3*($C$6-1)+4) -> 6.694
B171: 147 | C171: =VLOOKUP($B171,P_All!$A$5:$AB$204,3*($C$6-1)+2) -> 6.869225 | D171: =VLOOKUP($B171,P_All!$A$5:$AB$204,3*($C$6-1)+3) -> 28.38183333 | E171: =VLOOKUP($B171,P_All!$A$5:$AB$204,3*($C$6-1)+4) -> 111.5006417 | F171: =VLOOKUP($B171,NA_All!$A$5:$AB$204,3*($C$6-1)+2) -> 6.199996667 | G171: =VLOOKUP($B171,NA_All!$A$5:$AB$204,3*($C$6-1)+3) -> 28.03610833 | H171: =VLOOKUP($B171,NA_All!$A$5:$AB$204,3*($C$6-1)+4) -> 112.126925 | J171: 112.1666667 | K171: =VLOOKUP($J171,P_All!$AD$5:$BE$245,3*($C$6-1)+2) -> 1.2368 | L171: =VLOOKUP($J171,P_All!$AD$5:$BE$245,3*($C$6-1)+3) -> 5.7052 | M171: =VLOOKUP($J171,P_All!$AD$5:$BE$245,3*($C$6-1)+4) -> 56.874 | N171: =VLOOKUP($J171,NA_All!$AD$5:$BE$245,3*($C$6-1)+2) -> 0.60649 | O171: =VLOOKUP($J171,NA_All!$AD$5:$BE$245,3*($C$6-1)+3) -> 5.1315 | P171: =VLOOKUP($J171,NA_All!$AD$5:$BE$245,3*($C$6-1)+4) -> 56.919
B172: 148 | C172: =VLOOKUP($B172,P_All!$A$5:$AB$204,3*($C$6-1)+2) -> 7.145408333 | D172: =VLOOKUP($B172,P_All!$A$5:$AB$204,3*($C$6-1)+3) -> 27.39813333 | E172: =VLOOKUP($B172,P_All!$A$5:$AB$204,3*($C$6-1)+4) -> 112.7143833 | F172: =VLOOKUP($B172,NA_All!$A$5:$AB$204,3*($C$6-1)+2) -> 6.511843333 | G172: =VLOOKUP($B172,NA_All!$A$5:$AB$204,3*($C$6-1)+3) -> 27.0142525 | H172: =VLOOKUP($B172,NA_All!$A$5:$AB$204,3*($C$6-1)+4) -> 113.291225 | J172: 112.25 | K172: =VLOOKUP($J172,P_All!$AD$5:$BE$245,3*($C$6-1)+2) -> 15.183 | L172: =VLOOKUP($J172,P_All!$AD$5:$BE$245,3*($C$6-1)+3) -> 80.365 | M172: =VLOOKUP($J172,P_All!$AD$5:$BE$245,3*($C$6-1)+4) -> 234.58 | N172: =VLOOKUP($J172,NA_All!$AD$5:$BE$245,3*($C$6-1)+2) -> 14.723 | O172: =VLOOKUP($J172,NA_All!$AD$5:$BE$245,3*($C$6-1)+3) -> 80.792 | P172: =VLOOKUP($J172,NA_All!$AD$5:$BE$245,3*($C$6-1)+4) -> 236.75
B173: 149 | C173: =VLOOKUP($B173,P_All!$A$5:$AB$204,3*($C$6-1)+2) -> 6.784966667 | D173: =VLOOKUP($B173,P_All!$A$5:$AB$204,3*($C$6-1)+3) -> 27.39953333 | E173: =VLOOKUP($B173,P_All!$A$5:$AB$204,3*($C$6-1)+4) -> 110.0693333 | F173: =VLOOKUP($B173,NA_All!$A$5:$AB$204,3*($C$6-1)+2) -> 6.182303333 | G173: =VLOOKUP($B173,NA_All!$A$5:$AB$204,3*($C$6-1)+3) -> 27.02483333 | H173: =VLOOKUP($B173,NA_All!$A$5:$AB$204,3*($C$6-1)+4) -> 110.7472583 | J173: 112.3333333 | K173: =VLOOKUP($J173,P_All!$AD$5:$BE$245,3*($C$6-1)+2) -> 19.166 | L173: =VLOOKUP($J173,P_All!$AD$5:$BE$245,3*($C$6-1)+3) -> 79.266 | M173: =VLOOKUP($J173,P_All!$AD$5:$BE$245,3*($C$6-1)+4) -> 285.87 | N173: =VLOOKUP($J173,NA_All!$AD$5:$BE$245,3*($C$6-1)+2) -> 18.107 | O173: =VLOOKUP($J173,NA_All!$AD$5:$BE$245,3*($C$6-1)+3) -> 79.239 | P173: =VLOOKUP($J173,NA_All!$AD$5:$BE$245,3*($C$6-1)+4) -> 288.45
B174: 150 | C174: =VLOOKUP($B174,P_All!$A$5:$AB$204,3*($C$6-1)+2) -> 7.235308333 | D174: =VLOOKUP($B174,P_All!$A$5:$AB$204,3*($C$6-1)+3) -> 29.571375 | E174: =VLOOKUP($B174,P_All!$A$5:$AB$204,3*($C$6-1)+4) -> 116.3927833 | F174: =VLOOKUP($B174,NA_All!$A$5:$AB$204,3*($C$6-1)+2) -> 6.59981 | G174: =VLOOKUP($B174,NA_All!$A$5:$AB$204,3*($C$6-1)+3) -> 29.22655 | H174: =VLOOKUP($B174,NA_All!$A$5:$AB$204,3*($C$6-1)+4) -> 117.1010917 | J174: 112.4166667 | K174: =VLOOKUP($J174,P_All!$AD$5:$BE$245,3*($C$6-1)+2) -> 6.6929 | L174: =VLOOKUP($J174,P_All!$AD$5:$BE$245,3*($C$6-1)+3) -> 39.904 | M174: =VLOOKUP($J174,P_All!$AD$5:$BE$245,3*($C$6-1)+4) -> 96.641 | N174: =VLOOKUP($J174,NA_All!$AD$5:$BE$245,3*($C$6-1)+2) -> 5.911 | O174: =VLOOKUP($J174,NA_All!$AD$5:$BE$245,3*($C$6-1)+3) -> 39.545 | P174: =VLOOKUP($J174,NA_All!$AD$5:$BE$245,3*($C$6-1)+4) -> 96.834
B175: 151 | C175: =VLOOKUP($B175,P_All!$A$5:$AB$204,3*($C$6-1)+2) -> 7.046075 | D175: =VLOOKUP($B175,P_All!$A$5:$AB$204,3*($C$6-1)+3) -> 28.33214167 | E175: =VLOOKUP($B175,P_All!$A$5:$AB$204,3*($C$6-1)+4) -> 116.8244333 | F175: =VLOOKUP($B175,NA_All!$A$5:$AB$204,3*($C$6-1)+2) -> 6.401774167 | G175: =VLOOKUP($B175,NA_All!$A$5:$AB$204,3*($C$6-1)+3) -> 27.97096667 | H175: =VLOOKUP($B175,NA_All!$A$5:$AB$204,3*($C$6-1)+4) -> 117.501675 | J175: 112.5 | K175: =VLOOKUP($J175,P_All!$AD$5:$BE$245,3*($C$6-1)+2) -> 2.79 | L175: =VLOOKUP($J175,P_All!$AD$5:$BE$245,3*($C$6-1)+3) -> 19.906 | M175: =VLOOKUP($J175,P_All!$AD$5:$BE$245,3*($C$6-1)+4) -> 243.91 | N175: =VLOOKUP($J175,NA_All!$AD$5:$BE$245,3*($C$6-1)+2) -> 2.0708 | O175: =VLOOKUP($J175,NA_All!$AD$5:$BE$245,3*($C$6-1)+3) -> 19.495 | P175: =VLOOKUP($J175,NA_All!$AD$5:$BE$245,3*($C$6-1)+4) -> 246.17
B176: 152 | C176: =VLOOKUP($B176,P_All!$A$5:$AB$204,3*($C$6-1)+2) -> 7.131366667 | D176: =VLOOKUP($B176,P_All!$A$5:$AB$204,3*($C$6-1)+3) -> 29.839075 | E176: =VLOOKUP($B176,P_All!$A$5:$AB$204,3*($C$6-1)+4) -> 114.0242583 | F176: =VLOOKUP($B176,NA_All!$A$5:$AB$204,3*($C$6-1)+2) -> 6.555805 | G176: =VLOOKUP($B176,NA_All!$A$5:$AB$204,3*($C$6-1)+3) -> 29.49320333 | H176: =VLOOKUP($B176,NA_All!$A$5:$AB$204,3*($C$6-1)+4) -> 114.7072167 | J176: 112.5833333 | K176: =VLOOKUP($J176,P_All!$AD$5:$BE$245,3*($C$6-1)+2) -> 5.3898 | L176: =VLOOKUP($J176,P_All!$AD$5:$BE$245,3*($C$6-1)+3) -> 17.57 | M176: =VLOOKUP($J176,P_All!$AD$5:$BE$245,3*($C$6-1)+4) -> 127.73 | N176: =VLOOKUP($J176,NA_All!$AD$5:$BE$245,3*($C$6-1)+2) -> 4.8116 | O176: =VLOOKUP($J176,NA_All!$AD$5:$BE$245,3*($C$6-1)+3) -> 17.092 | P176: =VLOOKUP($J176,NA_All!$AD$5:$BE$245,3*($C$6-1)+4) -> 128.77
B177: 153 | C177: =VLOOKUP($B177,P_All!$A$5:$AB$204,3*($C$6-1)+2) -> 6.975833333 | D177: =VLOOKUP($B177,P_All!$A$5:$AB$204,3*($C$6-1)+3) -> 29.33539167 | E177: =VLOOKUP($B177,P_All!$A$5:$AB$204,3*($C$6-1)+4) -> 114.7025333 | F177: =VLOOKUP($B177,NA_All!$A$5:$AB$204,3*($C$6-1)+2) -> 6.342086667 | G177: =VLOOKUP($B177,NA_All!$A$5:$AB$204,3*($C$6-1)+3) -> 28.92653417 | H177: =VLOOKUP($B177,NA_All!$A$5:$AB$204,3*($C$6-1)+4) -> 115.3612167 | J177: 112.6666667 | K177: =VLOOKUP($J177,P_All!$AD$5:$BE$245,3*($C$6-1)+2) -> 4.8185 | L177: =VLOOKUP($J177,P_All!$AD$5:$BE$245,3*($C$6-1)+3) -> 30.874 | M177: =VLOOKUP($J177,P_All!$AD$5:$BE$245,3*($C$6-1)+4) -> 78.906 | N177: =VLOOKUP($J177,NA_All!$AD$5:$BE$245,3*($C$6-1)+2) -> 4.2319 | O177: =VLOOKUP($J177,NA_All!$AD$5:$BE$245,3*($C$6-1)+3) -> 30.449 | P177: =VLOOKUP($J177,NA_All!$AD$5:$BE$245,3*($C$6-1)+4) -> 79.176
B178: 154 | C178: =VLOOKUP($B178,P_All!$A$5:$AB$204,3*($C$6-1)+2) -> 6.74015 | D178: =VLOOKUP($B178,P_All!$A$5:$AB$204,3*($C$6-1)+3) -> 27.33425 | E178: =VLOOKUP($B178,P_All!$A$5:$AB$204,3*($C$6-1)+4) -> 113.1732917 | F178: =VLOOKUP($B178,NA_All!$A$5:$AB$204,3*($C$6-1)+2) -> 6.090303333 | G178: =VLOOKUP($B178,NA_All!$A$5:$AB$204,3*($C$6-1)+3) -> 26.94089167 | H178: =VLOOKUP($B178,NA_All!$A$5:$AB$204,3*($C$6-1)+4) -> 113.8189667 | J178: 112.75 | K178: =VLOOKUP($J178,P_All!$AD$5:$BE$245,3*($C$6-1)+2) -> 9.2046 | L178: =VLOOKUP($J178,P_All!$AD$5:$BE$245,3*($C$6-1)+3) -> 29.902 | M178: =VLOOKUP($J178,P_All!$AD$5:$BE$245,3*($C$6-1)+4) -> 124.08 | N178: =VLOOKUP($J178,NA_All!$AD$5:$BE$245,3*($C$6-1)+2) -> 8.3627 | O178: =VLOOKUP($J178,NA_All!$AD$5:$BE$245,3*($C$6-1)+3) -> 29.501 | P178: =VLOOKUP($J178,NA_All!$AD$5:$BE$245,3*($C$6-1)+4) -> 124.93
B179: 155 | C179: =VLOOKUP($B179,P_All!$A$5:$AB$204,3*($C$6-1)+2) -> 7.041141667 | D179: =VLOOKUP($B179,P_All!$A$5:$AB$204,3*($C$6-1)+3) -> 27.85420833 | E179: =VLOOKUP($B179,P_All!$A$5:$AB$204,3*($C$6-1)+4) -> 109.154175 | F179: =VLOOKUP($B179,NA_All!$A$5:$AB$204,3*($C$6-1)+2) -> 6.3814375 | G179: =VLOOKUP($B179,NA_All!$A$5:$AB$204,3*($C$6-1)+3) -> 27.45485833 | H179: =VLOOKUP($B179,NA_All!$A$5:$AB$204,3*($C$6-1)+4) -> 109.7918333 | J179: 112.8333333 | K179: =VLOOKUP($J179,P_All!$AD$5:$BE$245,3*($C$6-1)+2) -> 7.26 | L179: =VLOOKUP($J179,P_All!$AD$5:$BE$245,3*($C$6-1)+3) -> 17.898 | M179: =VLOOKUP($J179,P_All!$AD$5:$BE$245,3*($C$6-1)+4) -> 55.983 | N179: =VLOOKUP($J179,NA_All!$AD$5:$BE$245,3*($C$6-1)+2) -> 6.4362 | O179: =VLOOKUP($J179,NA_All!$AD$5:$BE$245,3*($C$6-1)+3) -> 17.293 | P179: =VLOOKUP($J179,NA_All!$AD$5:$BE$245,3*($C$6-1)+4) -> 55.818
B180: 156 | C180: =VLOOKUP($B180,P_All!$A$5:$AB$204,3*($C$6-1)+2) -> 7.0964 | D180: =VLOOKUP($B180,P_All!$A$5:$AB$204,3*($C$6-1)+3) -> 29.15189167 | E180: =VLOOKUP($B180,P_All!$A$5:$AB$204,3*($C$6-1)+4) -> 111.9450417 | F180: =VLOOKUP($B180,NA_All!$A$5:$AB$204,3*($C$6-1)+2) -> 6.474105 | G180: =VLOOKUP($B180,NA_All!$A$5:$AB$204,3*($C$6-1)+3) -> 28.75858333 | H180: =VLOOKUP($B180,NA_All!$A$5:$AB$204,3*($C$6-1)+4) -> 112.5825583 | J180: 112.9166667 | K180: =VLOOKUP($J180,P_All!$AD$5:$BE$245,3*($C$6-1)+2) -> 3.7547 | L180: =VLOOKUP($J180,P_All!$AD$5:$BE$245,3*($C$6-1)+3) -> 6.9628 | M180: =VLOOKUP($J180,P_All!$AD$5:$BE$245,3*($C$6-1)+4) -> 14.78 | N180: =VLOOKUP($J180,NA_All!$AD$5:$BE$245,3*($C$6-1)+2) -> 3.1404 | O180: =VLOOKUP($J180,NA_All!$AD$5:$BE$245,3*($C$6-1)+3) -> 6.3624 | P180: =VLOOKUP($J180,NA_All!$AD$5:$BE$245,3*($C$6-1)+4) -> 14.315
B181: 157 | C181: =VLOOKUP($B181,P_All!$A$5:$AB$204,3*($C$6-1)+2) -> 7.051208333 | D181: =VLOOKUP($B181,P_All!$A$5:$AB$204,3*($C$6-1)+3) -> 29.45685833 | E181: =VLOOKUP($B181,P_All!$A$5:$AB$204,3*($C$6-1)+4) -> 114.2583917 | F181: =VLOOKUP($B181,NA_All!$A$5:$AB$204,3*($C$6-1)+2) -> 6.390430833 | G181: =VLOOKUP($B181,NA_All!$A$5:$AB$204,3*($C$6-1)+3) -> 29.08308333 | H181: =VLOOKUP($B181,NA_All!$A$5:$AB$204,3*($C$6-1)+4) -> 114.9384833 | J181: 113 | K181: =VLOOKUP($J181,P_All!$AD$5:$BE$245,3*($C$6-1)+2) -> 1.6043 | L181: =VLOOKUP($J181,P_All!$AD$5:$BE$245,3*($C$6-1)+3) -> 4.4898 | M181: =VLOOKUP($J181,P_All!$AD$5:$BE$245,3*($C$6-1)+4) -> 7.8661 | N181: =VLOOKUP($J181,NA_All!$AD$5:$BE$245,3*($C$6-1)+2) -> 0.9771 | O181: =VLOOKUP($J181,NA_All!$AD$5:$BE$245,3*($C$6-1)+3) -> 3.8996 | P181: =VLOOKUP($J181,NA_All!$AD$5:$BE$245,3*($C$6-1)+4) -> 7.3152
B182: 158 | C182: =VLOOKUP($B182,P_All!$A$5:$AB$204,3*($C$6-1)+2) -> 6.832133333 | D182: =VLOOKUP($B182,P_All!$A$5:$AB$204,3*($C$6-1)+3) -> 28.352325 | E182: =VLOOKUP($B182,P_All!$A$5:$AB$204,3*($C$6-1)+4) -> 115.1149917 | F182: =VLOOKUP($B182,NA_All!$A$5:$AB$204,3*($C$6-1)+2) -> 6.141829167 | G182: =VLOOKUP($B182,NA_All!$A$5:$AB$204,3*($C$6-1)+3) -> 28.0147 | H182: =VLOOKUP($B182,NA_All!$A$5:$AB$204,3*($C$6-1)+4) -> 115.7805583 | J182: 113.0833333 | K182: =VLOOKUP($J182,P_All!$AD$5:$BE$245,3*($C$6-1)+2) -> 1.1934 | L182: =VLOOKUP($J182,P_All!$AD$5:$BE$245,3*($C$6-1)+3) -> 1.9684 | M182: =VLOOKUP($J182,P_All!$AD$5:$BE$245,3*($C$6-1)+4) -> 8.5257 | N182: =VLOOKUP($J182,NA_All!$AD$5:$BE$245,3*($C$6-1)+2) -> 0.57152 | O182: =VLOOKUP($J182,NA_All!$AD$5:$BE$245,3*($C$6-1)+3) -> 1.3527 | P182: =VLOOKUP($J182,NA_All!$AD$5:$BE$245,3*($C$6-1)+4) -> 7.985
B183: 159 | C183: =VLOOKUP($B183,P_All!$A$5:$AB$204,3*($C$6-1)+2) -> 6.850175 | D183: =VLOOKUP($B183,P_All!$A$5:$AB$204,3*($C$6-1)+3) -> 28.585625 | E183: =VLOOKUP($B183,P_All!$A$5:$AB$204,3*($C$6-1)+4) -> 111.3332083 | F183: =VLOOKUP($B183,NA_All!$A$5:$AB$204,3*($C$6-1)+2) -> 6.1912825 | G183: =VLOOKUP($B183,NA_All!$A$5:$AB$204,3*($C$6-1)+3) -> 28.21871667 | H183: =VLOOKUP($B183,NA_All!$A$5:$AB$204,3*($C$6-1)+4) -> 111.95445 | J183: 113.1666667 | K183: =VLOOKUP($J183,P_All!$AD$5:$BE$245,3*($C$6-1)+2) -> 1.1717 | L183: =VLOOKUP($J183,P_All!$AD$5:$BE$245,3*($C$6-1)+3) -> 5.052 | M183: =VLOOKUP($J183,P_All!$AD$5:$BE$245,3*($C$6-1)+4) -> 53.052 | N183: =VLOOKUP($J183,NA_All!$AD$5:$BE$245,3*($C$6-1)+2) -> 0.56192 | O183: =VLOOKUP($J183,NA_All!$AD$5:$BE$245,3*($C$6-1)+3) -> 4.4704 | P183: =VLOOKUP($J183,NA_All!$AD$5:$BE$245,3*($C$6-1)+4) -> 53.051
B184: 160 | C184: =VLOOKUP($B184,P_All!$A$5:$AB$204,3*($C$6-1)+2) -> 6.802966667 | D184: =VLOOKUP($B184,P_All!$A$5:$AB$204,3*($C$6-1)+3) -> 28.57875833 | E184: =VLOOKUP($B184,P_All!$A$5:$AB$204,3*($C$6-1)+4) -> 113.1284417 | F184: =VLOOKUP($B184,NA_All!$A$5:$AB$204,3*($C$6-1)+2) -> 6.214105 | G184: =VLOOKUP($B184,NA_All!$A$5:$AB$204,3*($C$6-1)+3) -> 28.2206 | H184: =VLOOKUP($B184,NA_All!$A$5:$AB$204,3*($C$6-1)+4) -> 113.7598083 | J184: 113.25 | K184: =VLOOKUP($J184,P_All!$AD$5:$BE$245,3*($C$6-1)+2) -> 20.913 | L184: =VLOOKUP($J184,P_All!$AD$5:$BE$245,3*($C$6-1)+3) -> 86.143 | M184: =VLOOKUP($J184,P_All!$AD$5:$BE$245,3*($C$6-1)+4) -> 236.02 | N184: =VLOOKUP($J184,NA_All!$AD$5:$BE$245,3*($C$6-1)+2) -> 20.522 | O184: =VLOOKUP($J184,NA_All!$AD$5:$BE$245,3*($C$6-1)+3) -> 86.536 | P184: =VLOOKUP($J184,NA_All!$AD$5:$BE$245,3*($C$6-1)+4) -> 238.21
B185: 161 | C185: =VLOOKUP($B185,P_All!$A$5:$AB$204,3*($C$6-1)+2) -> 6.565625 | D185: =VLOOKUP($B185,P_All!$A$5:$AB$204,3*($C$6-1)+3) -> 28.39546667 | E185: =VLOOKUP($B185,P_All!$A$5:$AB$204,3*($C$6-1)+4) -> 110.556825 | F185: =VLOOKUP($B185,NA_All!$A$5:$AB$204,3*($C$6-1)+2) -> 5.931536667 | G185: =VLOOKUP($B185,NA_All!$A$5:$AB$204,3*($C$6-1)+3) -> 28.082025 | H185: =VLOOKUP($B185,NA_All!$A$5:$AB$204,3*($C$6-1)+4) -> 111.1515917 | J185: 113.3333333 | K185: =VLOOKUP($J185,P_All!$AD$5:$BE$245,3*($C$6-1)+2) -> 17.702 | L185: =VLOOKUP($J185,P_All!$AD$5:$BE$245,3*($C$6-1)+3) -> 81.174 | M185: =VLOOKUP($J185,P_All!$AD$5:$BE$245,3*($C$6-1)+4) -> 261.3 | N185: =VLOOKUP($J185,NA_All!$AD$5:$BE$245,3*($C$6-1)+2) -> 16.947 | O185: =VLOOKUP($J185,NA_All!$AD$5:$BE$245,3*($C$6-1)+3) -> 81.491 | P185: =VLOOKUP($J185,NA_All!$AD$5:$BE$245,3*($C$6-1)+4) -> 263.42
B186: 162 | C186: =VLOOKUP($B186,P_All!$A$5:$AB$204,3*($C$6-1)+2) -> 6.702241667 | D186: =VLOOKUP($B186,P_All!$A$5:$AB$204,3*($C$6-1)+3) -> 28.88168333 | E186: =VLOOKUP($B186,P_All!$A$5:$AB$204,3*($C$6-1)+4) -> 112.7452667 | F186: =VLOOKUP($B186,NA_All!$A$5:$AB$204,3*($C$6-1)+2) -> 6.116678333 | G186: =VLOOKUP($B186,NA_All!$A$5:$AB$204,3*($C$6-1)+3) -> 28.51124167 | H186: =VLOOKUP($B186,NA_All!$A$5:$AB$204,3*($C$6-1)+4) -> 113.3572917 | J186: 113.4166667 | K186: =VLOOKUP($J186,P_All!$AD$5:$BE$245,3*($C$6-1)+2) -> 5.3528 | L186: =VLOOKUP($J186,P_All!$AD$5:$BE$245,3*($C$6-1)+3) -> 34.064 | M186: =VLOOKUP($J186,P_All!$AD$5:$BE$245,3*($C$6-1)+4) -> 91.025 | N186: =VLOOKUP($J186,NA_All!$AD$5:$BE$245,3*($C$6-1)+2) -> 4.646 | O186: =VLOOKUP($J186,NA_All!$AD$5:$BE$245,3*($C$6-1)+3) -> 33.592 | P186: =VLOOKUP($J186,NA_All!$AD$5:$BE$245,3*($C$6-1)+4) -> 91.413
B187: 163 | C187: =VLOOKUP($B187,P_All!$A$5:$AB$204,3*($C$6-1)+2) -> 6.786883333 | D187: =VLOOKUP($B187,P_All!$A$5:$AB$204,3*($C$6-1)+3) -> 27.57551667 | E187: =VLOOKUP($B187,P_All!$A$5:$AB$204,3*($C$6-1)+4) -> 111.075675 | F187: =VLOOKUP($B187,NA_All!$A$5:$AB$204,3*($C$6-1)+2) -> 6.109595 | G187: =VLOOKUP($B187,NA_All!$A$5:$AB$204,3*($C$6-1)+3) -> 27.21123583 | H187: =VLOOKUP($B187,NA_All!$A$5:$AB$204,3*($C$6-1)+4) -> 111.715475 | J187: 113.5 | K187: =VLOOKUP($J187,P_All!$AD$5:$BE$245,3*($C$6-1)+2) -> 2.1871 | L187: =VLOOKUP($J187,P_All!$AD$5:$BE$245,3*($C$6-1)+3) -> 19.356 | M187: =VLOOKUP($J187,P_All!$AD$5:$BE$245,3*($C$6-1)+4) -> 220.46 | N187: =VLOOKUP($J187,NA_All!$AD$5:$BE$245,3*($C$6-1)+2) -> 1.463 | O187: =VLOOKUP($J187,NA_All!$AD$5:$BE$245,3*($C$6-1)+3) -> 18.944 | P187: =VLOOKUP($J187,NA_All!$AD$5:$BE$245,3*($C$6-1)+4) -> 222.44
B188: 164 | C188: =VLOOKUP($B188,P_All!$A$5:$AB$204,3*($C$6-1)+2) -> 6.993766667 | D188: =VLOOKUP($B188,P_All!$A$5:$AB$204,3*($C$6-1)+3) -> 27.859625 | E188: =VLOOKUP($B188,P_All!$A$5:$AB$204,3*($C$6-1)+4) -> 117.7941333 | F188: =VLOOKUP($B188,NA_All!$A$5:$AB$204,3*($C$6-1)+2) -> 6.280256667 | G188: =VLOOKUP($B188,NA_All!$A$5:$AB$204,3*($C$6-1)+3) -> 27.4845 | H188: =VLOOKUP($B188,NA_All!$A$5:$AB$204,3*($C$6-1)+4) -> 118.480475 | J188: 113.5833333 | K188: =VLOOKUP($J188,P_All!$AD$5:$BE$245,3*($C$6-1)+2) -> 6.1375 | L188: =VLOOKUP($J188,P_All!$AD$5:$BE$245,3*($C$6-1)+3) -> 19.588 | M188: =VLOOKUP($J188,P_All!$AD$5:$BE$245,3*($C$6-1)+4) -> 139.88 | N188: =VLOOKUP($J188,NA_All!$AD$5:$BE$245,3*($C$6-1)+2) -> 5.5682 | O188: =VLOOKUP($J188,NA_All!$AD$5:$BE$245,3*($C$6-1)+3) -> 19.179 | P188: =VLOOKUP($J188,NA_All!$AD$5:$BE$245,3*($C$6-1)+4) -> 140.91
B189: 165 | C189: =VLOOKUP($B189,P_All!$A$5:$AB$204,3*($C$6-1)+2) -> 6.450041667 | D189: =VLOOKUP($B189,P_All!$A$5:$AB$204,3*($C$6-1)+3) -> 26.49366667 | E189: =VLOOKUP($B189,P_All!$A$5:$AB$204,3*($C$6-1)+4) -> 113.8094 | F189: =VLOOKUP($B189,NA_All!$A$5:$AB$204,3*($C$6-1)+2) -> 5.809431667 | G189: =VLOOKUP($B189,NA_All!$A$5:$AB$204,3*($C$6-1)+3) -> 26.086395 | H189: =VLOOKUP($B189,NA_All!$A$5:$AB$204,3*($C$6-1)+4) -> 114.5001417 | J189: 113.6666667 | K189: =VLOOKUP($J189,P_All!$AD$5:$BE$245,3*($C$6-1)+2) -> 3.9198 | L189: =VLOOKUP($J189,P_All!$AD$5:$BE$245,3*($C$6-1)+3) -> 26.414 | M189: =VLOOKUP($J189,P_All!$AD$5:$BE$245,3*($C$6-1)+4) -> 78.366 | N189: =VLOOKUP($J189,NA_All!$AD$5:$BE$245,3*($C$6-1)+2) -> 3.2454 | O189: =VLOOKUP($J189,NA_All!$AD$5:$BE$245,3*($C$6-1)+3) -> 26.15 | P189: =VLOOKUP($J189,NA_All!$AD$5:$BE$245,3*($C$6-1)+4) -> 78.629
B190: 166 | C190: =VLOOKUP($B190,P_All!$A$5:$AB$204,3*($C$6-1)+2) -> 7.286266667 | D190: =VLOOKUP($B190,P_All!$A$5:$AB$204,3*($C$6-1)+3) -> 29.47168333 | E190: =VLOOKUP($B190,P_All!$A$5:$AB$204,3*($C$6-1)+4) -> 112.4236 | F190: =VLOOKUP($B190,NA_All!$A$5:$AB$204,3*($C$6-1)+2) -> 6.631561667 | G190: =VLOOKUP($B190,NA_All!$A$5:$AB$204,3*($C$6-1)+3) -> 29.13636667 | H190: =VLOOKUP($B190,NA_All!$A$5:$AB$204,3*($C$6-1)+4) -> 113.0592167 | J190: 113.75 | K190: =VLOOKUP($J190,P_All!$AD$5:$BE$245,3*($C$6-1)+2) -> 9.4908 | L190: =VLOOKUP($J190,P_All!$AD$5:$BE$245,3*($C$6-1)+3) -> 33.415 | M190: =VLOOKUP($J190,P_All!$AD$5:$BE$245,3*($C$6-1)+4) -> 131.36 | N190: =VLOOKUP($J190,NA_All!$AD$5:$BE$245,3*($C$6-1)+2) -> 8.5977 | O190: =VLOOKUP($J190,NA_All!$AD$5:$BE$245,3*($C$6-1)+3) -> 32.852 | P190: =VLOOKUP($J190,NA_All!$AD$5:$BE$245,3*($C$6-1)+4) -> 132.29
B191: 167 | C191: =VLOOKUP($B191,P_All!$A$5:$AB$204,3*($C$6-1)+2) -> 6.707583333 | D191: =VLOOKUP($B191,P_All!$A$5:$AB$204,3*($C$6-1)+3) -> 27.23741667 | E191: =VLOOKUP($B191,P_All!$A$5:$AB$204,3*($C$6-1)+4) -> 111.8465083 | F191: =VLOOKUP($B191,NA_All!$A$5:$AB$204,3*($C$6-1)+2) -> 6.041314167 | G191: =VLOOKUP($B191,NA_All!$A$5:$AB$204,3*($C$6-1)+3) -> 26.83025 | H191: =VLOOKUP($B191,NA_All!$A$5:$AB$204,3*($C$6-1)+4) -> 112.5171 | J191: 113.8333333 | K191: =VLOOKUP($J191,P_All!$AD$5:$BE$245,3*($C$6-1)+2) -> 7.4384 | L191: =VLOOKUP($J191,P_All!$AD$5:$BE$245,3*($C$6-1)+3) -> 19.219 | M191: =VLOOKUP($J191,P_All!$AD$5:$BE$245,3*($C$6-1)+4) -> 59.108 | N191: =VLOOKUP($J191,NA_All!$AD$5:$BE$245,3*($C$6-1)+2) -> 6.4218 | O191: =VLOOKUP($J191,NA_All!$AD$5:$BE$245,3*($C$6-1)+3) -> 18.512 | P191: =VLOOKUP($J191,NA_All!$AD$5:$BE$245,3*($C$6-1)+4) -> 59.169
B192: 168 | C192: =VLOOKUP($B192,P_All!$A$5:$AB$204,3*($C$6-1)+2) -> 6.894933333 | D192: =VLOOKUP($B192,P_All!$A$5:$AB$204,3*($C$6-1)+3) -> 29.572075 | E192: =VLOOKUP($B192,P_All!$A$5:$AB$204,3*($C$6-1)+4) -> 113.1755667 | F192: =VLOOKUP($B192,NA_All!$A$5:$AB$204,3*($C$6-1)+2) -> 6.278609167 | G192: =VLOOKUP($B192,NA_All!$A$5:$AB$204,3*($C$6-1)+3) -> 29.209175 | H192: =VLOOKUP($B192,NA_All!$A$5:$AB$204,3*($C$6-1)+4) -> 113.80035 | J192: 113.9166667 | K192: =VLOOKUP($J192,P_All!$AD$5:$BE$245,3*($C$6-1)+2) -> 3.7819 | L192: =VLOOKUP($J192,P_All!$AD$5:$BE$245,3*($C$6-1)+3) -> 6.629 | M192: =VLOOKUP($J192,P_All!$AD$5:$BE$245,3*($C$6-1)+4) -> 14.284 | N192: =VLOOKUP($J192,NA_All!$AD$5:$BE$245,3*($C$6-1)+2) -> 3.1531 | O192: =VLOOKUP($J192,NA_All!$AD$5:$BE$245,3*($C$6-1)+3) -> 5.9976 | P192: =VLOOKUP($J192,NA_All!$AD$5:$BE$245,3*($C$6-1)+4) -> 13.793
B193: 169 | C193: =VLOOKUP($B193,P_All!$A$5:$AB$204,3*($C$6-1)+2) -> 6.743158333 | D193: =VLOOKUP($B193,P_All!$A$5:$AB$204,3*($C$6-1)+3) -> 27.81528333 | E193: =VLOOKUP($B193,P_All!$A$5:$AB$204,3*($C$6-1)+4) -> 109.7800667 | F193: =VLOOKUP($B193,NA_All!$A$5:$AB$204,3*($C$6-1)+2) -> 6.143148333 | G193: =VLOOKUP($B193,NA_All!$A$5:$AB$204,3*($C$6-1)+3) -> 27.457425 | H193: =VLOOKUP($B193,NA_All!$A$5:$AB$204,3*($C$6-1)+4) -> 110.35585 | J193: 114 | K193: =VLOOKUP($J193,P_All!$AD$5:$BE$245,3*($C$6-1)+2) -> 1.591 | L193: =VLOOKUP($J193,P_All!$AD$5:$BE$245,3*($C$6-1)+3) -> 4.06 | M193: =VLOOKUP($J193,P_All!$AD$5:$BE$245,3*($C$6-1)+4) -> 7.8321 | N193: =VLOOKUP($J193,NA_All!$AD$5:$BE$245,3*($C$6-1)+2) -> 0.96946 | O193: =VLOOKUP($J193,NA_All!$AD$5:$BE$245,3*($C$6-1)+3) -> 3.5011 | P193: =VLOOKUP($J193,NA_All!$AD$5:$BE$245,3*($C$6-1)+4) -> 7.2808
B194: 170 | C194: =VLOOKUP($B194,P_All!$A$5:$AB$204,3*($C$6-1)+2) -> 6.989858333 | D194: =VLOOKUP($B194,P_All!$A$5:$AB$204,3*($C$6-1)+3) -> 27.17560833 | E194: =VLOOKUP($B194,P_All!$A$5:$AB$204,3*($C$6-1)+4) -> 113.4132833 | F194: =VLOOKUP($B194,NA_All!$A$5:$AB$204,3*($C$6-1)+2) -> 6.347798333 | G194: =VLOOKUP($B194,NA_All!$A$5:$AB$204,3*($C$6-1)+3) -> 26.81395 | H194: =VLOOKUP($B194,NA_All!$A$5:$AB$204,3*($C$6-1)+4) -> 114.0372083 | J194: 114.0833333 | K194: =VLOOKUP($J194,P_All!$AD$5:$BE$245,3*($C$6-1)+2) -> 1.1898 | L194: =VLOOKUP($J194,P_All!$AD$5:$BE$245,3*($C$6-1)+3) -> 1.5871 | M194: =VLOOKUP($J194,P_All!$AD$5:$BE$245,3*($C$6-1)+4) -> 7.4266 | N194: =VLOOKUP($J194,NA_All!$AD$5:$BE$245,3*($C$6-1)+2) -> 0.5642 | O194: =VLOOKUP($J194,NA_All!$AD$5:$BE$245,3*($C$6-1)+3) -> 0.96214 | P194: =VLOOKUP($J194,NA_All!$AD$5:$BE$245,3*($C$6-1)+4) -> 6.9015
B195: 171 | C195: =VLOOKUP($B195,P_All!$A$5:$AB$204,3*($C$6-1)+2) -> 6.764533333 | D195: =VLOOKUP($B195,P_All!$A$5:$AB$204,3*($C$6-1)+3) -> 28.066575 | E195: =VLOOKUP($B195,P_All!$A$5:$AB$204,3*($C$6-1)+4) -> 113.5505417 | F195: =VLOOKUP($B195,NA_All!$A$5:$AB$204,3*($C$6-1)+2) -> 6.193186667 | G195: =VLOOKUP($B195,NA_All!$A$5:$AB$204,3*($C$6-1)+3) -> 27.73295833 | H195: =VLOOKUP($B195,NA_All!$A$5:$AB$204,3*($C$6-1)+4) -> 114.2352417 | J195: 114.1666667 | K195: =VLOOKUP($J195,P_All!$AD$5:$BE$245,3*($C$6-1)+2) -> 1.2357 | L195: =VLOOKUP($J195,P_All!$AD$5:$BE$245,3*($C$6-1)+3) -> 3.9125 | M195: =VLOOKUP($J195,P_All!$AD$5:$BE$245,3*($C$6-1)+4) -> 52.552 | N195: =VLOOKUP($J195,NA_All!$AD$5:$BE$245,3*($C$6-1)+2) -> 0.63548 | O195: =VLOOKUP($J195,NA_All!$AD$5:$BE$245,3*($C$6-1)+3) -> 3.3172 | P195: =VLOOKUP($J195,NA_All!$AD$5:$BE$245,3*($C$6-1)+4) -> 52.544
B196: 172 | C196: =VLOOKUP($B196,P_All!$A$5:$AB$204,3*($C$6-1)+2) -> 7.052766667 | D196: =VLOOKUP($B196,P_All!$A$5:$AB$204,3*($C$6-1)+3) -> 27.58275 | E196: =VLOOKUP($B196,P_All!$A$5:$AB$204,3*($C$6-1)+4) -> 109.7391417 | F196: =VLOOKUP($B196,NA_All!$A$5:$AB$204,3*($C$6-1)+2) -> 6.42912 | G196: =VLOOKUP($B196,NA_All!$A$5:$AB$204,3*($C$6-1)+3) -> 27.22126167 | H196: =VLOOKUP($B196,NA_All!$A$5:$AB$204,3*($C$6-1)+4) -> 110.2880667 | J196: 114.25 | K196: =VLOOKUP($J196,P_All!$AD$5:$BE$245,3*($C$6-1)+2) -> 16.676 | L196: =VLOOKUP($J196,P_All!$AD$5:$BE$245,3*($C$6-1)+3) -> 81.478 | M196: =VLOOKUP($J196,P_All!$AD$5:$BE$245,3*($C$6-1)+4) -> 244.64 | N196: =VLOOKUP($J196,NA_All!$AD$5:$BE$245,3*($C$6-1)+2) -> 16.234 | O196: =VLOOKUP($J196,NA_All!$AD$5:$BE$245,3*($C$6-1)+3) -> 81.814 | P196: =VLOOKUP($J196,NA_All!$AD$5:$BE$245,3*($C$6-1)+4) -> 246.94
B197: 173 | C197: =VLOOKUP($B197,P_All!$A$5:$AB$204,3*($C$6-1)+2) -> 6.507391667 | D197: =VLOOKUP($B197,P_All!$A$5:$AB$204,3*($C$6-1)+3) -> 28.294975 | E197: =VLOOKUP($B197,P_All!$A$5:$AB$204,3*($C$6-1)+4) -> 110.728375 | F197: =VLOOKUP($B197,NA_All!$A$5:$AB$204,3*($C$6-1)+2) -> 5.8820875 | G197: =VLOOKUP($B197,NA_All!$A$5:$AB$204,3*($C$6-1)+3) -> 27.92058333 | H197: =VLOOKUP($B197,NA_All!$A$5:$AB$204,3*($C$6-1)+4) -> 111.3204667 | J197: 114.3333333 | K197: =VLOOKUP($J197,P_All!$AD$5:$BE$245,3*($C$6-1)+2) -> 20.804 | L197: =VLOOKUP($J197,P_All!$AD$5:$BE$245,3*($C$6-1)+3) -> 83.629 | M197: =VLOOKUP($J197,P_All!$AD$5:$BE$245,3*($C$6-1)+4) -> 279.76 | N197: =VLOOKUP($J197,NA_All!$AD$5:$BE$245,3*($C$6-1)+2) -> 20.217 | O197: =VLOOKUP($J197,NA_All!$AD$5:$BE$245,3*($C$6-1)+3) -> 83.975 | P197: =VLOOKUP($J197,NA_All!$AD$5:$BE$245,3*($C$6-1)+4) -> 282.43
B198: 174 | C198: =VLOOKUP($B198,P_All!$A$5:$AB$204,3*($C$6-1)+2) -> 6.7613 | D198: =VLOOKUP($B198,P_All!$A$5:$AB$204,3*($C$6-1)+3) -> 27.3474 | E198: =VLOOKUP($B198,P_All!$A$5:$AB$204,3*($C$6-1)+4) -> 111.6640917 | F198: =VLOOKUP($B198,NA_All!$A$5:$AB$204,3*($C$6-1)+2) -> 6.126734167 | G198: =VLOOKUP($B198,NA_All!$A$5:$AB$204,3*($C$6-1)+3) -> 26.99365833 | H198: =VLOOKUP($B198,NA_All!$A$5:$AB$204,3*($C$6-1)+4) -> 112.3269667 | J198: 114.4166667 | K198: =VLOOKUP($J198,P_All!$AD$5:$BE$245,3*($C$6-1)+2) -> 5.904 | L198: =VLOOKUP($J198,P_All!$AD$5:$BE$245,3*($C$6-1)+3) -> 40.028 | M198: =VLOOKUP($J198,P_All!$AD$5:$BE$245,3*($C$6-1)+4) -> 104.95 | N198: =VLOOKUP($J198,NA_All!$AD$5:$BE$245,3*($C$6-1)+2) -> 5.0618 | O198: =VLOOKUP($J198,NA_All!$AD$5:$BE$245,3*($C$6-1)+3) -> 39.514 | P198: =VLOOKUP($J198,NA_All!$AD$5:$BE$245,3*($C$6-1)+4) -> 105.52
B199: 175 | C199: =VLOOKUP($B199,P_All!$A$5:$AB$204,3*($C$6-1)+2) -> 7.394675 | D199: =VLOOKUP($B199,P_All!$A$5:$AB$204,3*($C$6-1)+3) -> 28.8446 | E199: =VLOOKUP($B199,P_All!$A$5:$AB$204,3*($C$6-1)+4) -> 112.5176 | F199: =VLOOKUP($B199,NA_All!$A$5:$AB$204,3*($C$6-1)+2) -> 6.7347175 | G199: =VLOOKUP($B199,NA_All!$A$5:$AB$204,3*($C$6-1)+3) -> 28.44563583 | H199: =VLOOKUP($B199,NA_All!$A$5:$AB$204,3*($C$6-1)+4) -> 113.180575 | J199: 114.5 | K199: =VLOOKUP($J199,P_All!$AD$5:$BE$245,3*($C$6-1)+2) -> 2.4801 | L199: =VLOOKUP($J199,P_All!$AD$5:$BE$245,3*($C$6-1)+3) -> 20.564 | M199: =VLOOKUP($J199,P_All!$AD$5:$BE$245,3*($C$6-1)+4) -> 242.81 | N199: =VLOOKUP($J199,NA_All!$AD$5:$BE$245,3*($C$6-1)+2) -> 1.8082 | O199: =VLOOKUP($J199,NA_All!$AD$5:$BE$245,3*($C$6-1)+3) -> 20.166 | P199: =VLOOKUP($J199,NA_All!$AD$5:$BE$245,3*($C$6-1)+4) -> 245.06
B200: 176 | C200: =VLOOKUP($B200,P_All!$A$5:$AB$204,3*($C$6-1)+2) -> 7.014816667 | D200: =VLOOKUP($B200,P_All!$A$5:$AB$204,3*($C$6-1)+3) -> 27.786675 | E200: =VLOOKUP($B200,P_All!$A$5:$AB$204,3*($C$6-1)+4) -> 110.29515 | F200: =VLOOKUP($B200,NA_All!$A$5:$AB$204,3*($C$6-1)+2) -> 6.3292025 | G200: =VLOOKUP($B200,NA_All!$A$5:$AB$204,3*($C$6-1)+3) -> 27.40929333 | H200: =VLOOKUP($B200,NA_All!$A$5:$AB$204,3*($C$6-1)+4) -> 110.92835 | J200: 114.5833333 | K200: =VLOOKUP($J200,P_All!$AD$5:$BE$245,3*($C$6-1)+2) -> 5.48 | L200: =VLOOKUP($J200,P_All!$AD$5:$BE$245,3*($C$6-1)+3) -> 17.787 | M200: =VLOOKUP($J200,P_All!$AD$5:$BE$245,3*($C$6-1)+4) -> 124.57 | N200: =VLOOKUP($J200,NA_All!$AD$5:$BE$245,3*($C$6-1)+2) -> 4.9028 | O200: =VLOOKUP($J200,NA_All!$AD$5:$BE$245,3*($C$6-1)+3) -> 17.357 | P200: =VLOOKUP($J200,NA_All!$AD$5:$BE$245,3*($C$6-1)+4) -> 125.41
B201: 177 | C201: =VLOOKUP($B201,P_All!$A$5:$AB$204,3*($C$6-1)+2) -> 6.645841667 | D201: =VLOOKUP($B201,P_All!$A$5:$AB$204,3*($C$6-1)+3) -> 27.16231667 | E201: =VLOOKUP($B201,P_All!$A$5:$AB$204,3*($C$6-1)+4) -> 111.928375 | F201: =VLOOKUP($B201,NA_All!$A$5:$AB$204,3*($C$6-1)+2) -> 5.99368 | G201: =VLOOKUP($B201,NA_All!$A$5:$AB$204,3*($C$6-1)+3) -> 26.81815917 | H201: =VLOOKUP($B201,NA_All!$A$5:$AB$204,3*($C$6-1)+4) -> 112.546625 | J201: 114.6666667 | K201: =VLOOKUP($J201,P_All!$AD$5:$BE$245,3*($C$6-1)+2) -> 3.9308 | L201: =VLOOKUP($J201,P_All!$AD$5:$BE$245,3*($C$6-1)+3) -> 29.31 | M201: =VLOOKUP($J201,P_All!$AD$5:$BE$245,3*($C$6-1)+4) -> 85.096 | N201: =VLOOKUP($J201,NA_All!$AD$5:$BE$245,3*($C$6-1)+2) -> 3.28 | O201: =VLOOKUP($J201,NA_All!$AD$5:$BE$245,3*($C$6-1)+3) -> 29.007 | P201: =VLOOKUP($J201,NA_All!$AD$5:$BE$245,3*($C$6-1)+4) -> 85.438
B202: 178 | C202: =VLOOKUP($B202,P_All!$A$5:$AB$204,3*($C$6-1)+2) -> 7.069008333 | D202: =VLOOKUP($B202,P_All!$A$5:$AB$204,3*($C$6-1)+3) -> 29.78781667 | E202: =VLOOKUP($B202,P_All!$A$5:$AB$204,3*($C$6-1)+4) -> 112.4646 | F202: =VLOOKUP($B202,NA_All!$A$5:$AB$204,3*($C$6-1)+2) -> 6.4337875 | G202: =VLOOKUP($B202,NA_All!$A$5:$AB$204,3*($C$6-1)+3) -> 29.40341667 | H202: =VLOOKUP($B202,NA_All!$A$5:$AB$204,3*($C$6-1)+4) -> 113.0815083 | J202: 114.75 | K202: =VLOOKUP($J202,P_All!$AD$5:$BE$245,3*($C$6-1)+2) -> 9.1025 | L202: =VLOOKUP($J202,P_All!$AD$5:$BE$245,3*($C$6-1)+3) -> 28.988 | M202: =VLOOKUP($J202,P_All!$AD$5:$BE$245,3*($C$6-1)+4) -> 144.04 | N202: =VLOOKUP($J202,NA_All!$AD$5:$BE$245,3*($C$6-1)+2) -> 8.3726 | O202: =VLOOKUP($J202,NA_All!$AD$5:$BE$245,3*($C$6-1)+3) -> 28.602 | P202: =VLOOKUP($J202,NA_All!$AD$5:$BE$245,3*($C$6-1)+4) -> 145.12
B203: 179 | C203: =VLOOKUP($B203,P_All!$A$5:$AB$204,3*($C$6-1)+2) -> 6.956366667 | D203: =VLOOKUP($B203,P_All!$A$5:$AB$204,3*($C$6-1)+3) -> 26.84935 | E203: =VLOOKUP($B203,P_All!$A$5:$AB$204,3*($C$6-1)+4) -> 114.0581417 | F203: =VLOOKUP($B203,NA_All!$A$5:$AB$204,3*($C$6-1)+2) -> 6.343556667 | G203: =VLOOKUP($B203,NA_All!$A$5:$AB$204,3*($C$6-1)+3) -> 26.46344333 | H203: =VLOOKUP($B203,NA_All!$A$5:$AB$204,3*($C$6-1)+4) -> 114.7425167 | J203: 114.8333333 | K203: =VLOOKUP($J203,P_All!$AD$5:$BE$245,3*($C$6-1)+2) -> 7.1933 | L203: =VLOOKUP($J203,P_All!$AD$5:$BE$245,3*($C$6-1)+3) -> 18.402 | M203: =VLOOKUP($J203,P_All!$AD$5:$BE$245,3*($C$6-1)+4) -> 65.84 | N203: =VLOOKUP($J203,NA_All!$AD$5:$BE$245,3*($C$6-1)+2) -> 6.4218 | O203: =VLOOKUP($J203,NA_All!$AD$5:$BE$245,3*($C$6-1)+3) -> 17.721 | P203: =VLOOKUP($J203,NA_All!$AD$5:$BE$245,3*($C$6-1)+4) -> 65.982
B204: 180 | C204: =VLOOKUP($B204,P_All!$A$5:$AB$204,3*($C$6-1)+2) -> 6.8994 | D204: =VLOOKUP($B204,P_All!$A$5:$AB$204,3*($C$6-1)+3) -> 28.23421667 | E204: =VLOOKUP($B204,P_All!$A$5:$AB$204,3*($C$6-1)+4) -> 112.9983667 | F204: =VLOOKUP($B204,NA_All!$A$5:$AB$204,3*($C$6-1)+2) -> 6.2573 | G204: =VLOOKUP($B204,NA_All!$A$5:$AB$204,3*($C$6-1)+3) -> 27.878195 | H204: =VLOOKUP($B204,NA_All!$A$5:$AB$204,3*($C$6-1)+4) -> 113.650925 | J204: 114.9166667 | K204: =VLOOKUP($J204,P_All!$AD$5:$BE$245,3*($C$6-1)+2) -> 3.6658 | L204: =VLOOKUP($J204,P_All!$AD$5:$BE$245,3*($C$6-1)+3) -> 7.3041 | M204: =VLOOKUP($J204,P_All!$AD$5:$BE$245,3*($C$6-1)+4) -> 17.345 | N204: =VLOOKUP($J204,NA_All!$AD$5:$BE$245,3*($C$6-1)+2) -> 3.0567 | O204: =VLOOKUP($J204,NA_All!$AD$5:$BE$245,3*($C$6-1)+3) -> 6.6505 | P204: =VLOOKUP($J204,NA_All!$AD$5:$BE$245,3*($C$6-1)+4) -> 16.693
B205: 181 | C205: =VLOOKUP($B205,P_All!$A$5:$AB$204,3*($C$6-1)+2) -> 7.08055 | D205: =VLOOKUP($B205,P_All!$A$5:$AB$204,3*($C$6-1)+3) -> 27.471925 | E205: =VLOOKUP($B205,P_All!$A$5:$AB$204,3*($C$6-1)+4) -> 109.3382 | F205: =VLOOKUP($B205,NA_All!$A$5:$AB$204,3*($C$6-1)+2) -> 6.456091667 | G205: =VLOOKUP($B205,NA_All!$A$5:$AB$204,3*($C$6-1)+3) -> 27.10299167 | H205: =VLOOKUP($B205,NA_All!$A$5:$AB$204,3*($C$6-1)+4) -> 109.8919 | J205: 115 | K205: =VLOOKUP($J205,P_All!$AD$5:$BE$245,3*($C$6-1)+2) -> 1.5777 | L205: =VLOOKUP($J205,P_All!$AD$5:$BE$245,3*($C$6-1)+3) -> 4.5135 | M205: =VLOOKUP($J205,P_All!$AD$5:$BE$245,3*($C$6-1)+4) -> 8.1954 | N205: =VLOOKUP($J205,NA_All!$AD$5:$BE$245,3*($C$6-1)+2) -> 0.95371 | O205: =VLOOKUP($J205,NA_All!$AD$5:$BE$245,3*($C$6-1)+3) -> 3.9146 | P205: =VLOOKUP($J205,NA_All!$AD$5:$BE$245,3*($C$6-1)+4) -> 7.3777
... 60 more rows

Sheet P_All
B2: =PlotControl!$A$13 -> SW-001 | C2: =MATCH(B2,PlotControl!$A$13:$A$21,0) -> 1 | E2: =PlotControl!$A$14 -> SW-002 | F2: =MATCH(E2,PlotControl!$A$13:$A$21,0) -> 2 | H2: =PlotControl!$A$15 -> SW-003 | I2: =MATCH(H2,PlotControl!$A$13:$A$21,0) -> 3 | K2: =PlotControl!$A$16 -> SW-004 | L2: =MATCH(K2,PlotControl!$A$13:$A$21,0) -> 4 | N2: =PlotControl!$A$17 -> SW-004a | O2: =MATCH(N2,PlotControl!$A$13:$A$21,0) -> 5 | Q2: =PlotControl!$A$18 -> SW-004b | R2: =MATCH(Q2,PlotControl!$A$13:$A$21,0) -> 6 | T2: =PlotControl!$A$19 -> SW-005 | U2: =MATCH(T2,PlotControl!$A$13:$A$21,0) -> 7 | W2: =PlotControl!$A$20 -> SW-006 | X2: =MATCH(W2,PlotControl!$A$13:$A$21,0) -> 8 | Z2: =PlotControl!$A$21 -> Colby Lake | AA2: =MATCH(Z2,PlotControl!$A$13:$A$21,0) -> 9 | AE2: =PlotControl!$A$13 -> SW-001 | AF2: =MATCH(AE2,PlotControl!$A$13:$A$21,0) -> 1 | AH2: =PlotControl!$A$14 -> SW-002 | AI2: =MATCH(AH2,PlotControl!$A$13:$A$21,0) -> 2 | AK2: =PlotControl!$A$15 -> SW-003 | AL2: =MATCH(AK2,PlotControl!$A$13:$A$21,0) -> 3 | AN2: =PlotControl!$A$16 -> SW-004 | AO2: =MATCH(AN2,PlotControl!$A$13:$A$21,0) -> 4 | AQ2: =PlotControl!$A$17 -> SW-004a | AR2: =MATCH(AQ2,PlotControl!$A$13:$A$21,0) -> 5 | AT2: =PlotControl!$A$18 -> SW-004b | AU2: =MATCH(AT2,PlotControl!$A$13:$A$21,0) -> 6 | AW2: =PlotControl!$A$19 -> SW-005 | AX2: =MATCH(AW2,PlotControl!$A$13:$A$21,0) -> 7 | AZ2: =PlotControl!$A$20 -> SW-006 | BA2: =MATCH(AZ2,PlotControl!$A$13:$A$21,0) -> 8 | BC2: =PlotControl!$A$21 -> Colby Lake | BD2: =MATCH(BC2,PlotControl!$A$13:$A$21,0) -> 9
B3: Annual Project Results | E3: Annual Project Results | H3: Annual Project Results | K3: Annual Project Results | N3: Annual Project Results | Q3: Annual Project Results | T3: Annual Project Results | W3: Annual Project Results | Z3: Annual Project Results | AE3: Monthly Project Results | AH3: Monthly Project Results | AK3: Monthly Project Results | AN3: Monthly Project Results | AQ3: Monthly Project Results | AT3: Monthly Project Results | AW3: Monthly Project Results | AZ3: Monthly Project Results | BC3: Monthly Project Results
A4: Time | B4: P10 | C4: P50 | D4: P90 | E4: P10 | F4: P50 | G4: P90 | H4: P10 | I4: P50 | J4: P90 | K4: P10 | L4: P50 | M4: P90 | N4: P10 | O4: P50 | P4: P90 | Q4: P10 | R4: P50 | S4: P90 | T4: P10 | U4: P50 | V4: P90 | W4: P10 | X4: P50 | Y4: P90 | Z4: P10 | AA4: P50 | AB4: P90 | AD4: Time | AE4: P10 | AF4: P50 | AG4: P90 | AH4: P10 | AI4: P50 | AJ4: P90 | AK4: P10 | AL4: P50 | AM4: P90 | AN4: P10 | AO4: P50 | AP4: P90 | AQ4: P10 | AR4: P50 | AS4: P90 | AT4: P10 | AU4: P50 | AV4: P90 | AW4: P10 | AX4: P50 | AY4: P90 | AZ4: P10 | BA4: P50 | BB4: P90 | BC4: P10 | BD4: P50 | BE4: P90
A5: 1 | B5: =IF(PlotControl!$B$4 = "Annual Max",MAX(OFFSET(P_Flows!$C$10,12*($A5-1),4*(C$2-1),12,1)),AVERAGE(OFFSET(P_Flows!$C$10,12*($A5-1),4*(C$2-1),12,1))) -> 2.769816667 | C5: =IF(PlotControl!$B$4 = "Annual Max",MAX(OFFSET(P_Flows!$D$10,12*($A5-1),4*(C$2-1),12,1)),AVERAGE(OFFSET(P_Flows!$D$10,12*($A5-1),4*(C$2-1),12,1))) -> 3.347358333 | D5: =IF(PlotControl!$B$4 = "Annual Max",MAX(OFFSET(P_Flows!$E$10,12*($A5-1),4*(C$2-1),12,1)),AVERAGE(OFFSET(P_Flows!$E$10,12*($A5-1),4*(C$2-1),12,1))) -> 5.771408333 | E5: =IF(PlotControl!$B$4 = "Annual Max",MAX(OFFSET(P_Flows!$C$10,12*($A5-1),4*(F$2-1),12,1)),AVERAGE(OFFSET(P_Flows!$C$10,12*($A5-1),4*(F$2-1),12,1))) -> 3.589241667 | F5: =IF(PlotControl!$B$4 = "Annual Max",MAX(OFFSET(P_Flows!$D$10,12*($A5-1),4*(F$2-1),12,1)),AVERAGE(OFFSET(P_Flows!$D$10,12*($A5-1),4*(F$2-1),12,1))) -> 6.853833333 | G5: =IF(PlotControl!$B$4 = "Annual Max",MAX(OFFSET(P_Flows!$E$10,12*($A5-1),4*(F$2-1),12,1)),AVERAGE(OFFSET(P_Flows!$E$10,12*($A5-1),4*(F$2-1),12,1))) -> 20.05325833 | H5: =IF(PlotControl!$B$4 = "Annual Max",MAX(OFFSET(P_Flows!$C$10,12*($A5-1),4*(I$2-1),12,1)),AVERAGE(OFFSET(P_Flows!$C$10,12*($A5-1),4*(I$2-1),12,1))) -> 3.821925 | I5: =IF(PlotControl!$B$4 = "Annual Max",MAX(OFFSET(P_Flows!$D$10,12*($A5-1),4*(I$2-1),12,1)),AVERAGE(OFFSET(P_Flows!$D$10,12*($A5-1),4*(I$2-1),12,1))) -> 7.826816667 | J5: =IF(PlotControl!$B$4 = "Annual Max",MAX(OFFSET(P_Flows!$E$10,12*($A5-1),4*(I$2-1),12,1)),AVERAGE(OFFSET(P_Flows!$E$10,12*($A5-1),4*(I$2-1),12,1))) -> 23.95216667 | K5: =IF(PlotControl!$B$4 = "Annual Max",MAX(OFFSET(P_Flows!$C$10,12*($A5-1),4*(L$2-1),12,1)),AVERAGE(OFFSET(P_Flows!$C$10,12*($A5-1),4*(L$2-1),12,1))) -> 4.920708333 | L5: =IF(PlotControl!$B$4 = "Annual Max",MAX(OFFSET(P_Flows!$D$10,12*($A5-1),4*(L$2-1),12,1)),AVERAGE(OFFSET(P_Flows!$D$10,12*($A5-1),4*(L$2-1),12,1))) -> 12.493175 | M5: =IF(PlotControl!$B$4 = "Annual Max",MAX(OFFSET(P_Flows!$E$10,12*($A5-1),4*(L$2-1),12,1)),AVERAGE(OFFSET(P_Flows!$E$10,12*($A5-1),4*(L$2-1),12,1))) -> 42.80788333 | N5: =IF(PlotControl!$B$4 = "Annual Max",MAX(OFFSET(P_Flows!$C$10,12*($A5-1),4*(O$2-1),12,1)),AVERAGE(OFFSET(P_Flows!$C$10,12*($A5-1),4*(O$2-1),12,1))) -> 9.045158333 | O5: =IF(PlotControl!$B$4 = "Annual Max",MAX(OFFSET(P_Flows!$D$10,12*($A5-1),4*(O$2-1),12,1)),AVERAGE(OFFSET(P_Flows!$D$10,12*($A5-1),4*(O$2-1),12,1))) -> 29.90450833 | P5: =IF(PlotControl!$B$4 = "Annual Max",MAX(OFFSET(P_Flows!$E$10,12*($A5-1),4*(O$2-1),12,1)),AVERAGE(OFFSET(P_Flows!$E$10,12*($A5-1),4*(O$2-1),12,1))) -> 112.7039917 | Q5: =IF(PlotControl!$B$4 = "Annual Max",MAX(OFFSET(P_Flows!$C$10,12*($A5-1),4*(R$2-1),12,1)),AVERAGE(OFFSET(P_Flows!$C$10,12*($A5-1),4*(R$2-1),12,1))) -> 12.40166667 | R5: =IF(PlotControl!$B$4 = "Annual Max",MAX(OFFSET(P_Flows!$D$10,12*($A5-1),4*(R$2-1),12,1)),AVERAGE(OFFSET(P_Flows!$D$10,12*($A5-1),4*(R$2-1),12,1))) -> 44.0716 | S5: =IF(PlotControl!$B$4 = "Annual Max",MAX(OFFSET(P_Flows!$E$10,12*($A5-1),4*(R$2-1),12,1)),AVERAGE(OFFSET(P_Flows!$E$10,12*($A5-1),4*(R$2-1),12,1))) -> 169.85725 | T5: =IF(PlotControl!$B$4 = "Annual Max",MAX(OFFSET(P_Flows!$C$10,12*($A5-1),4*(U$2-1),12,1)),AVERAGE(OFFSET(P_Flows!$C$10,12*($A5-1),4*(U$2-1),12,1))) -> 15.54551667 | U5: =IF(PlotControl!$B$4 = "Annual Max",MAX(OFFSET(P_Flows!$D$10,12*($A5-1),4*(U$2-1),12,1)),AVERAGE(OFFSET(P_Flows!$D$10,12*($A5-1),4*(U$2-1),12,1))) -> 57.33820833 | V5: =IF(PlotControl!$B$4 = "Annual Max",MAX(OFFSET(P_Flows!$E$10,12*($A5-1),4*(U$2-1),12,1)),AVERAGE(OFFSET(P_Flows!$E$10,12*($A5-1),4*(U$2-1),12,1))) -> 224.30025 | W5: =IF(PlotControl!$B$4 = "Annual Max",MAX(OFFSET(P_Flows!$C$10,12*($A5-1),4*(X$2-1),12,1)),AVERAGE(OFFSET(P_Flows!$C$10,12*($A5-1),4*(X$2-1),12,1))) -> 16.23349167 | X5: =IF(PlotControl!$B$4 = "Annual Max",MAX(OFFSET(P_Flows!$D$10,12*($A5-1),4*(X$2-1),12,1)),AVERAGE(OFFSET(P_Flows!$D$10,12*($A5-1),4*(X$2-1),12,1))) -> 60.3141 | Y5: =IF(PlotControl!$B$4 = "Annual Max",MAX(OFFSET(P_Flows!$E$10,12*($A5-1),4*(X$2-1),12,1)),AVERAGE(OFFSET(P_Flows!$E$10,12*($A5-1),4*(X$2-1),12,1))) -> 236.7328333 | Z5: =IF(PlotControl!$B$4 = "Annual Max",MAX(OFFSET(P_Flows!$C$10,12*($A5-1),4*(AA$2-1),12,1)),AVERAGE(OFFSET(P_Flows!$C$10,12*($A5-1),4*(AA$2-1),12,1))) -> 18.964325 | AA5: =IF(PlotControl!$B$4 = "Annual Max",MAX(OFFSET(P_Flows!$D$10,12*($A5-1),4*(AA$2-1),12,1)),AVERAGE(OFFSET(P_Flows!$D$10,12*($A5-1),4*(AA$2-1),12,1))) -> 71.87394167 | AB5: =IF(PlotControl!$B$4 = "Annual Max",MAX(OFFSET(P_Flows!$E$10,12*($A5-1),4*(AA$2-1),12,1)),AVERAGE(OFFSET(P_Flows!$E$10,12*($A5-1),4*(AA$2-1),12,1))) -> 283.6286667 | AD5: =PlotControl!$B$8 -> 100 | AE5: =OFFSET(P_Flows!$C$10,ROUND(12*$AD5,0),4*(AF$2-1),1,1) -> 0.021103 | AF5: =OFFSET(P_Flows!$D$10,ROUND(12*$AD5,0),4*(AF$2-1),1,1) -> 0.083765 | AG5: =OFFSET(P_Flows!$E$10,ROUND(12*$AD5,0),4*(AF$2-1),1,1) -> 0.16481 | AH5: =OFFSET(P_Flows!$C$10,ROUND(12*$AD5,0),4*(AI$2-1),1,1) -> 0.13916 | AI5: =OFFSET(P_Flows!$D$10,ROUND(12*$AD5,0),4*(AI$2-1),1,1) -> 0.55238 | AJ5: =OFFSET(P_Flows!$E$10,ROUND(12*$AD5,0),4*(AI$2-1),1,1) -> 1.0868 | AK5: =OFFSET(P_Flows!$C$10,ROUND(12*$AD5,0),4*(AL$2-1),1,1) -> 0.18395 | AL5: =OFFSET(P_Flows!$D$10,ROUND(12*$AD5,0),4*(AL$2-1),1,1) -> 0.73018 | AM5: =OFFSET(P_Flows!$E$10,ROUND(12*$AD5,0),4*(AL$2-1),1,1) -> 1.4367 | AN5: =OFFSET(P_Flows!$C$10,ROUND(12*$AD5,0),4*(AO$2-1),1,1) -> 0.33864 | AO5: =OFFSET(P_Flows!$D$10,ROUND(12*$AD5,0),4*(AO$2-1),1,1) -> 1.3442 | AP5: =OFFSET(P_Flows!$E$10,ROUND(12*$AD5,0),4*(AO$2-1),1,1) -> 2.6448 | AQ5: =OFFSET(P_Flows!$C$10,ROUND(12*$AD5,0),4*(AR$2-1),1,1) -> 1.5909 | AR5: =OFFSET(P_Flows!$D$10,ROUND(12*$AD5,0),4*(AR$2-1),1,1) -> 4.4147 | AS5: =OFFSET(P_Flows!$E$10,ROUND(12*$AD5,0),4*(AR$2-1),1,1) -> 8.1353 | AT5: =OFFSET(P_Flows!$C$10,ROUND(12*$AD5,0),4*(AU$2-1),1,1) -> 2.0917 | AU5: =OFFSET(P_Flows!$D$10,ROUND(12*$AD5,0),4*(AU$2-1),1,1) -> 6.3944 | AV5: =OFFSET(P_Flows!$E$10,ROUND(12*$AD5,0),4*(AU$2-1),1,1) -> 12.038 | AW5: =OFFSET(P_Flows!$C$10,ROUND(12*$AD5,0),4*(AX$2-1),1,1) -> 2.5233 | AX5: =OFFSET(P_Flows!$D$10,ROUND(12*$AD5,0),4*(AX$2-1),1,1) -> 8.1327 | AY5: =OFFSET(P_Flows!$E$10,ROUND(12*$AD5,0),4*(AX$2-1),1,1) -> 15.417 | AZ5: =OFFSET(P_Flows!$C$10,ROUND(12*$AD5,0),4*(BA$2-1),1,1) -> 2.6234 | BA5: =OFFSET(P_Flows!$D$10,ROUND(12*$AD5,0),4*(BA$2-1),1,1) -> 8.5201 | BB5: =OFFSET(P_Flows!$E$10,ROUND(12*$AD5,0),4*(BA$2-1),1,1) -> 16.165 | BC5: =OFFSET(P_Flows!$C$10,ROUND(12*$AD5,0),4*(BD$2-1),1,1) -> 3.0216 | BD5: =OFFSET(P_Flows!$D$10,ROUND(12*$AD5,0),4*(BD$2-1),1,1) -> 10.108 | BE5: =OFFSET(P_Flows!$E$10,ROUND(12*$AD5,0),4*(BD$2-1),1,1) -> 19.275
A6: 2 | B6: =IF(PlotControl!$B$4 = "Annual Max",MAX(OFFSET(P_Flows!$C$10,12*($A6-1),4*(C$2-1),12,1)),AVERAGE(OFFSET(P_Flows!$C$10,12*($A6-1),4*(C$2-1),12,1))) -> 2.757975 | C6: =IF(PlotControl!$B$4 = "Annual Max",MAX(OFFSET(P_Flows!$D$10,12*($A6-1),4*(C$2-1),12,1)),AVERAGE(OFFSET(P_Flows!$D$10,12*($A6-1),4*(C$2-1),12,1))) -> 3.322591667 | D6: =IF(PlotControl!$B$4 = "Annual Max",MAX(OFFSET(P_Flows!$E$10,12*($A6-1),4*(C$2-1),12,1)),AVERAGE(OFFSET(P_Flows!$E$10,12*($A6-1),4*(C$2-1),12,1))) -> 5.724608333 | E6: =IF(PlotControl!$B$4 = "Annual Max",MAX(OFFSET(P_Flows!$C$10,12*($A6-1),4*(F$2-1),12,1)),AVERAGE(OFFSET(P_Flows!$C$10,12*($A6-1),4*(F$2-1),12,1))) -> 3.496133333 | F6: =IF(PlotControl!$B$4 = "Annual Max",MAX(OFFSET(P_Flows!$D$10,12*($A6-1),4*(F$2-1),12,1)),AVERAGE(OFFSET(P_Flows!$D$10,12*($A6-1),4*(F$2-1),12,1))) -> 6.623641667 | G6: =IF(PlotControl!$B$4 = "Annual Max",MAX(OFFSET(P_Flows!$E$10,12*($A6-1),4*(F$2-1),12,1)),AVERAGE(OFFSET(P_Flows!$E$10,12*($A6-1),4*(F$2-1),12,1))) -> 19.42015833 | H6: =IF(PlotControl!$B$4 = "Annual Max",MAX(OFFSET(P_Flows!$C$10,12*($A6-1),4*(I$2-1),12,1)),AVERAGE(OFFSET(P_Flows!$C$10,12*($A6-1),4*(I$2-1),12,1))) -> 3.727025 | I6: =IF(PlotControl!$B$4 = "Annual Max",MAX(OFFSET(P_Flows!$D$10,12*($A6-1),4*(I$2-1),12,1)),AVERAGE(OFFSET(P_Flows!$D$10,12*($A6-1),4*(I$2-1),12,1))) -> 7.62815 | J6: =IF(PlotControl!$B$4 = "Annual Max",MAX(OFFSET(P_Flows!$E$10,12*($A6-1),4*(I$2-1),12,1)),AVERAGE(OFFSET(P_Flows!$E$10,12*($A6-1),4*(I$2-1),12,1))) -> 23.52798333 | K6: =IF(PlotControl!$B$4 = "Annual Max",MAX(OFFSET(P_Flows!$C$10,12*($A6-1),4*(L$2-1),12,1)),AVERAGE(OFFSET(P_Flows!$C$10,12*($A6-1),4*(L$2-1),12,1))) -> 4.715575 | L6: =IF(PlotControl!$B$4 = "Annual Max",MAX(OFFSET(P_Flows!$D$10,12*($A6-1),4*(L$2-1),12,1)),AVERAGE(OFFSET(P_Flows!$D$10,12*($A6-1),4*(L$2-1),12,1))) -> 11.999375 | M6: =IF(PlotControl!$B$4 = "Annual Max",MAX(OFFSET(P_Flows!$E$10,12*($A6-1),4*(L$2-1),12,1)),AVERAGE(OFFSET(P_Flows!$E$10,12*($A6-1),4*(L$2-1),12,1))) -> 41.56875833 | N6: =IF(PlotControl!$B$4 = "Annual Max",MAX(OFFSET(P_Flows!$C$10,12*($A6-1),4*(O$2-1),12,1)),AVERAGE(OFFSET(P_Flows!$C$10,12*($A6-1),4*(O$2-1),12,1))) -> 8.518475 | O6: =IF(PlotControl!$B$4 = "Annual Max",MAX(OFFSET(P_Flows!$D$10,12*($A6-1),4*(O$2-1),12,1)),AVERAGE(OFFSET(P_Flows!$D$10,12*($A6-1),4*(O$2-1),12,1))) -> 28.7433 | P6: =IF(PlotControl!$B$4 = "Annual Max",MAX(OFFSET(P_Flows!$E$10,12*($A6-1),4*(O$2-1),12,1)),AVERAGE(OFFSET(P_Flows!$E$10,12*($A6-1),4*(O$2-1),12,1))) -> 110.2576417 | Q6: =IF(PlotControl!$B$4 = "Annual Max",MAX(OFFSET(P_Flows!$C$10,12*($A6-1),4*(R$2-1),12,1)),AVERAGE(OFFSET(P_Flows!$C$10,12*($A6-1),4*(R$2-1),12,1))) -> 11.65603333 | R6: =IF(PlotControl!$B$4 = "Annual Max",MAX(OFFSET(P_Flows!$D$10,12*($A6-1),4*(R$2-1),12,1)),AVERAGE(OFFSET(P_Flows!$D$10,12*($A6-1),4*(R$2-1),12,1))) -> 42.49049167 | S6: =IF(PlotControl!$B$4 = "Annual Max",MAX(OFFSET(P_Flows!$E$10,12*($A6-1),4*(R$2-1),12,1)),AVERAGE(OFFSET(P_Flows!$E$10,12*($A6-1),4*(R$2-1),12,1))) -> 166.9951667 | T6: =IF(PlotControl!$B$4 = "Annual Max",MAX(OFFSET(P_Flows!$C$10,12*($A6-1),4*(U$2-1),12,1)),AVERAGE(OFFSET(P_Flows!$C$10,12*($A6-1),4*(U$2-1),12,1))) -> 14.5587 | U6: =IF(PlotControl!$B$4 = "Annual Max",MAX(OFFSET(P_Flows!$D$10,12*($A6-1),4*(U$2-1),12,1)),AVERAGE(OFFSET(P_Flows!$D$10,12*($A6-1),4*(U$2-1),12,1))) -> 55.130025 | V6: =IF(PlotControl!$B$4 = "Annual Max",MAX(OFFSET(P_Flows!$E$10,12*($A6-1),4*(U$2-1),12,1)),AVERAGE(OFFSET(P_Flows!$E$10,12*($A6-1),4*(U$2-1),12,1))) -> 220.2578333 | W6: =IF(PlotControl!$B$4 = "Annual Max",MAX(OFFSET(P_Flows!$C$10,12*($A6-1),4*(X$2-1),12,1)),AVERAGE(OFFSET(P_Flows!$C$10,12*($A6-1),4*(X$2-1),12,1))) -> 15.247475 | X6: =IF(PlotControl!$B$4 = "Annual Max",MAX(OFFSET(P_Flows!$D$10,12*($A6-1),4*(X$2-1),12,1)),AVERAGE(OFFSET(P_Flows!$D$10,12*($A6-1),4*(X$2-1),12,1))) -> 58.22688333 | Y6: =IF(PlotControl!$B$4 = "Annual Max",MAX(OFFSET(P_Flows!$E$10,12*($A6-1),4*(X$2-1),12,1)),AVERAGE(OFFSET(P_Flows!$E$10,12*($A6-1),4*(X$2-1),12,1))) -> 233.4089167 | Z6: =IF(PlotControl!$B$4 = "Annual Max",MAX(OFFSET(P_Flows!$C$10,12*($A6-1),4*(AA$2-1),12,1)),AVERAGE(OFFSET(P_Flows!$C$10,12*($A6-1),4*(AA$2-1),12,1))) -> 17.787225 | AA6: =IF(PlotControl!$B$4 = "Annual Max",MAX(OFFSET(P_Flows!$D$10,12*($A6-1),4*(AA$2-1),12,1)),AVERAGE(OFFSET(P_Flows!$D$10,12*($A6-1),4*(AA$2-1),12,1))) -> 69.39565833 | AB6: =IF(PlotControl!$B$4 = "Annual Max",MAX(OFFSET(P_Flows!$E$10,12*($A6-1),4*(AA$2-1),12,1)),AVERAGE(OFFSET(P_Flows!$E$10,12*($A6-1),4*(AA$2-1),12,1))) -> 279.7510833 | AD6: =AD5+1/12 -> 100.0833333 | AE6: =OFFSET(P_Flows!$C$10,ROUND(12*$AD6,0),4*(AF$2-1),1,1) -> 0.014334 | AF6: =OFFSET(P_Flows!$D$10,ROUND(12*$AD6,0),4*(AF$2-1),1,1) -> 0.034166 | AG6: =OFFSET(P_Flows!$E$10,ROUND(12*$AD6,0),4*(AF$2-1),1,1) -> 0.2074 | AH6: =OFFSET(P_Flows!$C$10,ROUND(12*$AD6,0),4*(AI$2-1),1,1) -> 0.091324 | AI6: =OFFSET(P_Flows!$D$10,ROUND(12*$AD6,0),4*(AI$2-1),1,1) -> 0.21767 | AJ6: =OFFSET(P_Flows!$E$10,ROUND(12*$AD6,0),4*(AI$2-1),1,1) -> 1.3213 | AK6: =OFFSET(P_Flows!$C$10,ROUND(12*$AD6,0),4*(AL$2-1),1,1) -> 0.11179 | AL6: =OFFSET(P_Flows!$D$10,ROUND(12*$AD6,0),4*(AL$2-1),1,1) -> 0.26644 | AM6: =OFFSET(P_Flows!$E$10,ROUND(12*$AD6,0),4*(AL$2-1),1,1) -> 1.6174 | AN6: =OFFSET(P_Flows!$C$10,ROUND(12*$AD6,0),4*(AO$2-1),1,1) -> 0.20866 | AO6: =OFFSET(P_Flows!$D$10,ROUND(12*$AD6,0),4*(AO$2-1),1,1) -> 0.49734 | AP6: =OFFSET(P_Flows!$E$10,ROUND(12*$AD6,0),4*(AO$2-1),1,1) -> 3.019 | AQ6: =OFFSET(P_Flows!$C$10,ROUND(12*$AD6,0),4*(AR$2-1),1,1) -> 1.1926 | AR6: =OFFSET(P_Flows!$D$10,ROUND(12*$AD6,0),4*(AR$2-1),1,1) -> 1.9838 | AS6: =OFFSET(P_Flows!$E$10,ROUND(12*$AD6,0),4*(AR$2-1),1,1) -> 8.7536 | AT6: =OFFSET(P_Flows!$C$10,ROUND(12*$AD6,0),4*(AU$2-1),1,1) -> 1.4816 | AU6: =OFFSET(P_Flows!$D$10,ROUND(12*$AD6,0),4*(AU$2-1),1,1) -> 2.653 | AV6: =OFFSET(P_Flows!$E$10,ROUND(12*$AD6,0),4*(AU$2-1),1,1) -> 12.885 | AW6: =OFFSET(P_Flows!$C$10,ROUND(12*$AD6,0),4*(AX$2-1),1,1) -> 1.7279 | AX6: =OFFSET(P_Flows!$D$10,ROUND(12*$AD6,0),4*(AX$2-1),1,1) -> 3.2399 | AY6: =OFFSET(P_Flows!$E$10,ROUND(12*$AD6,0),4*(AX$2-1),1,1) -> 16.447 | AZ6: =OFFSET(P_Flows!$C$10,ROUND(12*$AD6,0),4*(BA$2-1),1,1) -> 1.7894 | BA6: =OFFSET(P_Flows!$D$10,ROUND(12*$AD6,0),4*(BA$2-1),1,1) -> 3.3865 | BB6: =OFFSET(P_Flows!$E$10,ROUND(12*$AD6,0),4*(BA$2-1),1,1) -> 17.337 | BC6: =OFFSET(P_Flows!$C$10,ROUND(12*$AD6,0),4*(BD$2-1),1,1) -> 2.0206 | BD6: =OFFSET(P_Flows!$D$10,ROUND(12*$AD6,0),4*(BD$2-1),1,1) -> 3.9376 | BE6: =OFFSET(P_Flows!$E$10,ROUND(12*$AD6,0),4*(BD$2-1),1,1) -> 20.682
A7: 3 | B7: =IF(PlotControl!$B$4 = "Annual Max",MAX(OFFSET(P_Flows!$C$10,12*($A7-1),4*(C$2-1),12,1)),AVERAGE(OFFSET(P_Flows!$C$10,12*($A7-1),4*(C$2-1),12,1))) -> 2.757708333 | C7: =IF(PlotControl!$B$4 = "Annual Max",MAX(OFFSET(P_Flows!$D$10,12*($A7-1),4*(C$2-1),12,1)),AVERAGE(OFFSET(P_Flows!$D$10,12*($A7-1),4*(C$2-1),12,1))) -> 3.347041667 | D7: =IF(PlotControl!$B$4 = "Annual Max",MAX(OFFSET(P_Flows!$E$10,12*($A7-1),4*(C$2-1),12,1)),AVERAGE(OFFSET(P_Flows!$E$10,12*($A7-1),4*(C$2-1),12,1))) -> 5.69845 | E7: =IF(PlotControl!$B$4 = "Annual Max",MAX(OFFSET(P_Flows!$C$10,12*($A7-1),4*(F$2-1),12,1)),AVERAGE(OFFSET(P_Flows!$C$10,12*($A7-1),4*(F$2-1),12,1))) -> 3.494008333 | F7: =IF(PlotControl!$B$4 = "Annual Max",MAX(OFFSET(P_Flows!$D$10,12*($A7-1),4*(F$2-1),12,1)),AVERAGE(OFFSET(P_Flows!$D$10,12*($A7-1),4*(F$2-1),12,1))) -> 6.748375 | G7: =IF(PlotControl!$B$4 = "Annual Max",MAX(OFFSET(P_Flows!$E$10,12*($A7-1),4*(F$2-1),12,1)),AVERAGE(OFFSET(P_Flows!$E$10,12*($A7-1),4*(F$2-1),12,1))) -> 19.32293333 | H7: =IF(PlotControl!$B$4 = "Annual Max",MAX(OFFSET(P_Flows!$C$10,12*($A7-1),4*(I$2-1),12,1)),AVERAGE(OFFSET(P_Flows!$C$10,12*($A7-1),4*(I$2-1),12,1))) -> 3.723141667 | I7: =IF(PlotControl!$B$4 = "Annual Max",MAX(OFFSET(P_Flows!$D$10,12*($A7-1),4*(I$2-1),12,1)),AVERAGE(OFFSET(P_Flows!$D$10,12*($A7-1),4*(I$2-1),12,1))) -> 7.781541667 | J7: =IF(PlotControl!$B$4 = "Annual Max",MAX(OFFSET(P_Flows!$E$10,12*($A7-1),4*(I$2-1),12,1)),AVERAGE(OFFSET(P_Flows!$E$10,12*($A7-1),4*(I$2-1),12,1))) -> 23.398175 | K7: =IF(PlotControl!$B$4 = "Annual Max",MAX(OFFSET(P_Flows!$C$10,12*($A7-1),4*(L$2-1),12,1)),AVERAGE(OFFSET(P_Flows!$C$10,12*($A7-1),4*(L$2-1),12,1))) -> 4.704675 | L7: =IF(PlotControl!$B$4 = "Annual Max",MAX(OFFSET(P_Flows!$D$10,12*($A7-1),4*(L$2-1),12,1)),AVERAGE(OFFSET(P_Flows!$D$10,12*($A7-1),4*(L$2-1),12,1))) -> 12.27708333 | M7: =IF(PlotControl!$B$4 = "Annual Max",MAX(OFFSET(P_Flows!$E$10,12*($A7-1),4*(L$2-1),12,1)),AVERAGE(OFFSET(P_Flows!$E$10,12*($A7-1),4*(L$2-1),12,1))) -> 41.29100833 | N7: =IF(PlotControl!$B$4 = "Annual Max",MAX(OFFSET(P_Flows!$C$10,12*($A7-1),4*(O$2-1),12,1)),AVERAGE(OFFSET(P_Flows!$C$10,12*($A7-1),4*(O$2-1),12,1))) -> 8.466741667 | O7: =IF(PlotControl!$B$4 = "Annual Max",MAX(OFFSET(P_Flows!$D$10,12*($A7-1),4*(O$2-1),12,1)),AVERAGE(OFFSET(P_Flows!$D$10,12*($A7-1),4*(O$2-1),12,1))) -> 29.44273333 | P7: =IF(PlotControl!$B$4 = "Annual Max",MAX(OFFSET(P_Flows!$E$10,12*($A7-1),4*(O$2-1),12,1)),AVERAGE(OFFSET(P_Flows!$E$10,12*($A7-1),4*(O$2-1),12,1))) -> 109.2028667 | Q7: =IF(PlotControl!$B$4 = "Annual Max",MAX(OFFSET(P_Flows!$C$10,12*($A7-1),4*(R$2-1),12,1)),AVERAGE(OFFSET(P_Flows!$C$10,12*($A7-1),4*(R$2-1),12,1))) -> 11.57655 | R7: =IF(PlotControl!$B$4 = "Annual Max",MAX(OFFSET(P_Flows!$D$10,12*($A7-1),4*(R$2-1),12,1)),AVERAGE(OFFSET(P_Flows!$D$10,12*($A7-1),4*(R$2-1),12,1))) -> 43.59471667 | S7: =IF(PlotControl!$B$4 = "Annual Max",MAX(OFFSET(P_Flows!$E$10,12*($A7-1),4*(R$2-1),12,1)),AVERAGE(OFFSET(P_Flows!$E$10,12*($A7-1),4*(R$2-1),12,1))) -> 165.439 | T7: =IF(PlotControl!$B$4 = "Annual Max",MAX(OFFSET(P_Flows!$C$10,12*($A7-1),4*(U$2-1),12,1)),AVERAGE(OFFSET(P_Flows!$C$10,12*($A7-1),4*(U$2-1),12,1))) -> 14.39894167 | U7: =IF(PlotControl!$B$4 = "Annual Max",MAX(OFFSET(P_Flows!$D$10,12*($A7-1),4*(U$2-1),12,1)),AVERAGE(OFFSET(P_Flows!$D$10,12*($A7-1),4*(U$2-1),12,1))) -> 56.41776667 | V7: =IF(PlotControl!$B$4 = "Annual Max",MAX(OFFSET(P_Flows!$E$10,12*($A7-1),4*(U$2-1),12,1)),AVERAGE(OFFSET(P_Flows!$E$10,12*($A7-1),4*(U$2-1),12,1))) -> 217.1665833 | W7: =IF(PlotControl!$B$4 = "Annual Max",MAX(OFFSET(P_Flows!$C$10,12*($A7-1),4*(X$2-1),12,1)),AVERAGE(OFFSET(P_Flows!$C$10,12*($A7-1),4*(X$2-1),12,1))) -> 15.12481667 | X7: =IF(PlotControl!$B$4 = "Annual Max",MAX(OFFSET(P_Flows!$D$10,12*($A7-1),4*(X$2-1),12,1)),AVERAGE(OFFSET(P_Flows!$D$10,12*($A7-1),4*(X$2-1),12,1))) -> 59.79739167 | Y7: =IF(PlotControl!$B$4 = "Annual Max",MAX(OFFSET(P_Flows!$E$10,12*($A7-1),4*(X$2-1),12,1)),AVERAGE(OFFSET(P_Flows!$E$10,12*($A7-1),4*(X$2-1),12,1))) -> 230.952 | Z7: =IF(PlotControl!$B$4 = "Annual Max",MAX(OFFSET(P_Flows!$C$10,12*($A7-1),4*(AA$2-1),12,1)),AVERAGE(OFFSET(P_Flows!$C$10,12*($A7-1),4*(AA$2-1),12,1))) -> 17.64325 | AA7: =IF(PlotControl!$B$4 = "Annual Max",MAX(OFFSET(P_Flows!$D$10,12*($A7-1),4*(AA$2-1),12,1)),AVERAGE(OFFSET(P_Flows!$D$10,12*($A7-1),4*(AA$2-1),12,1))) -> 71.2994 | AB7: =IF(PlotControl!$B$4 = "Annual Max",MAX(OFFSET(P_Flows!$E$10,12*($A7-1),4*(AA$2-1),12,1)),AVERAGE(OFFSET(P_Flows!$E$10,12*($A7-1),4*(AA$2-1),12,1))) -> 276.8681667 | AD7: =AD6+1/12 -> 100.1666667 | AE7: =OFFSET(P_Flows!$C$10,ROUND(12*$AD7,0),4*(AF$2-1),1,1) -> 0.017129 | AF7: =OFFSET(P_Flows!$D$10,ROUND(12*$AD7,0),4*(AF$2-1),1,1) -> 0.099372 | AG7: =OFFSET(P_Flows!$E$10,ROUND(12*$AD7,0),4*(AF$2-1),1,1) -> 1.1635 | AH7: =OFFSET(P_Flows!$C$10,ROUND(12*$AD7,0),4*(AI$2-1),1,1) -> 0.10041 | AI7: =OFFSET(P_Flows!$D$10,ROUND(12*$AD7,0),4*(AI$2-1),1,1) -> 0.5825 | AJ7: =OFFSET(P_Flows!$E$10,ROUND(12*$AD7,0),4*(AI$2-1),1,1) -> 6.8205 | AK7: =OFFSET(P_Flows!$C$10,ROUND(12*$AD7,0),4*(AL$2-1),1,1) -> 0.12171 | AL7: =OFFSET(P_Flows!$D$10,ROUND(12*$AD7,0),4*(AL$2-1),1,1) -> 0.70607 | AM7: =OFFSET(P_Flows!$E$10,ROUND(12*$AD7,0),4*(AL$2-1),1,1) -> 8.2672 | AN7: =OFFSET(P_Flows!$C$10,ROUND(12*$AD7,0),4*(AO$2-1),1,1) -> 0.21795 | AO7: =OFFSET(P_Flows!$D$10,ROUND(12*$AD7,0),4*(AO$2-1),1,1) -> 1.2644 | AP7: =OFFSET(P_Flows!$E$10,ROUND(12*$AD7,0),4*(AO$2-1),1,1) -> 14.804 | AQ7: =OFFSET(P_Flows!$C$10,ROUND(12*$AD7,0),4*(AR$2-1),1,1) -> 1.2222 | AR7: =OFFSET(P_Flows!$D$10,ROUND(12*$AD7,0),4*(AR$2-1),1,1) -> 4.0418 | AS7: =OFFSET(P_Flows!$E$10,ROUND(12*$AD7,0),4*(AR$2-1),1,1) -> 40.524 | AT7: =OFFSET(P_Flows!$C$10,ROUND(12*$AD7,0),4*(AU$2-1),1,1) -> 1.5102 | AU7: =OFFSET(P_Flows!$D$10,ROUND(12*$AD7,0),4*(AU$2-1),1,1) -> 5.6794 | AV7: =OFFSET(P_Flows!$E$10,ROUND(12*$AD7,0),4*(AU$2-1),1,1) -> 59.7 | AW7: =OFFSET(P_Flows!$C$10,ROUND(12*$AD7,0),4*(AX$2-1),1,1) -> 1.6984 | AX7: =OFFSET(P_Flows!$D$10,ROUND(12*$AD7,0),4*(AX$2-1),1,1) -> 6.7647 | AY7: =OFFSET(P_Flows!$E$10,ROUND(12*$AD7,0),4*(AX$2-1),1,1) -> 72.407 | AZ7: =OFFSET(P_Flows!$C$10,ROUND(12*$AD7,0),4*(BA$2-1),1,1) -> 1.7675 | BA7: =OFFSET(P_Flows!$D$10,ROUND(12*$AD7,0),4*(BA$2-1),1,1) -> 7.1628 | BB7: =OFFSET(P_Flows!$E$10,ROUND(12*$AD7,0),4*(BA$2-1),1,1) -> 77.069 | BC7: =OFFSET(P_Flows!$C$10,ROUND(12*$AD7,0),4*(BD$2-1),1,1) -> 1.9944 | BD7: =OFFSET(P_Flows!$D$10,ROUND(12*$AD7,0),4*(BD$2-1),1,1) -> 8.4704 | BE7: =OFFSET(P_Flows!$E$10,ROUND(12*$AD7,0),4*(BD$2-1),1,1) -> 92.378
A8: 4 | B8: =IF(PlotControl!$B$4 = "Annual Max",MAX(OFFSET(P_Flows!$C$10,12*($A8-1),4*(C$2-1),12,1)),AVERAGE(OFFSET(P_Flows!$C$10,12*($A8-1),4*(C$2-1),12,1))) -> 2.758383333 | C8: =IF(PlotControl!$B$4 = "Annual Max",MAX(OFFSET(P_Flows!$D$10,12*($A8-1),4*(C$2-1),12,1)),AVERAGE(OFFSET(P_Flows!$D$10,12*($A8-1),4*(C$2-1),12,1))) -> 3.325533333 | D8: =IF(PlotControl!$B$4 = "Annual Max",MAX(OFFSET(P_Flows!$E$10,12*($A8-1),4*(C$2-1),12,1)),AVERAGE(OFFSET(P_Flows!$E$10,12*($A8-1),4*(C$2-1),12,1))) -> 5.82435 | E8: =IF(PlotControl!$B$4 = "Annual Max",MAX(OFFSET(P_Flows!$C$10,12*($A8-1),4*(F$2-1),12,1)),AVERAGE(OFFSET(P_Flows!$C$10,12*($A8-1),4*(F$2-1),12,1))) -> 3.497966667 | F8: =IF(PlotControl!$B$4 = "Annual Max",MAX(OFFSET(P_Flows!$D$10,12*($A8-1),4*(F$2-1),12,1)),AVERAGE(OFFSET(P_Flows!$D$10,12*($A8-1),4*(F$2-1),12,1))) -> 6.608075 | G8: =IF(PlotControl!$B$4 = "Annual Max",MAX(OFFSET(P_Flows!$E$10,12*($A8-1),4*(F$2-1),12,1)),AVERAGE(OFFSET(P_Flows!$E$10,12*($A8-1),4*(F$2-1),12,1))) -> 19.912925 | H8: =IF(PlotControl!$B$4 = "Annual Max",MAX(OFFSET(P_Flows!$C$10,12*($A8-1),4*(I$2-1),12,1)),AVERAGE(OFFSET(P_Flows!$C$10,12*($A8-1),4*(I$2-1),12,1))) -> 3.728383333 | I8: =IF(PlotControl!$B$4 = "Annual Max",MAX(OFFSET(P_Flows!$D$10,12*($A8-1),4*(I$2-1),12,1)),AVERAGE(OFFSET(P_Flows!$D$10,12*($A8-1),4*(I$2-1),12,1))) -> 7.607291667 | J8: =IF(PlotControl!$B$4 = "Annual Max",MAX(OFFSET(P_Flows!$E$10,12*($A8-1),4*(I$2-1),12,1)),AVERAGE(OFFSET(P_Flows!$E$10,12*($A8-1),4*(I$2-1),12,1))) -> 24.131675 | K8: =IF(PlotControl!$B$4 = "Annual Max",MAX(OFFSET(P_Flows!$C$10,12*($A8-1),4*(L$2-1),12,1)),AVERAGE(OFFSET(P_Flows!$C$10,12*($A8-1),4*(L$2-1),12,1))) -> 4.7143 | L8: =IF(PlotControl!$B$4 = "Annual Max",MAX(OFFSET(P_Flows!$D$10,12*($A8-1),4*(L$2-1),12,1)),AVERAGE(OFFSET(P_Flows!$D$10,12*($A8-1),4*(L$2-1),12,1))) -> 11.940925 | M8: =IF(PlotControl!$B$4 = "Annual Max",MAX(OFFSET(P_Flows!$E$10,12*($A8-1),4*(L$2-1),12,1)),AVERAGE(OFFSET(P_Flows!$E$10,12*($A8-1),4*(L$2-1),12,1))) -> 42.655075 | N8: =IF(PlotControl!$B$4 = "Annual Max",MAX(OFFSET(P_Flows!$C$10,12*($A8-1),4*(O$2-1),12,1)),AVERAGE(OFFSET(P_Flows!$C$10,12*($A8-1),4*(O$2-1),12,1))) -> 8.4856 | O8: =IF(PlotControl!$B$4 = "Annual Max",MAX(OFFSET(P_Flows!$D$10,12*($A8-1),4*(O$2-1),12,1)),AVERAGE(OFFSET(P_Flows!$D$10,12*($A8-1),4*(O$2-1),12,1))) -> 28.413325 | P8: =IF(PlotControl!$B$4 = "Annual Max",MAX(OFFSET(P_Flows!$E$10,12*($A8-1),4*(O$2-1),12,1)),AVERAGE(OFFSET(P_Flows!$E$10,12*($A8-1),4*(O$2-1),12,1))) -> 112.643175 | Q8: =IF(PlotControl!$B$4 = "Annual Max",MAX(OFFSET(P_Flows!$C$10,12*($A8-1),4*(R$2-1),12,1)),AVERAGE(OFFSET(P_Flows!$C$10,12*($A8-1),4*(R$2-1),12,1))) -> 11.61375833 | R8: =IF(PlotControl!$B$4 = "Annual Max",MAX(OFFSET(P_Flows!$D$10,12*($A8-1),4*(R$2-1),12,1)),AVERAGE(OFFSET(P_Flows!$D$10,12*($A8-1),4*(R$2-1),12,1))) -> 42.06415833 | S8: =IF(PlotControl!$B$4 = "Annual Max",MAX(OFFSET(P_Flows!$E$10,12*($A8-1),4*(R$2-1),12,1)),AVERAGE(OFFSET(P_Flows!$E$10,12*($A8-1),4*(R$2-1),12,1))) -> 170.9635 | T8: =IF(PlotControl!$B$4 = "Annual Max",MAX(OFFSET(P_Flows!$C$10,12*($A8-1),4*(U$2-1),12,1)),AVERAGE(OFFSET(P_Flows!$C$10,12*($A8-1),4*(U$2-1),12,1))) -> 14.46501667 | U8: =IF(PlotControl!$B$4 = "Annual Max",MAX(OFFSET(P_Flows!$D$10,12*($A8-1),4*(U$2-1),12,1)),AVERAGE(OFFSET(P_Flows!$D$10,12*($A8-1),4*(U$2-1),12,1))) -> 54.490575 | V8: =IF(PlotControl!$B$4 = "Annual Max",MAX(OFFSET(P_Flows!$E$10,12*($A8-1),4*(U$2-1),12,1)),AVERAGE(OFFSET(P_Flows!$E$10,12*($A8-1),4*(U$2-1),12,1))) -> 225.0594167 | W8: =IF(PlotControl!$B$4 = "Annual Max",MAX(OFFSET(P_Flows!$C$10,12*($A8-1),4*(X$2-1),12,1)),AVERAGE(OFFSET(P_Flows!$C$10,12*($A8-1),4*(X$2-1),12,1))) -> 15.186025 | X8: =IF(PlotControl!$B$4 = "Annual Max",MAX(OFFSET(P_Flows!$D$10,12*($A8-1),4*(X$2-1),12,1)),AVERAGE(OFFSET(P_Flows!$D$10,12*($A8-1),4*(X$2-1),12,1))) -> 57.721125 | Y8: =IF(PlotControl!$B$4 = "Annual Max",MAX(OFFSET(P_Flows!$E$10,12*($A8-1),4*(X$2-1),12,1)),AVERAGE(OFFSET(P_Flows!$E$10,12*($A8-1),4*(X$2-1),12,1))) -> 239.1888333 | Z8: =IF(PlotControl!$B$4 = "Annual Max",MAX(OFFSET(P_Flows!$C$10,12*($A8-1),4*(AA$2-1),12,1)),AVERAGE(OFFSET(P_Flows!$C$10,12*($A8-1),4*(AA$2-1),12,1))) -> 17.72029167 | AA8: =IF(PlotControl!$B$4 = "Annual Max",MAX(OFFSET(P_Flows!$D$10,12*($A8-1),4*(AA$2-1),12,1)),AVERAGE(OFFSET(P_Flows!$D$10,12*($A8-1),4*(AA$2-1),12,1))) -> 68.82033333 | AB8: =IF(PlotControl!$B$4 = "Annual Max",MAX(OFFSET(P_Flows!$E$10,12*($A8-1),4*(AA$2-1),12,1)),AVERAGE(OFFSET(P_Flows!$E$10,12*($A8-1),4*(AA$2-1),12,1))) -> 286.8260833 | AD8: 100.25 | AE8: =OFFSET(P_Flows!$C$10,ROUND(12*$AD8,0),4*(AF$2-1),1,1) -> 0.42912 | AF8: =OFFSET(P_Flows!$D$10,ROUND(12*$AD8,0),4*(AF$2-1),1,1) -> 1.7467 | AG8: =OFFSET(P_Flows!$E$10,ROUND(12*$AD8,0),4*(AF$2-1),1,1) -> 5.3804 | AH8: =OFFSET(P_Flows!$C$10,ROUND(12*$AD8,0),4*(AI$2-1),1,1) -> 2.8292 | AI8: =OFFSET(P_Flows!$D$10,ROUND(12*$AD8,0),4*(AI$2-1),1,1) -> 11.516 | AJ8: =OFFSET(P_Flows!$E$10,ROUND(12*$AD8,0),4*(AI$2-1),1,1) -> 35.473 | AK8: =OFFSET(P_Flows!$C$10,ROUND(12*$AD8,0),4*(AL$2-1),1,1) -> 3.4899 | AL8: =OFFSET(P_Flows!$D$10,ROUND(12*$AD8,0),4*(AL$2-1),1,1) -> 14.205 | AM8: =OFFSET(P_Flows!$E$10,ROUND(12*$AD8,0),4*(AL$2-1),1,1) -> 43.757 | AN8: =OFFSET(P_Flows!$C$10,ROUND(12*$AD8,0),4*(AO$2-1),1,1) -> 6.6533 | AO8: =OFFSET(P_Flows!$D$10,ROUND(12*$AD8,0),4*(AO$2-1),1,1) -> 27.081 | AP8: =OFFSET(P_Flows!$E$10,ROUND(12*$AD8,0),4*(AO$2-1),1,1) -> 83.42 | AQ8: =OFFSET(P_Flows!$C$10,ROUND(12*$AD8,0),4*(AR$2-1),1,1) -> 18.97 | AR8: =OFFSET(P_Flows!$D$10,ROUND(12*$AD8,0),4*(AR$2-1),1,1) -> 75.263 | AS8: =OFFSET(P_Flows!$E$10,ROUND(12*$AD8,0),4*(AR$2-1),1,1) -> 230.52 | AT8: =OFFSET(P_Flows!$C$10,ROUND(12*$AD8,0),4*(AU$2-1),1,1) -> 28.3 | AU8: =OFFSET(P_Flows!$D$10,ROUND(12*$AD8,0),4*(AU$2-1),1,1) -> 113.24 | AV8: =OFFSET(P_Flows!$E$10,ROUND(12*$AD8,0),4*(AU$2-1),1,1) -> 347.5 | AW8: =OFFSET(P_Flows!$C$10,ROUND(12*$AD8,0),4*(AX$2-1),1,1) -> 36.643 | AX8: =OFFSET(P_Flows!$D$10,ROUND(12*$AD8,0),4*(AX$2-1),1,1) -> 147.2 | AY8: =OFFSET(P_Flows!$E$10,ROUND(12*$AD8,0),4*(AX$2-1),1,1) -> 452.11 | AZ8: =OFFSET(P_Flows!$C$10,ROUND(12*$AD8,0),4*(BA$2-1),1,1) -> 38.557 | BA8: =OFFSET(P_Flows!$D$10,ROUND(12*$AD8,0),4*(BA$2-1),1,1) -> 154.99 | BB8: =OFFSET(P_Flows!$E$10,ROUND(12*$AD8,0),4*(BA$2-1),1,1) -> 476.11 | BC8: =OFFSET(P_Flows!$C$10,ROUND(12*$AD8,0),4*(BD$2-1),1,1) -> 46.152 | BD8: =OFFSET(P_Flows!$D$10,ROUND(12*$AD8,0),4*(BD$2-1),1,1) -> 185.91 | BE8: =OFFSET(P_Flows!$E$10,ROUND(12*$AD8,0),4*(BD$2-1),1,1) -> 571.34
A9: 5 | B9: =IF(PlotControl!$B$4 = "Annual Max",MAX(OFFSET(P_Flows!$C$10,12*($A9-1),4*(C$2-1),12,1)),AVERAGE(OFFSET(P_Flows!$C$10,12*($A9-1),4*(C$2-1),12,1))) -> 2.7579 | C9: =IF(PlotControl!$B$4 = "Annual Max",MAX(OFFSET(P_Flows!$D$10,12*($A9-1),4*(C$2-1),12,1)),AVERAGE(OFFSET(P_Flows!$D$10,12*($A9-1),4*(C$2-1),12,1))) -> 3.351841667 | D9: =IF(PlotControl!$B$4 = "Annual Max",MAX(OFFSET(P_Flows!$E$10,12*($A9-1),4*(C$2-1),12,1)),AVERAGE(OFFSET(P_Flows!$E$10,12*($A9-1),4*(C$2-1),12,1))) -> 5.858933333 | E9: =IF(PlotControl!$B$4 = "Annual Max",MAX(OFFSET(P_Flows!$C$10,12*($A9-1),4*(F$2-1),12,1)),AVERAGE(OFFSET(P_Flows!$C$10,12*($A9-1),4*(F$2-1),12,1))) -> 3.496691667 | F9: =IF(PlotControl!$B$4 = "Annual Max",MAX(OFFSET(P_Flows!$D$10,12*($A9-1),4*(F$2-1),12,1)),AVERAGE(OFFSET(P_Flows!$D$10,12*($A9-1),4*(F$2-1),12,1))) -> 6.76105 | G9: =IF(PlotControl!$B$4 = "Annual Max",MAX(OFFSET(P_Flows!$E$10,12*($A9-1),4*(F$2-1),12,1)),AVERAGE(OFFSET(P_Flows!$E$10,12*($A9-1),4*(F$2-1),12,1))) -> 20.025675 | H9: =IF(PlotControl!$B$4 = "Annual Max",MAX(OFFSET(P_Flows!$C$10,12*($A9-1),4*(I$2-1),12,1)),AVERAGE(OFFSET(P_Flows!$C$10,12*($A9-1),4*(I$2-1),12,1))) -> 3.726833333 | I9: =IF(PlotControl!$B$4 = "Annual Max",MAX(OFFSET(P_Flows!$D$10,12*($A9-1),4*(I$2-1),12,1)),AVERAGE(OFFSET(P_Flows!$D$10,12*($A9-1),4*(I$2-1),12,1))) -> 7.799008333 | J9: =IF(PlotControl!$B$4 = "Annual Max",MAX(OFFSET(P_Flows!$E$10,12*($A9-1),4*(I$2-1),12,1)),AVERAGE(OFFSET(P_Flows!$E$10,12*($A9-1),4*(I$2-1),12,1))) -> 24.28069167 | K9: =IF(PlotControl!$B$4 = "Annual Max",MAX(OFFSET(P_Flows!$C$10,12*($A9-1),4*(L$2-1),12,1)),AVERAGE(OFFSET(P_Flows!$C$10,12*($A9-1),4*(L$2-1),12,1))) -> 4.711241667 | L9: =IF(PlotControl!$B$4 = "Annual Max",MAX(OFFSET(P_Flows!$D$10,12*($A9-1),4*(L$2-1),12,1)),AVERAGE(OFFSET(P_Flows!$D$10,12*($A9-1),4*(L$2-1),12,1))) -> 12.3093 | M9: =IF(PlotControl!$B$4 = "Annual Max",MAX(OFFSET(P_Flows!$E$10,12*($A9-1),4*(L$2-1),12,1)),AVERAGE(OFFSET(P_Flows!$E$10,12*($A9-1),4*(L$2-1),12,1))) -> 42.94133333 | N9: =IF(PlotControl!$B$4 = "Annual Max",MAX(OFFSET(P_Flows!$C$10,12*($A9-1),4*(O$2-1),12,1)),AVERAGE(OFFSET(P_Flows!$C$10,12*($A9-1),4*(O$2-1),12,1))) -> 8.467825 | O9: =IF(PlotControl!$B$4 = "Annual Max",MAX(OFFSET(P_Flows!$D$10,12*($A9-1),4*(O$2-1),12,1)),AVERAGE(OFFSET(P_Flows!$D$10,12*($A9-1),4*(O$2-1),12,1))) -> 29.43596667 | P9: =IF(PlotControl!$B$4 = "Annual Max",MAX(OFFSET(P_Flows!$E$10,12*($A9-1),4*(O$2-1),12,1)),AVERAGE(OFFSET(P_Flows!$E$10,12*($A9-1),4*(O$2-1),12,1))) -> 113.2776583 | Q9: =IF(PlotControl!$B$4 = "Annual Max",MAX(OFFSET(P_Flows!$C$10,12*($A9-1),4*(R$2-1),12,1)),AVERAGE(OFFSET(P_Flows!$C$10,12*($A9-1),4*(R$2-1),12,1))) -> 11.59331667 | R9: =IF(PlotControl!$B$4 = "Annual Max",MAX(OFFSET(P_Flows!$D$10,12*($A9-1),4*(R$2-1),12,1)),AVERAGE(OFFSET(P_Flows!$D$10,12*($A9-1),4*(R$2-1),12,1))) -> 43.683325 | S9: =IF(PlotControl!$B$4 = "Annual Max",MAX(OFFSET(P_Flows!$E$10,12*($A9-1),4*(R$2-1),12,1)),AVERAGE(OFFSET(P_Flows!$E$10,12*($A9-1),4*(R$2-1),12,1))) -> 172.2130833 | T9: =IF(PlotControl!$B$4 = "Annual Max",MAX(OFFSET(P_Flows!$C$10,12*($A9-1),4*(U$2-1),12,1)),AVERAGE(OFFSET(P_Flows!$C$10,12*($A9-1),4*(U$2-1),12,1))) -> 14.44726667 | U9: =IF(PlotControl!$B$4 = "Annual Max",MAX(OFFSET(P_Flows!$D$10,12*($A9-1),4*(U$2-1),12,1)),AVERAGE(OFFSET(P_Flows!$D$10,12*($A9-1),4*(U$2-1),12,1))) -> 56.718275 | V9: =IF(PlotControl!$B$4 = "Annual Max",MAX(OFFSET(P_Flows!$E$10,12*($A9-1),4*(U$2-1),12,1)),AVERAGE(OFFSET(P_Flows!$E$10,12*($A9-1),4*(U$2-1),12,1))) -> 227.4000833 | W9: =IF(PlotControl!$B$4 = "Annual Max",MAX(OFFSET(P_Flows!$C$10,12*($A9-1),4*(X$2-1),12,1)),AVERAGE(OFFSET(P_Flows!$C$10,12*($A9-1),4*(X$2-1),12,1))) -> 15.158225 | X9: =IF(PlotControl!$B$4 = "Annual Max",MAX(OFFSET(P_Flows!$D$10,12*($A9-1),4*(X$2-1),12,1)),AVERAGE(OFFSET(P_Flows!$D$10,12*($A9-1),4*(X$2-1),12,1))) -> 60.03369167 | Y9: =IF(PlotControl!$B$4 = "Annual Max",MAX(OFFSET(P_Flows!$E$10,12*($A9-1),4*(X$2-1),12,1)),AVERAGE(OFFSET(P_Flows!$E$10,12*($A9-1),4*(X$2-1),12,1))) -> 241.5028333 | Z9: =IF(PlotControl!$B$4 = "Annual Max",MAX(OFFSET(P_Flows!$C$10,12*($A9-1),4*(AA$2-1),12,1)),AVERAGE(OFFSET(P_Flows!$C$10,12*($A9-1),4*(AA$2-1),12,1))) -> 17.69046667 | AA9: =IF(PlotControl!$B$4 = "Annual Max",MAX(OFFSET(P_Flows!$D$10,12*($A9-1),4*(AA$2-1),12,1)),AVERAGE(OFFSET(P_Flows!$D$10,12*($A9-1),4*(AA$2-1),12,1))) -> 71.6136 | AB9: =IF(PlotControl!$B$4 = "Annual Max",MAX(OFFSET(P_Flows!$E$10,12*($A9-1),4*(AA$2-1),12,1)),AVERAGE(OFFSET(P_Flows!$E$10,12*($A9-1),4*(AA$2-1),12,1))) -> 289.6719167 | AD9: 100.3333333 | AE9: =OFFSET(P_Flows!$C$10,ROUND(12*$AD9,0),4*(AF$2-1),1,1) -> 0.56728 | AF9: =OFFSET(P_Flows!$D$10,ROUND(12*$AD9,0),4*(AF$2-1),1,1) -> 2.3532 | AG9: =OFFSET(P_Flows!$E$10,ROUND(12*$AD9,0),4*(AF$2-1),1,1) -> 7.5698 | AH9: =OFFSET(P_Flows!$C$10,ROUND(12*$AD9,0),4*(AI$2-1),1,1) -> 3.0951 | AI9: =OFFSET(P_Flows!$D$10,ROUND(12*$AD9,0),4*(AI$2-1),1,1) -> 12.839 | AJ9: =OFFSET(P_Flows!$E$10,ROUND(12*$AD9,0),4*(AI$2-1),1,1) -> 41.301 | AK9: =OFFSET(P_Flows!$C$10,ROUND(12*$AD9,0),4*(AL$2-1),1,1) -> 3.8893 | AL9: =OFFSET(P_Flows!$D$10,ROUND(12*$AD9,0),4*(AL$2-1),1,1) -> 16.134 | AM9: =OFFSET(P_Flows!$E$10,ROUND(12*$AD9,0),4*(AL$2-1),1,1) -> 51.899 | AN9: =OFFSET(P_Flows!$C$10,ROUND(12*$AD9,0),4*(AO$2-1),1,1) -> 7.42 | AO9: =OFFSET(P_Flows!$D$10,ROUND(12*$AD9,0),4*(AO$2-1),1,1) -> 30.78 | AP9: =OFFSET(P_Flows!$E$10,ROUND(12*$AD9,0),4*(AO$2-1),1,1) -> 99.013 | AQ9: =OFFSET(P_Flows!$C$10,ROUND(12*$AD9,0),4*(AR$2-1),1,1) -> 21.206 | AR9: =OFFSET(P_Flows!$D$10,ROUND(12*$AD9,0),4*(AR$2-1),1,1) -> 85.367 | AS9: =OFFSET(P_Flows!$E$10,ROUND(12*$AD9,0),4*(AR$2-1),1,1) -> 272.81 | AT9: =OFFSET(P_Flows!$C$10,ROUND(12*$AD9,0),4*(AU$2-1),1,1) -> 32.534 | AU9: =OFFSET(P_Flows!$D$10,ROUND(12*$AD9,0),4*(AU$2-1),1,1) -> 131.85 | AV9: =OFFSET(P_Flows!$E$10,ROUND(12*$AD9,0),4*(AU$2-1),1,1) -> 422.33 | AW9: =OFFSET(P_Flows!$C$10,ROUND(12*$AD9,0),4*(AX$2-1),1,1) -> 44.147 | AX9: =OFFSET(P_Flows!$D$10,ROUND(12*$AD9,0),4*(AX$2-1),1,1) -> 179.68 | AY9: =OFFSET(P_Flows!$E$10,ROUND(12*$AD9,0),4*(AX$2-1),1,1) -> 576.21 | AZ9: =OFFSET(P_Flows!$C$10,ROUND(12*$AD9,0),4*(BA$2-1),1,1) -> 46.39 | BA9: =OFFSET(P_Flows!$D$10,ROUND(12*$AD9,0),4*(BA$2-1),1,1) -> 188.97 | BB9: =OFFSET(P_Flows!$E$10,ROUND(12*$AD9,0),4*(BA$2-1),1,1) -> 606.07 | BC9: =OFFSET(P_Flows!$C$10,ROUND(12*$AD9,0),4*(BD$2-1),1,1) -> 55.489 | BD9: =OFFSET(P_Flows!$D$10,ROUND(12*$AD9,0),4*(BD$2-1),1,1) -> 226.62 | BE9: =OFFSET(P_Flows!$E$10,ROUND(12*$AD9,0),4*(BD$2-1),1,1) -> 727.19
A10: 6 | B10: =IF(PlotControl!$B$4 = "Annual Max",MAX(OFFSET(P_Flows!$C$10,12*($A10-1),4*(C$2-1),12,1)),AVERAGE(OFFSET(P_Flows!$C$10,12*($A10-1),4*(C$2-1),12,1))) -> 2.763858333 | C10: =IF(PlotControl!$B$4 = "Annual Max",MAX(OFFSET(P_Flows!$D$10,12*($A10-1),4*(C$2-1),12,1)),AVERAGE(OFFSET(P_Flows!$D$10,12*($A10-1),4*(C$2-1),12,1))) -> 3.38375 | D10: =IF(PlotControl!$B$4 = "Annual Max",MAX(OFFSET(P_Flows!$E$10,12*($A10-1),4*(C$2-1),12,1)),AVERAGE(OFFSET(P_Flows!$E$10,12*($A10-1),4*(C$2-1),12,1))) -> 5.798958333 | E10: =IF(PlotControl!$B$4 = "Annual Max",MAX(OFFSET(P_Flows!$C$10,12*($A10-1),4*(F$2-1),12,1)),AVERAGE(OFFSET(P_Flows!$C$10,12*($A10-1),4*(F$2-1),12,1))) -> 3.534416667 | F10: =IF(PlotControl!$B$4 = "Annual Max",MAX(OFFSET(P_Flows!$D$10,12*($A10-1),4*(F$2-1),12,1)),AVERAGE(OFFSET(P_Flows!$D$10,12*($A10-1),4*(F$2-1),12,1))) -> 6.981666667 | G10: =IF(PlotControl!$B$4 = "Annual Max",MAX(OFFSET(P_Flows!$E$10,12*($A10-1),4*(F$2-1),12,1)),AVERAGE(OFFSET(P_Flows!$E$10,12*($A10-1),4*(F$2-1),12,1))) -> 19.81955 | H10: =IF(PlotControl!$B$4 = "Annual Max",MAX(OFFSET(P_Flows!$C$10,12*($A10-1),4*(I$2-1),12,1)),AVERAGE(OFFSET(P_Flows!$C$10,12*($A10-1),4*(I$2-1),12,1))) -> 3.775283333 | I10: =IF(PlotControl!$B$4 = "Annual Max",MAX(OFFSET(P_Flows!$D$10,12*($A10-1),4*(I$2-1),12,1)),AVERAGE(OFFSET(P_Flows!$D$10,12*($A10-1),4*(I$2-1),12,1))) -> 8.07455 | J10: =IF(PlotControl!$B$4 = "Annual Max",MAX(OFFSET(P_Flows!$E$10,12*($A10-1),4*(I$2-1),12,1)),AVERAGE(OFFSET(P_Flows!$E$10,12*($A10-1),4*(I$2-1),12,1))) -> 24.014425 | K10: =IF(PlotControl!$B$4 = "Annual Max",MAX(OFFSET(P_Flows!$C$10,12*($A10-1),4*(L$2-1),12,1)),AVERAGE(OFFSET(P_Flows!$C$10,12*($A10-1),4*(L$2-1),12,1))) -> 4.8064 | L10: =IF(PlotControl!$B$4 = "Annual Max",MAX(OFFSET(P_Flows!$D$10,12*($A10-1),4*(L$2-1),12,1)),AVERAGE(OFFSET(P_Flows!$D$10,12*($A10-1),4*(L$2-1),12,1))) -> 12.83505 | M10: =IF(PlotControl!$B$4 = "Annual Max",MAX(OFFSET(P_Flows!$E$10,12*($A10-1),4*(L$2-1),12,1)),AVERAGE(OFFSET(P_Flows!$E$10,12*($A10-1),4*(L$2-1),12,1))) -> 42.39391667 | N10: =IF(PlotControl!$B$4 = "Annual Max",MAX(OFFSET(P_Flows!$C$10,12*($A10-1),4*(O$2-1),12,1)),AVERAGE(OFFSET(P_Flows!$C$10,12*($A10-1),4*(O$2-1),12,1))) -> 8.739925 | O10: =IF(PlotControl!$B$4 = "Annual Max",MAX(OFFSET(P_Flows!$D$10,12*($A10-1),4*(O$2-1),12,1)),AVERAGE(OFFSET(P_Flows!$D$10,12*($A10-1),4*(O$2-1),12,1))) -> 30.91164167 | P10: =IF(PlotControl!$B$4 = "Annual Max",MAX(OFFSET(P_Flows!$E$10,12*($A10-1),4*(O$2-1),12,1)),AVERAGE(OFFSET(P_Flows!$E$10,12*($A10-1),4*(O$2-1),12,1))) -> 111.6125833 | Q10: =IF(PlotControl!$B$4 = "Annual Max",MAX(OFFSET(P_Flows!$C$10,12*($A10-1),4*(R$2-1),12,1)),AVERAGE(OFFSET(P_Flows!$C$10,12*($A10-1),4*(R$2-1),12,1))) -> 12.02708333 | R10: =IF(PlotControl!$B$4 = "Annual Max",MAX(OFFSET(P_Flows!$D$10,12*($A10-1),4*(R$2-1),12,1)),AVERAGE(OFFSET(P_Flows!$D$10,12*($A10-1),4*(R$2-1),12,1))) -> 45.95466667 | S10: =IF(PlotControl!$B$4 = "Annual Max",MAX(OFFSET(P_Flows!$E$10,12*($A10-1),4*(R$2-1),12,1)),AVERAGE(OFFSET(P_Flows!$E$10,12*($A10-1),4*(R$2-1),12,1))) -> 169.5619167 | T10: =IF(PlotControl!$B$4 = "Annual Max",MAX(OFFSET(P_Flows!$C$10,12*($A10-1),4*(U$2-1),12,1)),AVERAGE(OFFSET(P_Flows!$C$10,12*($A10-1),4*(U$2-1),12,1))) -> 15.050725 | U10: =IF(PlotControl!$B$4 = "Annual Max",MAX(OFFSET(P_Flows!$D$10,12*($A10-1),4*(U$2-1),12,1)),AVERAGE(OFFSET(P_Flows!$D$10,12*($A10-1),4*(U$2-1),12,1))) -> 59.69126667 | V10: =IF(PlotControl!$B$4 = "Annual Max",MAX(OFFSET(P_Flows!$E$10,12*($A10-1),4*(U$2-1),12,1)),AVERAGE(OFFSET(P_Flows!$E$10,12*($A10-1),4*(U$2-1),12,1))) -> 223.2836667 | W10: =IF(PlotControl!$B$4 = "Annual Max",MAX(OFFSET(P_Flows!$C$10,12*($A10-1),4*(X$2-1),12,1)),AVERAGE(OFFSET(P_Flows!$C$10,12*($A10-1),4*(X$2-1),12,1))) -> 15.7831 | X10: =IF(PlotControl!$B$4 = "Annual Max",MAX(OFFSET(P_Flows!$D$10,12*($A10-1),4*(X$2-1),12,1)),AVERAGE(OFFSET(P_Flows!$D$10,12*($A10-1),4*(X$2-1),12,1))) -> 63.131575 | Y10: =IF(PlotControl!$B$4 = "Annual Max",MAX(OFFSET(P_Flows!$E$10,12*($A10-1),4*(X$2-1),12,1)),AVERAGE(OFFSET(P_Flows!$E$10,12*($A10-1),4*(X$2-1),12,1))) -> 236.98125 | Z10: =IF(PlotControl!$B$4 = "Annual Max",MAX(OFFSET(P_Flows!$C$10,12*($A10-1),4*(AA$2-1),12,1)),AVERAGE(OFFSET(P_Flows!$C$10,12*($A10-1),4*(AA$2-1),12,1))) -> 18.444675 | AA10: =IF(PlotControl!$B$4 = "Annual Max",MAX(OFFSET(P_Flows!$D$10,12*($A10-1),4*(AA$2-1),12,1)),AVERAGE(OFFSET(P_Flows!$D$10,12*($A10-1),4*(AA$2-1),12,1))) -> 75.35225 | AB10: =IF(PlotControl!$B$4 = "Annual Max",MAX(OFFSET(P_Flows!$E$10,12*($A10-1),4*(AA$2-1),12,1)),AVERAGE(OFFSET(P_Flows!$E$10,12*($A10-1),4*(AA$2-1),12,1))) -> 284.301 | AD10: 100.4166667 | AE10: =OFFSET(P_Flows!$C$10,ROUND(12*$AD10,0),4*(AF$2-1),1,1) -> 0.1473 | AF10: =OFFSET(P_Flows!$D$10,ROUND(12*$AD10,0),4*(AF$2-1),1,1) -> 1.0748 | AG10: =OFFSET(P_Flows!$E$10,ROUND(12*$AD10,0),4*(AF$2-1),1,1) -> 2.8932 | AH10: =OFFSET(P_Flows!$C$10,ROUND(12*$AD10,0),4*(AI$2-1),1,1) -> 0.83403 | AI10: =OFFSET(P_Flows!$D$10,ROUND(12*$AD10,0),4*(AI$2-1),1,1) -> 6.086 | AJ10: =OFFSET(P_Flows!$E$10,ROUND(12*$AD10,0),4*(AI$2-1),1,1) -> 16.382 | AK10: =OFFSET(P_Flows!$C$10,ROUND(12*$AD10,0),4*(AL$2-1),1,1) -> 0.99986 | AL10: =OFFSET(P_Flows!$D$10,ROUND(12*$AD10,0),4*(AL$2-1),1,1) -> 7.296 | AM10: =OFFSET(P_Flows!$E$10,ROUND(12*$AD10,0),4*(AL$2-1),1,1) -> 19.639 | AN10: =OFFSET(P_Flows!$C$10,ROUND(12*$AD10,0),4*(AO$2-1),1,1) -> 1.8592 | AO10: =OFFSET(P_Flows!$D$10,ROUND(12*$AD10,0),4*(AO$2-1),1,1) -> 13.567 | AP10: =OFFSET(P_Flows!$E$10,ROUND(12*$AD10,0),4*(AO$2-1),1,1) -> 36.519 | AQ10: =OFFSET(P_Flows!$C$10,ROUND(12*$AD10,0),4*(AR$2-1),1,1) -> 5.5605 | AR10: =OFFSET(P_Flows!$D$10,ROUND(12*$AD10,0),4*(AR$2-1),1,1) -> 36.051 | AS10: =OFFSET(P_Flows!$E$10,ROUND(12*$AD10,0),4*(AR$2-1),1,1) -> 95.554 | AT10: =OFFSET(P_Flows!$C$10,ROUND(12*$AD10,0),4*(AU$2-1),1,1) -> 7.9342 | AU10: =OFFSET(P_Flows!$D$10,ROUND(12*$AD10,0),4*(AU$2-1),1,1) -> 53.707 | AV10: =OFFSET(P_Flows!$E$10,ROUND(12*$AD10,0),4*(AU$2-1),1,1) -> 143.3 | AW10: =OFFSET(P_Flows!$C$10,ROUND(12*$AD10,0),4*(AX$2-1),1,1) -> 9.8437 | AX10: =OFFSET(P_Flows!$D$10,ROUND(12*$AD10,0),4*(AX$2-1),1,1) -> 67.806 | AY10: =OFFSET(P_Flows!$E$10,ROUND(12*$AD10,0),4*(AX$2-1),1,1) -> 181.43 | AZ10: =OFFSET(P_Flows!$C$10,ROUND(12*$AD10,0),4*(BA$2-1),1,1) -> 10.381 | BA10: =OFFSET(P_Flows!$D$10,ROUND(12*$AD10,0),4*(BA$2-1),1,1) -> 71.723 | BB10: =OFFSET(P_Flows!$E$10,ROUND(12*$AD10,0),4*(BA$2-1),1,1) -> 191.99 | BC10: =OFFSET(P_Flows!$C$10,ROUND(12*$AD10,0),4*(BD$2-1),1,1) -> 12.333 | BD10: =OFFSET(P_Flows!$D$10,ROUND(12*$AD10,0),4*(BD$2-1),1,1) -> 85.96 | BE10: =OFFSET(P_Flows!$E$10,ROUND(12*$AD10,0),4*(BD$2-1),1,1) -> 230.31
A11: 7 | B11: =IF(PlotControl!$B$4 = "Annual Max",MAX(OFFSET(P_Flows!$C$10,12*($A11-1),4*(C$2-1),12,1)),AVERAGE(OFFSET(P_Flows!$C$10,12*($A11-1),4*(C$2-1),12,1))) -> 2.7584 | C11: =IF(PlotControl!$B$4 = "Annual Max",MAX(OFFSET(P_Flows!$D$10,12*($A11-1),4*(C$2-1),12,1)),AVERAGE(OFFSET(P_Flows!$D$10,12*($A11-1),4*(C$2-1),12,1))) -> 3.346008333 | D11: =IF(PlotControl!$B$4 = "Annual Max",MAX(OFFSET(P_Flows!$E$10,12*($A11-1),4*(C$2-1),12,1)),AVERAGE(OFFSET(P_Flows!$E$10,12*($A11-1),4*(C$2-1),12,1))) -> 5.706775 | E11: =IF(PlotControl!$B$4 = "Annual Max",MAX(OFFSET(P_Flows!$C$10,12*($A11-1),4*(F$2-1),12,1)),AVERAGE(OFFSET(P_Flows!$C$10,12*($A11-1),4*(F$2-1),12,1))) -> 3.504375 | F11: =IF(PlotControl!$B$4 = "Annual Max",MAX(OFFSET(P_Flows!$D$10,12*($A11-1),4*(F$2-1),12,1)),AVERAGE(OFFSET(P_Flows!$D$10,12*($A11-1),4*(F$2-1),12,1))) -> 6.748591667 | G11: =IF(PlotControl!$B$4 = "Annual Max",MAX(OFFSET(P_Flows!$E$10,12*($A11-1),4*(F$2-1),12,1)),AVERAGE(OFFSET(P_Flows!$E$10,12*($A11-1),4*(F$2-1),12,1))) -> 19.26270833 | H11: =IF(PlotControl!$B$4 = "Annual Max",MAX(OFFSET(P_Flows!$C$10,12*($A11-1),4*(I$2-1),12,1)),AVERAGE(OFFSET(P_Flows!$C$10,12*($A11-1),4*(I$2-1),12,1))) -> 3.736933333 | I11: =IF(PlotControl!$B$4 = "Annual Max",MAX(OFFSET(P_Flows!$D$10,12*($A11-1),4*(I$2-1),12,1)),AVERAGE(OFFSET(P_Flows!$D$10,12*($A11-1),4*(I$2-1),12,1))) -> 7.78685 | J11: =IF(PlotControl!$B$4 = "Annual Max",MAX(OFFSET(P_Flows!$E$10,12*($A11-1),4*(I$2-1),12,1)),AVERAGE(OFFSET(P_Flows!$E$10,12*($A11-1),4*(I$2-1),12,1))) -> 23.33630833 | K11: =IF(PlotControl!$B$4 = "Annual Max",MAX(OFFSET(P_Flows!$C$10,12*($A11-1),4*(L$2-1),12,1)),AVERAGE(OFFSET(P_Flows!$C$10,12*($A11-1),4*(L$2-1),12,1))) -> 4.732366667 | L11: =IF(PlotControl!$B$4 = "Annual Max",MAX(OFFSET(P_Flows!$D$10,12*($A11-1),4*(L$2-1),12,1)),AVERAGE(OFFSET(P_Flows!$D$10,12*($A11-1),4*(L$2-1),12,1))) -> 12.29390833 | M11: =IF(PlotControl!$B$4 = "Annual Max",MAX(OFFSET(P_Flows!$E$10,12*($A11-1),4*(L$2-1),12,1)),AVERAGE(OFFSET(P_Flows!$E$10,12*($A11-1),4*(L$2-1),12,1))) -> 41.141525 | N11: =IF(PlotControl!$B$4 = "Annual Max",MAX(OFFSET(P_Flows!$C$10,12*($A11-1),4*(O$2-1),12,1)),AVERAGE(OFFSET(P_Flows!$C$10,12*($A11-1),4*(O$2-1),12,1))) -> 8.516033333 | O11: =IF(PlotControl!$B$4 = "Annual Max",MAX(OFFSET(P_Flows!$D$10,12*($A11-1),4*(O$2-1),12,1)),AVERAGE(OFFSET(P_Flows!$D$10,12*($A11-1),4*(O$2-1),12,1))) -> 29.34439167 | P11: =IF(PlotControl!$B$4 = "Annual Max",MAX(OFFSET(P_Flows!$E$10,12*($A11-1),4*(O$2-1),12,1)),AVERAGE(OFFSET(P_Flows!$E$10,12*($A11-1),4*(O$2-1),12,1))) -> 108.0520833 | Q11: =IF(PlotControl!$B$4 = "Annual Max",MAX(OFFSET(P_Flows!$C$10,12*($A11-1),4*(R$2-1),12,1)),AVERAGE(OFFSET(P_Flows!$C$10,12*($A11-1),4*(R$2-1),12,1))) -> 11.6849 | R11: =IF(PlotControl!$B$4 = "Annual Max",MAX(OFFSET(P_Flows!$D$10,12*($A11-1),4*(R$2-1),12,1)),AVERAGE(OFFSET(P_Flows!$D$10,12*($A11-1),4*(R$2-1),12,1))) -> 43.62684167 | S11: =IF(PlotControl!$B$4 = "Annual Max",MAX(OFFSET(P_Flows!$E$10,12*($A11-1),4*(R$2-1),12,1)),AVERAGE(OFFSET(P_Flows!$E$10,12*($A11-1),4*(R$2-1),12,1))) -> 164.3926667 | T11: =IF(PlotControl!$B$4 = "Annual Max",MAX(OFFSET(P_Flows!$C$10,12*($A11-1),4*(U$2-1),12,1)),AVERAGE(OFFSET(P_Flows!$C$10,12*($A11-1),4*(U$2-1),12,1))) -> 14.59465 | U11: =IF(PlotControl!$B$4 = "Annual Max",MAX(OFFSET(P_Flows!$D$10,12*($A11-1),4*(U$2-1),12,1)),AVERAGE(OFFSET(P_Flows!$D$10,12*($A11-1),4*(U$2-1),12,1))) -> 56.7674 | V11: =IF(PlotControl!$B$4 = "Annual Max",MAX(OFFSET(P_Flows!$E$10,12*($A11-1),4*(U$2-1),12,1)),AVERAGE(OFFSET(P_Flows!$E$10,12*($A11-1),4*(U$2-1),12,1))) -> 217.0765833 | W11: =IF(PlotControl!$B$4 = "Annual Max",MAX(OFFSET(P_Flows!$C$10,12*($A11-1),4*(X$2-1),12,1)),AVERAGE(OFFSET(P_Flows!$C$10,12*($A11-1),4*(X$2-1),12,1))) -> 15.29323333 | X11: =IF(PlotControl!$B$4 = "Annual Max",MAX(OFFSET(P_Flows!$D$10,12*($A11-1),4*(X$2-1),12,1)),AVERAGE(OFFSET(P_Flows!$D$10,12*($A11-1),4*(X$2-1),12,1))) -> 59.99046667 | Y11: =IF(PlotControl!$B$4 = "Annual Max",MAX(OFFSET(P_Flows!$E$10,12*($A11-1),4*(X$2-1),12,1)),AVERAGE(OFFSET(P_Flows!$E$10,12*($A11-1),4*(X$2-1),12,1))) -> 230.2084167 | Z11: =IF(PlotControl!$B$4 = "Annual Max",MAX(OFFSET(P_Flows!$C$10,12*($A11-1),4*(AA$2-1),12,1)),AVERAGE(OFFSET(P_Flows!$C$10,12*($A11-1),4*(AA$2-1),12,1))) -> 17.85940833 | AA11: =IF(PlotControl!$B$4 = "Annual Max",MAX(OFFSET(P_Flows!$D$10,12*($A11-1),4*(AA$2-1),12,1)),AVERAGE(OFFSET(P_Flows!$D$10,12*($A11-1),4*(AA$2-1),12,1))) -> 71.59295 | AB11: =IF(PlotControl!$B$4 = "Annual Max",MAX(OFFSET(P_Flows!$E$10,12*($A11-1),4*(AA$2-1),12,1)),AVERAGE(OFFSET(P_Flows!$E$10,12*($A11-1),4*(AA$2-1),12,1))) -> 276.225 | AD11: 100.5 | AE11: =OFFSET(P_Flows!$C$10,ROUND(12*$AD11,0),4*(AF$2-1),1,1) -> 0.044931 | AF11: =OFFSET(P_Flows!$D$10,ROUND(12*$AD11,0),4*(AF$2-1),1,1) -> 0.62136 | AG11: =OFFSET(P_Flows!$E$10,ROUND(12*$AD11,0),4*(AF$2-1),1,1) -> 8.3328 | AH11: =OFFSET(P_Flows!$C$10,ROUND(12*$AD11,0),4*(AI$2-1),1,1) -> 0.22079 | AI11: =OFFSET(P_Flows!$D$10,ROUND(12*$AD11,0),4*(AI$2-1),1,1) -> 3.0533 | AJ11: =OFFSET(P_Flows!$E$10,ROUND(12*$AD11,0),4*(AI$2-1),1,1) -> 40.947 | AK11: =OFFSET(P_Flows!$C$10,ROUND(12*$AD11,0),4*(AL$2-1),1,1) -> 0.2684 | AL11: =OFFSET(P_Flows!$D$10,ROUND(12*$AD11,0),4*(AL$2-1),1,1) -> 3.7117 | AM11: =OFFSET(P_Flows!$E$10,ROUND(12*$AD11,0),4*(AL$2-1),1,1) -> 49.776 | AN11: =OFFSET(P_Flows!$C$10,ROUND(12*$AD11,0),4*(AO$2-1),1,1) -> 0.50465 | AO11: =OFFSET(P_Flows!$D$10,ROUND(12*$AD11,0),4*(AO$2-1),1,1) -> 6.9789 | AP11: =OFFSET(P_Flows!$E$10,ROUND(12*$AD11,0),4*(AO$2-1),1,1) -> 93.593 | AQ11: =OFFSET(P_Flows!$C$10,ROUND(12*$AD11,0),4*(AR$2-1),1,1) -> 2.0366 | AR11: =OFFSET(P_Flows!$D$10,ROUND(12*$AD11,0),4*(AR$2-1),1,1) -> 18.687 | AS11: =OFFSET(P_Flows!$E$10,ROUND(12*$AD11,0),4*(AR$2-1),1,1) -> 242.11 | AT11: =OFFSET(P_Flows!$C$10,ROUND(12*$AD11,0),4*(AU$2-1),1,1) -> 2.7002 | AU11: =OFFSET(P_Flows!$D$10,ROUND(12*$AD11,0),4*(AU$2-1),1,1) -> 28.523 | AV11: =OFFSET(P_Flows!$E$10,ROUND(12*$AD11,0),4*(AU$2-1),1,1) -> 373.5 | AW11: =OFFSET(P_Flows!$C$10,ROUND(12*$AD11,0),4*(AX$2-1),1,1) -> 3.4671 | AX11: =OFFSET(P_Flows!$D$10,ROUND(12*$AD11,0),4*(AX$2-1),1,1) -> 39.52 | AY11: =OFFSET(P_Flows!$E$10,ROUND(12*$AD11,0),4*(AX$2-1),1,1) -> 520.4 | AZ11: =OFFSET(P_Flows!$C$10,ROUND(12*$AD11,0),4*(BA$2-1),1,1) -> 3.6395 | BA11: =OFFSET(P_Flows!$D$10,ROUND(12*$AD11,0),4*(BA$2-1),1,1) -> 41.887 | BB11: =OFFSET(P_Flows!$E$10,ROUND(12*$AD11,0),4*(BA$2-1),1,1) -> 552.02 | BC11: =OFFSET(P_Flows!$C$10,ROUND(12*$AD11,0),4*(BD$2-1),1,1) -> 4.2412 | BD11: =OFFSET(P_Flows!$D$10,ROUND(12*$AD11,0),4*(BD$2-1),1,1) -> 50.149 | BE11: =OFFSET(P_Flows!$E$10,ROUND(12*$AD11,0),4*(BD$2-1),1,1) -> 662.39
A12: 8 | B12: =IF(PlotControl!$B$4 = "Annual Max",MAX(OFFSET(P_Flows!$C$10,12*($A12-1),4*(C$2-1),12,1)),AVERAGE(OFFSET(P_Flows!$C$10,12*($A12-1),4*(C$2-1),12,1))) -> 2.760216667 | C12: =IF(PlotControl!$B$4 = "Annual Max",MAX(OFFSET(P_Flows!$D$10,12*($A12-1),4*(C$2-1),12,1)),AVERAGE(OFFSET(P_Flows!$D$10,12*($A12-1),4*(C$2-1),12,1))) -> 3.37635 | D12: =IF(PlotControl!$B$4 = "Annual Max",MAX(OFFSET(P_Flows!$E$10,12*($A12-1),4*(C$2-1),12,1)),AVERAGE(OFFSET(P_Flows!$E$10,12*($A12-1),4*(C$2-1),12,1))) -> 5.76765 | E12: =IF(PlotControl!$B$4 = "Annual Max",MAX(OFFSET(P_Flows!$C$10,12*($A12-1),4*(F$2-1),12,1)),AVERAGE(OFFSET(P_Flows!$C$10,12*($A12-1),4*(F$2-1),12,1))) -> 3.509041667 | F12: =IF(PlotControl!$B$4 = "Annual Max",MAX(OFFSET(P_Flows!$D$10,12*($A12-1),4*(F$2-1),12,1)),AVERAGE(OFFSET(P_Flows!$D$10,12*($A12-1),4*(F$2-1),12,1))) -> 6.878258333 | G12: =IF(PlotControl!$B$4 = "Annual Max",MAX(OFFSET(P_Flows!$E$10,12*($A12-1),4*(F$2-1),12,1)),AVERAGE(OFFSET(P_Flows!$E$10,12*($A12-1),4*(F$2-1),12,1))) -> 19.61075833 | H12: =IF(PlotControl!$B$4 = "Annual Max",MAX(OFFSET(P_Flows!$C$10,12*($A12-1),4*(I$2-1),12,1)),AVERAGE(OFFSET(P_Flows!$C$10,12*($A12-1),4*(I$2-1),12,1))) -> 3.742158333 | I12: =IF(PlotControl!$B$4 = "Annual Max",MAX(OFFSET(P_Flows!$D$10,12*($A12-1),4*(I$2-1),12,1)),AVERAGE(OFFSET(P_Flows!$D$10,12*($A12-1),4*(I$2-1),12,1))) -> 7.942308333 | J12: =IF(PlotControl!$B$4 = "Annual Max",MAX(OFFSET(P_Flows!$E$10,12*($A12-1),4*(I$2-1),12,1)),AVERAGE(OFFSET(P_Flows!$E$10,12*($A12-1),4*(I$2-1),12,1))) -> 23.76586667 | K12: =IF(PlotControl!$B$4 = "Annual Max",MAX(OFFSET(P_Flows!$C$10,12*($A12-1),4*(L$2-1),12,1)),AVERAGE(OFFSET(P_Flows!$C$10,12*($A12-1),4*(L$2-1),12,1))) -> 4.738983333 | L12: =IF(PlotControl!$B$4 = "Annual Max",MAX(OFFSET(P_Flows!$D$10,12*($A12-1),4*(L$2-1),12,1)),AVERAGE(OFFSET(P_Flows!$D$10,12*($A12-1),4*(L$2-1),12,1))) -> 12.55624167 | M12: =IF(PlotControl!$B$4 = "Annual Max",MAX(OFFSET(P_Flows!$E$10,12*($A12-1),4*(L$2-1),12,1)),AVERAGE(OFFSET(P_Flows!$E$10,12*($A12-1),4*(L$2-1),12,1))) -> 41.89485 | N12: =IF(PlotControl!$B$4 = "Annual Max",MAX(OFFSET(P_Flows!$C$10,12*($A12-1),4*(O$2-1),12,1)),AVERAGE(OFFSET(P_Flows!$C$10,12*($A12-1),4*(O$2-1),12,1))) -> 8.514133333 | O12: =IF(PlotControl!$B$4 = "Annual Max",MAX(OFFSET(P_Flows!$D$10,12*($A12-1),4*(O$2-1),12,1)),AVERAGE(OFFSET(P_Flows!$D$10,12*($A12-1),4*(O$2-1),12,1))) -> 29.94785 | P12: =IF(PlotControl!$B$4 = "Annual Max",MAX(OFFSET(P_Flows!$E$10,12*($A12-1),4*(O$2-1),12,1)),AVERAGE(OFFSET(P_Flows!$E$10,12*($A12-1),4*(O$2-1),12,1))) -> 109.945875 | Q12: =IF(PlotControl!$B$4 = "Annual Max",MAX(OFFSET(P_Flows!$C$10,12*($A12-1),4*(R$2-1),12,1)),AVERAGE(OFFSET(P_Flows!$C$10,12*($A12-1),4*(R$2-1),12,1))) -> 11.68896667 | R12: =IF(PlotControl!$B$4 = "Annual Max",MAX(OFFSET(P_Flows!$D$10,12*($A12-1),4*(R$2-1),12,1)),AVERAGE(OFFSET(P_Flows!$D$10,12*($A12-1),4*(R$2-1),12,1))) -> 44.55214167 | S12: =IF(PlotControl!$B$4 = "Annual Max",MAX(OFFSET(P_Flows!$E$10,12*($A12-1),4*(R$2-1),12,1)),AVERAGE(OFFSET(P_Flows!$E$10,12*($A12-1),4*(R$2-1),12,1))) -> 167.3259167 | T12: =IF(PlotControl!$B$4 = "Annual Max",MAX(OFFSET(P_Flows!$C$10,12*($A12-1),4*(U$2-1),12,1)),AVERAGE(OFFSET(P_Flows!$C$10,12*($A12-1),4*(U$2-1),12,1))) -> 14.610475 | U12: =IF(PlotControl!$B$4 = "Annual Max",MAX(OFFSET(P_Flows!$D$10,12*($A12-1),4*(U$2-1),12,1)),AVERAGE(OFFSET(P_Flows!$D$10,12*($A12-1),4*(U$2-1),12,1))) -> 57.98378333 | V12: =IF(PlotControl!$B$4 = "Annual Max",MAX(OFFSET(P_Flows!$E$10,12*($A12-1),4*(U$2-1),12,1)),AVERAGE(OFFSET(P_Flows!$E$10,12*($A12-1),4*(U$2-1),12,1))) -> 220.84525 | W12: =IF(PlotControl!$B$4 = "Annual Max",MAX(OFFSET(P_Flows!$C$10,12*($A12-1),4*(X$2-1),12,1)),AVERAGE(OFFSET(P_Flows!$C$10,12*($A12-1),4*(X$2-1),12,1))) -> 15.30439167 | X12: =IF(PlotControl!$B$4 = "Annual Max",MAX(OFFSET(P_Flows!$D$10,12*($A12-1),4*(X$2-1),12,1)),AVERAGE(OFFSET(P_Flows!$D$10,12*($A12-1),4*(X$2-1),12,1))) -> 61.268425 | Y12: =IF(PlotControl!$B$4 = "Annual Max",MAX(OFFSET(P_Flows!$E$10,12*($A12-1),4*(X$2-1),12,1)),AVERAGE(OFFSET(P_Flows!$E$10,12*($A12-1),4*(X$2-1),12,1))) -> 234.07 | Z12: =IF(PlotControl!$B$4 = "Annual Max",MAX(OFFSET(P_Flows!$C$10,12*($A12-1),4*(AA$2-1),12,1)),AVERAGE(OFFSET(P_Flows!$C$10,12*($A12-1),4*(AA$2-1),12,1))) -> 17.87625 | AA12: =IF(PlotControl!$B$4 = "Annual Max",MAX(OFFSET(P_Flows!$D$10,12*($A12-1),4*(AA$2-1),12,1)),AVERAGE(OFFSET(P_Flows!$D$10,12*($A12-1),4*(AA$2-1),12,1))) -> 73.145675 | AB12: =IF(PlotControl!$B$4 = "Annual Max",MAX(OFFSET(P_Flows!$E$10,12*($A12-1),4*(AA$2-1),12,1)),AVERAGE(OFFSET(P_Flows!$E$10,12*($A12-1),4*(AA$2-1),12,1))) -> 280.93075 | AD12: 100.5833333 | AE12: =OFFSET(P_Flows!$C$10,ROUND(12*$AD12,0),4*(AF$2-1),1,1) -> 0.19909 | AF12: =OFFSET(P_Flows!$D$10,ROUND(12*$AD12,0),4*(AF$2-1),1,1) -> 0.6701 | AG12: =OFFSET(P_Flows!$E$10,ROUND(12*$AD12,0),4*(AF$2-1),1,1) -> 5.1466 | AH12: =OFFSET(P_Flows!$C$10,ROUND(12*$AD12,0),4*(AI$2-1),1,1) -> 0.98321 | AI12: =OFFSET(P_Flows!$D$10,ROUND(12*$AD12,0),4*(AI$2-1),1,1) -> 3.3093 | AJ12: =OFFSET(P_Flows!$E$10,ROUND(12*$AD12,0),4*(AI$2-1),1,1) -> 25.417 | AK12: =OFFSET(P_Flows!$C$10,ROUND(12*$AD12,0),4*(AL$2-1),1,1) -> 1.1945 | AL12: =OFFSET(P_Flows!$D$10,ROUND(12*$AD12,0),4*(AL$2-1),1,1) -> 4.0206 | AM12: =OFFSET(P_Flows!$E$10,ROUND(12*$AD12,0),4*(AL$2-1),1,1) -> 30.88 | AN12: =OFFSET(P_Flows!$C$10,ROUND(12*$AD12,0),4*(AO$2-1),1,1) -> 2.1121 | AO12: =OFFSET(P_Flows!$D$10,ROUND(12*$AD12,0),4*(AO$2-1),1,1) -> 7.109 | AP12: =OFFSET(P_Flows!$E$10,ROUND(12*$AD12,0),4*(AO$2-1),1,1) -> 54.6 | AQ12: =OFFSET(P_Flows!$C$10,ROUND(12*$AD12,0),4*(AR$2-1),1,1) -> 6.0404 | AR12: =OFFSET(P_Flows!$D$10,ROUND(12*$AD12,0),4*(AR$2-1),1,1) -> 18.829 | AS12: =OFFSET(P_Flows!$E$10,ROUND(12*$AD12,0),4*(AR$2-1),1,1) -> 140.37 | AT12: =OFFSET(P_Flows!$C$10,ROUND(12*$AD12,0),4*(AU$2-1),1,1) -> 8.7109 | AU12: =OFFSET(P_Flows!$D$10,ROUND(12*$AD12,0),4*(AU$2-1),1,1) -> 27.817 | AV12: =OFFSET(P_Flows!$E$10,ROUND(12*$AD12,0),4*(AU$2-1),1,1) -> 209.4 | AW12: =OFFSET(P_Flows!$C$10,ROUND(12*$AD12,0),4*(AX$2-1),1,1) -> 11.042 | AX12: =OFFSET(P_Flows!$D$10,ROUND(12*$AD12,0),4*(AX$2-1),1,1) -> 35.664 | AY12: =OFFSET(P_Flows!$E$10,ROUND(12*$AD12,0),4*(AX$2-1),1,1) -> 269.67 | AZ12: =OFFSET(P_Flows!$C$10,ROUND(12*$AD12,0),4*(BA$2-1),1,1) -> 11.743 | BA12: =OFFSET(P_Flows!$D$10,ROUND(12*$AD12,0),4*(BA$2-1),1,1) -> 38.022 | BB12: =OFFSET(P_Flows!$E$10,ROUND(12*$AD12,0),4*(BA$2-1),1,1) -> 287.78 | BC12: =OFFSET(P_Flows!$C$10,ROUND(12*$AD12,0),4*(BD$2-1),1,1) -> 13.967 | BD12: =OFFSET(P_Flows!$D$10,ROUND(12*$AD12,0),4*(BD$2-1),1,1) -> 45.509 | BE12: =OFFSET(P_Flows!$E$10,ROUND(12*$AD12,0),4*(BD$2-1),1,1) -> 345.29
A13: 9 | B13: =IF(PlotControl!$B$4 = "Annual Max",MAX(OFFSET(P_Flows!$C$10,12*($A13-1),4*(C$2-1),12,1)),AVERAGE(OFFSET(P_Flows!$C$10,12*($A13-1),4*(C$2-1),12,1))) -> 2.768466667 | C13: =IF(PlotControl!$B$4 = "Annual Max",MAX(OFFSET(P_Flows!$D$10,12*($A13-1),4*(C$2-1),12,1)),AVERAGE(OFFSET(P_Flows!$D$10,12*($A13-1),4*(C$2-1),12,1))) -> 3.349883333 | D13: =IF(PlotControl!$B$4 = "Annual Max",MAX(OFFSET(P_Flows!$E$10,12*($A13-1),4*(C$2-1),12,1)),AVERAGE(OFFSET(P_Flows!$E$10,12*($A13-1),4*(C$2-1),12,1))) -> 5.873858333 | E13: =IF(PlotControl!$B$4 = "Annual Max",MAX(OFFSET(P_Flows!$C$10,12*($A13-1),4*(F$2-1),12,1)),AVERAGE(OFFSET(P_Flows!$C$10,12*($A13-1),4*(F$2-1),12,1))) -> 3.55385 | F13: =IF(PlotControl!$B$4 = "Annual Max",MAX(OFFSET(P_Flows!$D$10,12*($A13-1),4*(F$2-1),12,1)),AVERAGE(OFFSET(P_Flows!$D$10,12*($A13-1),4*(F$2-1),12,1))) -> 6.72615 | G13: =IF(PlotControl!$B$4 = "Annual Max",MAX(OFFSET(P_Flows!$E$10,12*($A13-1),4*(F$2-1),12,1)),AVERAGE(OFFSET(P_Flows!$E$10,12*($A13-1),4*(F$2-1),12,1))) -> 20.051675 | H13: =IF(PlotControl!$B$4 = "Annual Max",MAX(OFFSET(P_Flows!$C$10,12*($A13-1),4*(I$2-1),12,1)),AVERAGE(OFFSET(P_Flows!$C$10,12*($A13-1),4*(I$2-1),12,1))) -> 3.797691667 | I13: =IF(PlotControl!$B$4 = "Annual Max",MAX(OFFSET(P_Flows!$D$10,12*($A13-1),4*(I$2-1),12,1)),AVERAGE(OFFSET(P_Flows!$D$10,12*($A13-1),4*(I$2-1),12,1))) -> 7.758108333 | J13: =IF(PlotControl!$B$4 = "Annual Max",MAX(OFFSET(P_Flows!$E$10,12*($A13-1),4*(I$2-1),12,1)),AVERAGE(OFFSET(P_Flows!$E$10,12*($A13-1),4*(I$2-1),12,1))) -> 24.32059167 | K13: =IF(PlotControl!$B$4 = "Annual Max",MAX(OFFSET(P_Flows!$C$10,12*($A13-1),4*(L$2-1),12,1)),AVERAGE(OFFSET(P_Flows!$C$10,12*($A13-1),4*(L$2-1),12,1))) -> 4.840233333 | L13: =IF(PlotControl!$B$4 = "Annual Max",MAX(OFFSET(P_Flows!$D$10,12*($A13-1),4*(L$2-1),12,1)),AVERAGE(OFFSET(P_Flows!$D$10,12*($A13-1),4*(L$2-1),12,1))) -> 12.2142 | M13: =IF(PlotControl!$B$4 = "Annual Max",MAX(OFFSET(P_Flows!$E$10,12*($A13-1),4*(L$2-1),12,1)),AVERAGE(OFFSET(P_Flows!$E$10,12*($A13-1),4*(L$2-1),12,1))) -> 42.90805833 | N13: =IF(PlotControl!$B$4 = "Annual Max",MAX(OFFSET(P_Flows!$C$10,12*($A13-1),4*(O$2-1),12,1)),AVERAGE(OFFSET(P_Flows!$C$10,12*($A13-1),4*(O$2-1),12,1))) -> 8.780591667 | O13: =IF(PlotControl!$B$4 = "Annual Max",MAX(OFFSET(P_Flows!$D$10,12*($A13-1),4*(O$2-1),12,1)),AVERAGE(OFFSET(P_Flows!$D$10,12*($A13-1),4*(O$2-1),12,1))) -> 28.98720833 | P13: =IF(PlotControl!$B$4 = "Annual Max",MAX(OFFSET(P_Flows!$E$10,12*($A13-1),4*(O$2-1),12,1)),AVERAGE(OFFSET(P_Flows!$E$10,12*($A13-1),4*(O$2-1),12,1))) -> 112.4477667 | Q13: =IF(PlotControl!$B$4 = "Annual Max",MAX(OFFSET(P_Flows!$C$10,12*($A13-1),4*(R$2-1),12,1)),AVERAGE(OFFSET(P_Flows!$C$10,12*($A13-1),4*(R$2-1),12,1))) -> 12.10169167 | R13: =IF(PlotControl!$B$4 = "Annual Max",MAX(OFFSET(P_Flows!$D$10,12*($A13-1),4*(R$2-1),12,1)),AVERAGE(OFFSET(P_Flows!$D$10,12*($A13-1),4*(R$2-1),12,1))) -> 43.14584167 | S13: =IF(PlotControl!$B$4 = "Annual Max",MAX(OFFSET(P_Flows!$E$10,12*($A13-1),4*(R$2-1),12,1)),AVERAGE(OFFSET(P_Flows!$E$10,12*($A13-1),4*(R$2-1),12,1))) -> 171.4418333 | T13: =IF(PlotControl!$B$4 = "Annual Max",MAX(OFFSET(P_Flows!$C$10,12*($A13-1),4*(U$2-1),12,1)),AVERAGE(OFFSET(P_Flows!$C$10,12*($A13-1),4*(U$2-1),12,1))) -> 15.15654167 | U13: =IF(PlotControl!$B$4 = "Annual Max",MAX(OFFSET(P_Flows!$D$10,12*($A13-1),4*(U$2-1),12,1)),AVERAGE(OFFSET(P_Flows!$D$10,12*($A13-1),4*(U$2-1),12,1))) -> 56.26253333 | V13: =IF(PlotControl!$B$4 = "Annual Max",MAX(OFFSET(P_Flows!$E$10,12*($A13-1),4*(U$2-1),12,1)),AVERAGE(OFFSET(P_Flows!$E$10,12*($A13-1),4*(U$2-1),12,1))) -> 227.0035833 | W13: =IF(PlotControl!$B$4 = "Annual Max",MAX(OFFSET(P_Flows!$C$10,12*($A13-1),4*(X$2-1),12,1)),AVERAGE(OFFSET(P_Flows!$C$10,12*($A13-1),4*(X$2-1),12,1))) -> 15.87458333 | X13: =IF(PlotControl!$B$4 = "Annual Max",MAX(OFFSET(P_Flows!$D$10,12*($A13-1),4*(X$2-1),12,1)),AVERAGE(OFFSET(P_Flows!$D$10,12*($A13-1),4*(X$2-1),12,1))) -> 59.39669167 | Y13: =IF(PlotControl!$B$4 = "Annual Max",MAX(OFFSET(P_Flows!$E$10,12*($A13-1),4*(X$2-1),12,1)),AVERAGE(OFFSET(P_Flows!$E$10,12*($A13-1),4*(X$2-1),12,1))) -> 240.4398333 | Z13: =IF(PlotControl!$B$4 = "Annual Max",MAX(OFFSET(P_Flows!$C$10,12*($A13-1),4*(AA$2-1),12,1)),AVERAGE(OFFSET(P_Flows!$C$10,12*($A13-1),4*(AA$2-1),12,1))) -> 18.56564167 | AA13: =IF(PlotControl!$B$4 = "Annual Max",MAX(OFFSET(P_Flows!$D$10,12*($A13-1),4*(AA$2-1),12,1)),AVERAGE(OFFSET(P_Flows!$D$10,12*($A13-1),4*(AA$2-1),12,1))) -> 70.91039167 | AB13: =IF(PlotControl!$B$4 = "Annual Max",MAX(OFFSET(P_Flows!$E$10,12*($A13-1),4*(AA$2-1),12,1)),AVERAGE(OFFSET(P_Flows!$E$10,12*($A13-1),4*(AA$2-1),12,1))) -> 288.6554167 | AD13: 100.6666667 | AE13: =OFFSET(P_Flows!$C$10,ROUND(12*$AD13,0),4*(AF$2-1),1,1) -> 0.10928 | AF13: =OFFSET(P_Flows!$D$10,ROUND(12*$AD13,0),4*(AF$2-1),1,1) -> 1.0069 | AG13: =OFFSET(P_Flows!$E$10,ROUND(12*$AD13,0),4*(AF$2-1),1,1) -> 2.6971 | AH13: =OFFSET(P_Flows!$C$10,ROUND(12*$AD13,0),4*(AI$2-1),1,1) -> 0.58381 | AI13: =OFFSET(P_Flows!$D$10,ROUND(12*$AD13,0),4*(AI$2-1),1,1) -> 5.3787 | AJ13: =OFFSET(P_Flows!$E$10,ROUND(12*$AD13,0),4*(AI$2-1),1,1) -> 14.408 | AK13: =OFFSET(P_Flows!$C$10,ROUND(12*$AD13,0),4*(AL$2-1),1,1) -> 0.72473 | AL13: =OFFSET(P_Flows!$D$10,ROUND(12*$AD13,0),4*(AL$2-1),1,1) -> 6.677 | AM13: =OFFSET(P_Flows!$E$10,ROUND(12*$AD13,0),4*(AL$2-1),1,1) -> 17.886 | AN13: =OFFSET(P_Flows!$C$10,ROUND(12*$AD13,0),4*(AO$2-1),1,1) -> 1.3265 | AO13: =OFFSET(P_Flows!$D$10,ROUND(12*$AD13,0),4*(AO$2-1),1,1) -> 12.221 | AP13: =OFFSET(P_Flows!$E$10,ROUND(12*$AD13,0),4*(AO$2-1),1,1) -> 32.738 | AQ13: =OFFSET(P_Flows!$C$10,ROUND(12*$AD13,0),4*(AR$2-1),1,1) -> 4.2213 | AR13: =OFFSET(P_Flows!$D$10,ROUND(12*$AD13,0),4*(AR$2-1),1,1) -> 32.055 | AS13: =OFFSET(P_Flows!$E$10,ROUND(12*$AD13,0),4*(AR$2-1),1,1) -> 85.027 | AT13: =OFFSET(P_Flows!$C$10,ROUND(12*$AD13,0),4*(AU$2-1),1,1) -> 5.8728 | AU13: =OFFSET(P_Flows!$D$10,ROUND(12*$AD13,0),4*(AU$2-1),1,1) -> 48.036 | AV13: =OFFSET(P_Flows!$E$10,ROUND(12*$AD13,0),4*(AU$2-1),1,1) -> 127.95 | AW13: =OFFSET(P_Flows!$C$10,ROUND(12*$AD13,0),4*(AX$2-1),1,1) -> 7.3876 | AX13: =OFFSET(P_Flows!$D$10,ROUND(12*$AD13,0),4*(AX$2-1),1,1) -> 62.693 | AY13: =OFFSET(P_Flows!$E$10,ROUND(12*$AD13,0),4*(AX$2-1),1,1) -> 167.29 | AZ13: =OFFSET(P_Flows!$C$10,ROUND(12*$AD13,0),4*(BA$2-1),1,1) -> 7.8147 | BA13: =OFFSET(P_Flows!$D$10,ROUND(12*$AD13,0),4*(BA$2-1),1,1) -> 66.628 | BB13: =OFFSET(P_Flows!$E$10,ROUND(12*$AD13,0),4*(BA$2-1),1,1) -> 177.83 | BC13: =OFFSET(P_Flows!$C$10,ROUND(12*$AD13,0),4*(BD$2-1),1,1) -> 9.2526 | BD13: =OFFSET(P_Flows!$D$10,ROUND(12*$AD13,0),4*(BD$2-1),1,1) -> 79.876 | BE13: =OFFSET(P_Flows!$E$10,ROUND(12*$AD13,0),4*(BD$2-1),1,1) -> 213.32
A14: 10 | B14: =IF(PlotControl!$B$4 = "Annual Max",MAX(OFFSET(P_Flows!$C$10,12*($A14-1),4*(C$2-1),12,1)),AVERAGE(OFFSET(P_Flows!$C$10,12*($A14-1),4*(C$2-1),12,1))) -> 2.779441667 | C14: =IF(PlotControl!$B$4 = "Annual Max",MAX(OFFSET(P_Flows!$D$10,12*($A14-1),4*(C$2-1),12,1)),AVERAGE(OFFSET(P_Flows!$D$10,12*($A14-1),4*(C$2-1),12,1))) -> 3.414183333 | D14: =IF(PlotControl!$B$4 = "Annual Max",MAX(OFFSET(P_Flows!$E$10,12*($A14-1),4*(C$2-1),12,1)),AVERAGE(OFFSET(P_Flows!$E$10,12*($A14-1),4*(C$2-1),12,1))) -> 5.8506 | E14: =IF(PlotControl!$B$4 = "Annual Max",MAX(OFFSET(P_Flows!$C$10,12*($A14-1),4*(F$2-1),12,1)),AVERAGE(OFFSET(P_Flows!$C$10,12*($A14-1),4*(F$2-1),12,1))) -> 3.611633333 | F14: =IF(PlotControl!$B$4 = "Annual Max",MAX(OFFSET(P_Flows!$D$10,12*($A14-1),4*(F$2-1),12,1)),AVERAGE(OFFSET(P_Flows!$D$10,12*($A14-1),4*(F$2-1),12,1))) -> 7.098858333 | G14: =IF(PlotControl!$B$4 = "Annual Max",MAX(OFFSET(P_Flows!$E$10,12*($A14-1),4*(F$2-1),12,1)),AVERAGE(OFFSET(P_Flows!$E$10,12*($A14-1),4*(F$2-1),12,1))) -> 19.9481 | H14: =IF(PlotControl!$B$4 = "Annual Max",MAX(OFFSET(P_Flows!$C$10,12*($A14-1),4*(I$2-1),12,1)),AVERAGE(OFFSET(P_Flows!$C$10,12*($A14-1),4*(I$2-1),12,1))) -> 3.871958333 | I14: =IF(PlotControl!$B$4 = "Annual Max",MAX(OFFSET(P_Flows!$D$10,12*($A14-1),4*(I$2-1),12,1)),AVERAGE(OFFSET(P_Flows!$D$10,12*($A14-1),4*(I$2-1),12,1))) -> 8.225033333 | J14: =IF(PlotControl!$B$4 = "Annual Max",MAX(OFFSET(P_Flows!$E$10,12*($A14-1),4*(I$2-1),12,1)),AVERAGE(OFFSET(P_Flows!$E$10,12*($A14-1),4*(I$2-1),12,1))) -> 24.195425 | K14: =IF(PlotControl!$B$4 = "Annual Max",MAX(OFFSET(P_Flows!$C$10,12*($A14-1),4*(L$2-1),12,1)),AVERAGE(OFFSET(P_Flows!$C$10,12*($A14-1),4*(L$2-1),12,1))) -> 4.980791667 | L14: =IF(PlotControl!$B$4 = "Annual Max",MAX(OFFSET(P_Flows!$D$10,12*($A14-1),4*(L$2-1),12,1)),AVERAGE(OFFSET(P_Flows!$D$10,12*($A14-1),4*(L$2-1),12,1))) -> 13.09374167 | M14: =IF(PlotControl!$B$4 = "Annual Max",MAX(OFFSET(P_Flows!$E$10,12*($A14-1),4*(L$2-1),12,1)),AVERAGE(OFFSET(P_Flows!$E$10,12*($A14-1),4*(L$2-1),12,1))) -> 42.69555833 | N14: =IF(PlotControl!$B$4 = "Annual Max",MAX(OFFSET(P_Flows!$C$10,12*($A14-1),4*(O$2-1),12,1)),AVERAGE(OFFSET(P_Flows!$C$10,12*($A14-1),4*(O$2-1),12,1))) -> 9.169691667 | O14: =IF(PlotControl!$B$4 = "Annual Max",MAX(OFFSET(P_Flows!$D$10,12*($A14-1),4*(O$2-1),12,1)),AVERAGE(OFFSET(P_Flows!$D$10,12*($A14-1),4*(O$2-1),12,1))) -> 31.414825 | P14: =IF(PlotControl!$B$4 = "Annual Max",MAX(OFFSET(P_Flows!$E$10,12*($A14-1),4*(O$2-1),12,1)),AVERAGE(OFFSET(P_Flows!$E$10,12*($A14-1),4*(O$2-1),12,1))) -> 111.70925 | Q14: =IF(PlotControl!$B$4 = "Annual Max",MAX(OFFSET(P_Flows!$C$10,12*($A14-1),4*(R$2-1),12,1)),AVERAGE(OFFSET(P_Flows!$C$10,12*($A14-1),4*(R$2-1),12,1))) -> 12.72228333 | R14: =IF(PlotControl!$B$4 = "Annual Max",MAX(OFFSET(P_Flows!$D$10,12*($A14-1),4*(R$2-1),12,1)),AVERAGE(OFFSET(P_Flows!$D$10,12*($A14-1),4*(R$2-1),12,1))) -> 46.9209 | S14: =IF(PlotControl!$B$4 = "Annual Max",MAX(OFFSET(P_Flows!$E$10,12*($A14-1),4*(R$2-1),12,1)),AVERAGE(OFFSET(P_Flows!$E$10,12*($A14-1),4*(R$2-1),12,1))) -> 170.5178333 | T14: =IF(PlotControl!$B$4 = "Annual Max",MAX(OFFSET(P_Flows!$C$10,12*($A14-1),4*(U$2-1),12,1)),AVERAGE(OFFSET(P_Flows!$C$10,12*($A14-1),4*(U$2-1),12,1))) -> 16.03198333 | U14: =IF(PlotControl!$B$4 = "Annual Max",MAX(OFFSET(P_Flows!$D$10,12*($A14-1),4*(U$2-1),12,1)),AVERAGE(OFFSET(P_Flows!$D$10,12*($A14-1),4*(U$2-1),12,1))) -> 61.32670833 | V14: =IF(PlotControl!$B$4 = "Annual Max",MAX(OFFSET(P_Flows!$E$10,12*($A14-1),4*(U$2-1),12,1)),AVERAGE(OFFSET(P_Flows!$E$10,12*($A14-1),4*(U$2-1),12,1))) -> 226.15475 | W14: =IF(PlotControl!$B$4 = "Annual Max",MAX(OFFSET(P_Flows!$C$10,12*($A14-1),4*(X$2-1),12,1)),AVERAGE(OFFSET(P_Flows!$C$10,12*($A14-1),4*(X$2-1),12,1))) -> 16.786775 | X14: =IF(PlotControl!$B$4 = "Annual Max",MAX(OFFSET(P_Flows!$D$10,12*($A14-1),4*(X$2-1),12,1)),AVERAGE(OFFSET(P_Flows!$D$10,12*($A14-1),4*(X$2-1),12,1))) -> 64.69596667 | Y14: =IF(PlotControl!$B$4 = "Annual Max",MAX(OFFSET(P_Flows!$E$10,12*($A14-1),4*(X$2-1),12,1)),AVERAGE(OFFSET(P_Flows!$E$10,12*($A14-1),4*(X$2-1),12,1))) -> 239.3521667 | Z14: =IF(PlotControl!$B$4 = "Annual Max",MAX(OFFSET(P_Flows!$C$10,12*($A14-1),4*(AA$2-1),12,1)),AVERAGE(OFFSET(P_Flows!$C$10,12*($A14-1),4*(AA$2-1),12,1))) -> 19.666925 | AA14: =IF(PlotControl!$B$4 = "Annual Max",MAX(OFFSET(P_Flows!$D$10,12*($A14-1),4*(AA$2-1),12,1)),AVERAGE(OFFSET(P_Flows!$D$10,12*($A14-1),4*(AA$2-1),12,1))) -> 77.3013 | AB14: =IF(PlotControl!$B$4 = "Annual Max",MAX(OFFSET(P_Flows!$E$10,12*($A14-1),4*(AA$2-1),12,1)),AVERAGE(OFFSET(P_Flows!$E$10,12*($A14-1),4*(AA$2-1),12,1))) -> 287.413 | AD14: 100.75 | AE14: =OFFSET(P_Flows!$C$10,ROUND(12*$AD14,0),4*(AF$2-1),1,1) -> 0.21772 | AF14: =OFFSET(P_Flows!$D$10,ROUND(12*$AD14,0),4*(AF$2-1),1,1) -> 0.8289 | AG14: =OFFSET(P_Flows!$E$10,ROUND(12*$AD14,0),4*(AF$2-1),1,1) -> 3.3919 | AH14: =OFFSET(P_Flows!$C$10,ROUND(12*$AD14,0),4*(AI$2-1),1,1) -> 1.3481 | AI14: =OFFSET(P_Flows!$D$10,ROUND(12*$AD14,0),4*(AI$2-1),1,1) -> 5.1325 | AJ14: =OFFSET(P_Flows!$E$10,ROUND(12*$AD14,0),4*(AI$2-1),1,1) -> 21.002 | AK14: =OFFSET(P_Flows!$C$10,ROUND(12*$AD14,0),4*(AL$2-1),1,1) -> 1.6704 | AL14: =OFFSET(P_Flows!$D$10,ROUND(12*$AD14,0),4*(AL$2-1),1,1) -> 6.3593 | AM14: =OFFSET(P_Flows!$E$10,ROUND(12*$AD14,0),4*(AL$2-1),1,1) -> 26.022 | AN14: =OFFSET(P_Flows!$C$10,ROUND(12*$AD14,0),4*(AO$2-1),1,1) -> 3.1282 | AO14: =OFFSET(P_Flows!$D$10,ROUND(12*$AD14,0),4*(AO$2-1),1,1) -> 11.91 | AP14: =OFFSET(P_Flows!$E$10,ROUND(12*$AD14,0),4*(AO$2-1),1,1) -> 48.734 | AQ14: =OFFSET(P_Flows!$C$10,ROUND(12*$AD14,0),4*(AR$2-1),1,1) -> 9.5023 | AR14: =OFFSET(P_Flows!$D$10,ROUND(12*$AD14,0),4*(AR$2-1),1,1) -> 32.75 | AS14: =OFFSET(P_Flows!$E$10,ROUND(12*$AD14,0),4*(AR$2-1),1,1) -> 132.29 | AT14: =OFFSET(P_Flows!$C$10,ROUND(12*$AD14,0),4*(AU$2-1),1,1) -> 13.737 | AU14: =OFFSET(P_Flows!$D$10,ROUND(12*$AD14,0),4*(AU$2-1),1,1) -> 49.129 | AV14: =OFFSET(P_Flows!$E$10,ROUND(12*$AD14,0),4*(AU$2-1),1,1) -> 199.39 | AW14: =OFFSET(P_Flows!$C$10,ROUND(12*$AD14,0),4*(AX$2-1),1,1) -> 17.39 | AX14: =OFFSET(P_Flows!$D$10,ROUND(12*$AD14,0),4*(AX$2-1),1,1) -> 63.273 | AY14: =OFFSET(P_Flows!$E$10,ROUND(12*$AD14,0),4*(AX$2-1),1,1) -> 257.27 | AZ14: =OFFSET(P_Flows!$C$10,ROUND(12*$AD14,0),4*(BA$2-1),1,1) -> 18.327 | BA14: =OFFSET(P_Flows!$D$10,ROUND(12*$AD14,0),4*(BA$2-1),1,1) -> 66.847 | BB14: =OFFSET(P_Flows!$E$10,ROUND(12*$AD14,0),4*(BA$2-1),1,1) -> 271.89 | BC14: =OFFSET(P_Flows!$C$10,ROUND(12*$AD14,0),4*(BD$2-1),1,1) -> 21.808 | BD14: =OFFSET(P_Flows!$D$10,ROUND(12*$AD14,0),4*(BD$2-1),1,1) -> 80.109 | BE14: =OFFSET(P_Flows!$E$10,ROUND(12*$AD14,0),4*(BD$2-1),1,1) -> 326.16
A15: 11 | B15: =IF(PlotControl!$B$4 = "Annual Max",MAX(OFFSET(P_Flows!$C$10,12*($A15-1),4*(C$2-1),12,1)),AVERAGE(OFFSET(P_Flows!$C$10,12*($A15-1),4*(C$2-1),12,1))) -> 2.768825 | C15: =IF(PlotControl!$B$4 = "Annual Max",MAX(OFFSET(P_Flows!$D$10,12*($A15-1),4*(C$2-1),12,1)),AVERAGE(OFFSET(P_Flows!$D$10,12*($A15-1),4*(C$2-1),12,1))) -> 3.378408333 | D15: =IF(PlotControl!$B$4 = "Annual Max",MAX(OFFSET(P_Flows!$E$10,12*($A15-1),4*(C$2-1),12,1)),AVERAGE(OFFSET(P_Flows!$E$10,12*($A15-1),4*(C$2-1),12,1))) -> 5.868791667 | E15: =IF(PlotControl!$B$4 = "Annual Max",MAX(OFFSET(P_Flows!$C$10,12*($A15-1),4*(F$2-1),12,1)),AVERAGE(OFFSET(P_Flows!$C$10,12*($A15-1),4*(F$2-1),12,1))) -> 3.5558 | F15: =IF(PlotControl!$B$4 = "Annual Max",MAX(OFFSET(P_Flows!$D$10,12*($A15-1),4*(F$2-1),12,1)),AVERAGE(OFFSET(P_Flows!$D$10,12*($A15-1),4*(F$2-1),12,1))) -> 6.915058333 | G15: =IF(PlotControl!$B$4 = "Annual Max",MAX(OFFSET(P_Flows!$E$10,12*($A15-1),4*(F$2-1),12,1)),AVERAGE(OFFSET(P_Flows!$E$10,12*($A15-1),4*(F$2-1),12,1))) -> 19.99918333 | H15: =IF(PlotControl!$B$4 = "Annual Max",MAX(OFFSET(P_Flows!$C$10,12*($A15-1),4*(I$2-1),12,1)),AVERAGE(OFFSET(P_Flows!$C$10,12*($A15-1),4*(I$2-1),12,1))) -> 3.801416667 | I15: =IF(PlotControl!$B$4 = "Annual Max",MAX(OFFSET(P_Flows!$D$10,12*($A15-1),4*(I$2-1),12,1)),AVERAGE(OFFSET(P_Flows!$D$10,12*($A15-1),4*(I$2-1),12,1))) -> 7.991725 | J15: =IF(PlotControl!$B$4 = "Annual Max",MAX(OFFSET(P_Flows!$E$10,12*($A15-1),4*(I$2-1),12,1)),AVERAGE(OFFSET(P_Flows!$E$10,12*($A15-1),4*(I$2-1),12,1))) -> 24.245 | K15: =IF(PlotControl!$B$4 = "Annual Max",MAX(OFFSET(P_Flows!$C$10,12*($A15-1),4*(L$2-1),12,1)),AVERAGE(OFFSET(P_Flows!$C$10,12*($A15-1),4*(L$2-1),12,1))) -> 4.849866667 | L15: =IF(PlotControl!$B$4 = "Annual Max",MAX(OFFSET(P_Flows!$D$10,12*($A15-1),4*(L$2-1),12,1)),AVERAGE(OFFSET(P_Flows!$D$10,12*($A15-1),4*(L$2-1),12,1))) -> 12.65995 | M15: =IF(PlotControl!$B$4 = "Annual Max",MAX(OFFSET(P_Flows!$E$10,12*($A15-1),4*(L$2-1),12,1)),AVERAGE(OFFSET(P_Flows!$E$10,12*($A15-1),4*(L$2-1),12,1))) -> 42.76048333 | N15: =IF(PlotControl!$B$4 = "Annual Max",MAX(OFFSET(P_Flows!$C$10,12*($A15-1),4*(O$2-1),12,1)),AVERAGE(OFFSET(P_Flows!$C$10,12*($A15-1),4*(O$2-1),12,1))) -> 8.800525 | O15: =IF(PlotControl!$B$4 = "Annual Max",MAX(OFFSET(P_Flows!$D$10,12*($A15-1),4*(O$2-1),12,1)),AVERAGE(OFFSET(P_Flows!$D$10,12*($A15-1),4*(O$2-1),12,1))) -> 30.14973333 | P15: =IF(PlotControl!$B$4 = "Annual Max",MAX(OFFSET(P_Flows!$E$10,12*($A15-1),4*(O$2-1),12,1)),AVERAGE(OFFSET(P_Flows!$E$10,12*($A15-1),4*(O$2-1),12,1))) -> 111.6234583 | Q15: =IF(PlotControl!$B$4 = "Annual Max",MAX(OFFSET(P_Flows!$C$10,12*($A15-1),4*(R$2-1),12,1)),AVERAGE(OFFSET(P_Flows!$C$10,12*($A15-1),4*(R$2-1),12,1))) -> 12.1616 | R15: =IF(PlotControl!$B$4 = "Annual Max",MAX(OFFSET(P_Flows!$D$10,12*($A15-1),4*(R$2-1),12,1)),AVERAGE(OFFSET(P_Flows!$D$10,12*($A15-1),4*(R$2-1),12,1))) -> 44.99530833 | S15: =IF(PlotControl!$B$4 = "Annual Max",MAX(OFFSET(P_Flows!$E$10,12*($A15-1),4*(R$2-1),12,1)),AVERAGE(OFFSET(P_Flows!$E$10,12*($A15-1),4*(R$2-1),12,1))) -> 170.50575 | T15: =IF(PlotControl!$B$4 = "Annual Max",MAX(OFFSET(P_Flows!$C$10,12*($A15-1),4*(U$2-1),12,1)),AVERAGE(OFFSET(P_Flows!$C$10,12*($A15-1),4*(U$2-1),12,1))) -> 15.29403333 | U15: =IF(PlotControl!$B$4 = "Annual Max",MAX(OFFSET(P_Flows!$D$10,12*($A15-1),4*(U$2-1),12,1)),AVERAGE(OFFSET(P_Flows!$D$10,12*($A15-1),4*(U$2-1),12,1))) -> 58.77808333 | V15: =IF(PlotControl!$B$4 = "Annual Max",MAX(OFFSET(P_Flows!$E$10,12*($A15-1),4*(U$2-1),12,1)),AVERAGE(OFFSET(P_Flows!$E$10,12*($A15-1),4*(U$2-1),12,1))) -> 226.3211667 | W15: =IF(PlotControl!$B$4 = "Annual Max",MAX(OFFSET(P_Flows!$C$10,12*($A15-1),4*(X$2-1),12,1)),AVERAGE(OFFSET(P_Flows!$C$10,12*($A15-1),4*(X$2-1),12,1))) -> 15.99626667 | X15: =IF(PlotControl!$B$4 = "Annual Max",MAX(OFFSET(P_Flows!$D$10,12*($A15-1),4*(X$2-1),12,1)),AVERAGE(OFFSET(P_Flows!$D$10,12*($A15-1),4*(X$2-1),12,1))) -> 61.96241667 | Y15: =IF(PlotControl!$B$4 = "Annual Max",MAX(OFFSET(P_Flows!$E$10,12*($A15-1),4*(X$2-1),12,1)),AVERAGE(OFFSET(P_Flows!$E$10,12*($A15-1),4*(X$2-1),12,1))) -> 239.3923333 | Z15: =IF(PlotControl!$B$4 = "Annual Max",MAX(OFFSET(P_Flows!$C$10,12*($A15-1),4*(AA$2-1),12,1)),AVERAGE(OFFSET(P_Flows!$C$10,12*($A15-1),4*(AA$2-1),12,1))) -> 18.71945 | AA15: =IF(PlotControl!$B$4 = "Annual Max",MAX(OFFSET(P_Flows!$D$10,12*($A15-1),4*(AA$2-1),12,1)),AVERAGE(OFFSET(P_Flows!$D$10,12*($A15-1),4*(AA$2-1),12,1))) -> 74.02960833 | AB15: =IF(PlotControl!$B$4 = "Annual Max",MAX(OFFSET(P_Flows!$E$10,12*($A15-1),4*(AA$2-1),12,1)),AVERAGE(OFFSET(P_Flows!$E$10,12*($A15-1),4*(AA$2-1),12,1))) -> 287.5295 | AD15: 100.8333333 | AE15: =OFFSET(P_Flows!$C$10,ROUND(12*$AD15,0),4*(AF$2-1),1,1) -> 0.12239 | AF15: =OFFSET(P_Flows!$D$10,ROUND(12*$AD15,0),4*(AF$2-1),1,1) -> 0.34789 | AG15: =OFFSET(P_Flows!$E$10,ROUND(12*$AD15,0),4*(AF$2-1),1,1) -> 1.3318 | AH15: =OFFSET(P_Flows!$C$10,ROUND(12*$AD15,0),4*(AI$2-1),1,1) -> 0.9369 | AI15: =OFFSET(P_Flows!$D$10,ROUND(12*$AD15,0),4*(AI$2-1),1,1) -> 2.6632 | AJ15: =OFFSET(P_Flows!$E$10,ROUND(12*$AD15,0),4*(AI$2-1),1,1) -> 10.195 | AK15: =OFFSET(P_Flows!$C$10,ROUND(12*$AD15,0),4*(AL$2-1),1,1) -> 1.2112 | AL15: =OFFSET(P_Flows!$D$10,ROUND(12*$AD15,0),4*(AL$2-1),1,1) -> 3.4429 | AM15: =OFFSET(P_Flows!$E$10,ROUND(12*$AD15,0),4*(AL$2-1),1,1) -> 13.18 | AN15: =OFFSET(P_Flows!$C$10,ROUND(12*$AD15,0),4*(AO$2-1),1,1) -> 2.4027 | AO15: =OFFSET(P_Flows!$D$10,ROUND(12*$AD15,0),4*(AO$2-1),1,1) -> 6.8298 | AP15: =OFFSET(P_Flows!$E$10,ROUND(12*$AD15,0),4*(AO$2-1),1,1) -> 26.146 | AQ15: =OFFSET(P_Flows!$C$10,ROUND(12*$AD15,0),4*(AR$2-1),1,1) -> 7.3991 | AR15: =OFFSET(P_Flows!$D$10,ROUND(12*$AD15,0),4*(AR$2-1),1,1) -> 18.787 | AS15: =OFFSET(P_Flows!$E$10,ROUND(12*$AD15,0),4*(AR$2-1),1,1) -> 70.026 | AT15: =OFFSET(P_Flows!$C$10,ROUND(12*$AD15,0),4*(AU$2-1),1,1) -> 11.15 | AU15: =OFFSET(P_Flows!$D$10,ROUND(12*$AD15,0),4*(AU$2-1),1,1) -> 29.042 | AV15: =OFFSET(P_Flows!$E$10,ROUND(12*$AD15,0),4*(AU$2-1),1,1) -> 109.38 | AW15: =OFFSET(P_Flows!$C$10,ROUND(12*$AD15,0),4*(AX$2-1),1,1) -> 14.609 | AX15: =OFFSET(P_Flows!$D$10,ROUND(12*$AD15,0),4*(AX$2-1),1,1) -> 38.859 | AY15: =OFFSET(P_Flows!$E$10,ROUND(12*$AD15,0),4*(AX$2-1),1,1) -> 146.96 | AZ15: =OFFSET(P_Flows!$C$10,ROUND(12*$AD15,0),4*(BA$2-1),1,1) -> 15.23 | BA15: =OFFSET(P_Flows!$D$10,ROUND(12*$AD15,0),4*(BA$2-1),1,1) -> 40.57 | BB15: =OFFSET(P_Flows!$E$10,ROUND(12*$AD15,0),4*(BA$2-1),1,1) -> 153.52 | BC15: =OFFSET(P_Flows!$C$10,ROUND(12*$AD15,0),4*(BD$2-1),1,1) -> 18.004 | BD15: =OFFSET(P_Flows!$D$10,ROUND(12*$AD15,0),4*(BD$2-1),1,1) -> 48.568 | BE15: =OFFSET(P_Flows!$E$10,ROUND(12*$AD15,0),4*(BD$2-1),1,1) -> 184.13
A16: 12 | B16: =IF(PlotControl!$B$4 = "Annual Max",MAX(OFFSET(P_Flows!$C$10,12*($A16-1),4*(C$2-1),12,1)),AVERAGE(OFFSET(P_Flows!$C$10,12*($A16-1),4*(C$2-1),12,1))) -> 2.754575 | C16: =IF(PlotControl!$B$4 = "Annual Max",MAX(OFFSET(P_Flows!$D$10,12*($A16-1),4*(C$2-1),12,1)),AVERAGE(OFFSET(P_Flows!$D$10,12*($A16-1),4*(C$2-1),12,1))) -> 3.37065 | D16: =IF(PlotControl!$B$4 = "Annual Max",MAX(OFFSET(P_Flows!$E$10,12*($A16-1),4*(C$2-1),12,1)),AVERAGE(OFFSET(P_Flows!$E$10,12*($A16-1),4*(C$2-1),12,1))) -> 5.973725 | E16: =IF(PlotControl!$B$4 = "Annual Max",MAX(OFFSET(P_Flows!$C$10,12*($A16-1),4*(F$2-1),12,1)),AVERAGE(OFFSET(P_Flows!$C$10,12*($A16-1),4*(F$2-1),12,1))) -> 3.482175 | F16: =IF(PlotControl!$B$4 = "Annual Max",MAX(OFFSET(P_Flows!$D$10,12*($A16-1),4*(F$2-1),12,1)),AVERAGE(OFFSET(P_Flows!$D$10,12*($A16-1),4*(F$2-1),12,1))) -> 6.90125 | G16: =IF(PlotControl!$B$4 = "Annual Max",MAX(OFFSET(P_Flows!$E$10,12*($A16-1),4*(F$2-1),12,1)),AVERAGE(OFFSET(P_Flows!$E$10,12*($A16-1),4*(F$2-1),12,1))) -> 20.60888333 | H16: =IF(PlotControl!$B$4 = "Annual Max",MAX(OFFSET(P_Flows!$C$10,12*($A16-1),4*(I$2-1),12,1)),AVERAGE(OFFSET(P_Flows!$C$10,12*($A16-1),4*(I$2-1),12,1))) -> 3.70875 | I16: =IF(PlotControl!$B$4 = "Annual Max",MAX(OFFSET(P_Flows!$D$10,12*($A16-1),4*(I$2-1),12,1)),AVERAGE(OFFSET(P_Flows!$D$10,12*($A16-1),4*(I$2-1),12,1))) -> 7.976808333 | J16: =IF(PlotControl!$B$4 = "Annual Max",MAX(OFFSET(P_Flows!$E$10,12*($A16-1),4*(I$2-1),12,1)),AVERAGE(OFFSET(P_Flows!$E$10,12*($A16-1),4*(I$2-1),12,1))) -> 24.9952 | K16: =IF(PlotControl!$B$4 = "Annual Max",MAX(OFFSET(P_Flows!$C$10,12*($A16-1),4*(L$2-1),12,1)),AVERAGE(OFFSET(P_Flows!$C$10,12*($A16-1),4*(L$2-1),12,1))) -> 4.672883333 | L16: =IF(PlotControl!$B$4 = "Annual Max",MAX(OFFSET(P_Flows!$D$10,12*($A16-1),4*(L$2-1),12,1)),AVERAGE(OFFSET(P_Flows!$D$10,12*($A16-1),4*(L$2-1),12,1))) -> 12.62706667 | M16: =IF(PlotControl!$B$4 = "Annual Max",MAX(OFFSET(P_Flows!$E$10,12*($A16-1),4*(L$2-1),12,1)),AVERAGE(OFFSET(P_Flows!$E$10,12*($A16-1),4*(L$2-1),12,1))) -> 44.114775 | N16: =IF(PlotControl!$B$4 = "Annual Max",MAX(OFFSET(P_Flows!$C$10,12*($A16-1),4*(O$2-1),12,1)),AVERAGE(OFFSET(P_Flows!$C$10,12*($A16-1),4*(O$2-1),12,1))) -> 8.301325 | O16: =IF(PlotControl!$B$4 = "Annual Max",MAX(OFFSET(P_Flows!$D$10,12*($A16-1),4*(O$2-1),12,1)),AVERAGE(OFFSET(P_Flows!$D$10,12*($A16-1),4*(O$2-1),12,1))) -> 30.05611667 | P16: =IF(PlotControl!$B$4 = "Annual Max",MAX(OFFSET(P_Flows!$E$10,12*($A16-1),4*(O$2-1),12,1)),AVERAGE(OFFSET(P_Flows!$E$10,12*($A16-1),4*(O$2-1),12,1))) -> 115.07905 | Q16: =IF(PlotControl!$B$4 = "Annual Max",MAX(OFFSET(P_Flows!$C$10,12*($A16-1),4*(R$2-1),12,1)),AVERAGE(OFFSET(P_Flows!$C$10,12*($A16-1),4*(R$2-1),12,1))) -> 11.38783333 | R16: =IF(PlotControl!$B$4 = "Annual Max",MAX(OFFSET(P_Flows!$D$10,12*($A16-1),4*(R$2-1),12,1)),AVERAGE(OFFSET(P_Flows!$D$10,12*($A16-1),4*(R$2-1),12,1))) -> 44.87121667 | S16: =IF(PlotControl!$B$4 = "Annual Max",MAX(OFFSET(P_Flows!$E$10,12*($A16-1),4*(R$2-1),12,1)),AVERAGE(OFFSET(P_Flows!$E$10,12*($A16-1),4*(R$2-1),12,1))) -> 175.9146667 | T16: =IF(PlotControl!$B$4 = "Annual Max",MAX(OFFSET(P_Flows!$C$10,12*($A16-1),4*(U$2-1),12,1)),AVERAGE(OFFSET(P_Flows!$C$10,12*($A16-1),4*(U$2-1),12,1))) -> 14.25583333 | U16: =IF(PlotControl!$B$4 = "Annual Max",MAX(OFFSET(P_Flows!$D$10,12*($A16-1),4*(U$2-1),12,1)),AVERAGE(OFFSET(P_Flows!$D$10,12*($A16-1),4*(U$2-1),12,1))) -> 58.65363333 | V16: =IF(PlotControl!$B$4 = "Annual Max",MAX(OFFSET(P_Flows!$E$10,12*($A16-1),4*(U$2-1),12,1)),AVERAGE(OFFSET(P_Flows!$E$10,12*($A16-1),4*(U$2-1),12,1))) -> 233.7506667 | W16: =IF(PlotControl!$B$4 = "Annual Max",MAX(OFFSET(P_Flows!$C$10,12*($A16-1),4*(X$2-1),12,1)),AVERAGE(OFFSET(P_Flows!$C$10,12*($A16-1),4*(X$2-1),12,1))) -> 14.896475 | X16: =IF(PlotControl!$B$4 = "Annual Max",MAX(OFFSET(P_Flows!$D$10,12*($A16-1),4*(X$2-1),12,1)),AVERAGE(OFFSET(P_Flows!$D$10,12*($A16-1),4*(X$2-1),12,1))) -> 61.79436667 | Y16: =IF(PlotControl!$B$4 = "Annual Max",MAX(OFFSET(P_Flows!$E$10,12*($A16-1),4*(X$2-1),12,1)),AVERAGE(OFFSET(P_Flows!$E$10,12*($A16-1),4*(X$2-1),12,1))) -> 247.14025 | Z16: =IF(PlotControl!$B$4 = "Annual Max",MAX(OFFSET(P_Flows!$C$10,12*($A16-1),4*(AA$2-1),12,1)),AVERAGE(OFFSET(P_Flows!$C$10,12*($A16-1),4*(AA$2-1),12,1))) -> 17.39656667 | AA16: =IF(PlotControl!$B$4 = "Annual Max",MAX(OFFSET(P_Flows!$D$10,12*($A16-1),4*(AA$2-1),12,1)),AVERAGE(OFFSET(P_Flows!$D$10,12*($A16-1),4*(AA$2-1),12,1))) -> 73.83033333 | AB16: =IF(PlotControl!$B$4 = "Annual Max",MAX(OFFSET(P_Flows!$E$10,12*($A16-1),4*(AA$2-1),12,1)),AVERAGE(OFFSET(P_Flows!$E$10,12*($A16-1),4*(AA$2-1),12,1))) -> 296.8664167 | AD16: 100.9166667 | AE16: =OFFSET(P_Flows!$C$10,ROUND(12*$AD16,0),4*(AF$2-1),1,1) -> 0.062902 | AF16: =OFFSET(P_Flows!$D$10,ROUND(12*$AD16,0),4*(AF$2-1),1,1) -> 0.13402 | AG16: =OFFSET(P_Flows!$E$10,ROUND(12*$AD16,0),4*(AF$2-1),1,1) -> 0.28357 | AH16: =OFFSET(P_Flows!$C$10,ROUND(12*$AD16,0),4*(AI$2-1),1,1) -> 0.4198 | AI16: =OFFSET(P_Flows!$D$10,ROUND(12*$AD16,0),4*(AI$2-1),1,1) -> 0.89444 | AJ16: =OFFSET(P_Flows!$E$10,ROUND(12*$AD16,0),4*(AI$2-1),1,1) -> 1.8925 | AK16: =OFFSET(P_Flows!$C$10,ROUND(12*$AD16,0),4*(AL$2-1),1,1) -> 0.57843 | AL16: =OFFSET(P_Flows!$D$10,ROUND(12*$AD16,0),4*(AL$2-1),1,1) -> 1.2324 | AM16: =OFFSET(P_Flows!$E$10,ROUND(12*$AD16,0),4*(AL$2-1),1,1) -> 2.6076 | AN16: =OFFSET(P_Flows!$C$10,ROUND(12*$AD16,0),4*(AO$2-1),1,1) -> 1.1015 | AO16: =OFFSET(P_Flows!$D$10,ROUND(12*$AD16,0),4*(AO$2-1),1,1) -> 2.3468 | AP16: =OFFSET(P_Flows!$E$10,ROUND(12*$AD16,0),4*(AO$2-1),1,1) -> 4.9656 | AQ16: =OFFSET(P_Flows!$C$10,ROUND(12*$AD16,0),4*(AR$2-1),1,1) -> 3.7832 | AR16: =OFFSET(P_Flows!$D$10,ROUND(12*$AD16,0),4*(AR$2-1),1,1) -> 7.46 | AS16: =OFFSET(P_Flows!$E$10,ROUND(12*$AD16,0),4*(AR$2-1),1,1) -> 14.913 | AT16: =OFFSET(P_Flows!$C$10,ROUND(12*$AD16,0),4*(AU$2-1),1,1) -> 5.497 | AU16: =OFFSET(P_Flows!$D$10,ROUND(12*$AD16,0),4*(AU$2-1),1,1) -> 11.06 | AV16: =OFFSET(P_Flows!$E$10,ROUND(12*$AD16,0),4*(AU$2-1),1,1) -> 22.566 | AW16: =OFFSET(P_Flows!$C$10,ROUND(12*$AD16,0),4*(AX$2-1),1,1) -> 7.2005 | AX16: =OFFSET(P_Flows!$D$10,ROUND(12*$AD16,0),4*(AX$2-1),1,1) -> 14.597 | AY16: =OFFSET(P_Flows!$E$10,ROUND(12*$AD16,0),4*(AX$2-1),1,1) -> 30.249 | AZ16: =OFFSET(P_Flows!$C$10,ROUND(12*$AD16,0),4*(BA$2-1),1,1) -> 7.4837 | BA16: =OFFSET(P_Flows!$D$10,ROUND(12*$AD16,0),4*(BA$2-1),1,1) -> 15.2 | BB16: =OFFSET(P_Flows!$E$10,ROUND(12*$AD16,0),4*(BA$2-1),1,1) -> 31.527 | BC16: =OFFSET(P_Flows!$C$10,ROUND(12*$AD16,0),4*(BD$2-1),1,1) -> 8.8554 | BD16: =OFFSET(P_Flows!$D$10,ROUND(12*$AD16,0),4*(BD$2-1),1,1) -> 18.117 | BE16: =OFFSET(P_Flows!$E$10,ROUND(12*$AD16,0),4*(BD$2-1),1,1) -> 37.714
A17: 13 | B17: =IF(PlotControl!$B$4 = "Annual Max",MAX(OFFSET(P_Flows!$C$10,12*($A17-1),4*(C$2-1),12,1)),AVERAGE(OFFSET(P_Flows!$C$10,12*($A17-1),4*(C$2-1),12,1))) -> 2.770075 | C17: =IF(PlotControl!$B$4 = "Annual Max",MAX(OFFSET(P_Flows!$D$10,12*($A17-1),4*(C$2-1),12,1)),AVERAGE(OFFSET(P_Flows!$D$10,12*($A17-1),4*(C$2-1),12,1))) -> 3.362216667 | D17: =IF(PlotControl!$B$4 = "Annual Max",MAX(OFFSET(P_Flows!$E$10,12*($A17-1),4*(C$2-1),12,1)),AVERAGE(OFFSET(P_Flows!$E$10,12*($A17-1),4*(C$2-1),12,1))) -> 5.914908333 | E17: =IF(PlotControl!$B$4 = "Annual Max",MAX(OFFSET(P_Flows!$C$10,12*($A17-1),4*(F$2-1),12,1)),AVERAGE(OFFSET(P_Flows!$C$10,12*($A17-1),4*(F$2-1),12,1))) -> 3.569983333 | F17: =IF(PlotControl!$B$4 = "Annual Max",MAX(OFFSET(P_Flows!$D$10,12*($A17-1),4*(F$2-1),12,1)),AVERAGE(OFFSET(P_Flows!$D$10,12*($A17-1),4*(F$2-1),12,1))) -> 6.840683333 | G17: =IF(PlotControl!$B$4 = "Annual Max",MAX(OFFSET(P_Flows!$E$10,12*($A17-1),4*(F$2-1),12,1)),AVERAGE(OFFSET(P_Flows!$E$10,12*($A17-1),4*(F$2-1),12,1))) -> 20.36173333 | H17: =IF(PlotControl!$B$4 = "Annual Max",MAX(OFFSET(P_Flows!$C$10,12*($A17-1),4*(I$2-1),12,1)),AVERAGE(OFFSET(P_Flows!$C$10,12*($A17-1),4*(I$2-1),12,1))) -> 3.81705 | I17: =IF(PlotControl!$B$4 = "Annual Max",MAX(OFFSET(P_Flows!$D$10,12*($A17-1),4*(I$2-1),12,1)),AVERAGE(OFFSET(P_Flows!$D$10,12*($A17-1),4*(I$2-1),12,1))) -> 7.889725 | J17: =IF(PlotControl!$B$4 = "Annual Max",MAX(OFFSET(P_Flows!$E$10,12*($A17-1),4*(I$2-1),12,1)),AVERAGE(OFFSET(P_Flows!$E$10,12*($A17-1),4*(I$2-1),12,1))) -> 24.653875 | K17: =IF(PlotControl!$B$4 = "Annual Max",MAX(OFFSET(P_Flows!$C$10,12*($A17-1),4*(L$2-1),12,1)),AVERAGE(OFFSET(P_Flows!$C$10,12*($A17-1),4*(L$2-1),12,1))) -> 4.867875 | L17: =IF(PlotControl!$B$4 = "Annual Max",MAX(OFFSET(P_Flows!$D$10,12*($A17-1),4*(L$2-1),12,1)),AVERAGE(OFFSET(P_Flows!$D$10,12*($A17-1),4*(L$2-1),12,1))) -> 12.42530833 | M17: =IF(PlotControl!$B$4 = "Annual Max",MAX(OFFSET(P_Flows!$E$10,12*($A17-1),4*(L$2-1),12,1)),AVERAGE(OFFSET(P_Flows!$E$10,12*($A17-1),4*(L$2-1),12,1))) -> 43.35965833 | N17: =IF(PlotControl!$B$4 = "Annual Max",MAX(OFFSET(P_Flows!$C$10,12*($A17-1),4*(O$2-1),12,1)),AVERAGE(OFFSET(P_Flows!$C$10,12*($A17-1),4*(O$2-1),12,1))) -> 8.829466667 | O17: =IF(PlotControl!$B$4 = "Annual Max",MAX(OFFSET(P_Flows!$D$10,12*($A17-1),4*(O$2-1),12,1)),AVERAGE(OFFSET(P_Flows!$D$10,12*($A17-1),4*(O$2-1),12,1))) -> 29.42689167 | P17: =IF(PlotControl!$B$4 = "Annual Max",MAX(OFFSET(P_Flows!$E$10,12*($A17-1),4*(O$2-1),12,1)),AVERAGE(OFFSET(P_Flows!$E$10,12*($A17-1),4*(O$2-1),12,1))) -> 112.931375 | Q17: =IF(PlotControl!$B$4 = "Annual Max",MAX(OFFSET(P_Flows!$C$10,12*($A17-1),4*(R$2-1),12,1)),AVERAGE(OFFSET(P_Flows!$C$10,12*($A17-1),4*(R$2-1),12,1))) -> 12.19475833 | R17: =IF(PlotControl!$B$4 = "Annual Max",MAX(OFFSET(P_Flows!$D$10,12*($A17-1),4*(R$2-1),12,1)),AVERAGE(OFFSET(P_Flows!$D$10,12*($A17-1),4*(R$2-1),12,1))) -> 43.869025 | S17: =IF(PlotControl!$B$4 = "Annual Max",MAX(OFFSET(P_Flows!$E$10,12*($A17-1),4*(R$2-1),12,1)),AVERAGE(OFFSET(P_Flows!$E$10,12*($A17-1),4*(R$2-1),12,1))) -> 172.4481667 | T17: =IF(PlotControl!$B$4 = "Annual Max",MAX(OFFSET(P_Flows!$C$10,12*($A17-1),4*(U$2-1),12,1)),AVERAGE(OFFSET(P_Flows!$C$10,12*($A17-1),4*(U$2-1),12,1))) -> 15.32821667 | U17: =IF(PlotControl!$B$4 = "Annual Max",MAX(OFFSET(P_Flows!$D$10,12*($A17-1),4*(U$2-1),12,1)),AVERAGE(OFFSET(P_Flows!$D$10,12*($A17-1),4*(U$2-1),12,1))) -> 57.30464167 | V17: =IF(PlotControl!$B$4 = "Annual Max",MAX(OFFSET(P_Flows!$E$10,12*($A17-1),4*(U$2-1),12,1)),AVERAGE(OFFSET(P_Flows!$E$10,12*($A17-1),4*(U$2-1),12,1))) -> 229.0011667 | W17: =IF(PlotControl!$B$4 = "Annual Max",MAX(OFFSET(P_Flows!$C$10,12*($A17-1),4*(X$2-1),12,1)),AVERAGE(OFFSET(P_Flows!$C$10,12*($A17-1),4*(X$2-1),12,1))) -> 16.03 | X17: =IF(PlotControl!$B$4 = "Annual Max",MAX(OFFSET(P_Flows!$D$10,12*($A17-1),4*(X$2-1),12,1)),AVERAGE(OFFSET(P_Flows!$D$10,12*($A17-1),4*(X$2-1),12,1))) -> 60.38858333 | Y17: =IF(PlotControl!$B$4 = "Annual Max",MAX(OFFSET(P_Flows!$E$10,12*($A17-1),4*(X$2-1),12,1)),AVERAGE(OFFSET(P_Flows!$E$10,12*($A17-1),4*(X$2-1),12,1))) -> 242.1455833 | Z17: =IF(PlotControl!$B$4 = "Annual Max",MAX(OFFSET(P_Flows!$C$10,12*($A17-1),4*(AA$2-1),12,1)),AVERAGE(OFFSET(P_Flows!$C$10,12*($A17-1),4*(AA$2-1),12,1))) -> 18.75826667 | AA17: =IF(PlotControl!$B$4 = "Annual Max",MAX(OFFSET(P_Flows!$D$10,12*($A17-1),4*(AA$2-1),12,1)),AVERAGE(OFFSET(P_Flows!$D$10,12*($A17-1),4*(AA$2-1),12,1))) -> 72.12876667 | AB17: =IF(PlotControl!$B$4 = "Annual Max",MAX(OFFSET(P_Flows!$E$10,12*($A17-1),4*(AA$2-1),12,1)),AVERAGE(OFFSET(P_Flows!$E$10,12*($A17-1),4*(AA$2-1),12,1))) -> 290.80925 | AD17: 101 | AE17: =OFFSET(P_Flows!$C$10,ROUND(12*$AD17,0),4*(AF$2-1),1,1) -> 0.020885 | AF17: =OFFSET(P_Flows!$D$10,ROUND(12*$AD17,0),4*(AF$2-1),1,1) -> 0.08399 | AG17: =OFFSET(P_Flows!$E$10,ROUND(12*$AD17,0),4*(AF$2-1),1,1) -> 0.16081 | AH17: =OFFSET(P_Flows!$C$10,ROUND(12*$AD17,0),4*(AI$2-1),1,1) -> 0.13772 | AI17: =OFFSET(P_Flows!$D$10,ROUND(12*$AD17,0),4*(AI$2-1),1,1) -> 0.55386 | AJ17: =OFFSET(P_Flows!$E$10,ROUND(12*$AD17,0),4*(AI$2-1),1,1) -> 1.0604 | AK17: =OFFSET(P_Flows!$C$10,ROUND(12*$AD17,0),4*(AL$2-1),1,1) -> 0.18205 | AL17: =OFFSET(P_Flows!$D$10,ROUND(12*$AD17,0),4*(AL$2-1),1,1) -> 0.73214 | AM17: =OFFSET(P_Flows!$E$10,ROUND(12*$AD17,0),4*(AL$2-1),1,1) -> 1.4018 | AN17: =OFFSET(P_Flows!$C$10,ROUND(12*$AD17,0),4*(AO$2-1),1,1) -> 0.33515 | AO17: =OFFSET(P_Flows!$D$10,ROUND(12*$AD17,0),4*(AO$2-1),1,1) -> 1.3478 | AP17: =OFFSET(P_Flows!$E$10,ROUND(12*$AD17,0),4*(AO$2-1),1,1) -> 2.5805 | AQ17: =OFFSET(P_Flows!$C$10,ROUND(12*$AD17,0),4*(AR$2-1),1,1) -> 1.5833 | AR17: =OFFSET(P_Flows!$D$10,ROUND(12*$AD17,0),4*(AR$2-1),1,1) -> 4.4949 | AS17: =OFFSET(P_Flows!$E$10,ROUND(12*$AD17,0),4*(AR$2-1),1,1) -> 7.9594 | AT17: =OFFSET(P_Flows!$C$10,ROUND(12*$AD17,0),4*(AU$2-1),1,1) -> 2.08 | AU17: =OFFSET(P_Flows!$D$10,ROUND(12*$AD17,0),4*(AU$2-1),1,1) -> 6.4978 | AV17: =OFFSET(P_Flows!$E$10,ROUND(12*$AD17,0),4*(AU$2-1),1,1) -> 11.796 | AW17: =OFFSET(P_Flows!$C$10,ROUND(12*$AD17,0),4*(AX$2-1),1,1) -> 2.5081 | AX17: =OFFSET(P_Flows!$D$10,ROUND(12*$AD17,0),4*(AX$2-1),1,1) -> 8.235 | AY17: =OFFSET(P_Flows!$E$10,ROUND(12*$AD17,0),4*(AX$2-1),1,1) -> 15.058 | AZ17: =OFFSET(P_Flows!$C$10,ROUND(12*$AD17,0),4*(BA$2-1),1,1) -> 2.6029 | BA17: =OFFSET(P_Flows!$D$10,ROUND(12*$AD17,0),4*(BA$2-1),1,1) -> 8.6058 | BB17: =OFFSET(P_Flows!$E$10,ROUND(12*$AD17,0),4*(BA$2-1),1,1) -> 15.787 | BC17: =OFFSET(P_Flows!$C$10,ROUND(12*$AD17,0),4*(BD$2-1),1,1) -> 2.997 | BD17: =OFFSET(P_Flows!$D$10,ROUND(12*$AD17,0),4*(BD$2-1),1,1) -> 10.175 | BE17: =OFFSET(P_Flows!$E$10,ROUND(12*$AD17,0),4*(BD$2-1),1,1) -> 18.821
A18: 14 | B18: =IF(PlotControl!$B$4 = "Annual Max",MAX(OFFSET(P_Flows!$C$10,12*($A18-1),4*(C$2-1),12,1)),AVERAGE(OFFSET(P_Flows!$C$10,12*($A18-1),4*(C$2-1),12,1))) -> 2.769058333 | C18: =IF(PlotControl!$B$4 = "Annual Max",MAX(OFFSET(P_Flows!$D$10,12*($A18-1),4*(C$2-1),12,1)),AVERAGE(OFFSET(P_Flows!$D$10,12*($A18-1),4*(C$2-1),12,1))) -> 3.3718 | D18: =IF(PlotControl!$B$4 = "Annual Max",MAX(OFFSET(P_Flows!$E$10,12*($A18-1),4*(C$2-1),12,1)),AVERAGE(OFFSET(P_Flows!$E$10,12*($A18-1),4*(C$2-1),12,1))) -> 5.777641667 | E18: =IF(PlotControl!$B$4 = "Annual Max",MAX(OFFSET(P_Flows!$C$10,12*($A18-1),4*(F$2-1),12,1)),AVERAGE(OFFSET(P_Flows!$C$10,12*($A18-1),4*(F$2-1),12,1))) -> 3.571308333 | F18: =IF(PlotControl!$B$4 = "Annual Max",MAX(OFFSET(P_Flows!$D$10,12*($A18-1),4*(F$2-1),12,1)),AVERAGE(OFFSET(P_Flows!$D$10,12*($A18-1),4*(F$2-1),12,1))) -> 6.963933333 | G18: =IF(PlotControl!$B$4 = "Annual Max",MAX(OFFSET(P_Flows!$E$10,12*($A18-1),4*(F$2-1),12,1)),AVERAGE(OFFSET(P_Flows!$E$10,12*($A18-1),4*(F$2-1),12,1))) -> 19.81203333 | H18: =IF(PlotControl!$B$4 = "Annual Max",MAX(OFFSET(P_Flows!$C$10,12*($A18-1),4*(I$2-1),12,1)),AVERAGE(OFFSET(P_Flows!$C$10,12*($A18-1),4*(I$2-1),12,1))) -> 3.815983333 | I18: =IF(PlotControl!$B$4 = "Annual Max",MAX(OFFSET(P_Flows!$D$10,12*($A18-1),4*(I$2-1),12,1)),AVERAGE(OFFSET(P_Flows!$D$10,12*($A18-1),4*(I$2-1),12,1))) -> 8.03655 | J18: =IF(PlotControl!$B$4 = "Annual Max",MAX(OFFSET(P_Flows!$E$10,12*($A18-1),4*(I$2-1),12,1)),AVERAGE(OFFSET(P_Flows!$E$10,12*($A18-1),4*(I$2-1),12,1))) -> 23.95496667 | K18: =IF(PlotControl!$B$4 = "Annual Max",MAX(OFFSET(P_Flows!$C$10,12*($A18-1),4*(L$2-1),12,1)),AVERAGE(OFFSET(P_Flows!$C$10,12*($A18-1),4*(L$2-1),12,1))) -> 4.861825 | L18: =IF(PlotControl!$B$4 = "Annual Max",MAX(OFFSET(P_Flows!$D$10,12*($A18-1),4*(L$2-1),12,1)),AVERAGE(OFFSET(P_Flows!$D$10,12*($A18-1),4*(L$2-1),12,1))) -> 12.69105 | M18: =IF(PlotControl!$B$4 = "Annual Max",MAX(OFFSET(P_Flows!$E$10,12*($A18-1),4*(L$2-1),12,1)),AVERAGE(OFFSET(P_Flows!$E$10,12*($A18-1),4*(L$2-1),12,1))) -> 41.9997 | N18: =IF(PlotControl!$B$4 = "Annual Max",MAX(OFFSET(P_Flows!$C$10,12*($A18-1),4*(O$2-1),12,1)),AVERAGE(OFFSET(P_Flows!$C$10,12*($A18-1),4*(O$2-1),12,1))) -> 8.8082 | O18: =IF(PlotControl!$B$4 = "Annual Max",MAX(OFFSET(P_Flows!$D$10,12*($A18-1),4*(O$2-1),12,1)),AVERAGE(OFFSET(P_Flows!$D$10,12*($A18-1),4*(O$2-1),12,1))) -> 30.197775 | P18: =IF(PlotControl!$B$4 = "Annual Max",MAX(OFFSET(P_Flows!$E$10,12*($A18-1),4*(O$2-1),12,1)),AVERAGE(OFFSET(P_Flows!$E$10,12*($A18-1),4*(O$2-1),12,1))) -> 109.364175 | Q18: =IF(PlotControl!$B$4 = "Annual Max",MAX(OFFSET(P_Flows!$C$10,12*($A18-1),4*(R$2-1),12,1)),AVERAGE(OFFSET(P_Flows!$C$10,12*($A18-1),4*(R$2-1),12,1))) -> 12.15548333 | R18: =IF(PlotControl!$B$4 = "Annual Max",MAX(OFFSET(P_Flows!$D$10,12*($A18-1),4*(R$2-1),12,1)),AVERAGE(OFFSET(P_Flows!$D$10,12*($A18-1),4*(R$2-1),12,1))) -> 45.00964167 | S18: =IF(PlotControl!$B$4 = "Annual Max",MAX(OFFSET(P_Flows!$E$10,12*($A18-1),4*(R$2-1),12,1)),AVERAGE(OFFSET(P_Flows!$E$10,12*($A18-1),4*(R$2-1),12,1))) -> 166.8199167 | T18: =IF(PlotControl!$B$4 = "Annual Max",MAX(OFFSET(P_Flows!$C$10,12*($A18-1),4*(U$2-1),12,1)),AVERAGE(OFFSET(P_Flows!$C$10,12*($A18-1),4*(U$2-1),12,1))) -> 15.26329167 | U18: =IF(PlotControl!$B$4 = "Annual Max",MAX(OFFSET(P_Flows!$D$10,12*($A18-1),4*(U$2-1),12,1)),AVERAGE(OFFSET(P_Flows!$D$10,12*($A18-1),4*(U$2-1),12,1))) -> 58.76410833 | V18: =IF(PlotControl!$B$4 = "Annual Max",MAX(OFFSET(P_Flows!$E$10,12*($A18-1),4*(U$2-1),12,1)),AVERAGE(OFFSET(P_Flows!$E$10,12*($A18-1),4*(U$2-1),12,1))) -> 221.2355 | W18: =IF(PlotControl!$B$4 = "Annual Max",MAX(OFFSET(P_Flows!$C$10,12*($A18-1),4*(X$2-1),12,1)),AVERAGE(OFFSET(P_Flows!$C$10,12*($A18-1),4*(X$2-1),12,1))) -> 15.95925 | X18: =IF(PlotControl!$B$4 = "Annual Max",MAX(OFFSET(P_Flows!$D$10,12*($A18-1),4*(X$2-1),12,1)),AVERAGE(OFFSET(P_Flows!$D$10,12*($A18-1),4*(X$2-1),12,1))) -> 61.909025 | Y18: =IF(PlotControl!$B$4 = "Annual Max",MAX(OFFSET(P_Flows!$E$10,12*($A18-1),4*(X$2-1),12,1)),AVERAGE(OFFSET(P_Flows!$E$10,12*($A18-1),4*(X$2-1),12,1))) -> 233.855 | Z18: =IF(PlotControl!$B$4 = "Annual Max",MAX(OFFSET(P_Flows!$C$10,12*($A18-1),4*(AA$2-1),12,1)),AVERAGE(OFFSET(P_Flows!$C$10,12*($A18-1),4*(AA$2-1),12,1))) -> 18.670675 | AA18: =IF(PlotControl!$B$4 = "Annual Max",MAX(OFFSET(P_Flows!$D$10,12*($A18-1),4*(AA$2-1),12,1)),AVERAGE(OFFSET(P_Flows!$D$10,12*($A18-1),4*(AA$2-1),12,1))) -> 73.94574167 | AB18: =IF(PlotControl!$B$4 = "Annual Max",MAX(OFFSET(P_Flows!$E$10,12*($A18-1),4*(AA$2-1),12,1)),AVERAGE(OFFSET(P_Flows!$E$10,12*($A18-1),4*(AA$2-1),12,1))) -> 280.7901667 | AD18: 101.0833333 | AE18: =OFFSET(P_Flows!$C$10,ROUND(12*$AD18,0),4*(AF$2-1),1,1) -> 0.014098 | AF18: =OFFSET(P_Flows!$D$10,ROUND(12*$AD18,0),4*(AF$2-1),1,1) -> 0.024242 | AG18: =OFFSET(P_Flows!$E$10,ROUND(12*$AD18,0),4*(AF$2-1),1,1) -> 0.19865 | AH18: =OFFSET(P_Flows!$C$10,ROUND(12*$AD18,0),4*(AI$2-1),1,1) -> 0.089818 | AI18: =OFFSET(P_Flows!$D$10,ROUND(12*$AD18,0),4*(AI$2-1),1,1) -> 0.15444 | AJ18: =OFFSET(P_Flows!$E$10,ROUND(12*$AD18,0),4*(AI$2-1),1,1) -> 1.2656 | AK18: =OFFSET(P_Flows!$C$10,ROUND(12*$AD18,0),4*(AL$2-1),1,1) -> 0.10994 | AL18: =OFFSET(P_Flows!$D$10,ROUND(12*$AD18,0),4*(AL$2-1),1,1) -> 0.18905 | AM18: =OFFSET(P_Flows!$E$10,ROUND(12*$AD18,0),4*(AL$2-1),1,1) -> 1.5491 | AN18: =OFFSET(P_Flows!$C$10,ROUND(12*$AD18,0),4*(AO$2-1),1,1) -> 0.20522 | AO18: =OFFSET(P_Flows!$D$10,ROUND(12*$AD18,0),4*(AO$2-1),1,1) -> 0.35288 | AP18: =OFFSET(P_Flows!$E$10,ROUND(12*$AD18,0),4*(AO$2-1),1,1) -> 2.8916 | AQ18: =OFFSET(P_Flows!$C$10,ROUND(12*$AD18,0),4*(AR$2-1),1,1) -> 1.1865 | AR18: =OFFSET(P_Flows!$D$10,ROUND(12*$AD18,0),4*(AR$2-1),1,1) -> 1.5894 | AS18: =OFFSET(P_Flows!$E$10,ROUND(12*$AD18,0),4*(AR$2-1),1,1) -> 8.4112 | AT18: =OFFSET(P_Flows!$C$10,ROUND(12*$AD18,0),4*(AU$2-1),1,1) -> 1.4677 | AU18: =OFFSET(P_Flows!$D$10,ROUND(12*$AD18,0),4*(AU$2-1),1,1) -> 2.0749 | AV18: =OFFSET(P_Flows!$E$10,ROUND(12*$AD18,0),4*(AU$2-1),1,1) -> 12.368 | AW18: =OFFSET(P_Flows!$C$10,ROUND(12*$AD18,0),4*(AX$2-1),1,1) -> 1.7098 | AX18: =OFFSET(P_Flows!$D$10,ROUND(12*$AD18,0),4*(AX$2-1),1,1) -> 2.4936 | AY18: =OFFSET(P_Flows!$E$10,ROUND(12*$AD18,0),4*(AX$2-1),1,1) -> 15.78 | AZ18: =OFFSET(P_Flows!$C$10,ROUND(12*$AD18,0),4*(BA$2-1),1,1) -> 1.7703 | BA18: =OFFSET(P_Flows!$D$10,ROUND(12*$AD18,0),4*(BA$2-1),1,1) -> 2.5982 | BB18: =OFFSET(P_Flows!$E$10,ROUND(12*$AD18,0),4*(BA$2-1),1,1) -> 16.633 | BC18: =OFFSET(P_Flows!$C$10,ROUND(12*$AD18,0),4*(BD$2-1),1,1) -> 1.9977 | BD18: =OFFSET(P_Flows!$D$10,ROUND(12*$AD18,0),4*(BD$2-1),1,1) -> 2.9914 | BE18: =OFFSET(P_Flows!$E$10,ROUND(12*$AD18,0),4*(BD$2-1),1,1) -> 19.837
A19: 15 | B19: =IF(PlotControl!$B$4 = "Annual Max",MAX(OFFSET(P_Flows!$C$10,12*($A19-1),4*(C$2-1),12,1)),AVERAGE(OFFSET(P_Flows!$C$10,12*($A19-1),4*(C$2-1),12,1))) -> 2.747575 | C19: =IF(PlotControl!$B$4 = "Annual Max",MAX(OFFSET(P_Flows!$D$10,12*($A19-1),4*(C$2-1),12,1)),AVERAGE(OFFSET(P_Flows!$D$10,12*($A19-1),4*(C$2-1),12,1))) -> 3.344433333 | D19: =IF(PlotControl!$B$4 = "Annual Max",MAX(OFFSET(P_Flows!$E$10,12*($A19-1),4*(C$2-1),12,1)),AVERAGE(OFFSET(P_Flows!$E$10,12*($A19-1),4*(C$2-1),12,1))) -> 6.02235 | E19: =IF(PlotControl!$B$4 = "Annual Max",MAX(OFFSET(P_Flows!$C$10,12*($A19-1),4*(F$2-1),12,1)),AVERAGE(OFFSET(P_Flows!$C$10,12*($A19-1),4*(F$2-1),12,1))) -> 3.449008333 | F19: =IF(PlotControl!$B$4 = "Annual Max",MAX(OFFSET(P_Flows!$D$10,12*($A19-1),4*(F$2-1),12,1)),AVERAGE(OFFSET(P_Flows!$D$10,12*($A19-1),4*(F$2-1),12,1))) -> 6.782616667 | G19: =IF(PlotControl!$B$4 = "Annual Max",MAX(OFFSET(P_Flows!$E$10,12*($A19-1),4*(F$2-1),12,1)),AVERAGE(OFFSET(P_Flows!$E$10,12*($A19-1),4*(F$2-1),12,1))) -> 21.16083333 | H19: =IF(PlotControl!$B$4 = "Annual Max",MAX(OFFSET(P_Flows!$C$10,12*($A19-1),4*(I$2-1),12,1)),AVERAGE(OFFSET(P_Flows!$C$10,12*($A19-1),4*(I$2-1),12,1))) -> 3.663208333 | I19: =IF(PlotControl!$B$4 = "Annual Max",MAX(OFFSET(P_Flows!$D$10,12*($A19-1),4*(I$2-1),12,1)),AVERAGE(OFFSET(P_Flows!$D$10,12*($A19-1),4*(I$2-1),12,1))) -> 7.807466667 | J19: =IF(PlotControl!$B$4 = "Annual Max",MAX(OFFSET(P_Flows!$E$10,12*($A19-1),4*(I$2-1),12,1)),AVERAGE(OFFSET(P_Flows!$E$10,12*($A19-1),4*(I$2-1),12,1))) -> 25.59616667 | K19: =IF(PlotControl!$B$4 = "Annual Max",MAX(OFFSET(P_Flows!$C$10,12*($A19-1),4*(L$2-1),12,1)),AVERAGE(OFFSET(P_Flows!$C$10,12*($A19-1),4*(L$2-1),12,1))) -> 4.57075 | L19: =IF(PlotControl!$B$4 = "Annual Max",MAX(OFFSET(P_Flows!$D$10,12*($A19-1),4*(L$2-1),12,1)),AVERAGE(OFFSET(P_Flows!$D$10,12*($A19-1),4*(L$2-1),12,1))) -> 12.22935833 | M19: =IF(PlotControl!$B$4 = "Annual Max",MAX(OFFSET(P_Flows!$E$10,12*($A19-1),4*(L$2-1),12,1)),AVERAGE(OFFSET(P_Flows!$E$10,12*($A19-1),4*(L$2-1),12,1))) -> 44.90809167 | N19: =IF(PlotControl!$B$4 = "Annual Max",MAX(OFFSET(P_Flows!$C$10,12*($A19-1),4*(O$2-1),12,1)),AVERAGE(OFFSET(P_Flows!$C$10,12*($A19-1),4*(O$2-1),12,1))) -> 7.997591667 | O19: =IF(PlotControl!$B$4 = "Annual Max",MAX(OFFSET(P_Flows!$D$10,12*($A19-1),4*(O$2-1),12,1)),AVERAGE(OFFSET(P_Flows!$D$10,12*($A19-1),4*(O$2-1),12,1))) -> 28.84865833 | P19: =IF(PlotControl!$B$4 = "Annual Max",MAX(OFFSET(P_Flows!$E$10,12*($A19-1),4*(O$2-1),12,1)),AVERAGE(OFFSET(P_Flows!$E$10,12*($A19-1),4*(O$2-1),12,1))) -> 116.9246667 | Q19: =IF(PlotControl!$B$4 = "Annual Max",MAX(OFFSET(P_Flows!$C$10,12*($A19-1),4*(R$2-1),12,1)),AVERAGE(OFFSET(P_Flows!$C$10,12*($A19-1),4*(R$2-1),12,1))) -> 10.9068 | R19: =IF(PlotControl!$B$4 = "Annual Max",MAX(OFFSET(P_Flows!$D$10,12*($A19-1),4*(R$2-1),12,1)),AVERAGE(OFFSET(P_Flows!$D$10,12*($A19-1),4*(R$2-1),12,1))) -> 42.95180833 | S19: =IF(PlotControl!$B$4 = "Annual Max",MAX(OFFSET(P_Flows!$E$10,12*($A19-1),4*(R$2-1),12,1)),AVERAGE(OFFSET(P_Flows!$E$10,12*($A19-1),4*(R$2-1),12,1))) -> 178.40625 | T19: =IF(PlotControl!$B$4 = "Annual Max",MAX(OFFSET(P_Flows!$C$10,12*($A19-1),4*(U$2-1),12,1)),AVERAGE(OFFSET(P_Flows!$C$10,12*($A19-1),4*(U$2-1),12,1))) -> 13.61731667 | U19: =IF(PlotControl!$B$4 = "Annual Max",MAX(OFFSET(P_Flows!$D$10,12*($A19-1),4*(U$2-1),12,1)),AVERAGE(OFFSET(P_Flows!$D$10,12*($A19-1),4*(U$2-1),12,1))) -> 56.12413333 | V19: =IF(PlotControl!$B$4 = "Annual Max",MAX(OFFSET(P_Flows!$E$10,12*($A19-1),4*(U$2-1),12,1)),AVERAGE(OFFSET(P_Flows!$E$10,12*($A19-1),4*(U$2-1),12,1))) -> 236.90175 | W19: =IF(PlotControl!$B$4 = "Annual Max",MAX(OFFSET(P_Flows!$C$10,12*($A19-1),4*(X$2-1),12,1)),AVERAGE(OFFSET(P_Flows!$C$10,12*($A19-1),4*(X$2-1),12,1))) -> 14.22365 | X19: =IF(PlotControl!$B$4 = "Annual Max",MAX(OFFSET(P_Flows!$D$10,12*($A19-1),4*(X$2-1),12,1)),AVERAGE(OFFSET(P_Flows!$D$10,12*($A19-1),4*(X$2-1),12,1))) -> 59.13019167 | Y19: =IF(PlotControl!$B$4 = "Annual Max",MAX(OFFSET(P_Flows!$E$10,12*($A19-1),4*(X$2-1),12,1)),AVERAGE(OFFSET(P_Flows!$E$10,12*($A19-1),4*(X$2-1),12,1))) -> 250.4654167 | Z19: =IF(PlotControl!$B$4 = "Annual Max",MAX(OFFSET(P_Flows!$C$10,12*($A19-1),4*(AA$2-1),12,1)),AVERAGE(OFFSET(P_Flows!$C$10,12*($A19-1),4*(AA$2-1),12,1))) -> 16.580525 | AA19: =IF(PlotControl!$B$4 = "Annual Max",MAX(OFFSET(P_Flows!$D$10,12*($A19-1),4*(AA$2-1),12,1)),AVERAGE(OFFSET(P_Flows!$D$10,12*($A19-1),4*(AA$2-1),12,1))) -> 70.59288333 | AB19: =IF(PlotControl!$B$4 = "Annual Max",MAX(OFFSET(P_Flows!$E$10,12*($A19-1),4*(AA$2-1),12,1)),AVERAGE(OFFSET(P_Flows!$E$10,12*($A19-1),4*(AA$2-1),12,1))) -> 300.7228333 | AD19: 101.1666667 | AE19: =OFFSET(P_Flows!$C$10,ROUND(12*$AD19,0),4*(AF$2-1),1,1) -> 0.019344 | AF19: =OFFSET(P_Flows!$D$10,ROUND(12*$AD19,0),4*(AF$2-1),1,1) -> 0.12925 | AG19: =OFFSET(P_Flows!$E$10,ROUND(12*$AD19,0),4*(AF$2-1),1,1) -> 1.3046 | AH19: =OFFSET(P_Flows!$C$10,ROUND(12*$AD19,0),4*(AI$2-1),1,1) -> 0.11339 | AI19: =OFFSET(P_Flows!$D$10,ROUND(12*$AD19,0),4*(AI$2-1),1,1) -> 0.75766 | AJ19: =OFFSET(P_Flows!$E$10,ROUND(12*$AD19,0),4*(AI$2-1),1,1) -> 7.6471 | AK19: =OFFSET(P_Flows!$C$10,ROUND(12*$AD19,0),4*(AL$2-1),1,1) -> 0.13745 | AL19: =OFFSET(P_Flows!$D$10,ROUND(12*$AD19,0),4*(AL$2-1),1,1) -> 0.91838 | AM19: =OFFSET(P_Flows!$E$10,ROUND(12*$AD19,0),4*(AL$2-1),1,1) -> 9.2693 | AN19: =OFFSET(P_Flows!$C$10,ROUND(12*$AD19,0),4*(AO$2-1),1,1) -> 0.24613 | AO19: =OFFSET(P_Flows!$D$10,ROUND(12*$AD19,0),4*(AO$2-1),1,1) -> 1.6446 | AP19: =OFFSET(P_Flows!$E$10,ROUND(12*$AD19,0),4*(AO$2-1),1,1) -> 16.599 | AQ19: =OFFSET(P_Flows!$C$10,ROUND(12*$AD19,0),4*(AR$2-1),1,1) -> 1.2975 | AR19: =OFFSET(P_Flows!$D$10,ROUND(12*$AD19,0),4*(AR$2-1),1,1) -> 5.0662 | AS19: =OFFSET(P_Flows!$E$10,ROUND(12*$AD19,0),4*(AR$2-1),1,1) -> 45.359 | AT19: =OFFSET(P_Flows!$C$10,ROUND(12*$AD19,0),4*(AU$2-1),1,1) -> 1.6221 | AU19: =OFFSET(P_Flows!$D$10,ROUND(12*$AD19,0),4*(AU$2-1),1,1) -> 7.1963 | AV19: =OFFSET(P_Flows!$E$10,ROUND(12*$AD19,0),4*(AU$2-1),1,1) -> 66.859 | AW19: =OFFSET(P_Flows!$C$10,ROUND(12*$AD19,0),4*(AX$2-1),1,1) -> 1.8345 | AX19: =OFFSET(P_Flows!$D$10,ROUND(12*$AD19,0),4*(AX$2-1),1,1) -> 8.6079 | AY19: =OFFSET(P_Flows!$E$10,ROUND(12*$AD19,0),4*(AX$2-1),1,1) -> 81.106 | AZ19: =OFFSET(P_Flows!$C$10,ROUND(12*$AD19,0),4*(BA$2-1),1,1) -> 1.9124 | BA19: =OFFSET(P_Flows!$D$10,ROUND(12*$AD19,0),4*(BA$2-1),1,1) -> 9.1257 | BB19: =OFFSET(P_Flows!$E$10,ROUND(12*$AD19,0),4*(BA$2-1),1,1) -> 86.333 | BC19: =OFFSET(P_Flows!$C$10,ROUND(12*$AD19,0),4*(BD$2-1),1,1) -> 2.1682 | BD19: =OFFSET(P_Flows!$D$10,ROUND(12*$AD19,0),4*(BD$2-1),1,1) -> 10.826 | BE19: =OFFSET(P_Flows!$E$10,ROUND(12*$AD19,0),4*(BD$2-1),1,1) -> 103.5
A20: 16 | B20: =IF(PlotControl!$B$4 = "Annual Max",MAX(OFFSET(P_Flows!$C$10,12*($A20-1),4*(C$2-1),12,1)),AVERAGE(OFFSET(P_Flows!$C$10,12*($A20-1),4*(C$2-1),12,1))) -> 2.773033333 | C20: =IF(PlotControl!$B$4 = "Annual Max",MAX(OFFSET(P_Flows!$D$10,12*($A20-1),4*(C$2-1),12,1)),AVERAGE(OFFSET(P_Flows!$D$10,12*($A20-1),4*(C$2-1),12,1))) -> 3.363008333 | D20: =IF(PlotControl!$B$4 = "Annual Max",MAX(OFFSET(P_Flows!$E$10,12*($A20-1),4*(C$2-1),12,1)),AVERAGE(OFFSET(P_Flows!$E$10,12*($A20-1),4*(C$2-1),12,1))) -> 5.805475 | E20: =IF(PlotControl!$B$4 = "Annual Max",MAX(OFFSET(P_Flows!$C$10,12*($A20-1),4*(F$2-1),12,1)),AVERAGE(OFFSET(P_Flows!$C$10,12*($A20-1),4*(F$2-1),12,1))) -> 3.607925 | F20: =IF(PlotControl!$B$4 = "Annual Max",MAX(OFFSET(P_Flows!$D$10,12*($A20-1),4*(F$2-1),12,1)),AVERAGE(OFFSET(P_Flows!$D$10,12*($A20-1),4*(F$2-1),12,1))) -> 6.948383333 | G20: =IF(PlotControl!$B$4 = "Annual Max",MAX(OFFSET(P_Flows!$E$10,12*($A20-1),4*(F$2-1),12,1)),AVERAGE(OFFSET(P_Flows!$E$10,12*($A20-1),4*(F$2-1),12,1))) -> 20.15678333 | H20: =IF(PlotControl!$B$4 = "Annual Max",MAX(OFFSET(P_Flows!$C$10,12*($A20-1),4*(I$2-1),12,1)),AVERAGE(OFFSET(P_Flows!$C$10,12*($A20-1),4*(I$2-1),12,1))) -> 3.859941667 | I20: =IF(PlotControl!$B$4 = "Annual Max",MAX(OFFSET(P_Flows!$D$10,12*($A20-1),4*(I$2-1),12,1)),AVERAGE(OFFSET(P_Flows!$D$10,12*($A20-1),4*(I$2-1),12,1))) -> 8.005866667 | J20: =IF(PlotControl!$B$4 = "Annual Max",MAX(OFFSET(P_Flows!$E$10,12*($A20-1),4*(I$2-1),12,1)),AVERAGE(OFFSET(P_Flows!$E$10,12*($A20-1),4*(I$2-1),12,1))) -> 24.34223333 | K20: =IF(PlotControl!$B$4 = "Annual Max",MAX(OFFSET(P_Flows!$C$10,12*($A20-1),4*(L$2-1),12,1)),AVERAGE(OFFSET(P_Flows!$C$10,12*($A20-1),4*(L$2-1),12,1))) -> 4.93585 | L20: =IF(PlotControl!$B$4 = "Annual Max",MAX(OFFSET(P_Flows!$D$10,12*($A20-1),4*(L$2-1),12,1)),AVERAGE(OFFSET(P_Flows!$D$10,12*($A20-1),4*(L$2-1),12,1))) -> 12.57933333 | M20: =IF(PlotControl!$B$4 = "Annual Max",MAX(OFFSET(P_Flows!$E$10,12*($A20-1),4*(L$2-1),12,1)),AVERAGE(OFFSET(P_Flows!$E$10,12*($A20-1),4*(L$2-1),12,1))) -> 42.53571667 | N20: =IF(PlotControl!$B$4 = "Annual Max",MAX(OFFSET(P_Flows!$C$10,12*($A20-1),4*(O$2-1),12,1)),AVERAGE(OFFSET(P_Flows!$C$10,12*($A20-1),4*(O$2-1),12,1))) -> 9.009208333 | O20: =IF(PlotControl!$B$4 = "Annual Max",MAX(OFFSET(P_Flows!$D$10,12*($A20-1),4*(O$2-1),12,1)),AVERAGE(OFFSET(P_Flows!$D$10,12*($A20-1),4*(O$2-1),12,1))) -> 29.81406667 | P20: =IF(PlotControl!$B$4 = "Annual Max",MAX(OFFSET(P_Flows!$E$10,12*($A20-1),4*(O$2-1),12,1)),AVERAGE(OFFSET(P_Flows!$E$10,12*($A20-1),4*(O$2-1),12,1))) -> 110.6251167 | Q20: =IF(PlotControl!$B$4 = "Annual Max",MAX(OFFSET(P_Flows!$C$10,12*($A20-1),4*(R$2-1),12,1)),AVERAGE(OFFSET(P_Flows!$C$10,12*($A20-1),4*(R$2-1),12,1))) -> 12.4573 | R20: =IF(PlotControl!$B$4 = "Annual Max",MAX(OFFSET(P_Flows!$D$10,12*($A20-1),4*(R$2-1),12,1)),AVERAGE(OFFSET(P_Flows!$D$10,12*($A20-1),4*(R$2-1),12,1))) -> 44.37020833 | S20: =IF(PlotControl!$B$4 = "Annual Max",MAX(OFFSET(P_Flows!$E$10,12*($A20-1),4*(R$2-1),12,1)),AVERAGE(OFFSET(P_Flows!$E$10,12*($A20-1),4*(R$2-1),12,1))) -> 168.5979167 | T20: =IF(PlotControl!$B$4 = "Annual Max",MAX(OFFSET(P_Flows!$C$10,12*($A20-1),4*(U$2-1),12,1)),AVERAGE(OFFSET(P_Flows!$C$10,12*($A20-1),4*(U$2-1),12,1))) -> 15.671475 | U20: =IF(PlotControl!$B$4 = "Annual Max",MAX(OFFSET(P_Flows!$D$10,12*($A20-1),4*(U$2-1),12,1)),AVERAGE(OFFSET(P_Flows!$D$10,12*($A20-1),4*(U$2-1),12,1))) -> 57.895175 | V20: =IF(PlotControl!$B$4 = "Annual Max",MAX(OFFSET(P_Flows!$E$10,12*($A20-1),4*(U$2-1),12,1)),AVERAGE(OFFSET(P_Flows!$E$10,12*($A20-1),4*(U$2-1),12,1))) -> 223.7158333 | W20: =IF(PlotControl!$B$4 = "Annual Max",MAX(OFFSET(P_Flows!$C$10,12*($A20-1),4*(X$2-1),12,1)),AVERAGE(OFFSET(P_Flows!$C$10,12*($A20-1),4*(X$2-1),12,1))) -> 16.38624167 | X20: =IF(PlotControl!$B$4 = "Annual Max",MAX(OFFSET(P_Flows!$D$10,12*($A20-1),4*(X$2-1),12,1)),AVERAGE(OFFSET(P_Flows!$D$10,12*($A20-1),4*(X$2-1),12,1))) -> 60.99395833 | Y20: =IF(PlotControl!$B$4 = "Annual Max",MAX(OFFSET(P_Flows!$E$10,12*($A20-1),4*(X$2-1),12,1)),AVERAGE(OFFSET(P_Flows!$E$10,12*($A20-1),4*(X$2-1),12,1))) -> 236.4609167 | Z20: =IF(PlotControl!$B$4 = "Annual Max",MAX(OFFSET(P_Flows!$C$10,12*($A20-1),4*(AA$2-1),12,1)),AVERAGE(OFFSET(P_Flows!$C$10,12*($A20-1),4*(AA$2-1),12,1))) -> 19.17908333 | AA20: =IF(PlotControl!$B$4 = "Annual Max",MAX(OFFSET(P_Flows!$D$10,12*($A20-1),4*(AA$2-1),12,1)),AVERAGE(OFFSET(P_Flows!$D$10,12*($A20-1),4*(AA$2-1),12,1))) -> 72.82365833 | AB20: =IF(PlotControl!$B$4 = "Annual Max",MAX(OFFSET(P_Flows!$E$10,12*($A20-1),4*(AA$2-1),12,1)),AVERAGE(OFFSET(P_Flows!$E$10,12*($A20-1),4*(AA$2-1),12,1))) -> 283.8351667 | AD20: 101.25 | AE20: =OFFSET(P_Flows!$C$10,ROUND(12*$AD20,0),4*(AF$2-1),1,1) -> 0.49531 | AF20: =OFFSET(P_Flows!$D$10,ROUND(12*$AD20,0),4*(AF$2-1),1,1) -> 2.1425 | AG20: =OFFSET(P_Flows!$E$10,ROUND(12*$AD20,0),4*(AF$2-1),1,1) -> 5.4716 | AH20: =OFFSET(P_Flows!$C$10,ROUND(12*$AD20,0),4*(AI$2-1),1,1) -> 3.2655 | AI20: =OFFSET(P_Flows!$D$10,ROUND(12*$AD20,0),4*(AI$2-1),1,1) -> 14.125 | AJ20: =OFFSET(P_Flows!$E$10,ROUND(12*$AD20,0),4*(AI$2-1),1,1) -> 36.074 | AK20: =OFFSET(P_Flows!$C$10,ROUND(12*$AD20,0),4*(AL$2-1),1,1) -> 4.0282 | AL20: =OFFSET(P_Flows!$D$10,ROUND(12*$AD20,0),4*(AL$2-1),1,1) -> 17.425 | AM20: =OFFSET(P_Flows!$E$10,ROUND(12*$AD20,0),4*(AL$2-1),1,1) -> 44.499 | AN20: =OFFSET(P_Flows!$C$10,ROUND(12*$AD20,0),4*(AO$2-1),1,1) -> 7.6795 | AO20: =OFFSET(P_Flows!$D$10,ROUND(12*$AD20,0),4*(AO$2-1),1,1) -> 33.219 | AP20: =OFFSET(P_Flows!$E$10,ROUND(12*$AD20,0),4*(AO$2-1),1,1) -> 84.834 | AQ20: =OFFSET(P_Flows!$C$10,ROUND(12*$AD20,0),4*(AR$2-1),1,1) -> 21.797 | AR20: =OFFSET(P_Flows!$D$10,ROUND(12*$AD20,0),4*(AR$2-1),1,1) -> 92.176 | AS20: =OFFSET(P_Flows!$E$10,ROUND(12*$AD20,0),4*(AR$2-1),1,1) -> 234.41 | AT20: =OFFSET(P_Flows!$C$10,ROUND(12*$AD20,0),4*(AU$2-1),1,1) -> 32.567 | AU20: =OFFSET(P_Flows!$D$10,ROUND(12*$AD20,0),4*(AU$2-1),1,1) -> 138.76 | AV20: =OFFSET(P_Flows!$E$10,ROUND(12*$AD20,0),4*(AU$2-1),1,1) -> 353.39 | AW20: =OFFSET(P_Flows!$C$10,ROUND(12*$AD20,0),4*(AX$2-1),1,1) -> 42.197 | AX20: =OFFSET(P_Flows!$D$10,ROUND(12*$AD20,0),4*(AX$2-1),1,1) -> 180.42 | AY20: =OFFSET(P_Flows!$E$10,ROUND(12*$AD20,0),4*(AX$2-1),1,1) -> 459.77 | AZ20: =OFFSET(P_Flows!$C$10,ROUND(12*$AD20,0),4*(BA$2-1),1,1) -> 44.406 | BA20: =OFFSET(P_Flows!$D$10,ROUND(12*$AD20,0),4*(BA$2-1),1,1) -> 189.97 | BB20: =OFFSET(P_Flows!$E$10,ROUND(12*$AD20,0),4*(BA$2-1),1,1) -> 484.17 | BC20: =OFFSET(P_Flows!$C$10,ROUND(12*$AD20,0),4*(BD$2-1),1,1) -> 53.173 | BD20: =OFFSET(P_Flows!$D$10,ROUND(12*$AD20,0),4*(BD$2-1),1,1) -> 227.89 | BE20: =OFFSET(P_Flows!$E$10,ROUND(12*$AD20,0),4*(BD$2-1),1,1) -> 581.01
A21: 17 | B21: =IF(PlotControl!$B$4 = "Annual Max",MAX(OFFSET(P_Flows!$C$10,12*($A21-1),4*(C$2-1),12,1)),AVERAGE(OFFSET(P_Flows!$C$10,12*($A21-1),4*(C$2-1),12,1))) -> 2.766525 | C21: =IF(PlotControl!$B$4 = "Annual Max",MAX(OFFSET(P_Flows!$D$10,12*($A21-1),4*(C$2-1),12,1)),AVERAGE(OFFSET(P_Flows!$D$10,12*($A21-1),4*(C$2-1),12,1))) -> 3.359233333 | D21: =IF(PlotControl!$B$4 = "Annual Max",MAX(OFFSET(P_Flows!$E$10,12*($A21-1),4*(C$2-1),12,1)),AVERAGE(OFFSET(P_Flows!$E$10,12*($A21-1),4*(C$2-1),12,1))) -> 5.832425 | E21: =IF(PlotControl!$B$4 = "Annual Max",MAX(OFFSET(P_Flows!$C$10,12*($A21-1),4*(F$2-1),12,1)),AVERAGE(OFFSET(P_Flows!$C$10,12*($A21-1),4*(F$2-1),12,1))) -> 3.5722 | F21: =IF(PlotControl!$B$4 = "Annual Max",MAX(OFFSET(P_Flows!$D$10,12*($A21-1),4*(F$2-1),12,1)),AVERAGE(OFFSET(P_Flows!$D$10,12*($A21-1),4*(F$2-1),12,1))) -> 6.924975 | G21: =IF(PlotControl!$B$4 = "Annual Max",MAX(OFFSET(P_Flows!$E$10,12*($A21-1),4*(F$2-1),12,1)),AVERAGE(OFFSET(P_Flows!$E$10,12*($A21-1),4*(F$2-1),12,1))) -> 20.404225 | H21: =IF(PlotControl!$B$4 = "Annual Max",MAX(OFFSET(P_Flows!$C$10,12*($A21-1),4*(I$2-1),12,1)),AVERAGE(OFFSET(P_Flows!$C$10,12*($A21-1),4*(I$2-1),12,1))) -> 3.815158333 | I21: =IF(PlotControl!$B$4 = "Annual Max",MAX(OFFSET(P_Flows!$D$10,12*($A21-1),4*(I$2-1),12,1)),AVERAGE(OFFSET(P_Flows!$D$10,12*($A21-1),4*(I$2-1),12,1))) -> 7.969708333 | J21: =IF(PlotControl!$B$4 = "Annual Max",MAX(OFFSET(P_Flows!$E$10,12*($A21-1),4*(I$2-1),12,1)),AVERAGE(OFFSET(P_Flows!$E$10,12*($A21-1),4*(I$2-1),12,1))) -> 24.62008333 | K21: =IF(PlotControl!$B$4 = "Annual Max",MAX(OFFSET(P_Flows!$C$10,12*($A21-1),4*(L$2-1),12,1)),AVERAGE(OFFSET(P_Flows!$C$10,12*($A21-1),4*(L$2-1),12,1))) -> 4.847258333 | L21: =IF(PlotControl!$B$4 = "Annual Max",MAX(OFFSET(P_Flows!$D$10,12*($A21-1),4*(L$2-1),12,1)),AVERAGE(OFFSET(P_Flows!$D$10,12*($A21-1),4*(L$2-1),12,1))) -> 12.48285 | M21: =IF(PlotControl!$B$4 = "Annual Max",MAX(OFFSET(P_Flows!$E$10,12*($A21-1),4*(L$2-1),12,1)),AVERAGE(OFFSET(P_Flows!$E$10,12*($A21-1),4*(L$2-1),12,1))) -> 42.94926667 | N21: =IF(PlotControl!$B$4 = "Annual Max",MAX(OFFSET(P_Flows!$C$10,12*($A21-1),4*(O$2-1),12,1)),AVERAGE(OFFSET(P_Flows!$C$10,12*($A21-1),4*(O$2-1),12,1))) -> 8.767958333 | O21: =IF(PlotControl!$B$4 = "Annual Max",MAX(OFFSET(P_Flows!$D$10,12*($A21-1),4*(O$2-1),12,1)),AVERAGE(OFFSET(P_Flows!$D$10,12*($A21-1),4*(O$2-1),12,1))) -> 29.51549167 | P21: =IF(PlotControl!$B$4 = "Annual Max",MAX(OFFSET(P_Flows!$E$10,12*($A21-1),4*(O$2-1),12,1)),AVERAGE(OFFSET(P_Flows!$E$10,12*($A21-1),4*(O$2-1),12,1))) -> 111.636675 | Q21: =IF(PlotControl!$B$4 = "Annual Max",MAX(OFFSET(P_Flows!$C$10,12*($A21-1),4*(R$2-1),12,1)),AVERAGE(OFFSET(P_Flows!$C$10,12*($A21-1),4*(R$2-1),12,1))) -> 12.08719167 | R21: =IF(PlotControl!$B$4 = "Annual Max",MAX(OFFSET(P_Flows!$D$10,12*($A21-1),4*(R$2-1),12,1)),AVERAGE(OFFSET(P_Flows!$D$10,12*($A21-1),4*(R$2-1),12,1))) -> 43.90194167 | S21: =IF(PlotControl!$B$4 = "Annual Max",MAX(OFFSET(P_Flows!$E$10,12*($A21-1),4*(R$2-1),12,1)),AVERAGE(OFFSET(P_Flows!$E$10,12*($A21-1),4*(R$2-1),12,1))) -> 170.0266667 | T21: =IF(PlotControl!$B$4 = "Annual Max",MAX(OFFSET(P_Flows!$C$10,12*($A21-1),4*(U$2-1),12,1)),AVERAGE(OFFSET(P_Flows!$C$10,12*($A21-1),4*(U$2-1),12,1))) -> 15.19815 | U21: =IF(PlotControl!$B$4 = "Annual Max",MAX(OFFSET(P_Flows!$D$10,12*($A21-1),4*(U$2-1),12,1)),AVERAGE(OFFSET(P_Flows!$D$10,12*($A21-1),4*(U$2-1),12,1))) -> 57.32231667 | V21: =IF(PlotControl!$B$4 = "Annual Max",MAX(OFFSET(P_Flows!$E$10,12*($A21-1),4*(U$2-1),12,1)),AVERAGE(OFFSET(P_Flows!$E$10,12*($A21-1),4*(U$2-1),12,1))) -> 225.548 | W21: =IF(PlotControl!$B$4 = "Annual Max",MAX(OFFSET(P_Flows!$C$10,12*($A21-1),4*(X$2-1),12,1)),AVERAGE(OFFSET(P_Flows!$C$10,12*($A21-1),4*(X$2-1),12,1))) -> 15.88474167 | X21: =IF(PlotControl!$B$4 = "Annual Max",MAX(OFFSET(P_Flows!$D$10,12*($A21-1),4*(X$2-1),12,1)),AVERAGE(OFFSET(P_Flows!$D$10,12*($A21-1),4*(X$2-1),12,1))) -> 60.39169167 | Y21: =IF(PlotControl!$B$4 = "Annual Max",MAX(OFFSET(P_Flows!$E$10,12*($A21-1),4*(X$2-1),12,1)),AVERAGE(OFFSET(P_Flows!$E$10,12*($A21-1),4*(X$2-1),12,1))) -> 238.39875 | Z21: =IF(PlotControl!$B$4 = "Annual Max",MAX(OFFSET(P_Flows!$C$10,12*($A21-1),4*(AA$2-1),12,1)),AVERAGE(OFFSET(P_Flows!$C$10,12*($A21-1),4*(AA$2-1),12,1))) -> 18.57329167 | AA21: =IF(PlotControl!$B$4 = "Annual Max",MAX(OFFSET(P_Flows!$D$10,12*($A21-1),4*(AA$2-1),12,1)),AVERAGE(OFFSET(P_Flows!$D$10,12*($A21-1),4*(AA$2-1),12,1))) -> 72.0882 | AB21: =IF(PlotControl!$B$4 = "Annual Max",MAX(OFFSET(P_Flows!$E$10,12*($A21-1),4*(AA$2-1),12,1)),AVERAGE(OFFSET(P_Flows!$E$10,12*($A21-1),4*(AA$2-1),12,1))) -> 286.1205833 | AD21: 101.3333333 | AE21: =OFFSET(P_Flows!$C$10,ROUND(12*$AD21,0),4*(AF$2-1),1,1) -> 0.4659 | AF21: =OFFSET(P_Flows!$D$10,ROUND(12*$AD21,0),4*(AF$2-1),1,1) -> 2.3042 | AG21: =OFFSET(P_Flows!$E$10,ROUND(12*$AD21,0),4*(AF$2-1),1,1) -> 7.639 | AH21: =OFFSET(P_Flows!$C$10,ROUND(12*$AD21,0),4*(AI$2-1),1,1) -> 2.542 | AI21: =OFFSET(P_Flows!$D$10,ROUND(12*$AD21,0),4*(AI$2-1),1,1) -> 12.571 | AJ21: =OFFSET(P_Flows!$E$10,ROUND(12*$AD21,0),4*(AI$2-1),1,1) -> 41.679 | AK21: =OFFSET(P_Flows!$C$10,ROUND(12*$AD21,0),4*(AL$2-1),1,1) -> 3.1942 | AL21: =OFFSET(P_Flows!$D$10,ROUND(12*$AD21,0),4*(AL$2-1),1,1) -> 15.797 | AM21: =OFFSET(P_Flows!$E$10,ROUND(12*$AD21,0),4*(AL$2-1),1,1) -> 52.373 | AN21: =OFFSET(P_Flows!$C$10,ROUND(12*$AD21,0),4*(AO$2-1),1,1) -> 6.094 | AO21: =OFFSET(P_Flows!$D$10,ROUND(12*$AD21,0),4*(AO$2-1),1,1) -> 30.138 | AP21: =OFFSET(P_Flows!$E$10,ROUND(12*$AD21,0),4*(AO$2-1),1,1) -> 99.918 | AQ21: =OFFSET(P_Flows!$C$10,ROUND(12*$AD21,0),4*(AR$2-1),1,1) -> 17.348 | AR21: =OFFSET(P_Flows!$D$10,ROUND(12*$AD21,0),4*(AR$2-1),1,1) -> 83.541 | AS21: =OFFSET(P_Flows!$E$10,ROUND(12*$AD21,0),4*(AR$2-1),1,1) -> 274.98 | AT21: =OFFSET(P_Flows!$C$10,ROUND(12*$AD21,0),4*(AU$2-1),1,1) -> 26.55 | AU21: =OFFSET(P_Flows!$D$10,ROUND(12*$AD21,0),4*(AU$2-1),1,1) -> 129.02 | AV21: =OFFSET(P_Flows!$E$10,ROUND(12*$AD21,0),4*(AU$2-1),1,1) -> 425.87 | AW21: =OFFSET(P_Flows!$C$10,ROUND(12*$AD21,0),4*(AX$2-1),1,1) -> 36.021 | AX21: =OFFSET(P_Flows!$D$10,ROUND(12*$AD21,0),4*(AX$2-1),1,1) -> 175.82 | AY21: =OFFSET(P_Flows!$E$10,ROUND(12*$AD21,0),4*(AX$2-1),1,1) -> 581.15 | AZ21: =OFFSET(P_Flows!$C$10,ROUND(12*$AD21,0),4*(BA$2-1),1,1) -> 37.859 | BA21: =OFFSET(P_Flows!$D$10,ROUND(12*$AD21,0),4*(BA$2-1),1,1) -> 184.9 | BB21: =OFFSET(P_Flows!$E$10,ROUND(12*$AD21,0),4*(BA$2-1),1,1) -> 611.28 | BC21: =OFFSET(P_Flows!$C$10,ROUND(12*$AD21,0),4*(BD$2-1),1,1) -> 45.313 | BD21: =OFFSET(P_Flows!$D$10,ROUND(12*$AD21,0),4*(BD$2-1),1,1) -> 221.74 | BE21: =OFFSET(P_Flows!$E$10,ROUND(12*$AD21,0),4*(BD$2-1),1,1) -> 733.5
A22: 18 | B22: =IF(PlotControl!$B$4 = "Annual Max",MAX(OFFSET(P_Flows!$C$10,12*($A22-1),4*(C$2-1),12,1)),AVERAGE(OFFSET(P_Flows!$C$10,12*($A22-1),4*(C$2-1),12,1))) -> 2.764025 | C22: =IF(PlotControl!$B$4 = "Annual Max",MAX(OFFSET(P_Flows!$D$10,12*($A22-1),4*(C$2-1),12,1)),AVERAGE(OFFSET(P_Flows!$D$10,12*($A22-1),4*(C$2-1),12,1))) -> 3.367216667 | D22: =IF(PlotControl!$B$4 = "Annual Max",MAX(OFFSET(P_Flows!$E$10,12*($A22-1),4*(C$2-1),12,1)),AVERAGE(OFFSET(P_Flows!$E$10,12*($A22-1),4*(C$2-1),12,1))) -> 5.921108333 | E22: =IF(PlotControl!$B$4 = "Annual Max",MAX(OFFSET(P_Flows!$C$10,12*($A22-1),4*(F$2-1),12,1)),AVERAGE(OFFSET(P_Flows!$C$10,12*($A22-1),4*(F$2-1),12,1))) -> 3.564791667 | F22: =IF(PlotControl!$B$4 = "Annual Max",MAX(OFFSET(P_Flows!$D$10,12*($A22-1),4*(F$2-1),12,1)),AVERAGE(OFFSET(P_Flows!$D$10,12*($A22-1),4*(F$2-1),12,1))) -> 7.0229 | G22: =IF(PlotControl!$B$4 = "Annual Max",MAX(OFFSET(P_Flows!$E$10,12*($A22-1),4*(F$2-1),12,1)),AVERAGE(OFFSET(P_Flows!$E$10,12*($A22-1),4*(F$2-1),12,1))) -> 21.0813 | H22: =IF(PlotControl!$B$4 = "Annual Max",MAX(OFFSET(P_Flows!$C$10,12*($A22-1),4*(I$2-1),12,1)),AVERAGE(OFFSET(P_Flows!$C$10,12*($A22-1),4*(I$2-1),12,1))) -> 3.803608333 | I22: =IF(PlotControl!$B$4 = "Annual Max",MAX(OFFSET(P_Flows!$D$10,12*($A22-1),4*(I$2-1),12,1)),AVERAGE(OFFSET(P_Flows!$D$10,12*($A22-1),4*(I$2-1),12,1))) -> 8.085058333 | J22: =IF(PlotControl!$B$4 = "Annual Max",MAX(OFFSET(P_Flows!$E$10,12*($A22-1),4*(I$2-1),12,1)),AVERAGE(OFFSET(P_Flows!$E$10,12*($A22-1),4*(I$2-1),12,1))) -> 25.4241 | K22: =IF(PlotControl!$B$4 = "Annual Max",MAX(OFFSET(P_Flows!$C$10,12*($A22-1),4*(L$2-1),12,1)),AVERAGE(OFFSET(P_Flows!$C$10,12*($A22-1),4*(L$2-1),12,1))) -> 4.818583333 | L22: =IF(PlotControl!$B$4 = "Annual Max",MAX(OFFSET(P_Flows!$D$10,12*($A22-1),4*(L$2-1),12,1)),AVERAGE(OFFSET(P_Flows!$D$10,12*($A22-1),4*(L$2-1),12,1))) -> 12.682725 | M22: =IF(PlotControl!$B$4 = "Annual Max",MAX(OFFSET(P_Flows!$E$10,12*($A22-1),4*(L$2-1),12,1)),AVERAGE(OFFSET(P_Flows!$E$10,12*($A22-1),4*(L$2-1),12,1))) -> 44.35839167 | N22: =IF(PlotControl!$B$4 = "Annual Max",MAX(OFFSET(P_Flows!$C$10,12*($A22-1),4*(O$2-1),12,1)),AVERAGE(OFFSET(P_Flows!$C$10,12*($A22-1),4*(O$2-1),12,1))) -> 8.677841667 | O22: =IF(PlotControl!$B$4 = "Annual Max",MAX(OFFSET(P_Flows!$D$10,12*($A22-1),4*(O$2-1),12,1)),AVERAGE(OFFSET(P_Flows!$D$10,12*($A22-1),4*(O$2-1),12,1))) -> 30.07141667 | P22: =IF(PlotControl!$B$4 = "Annual Max",MAX(OFFSET(P_Flows!$E$10,12*($A22-1),4*(O$2-1),12,1)),AVERAGE(OFFSET(P_Flows!$E$10,12*($A22-1),4*(O$2-1),12,1))) -> 115.4370417 | Q22: =IF(PlotControl!$B$4 = "Annual Max",MAX(OFFSET(P_Flows!$C$10,12*($A22-1),4*(R$2-1),12,1)),AVERAGE(OFFSET(P_Flows!$C$10,12*($A22-1),4*(R$2-1),12,1))) -> 11.933675 | R22: =IF(PlotControl!$B$4 = "Annual Max",MAX(OFFSET(P_Flows!$D$10,12*($A22-1),4*(R$2-1),12,1)),AVERAGE(OFFSET(P_Flows!$D$10,12*($A22-1),4*(R$2-1),12,1))) -> 44.71555 | S22: =IF(PlotControl!$B$4 = "Annual Max",MAX(OFFSET(P_Flows!$E$10,12*($A22-1),4*(R$2-1),12,1)),AVERAGE(OFFSET(P_Flows!$E$10,12*($A22-1),4*(R$2-1),12,1))) -> 175.7128333 | T22: =IF(PlotControl!$B$4 = "Annual Max",MAX(OFFSET(P_Flows!$C$10,12*($A22-1),4*(U$2-1),12,1)),AVERAGE(OFFSET(P_Flows!$C$10,12*($A22-1),4*(U$2-1),12,1))) -> 14.96864167 | U22: =IF(PlotControl!$B$4 = "Annual Max",MAX(OFFSET(P_Flows!$D$10,12*($A22-1),4*(U$2-1),12,1)),AVERAGE(OFFSET(P_Flows!$D$10,12*($A22-1),4*(U$2-1),12,1))) -> 58.33286667 | V22: =IF(PlotControl!$B$4 = "Annual Max",MAX(OFFSET(P_Flows!$E$10,12*($A22-1),4*(U$2-1),12,1)),AVERAGE(OFFSET(P_Flows!$E$10,12*($A22-1),4*(U$2-1),12,1))) -> 232.8454167 | W22: =IF(PlotControl!$B$4 = "Annual Max",MAX(OFFSET(P_Flows!$C$10,12*($A22-1),4*(X$2-1),12,1)),AVERAGE(OFFSET(P_Flows!$C$10,12*($A22-1),4*(X$2-1),12,1))) -> 15.64465 | X22: =IF(PlotControl!$B$4 = "Annual Max",MAX(OFFSET(P_Flows!$D$10,12*($A22-1),4*(X$2-1),12,1)),AVERAGE(OFFSET(P_Flows!$D$10,12*($A22-1),4*(X$2-1),12,1))) -> 61.44705833 | Y22: =IF(PlotControl!$B$4 = "Annual Max",MAX(OFFSET(P_Flows!$E$10,12*($A22-1),4*(X$2-1),12,1)),AVERAGE(OFFSET(P_Flows!$E$10,12*($A22-1),4*(X$2-1),12,1))) -> 246.07825 | Z22: =IF(PlotControl!$B$4 = "Annual Max",MAX(OFFSET(P_Flows!$C$10,12*($A22-1),4*(AA$2-1),12,1)),AVERAGE(OFFSET(P_Flows!$C$10,12*($A22-1),4*(AA$2-1),12,1))) -> 18.28205833 | AA22: =IF(PlotControl!$B$4 = "Annual Max",MAX(OFFSET(P_Flows!$D$10,12*($A22-1),4*(AA$2-1),12,1)),AVERAGE(OFFSET(P_Flows!$D$10,12*($A22-1),4*(AA$2-1),12,1))) -> 73.34500833 | AB22: =IF(PlotControl!$B$4 = "Annual Max",MAX(OFFSET(P_Flows!$E$10,12*($A22-1),4*(AA$2-1),12,1)),AVERAGE(OFFSET(P_Flows!$E$10,12*($A22-1),4*(AA$2-1),12,1))) -> 295.3065833 | AD22: 101.4166667 | AE22: =OFFSET(P_Flows!$C$10,ROUND(12*$AD22,0),4*(AF$2-1),1,1) -> 0.14516 | AF22: =OFFSET(P_Flows!$D$10,ROUND(12*$AD22,0),4*(AF$2-1),1,1) -> 1.1217 | AG22: =OFFSET(P_Flows!$E$10,ROUND(12*$AD22,0),4*(AF$2-1),1,1) -> 3.0145 | AH22: =OFFSET(P_Flows!$C$10,ROUND(12*$AD22,0),4*(AI$2-1),1,1) -> 0.82192 | AI22: =OFFSET(P_Flows!$D$10,ROUND(12*$AD22,0),4*(AI$2-1),1,1) -> 6.3514 | AJ22: =OFFSET(P_Flows!$E$10,ROUND(12*$AD22,0),4*(AI$2-1),1,1) -> 17.069 | AK22: =OFFSET(P_Flows!$C$10,ROUND(12*$AD22,0),4*(AL$2-1),1,1) -> 0.98534 | AL22: =OFFSET(P_Flows!$D$10,ROUND(12*$AD22,0),4*(AL$2-1),1,1) -> 7.6143 | AM22: =OFFSET(P_Flows!$E$10,ROUND(12*$AD22,0),4*(AL$2-1),1,1) -> 20.463 | AN22: =OFFSET(P_Flows!$C$10,ROUND(12*$AD22,0),4*(AO$2-1),1,1) -> 1.8323 | AO22: =OFFSET(P_Flows!$D$10,ROUND(12*$AD22,0),4*(AO$2-1),1,1) -> 14.159 | AP22: =OFFSET(P_Flows!$E$10,ROUND(12*$AD22,0),4*(AO$2-1),1,1) -> 38.051 | AQ22: =OFFSET(P_Flows!$C$10,ROUND(12*$AD22,0),4*(AR$2-1),1,1) -> 5.5013 | AR22: =OFFSET(P_Flows!$D$10,ROUND(12*$AD22,0),4*(AR$2-1),1,1) -> 37.652 | AS22: =OFFSET(P_Flows!$E$10,ROUND(12*$AD22,0),4*(AR$2-1),1,1) -> 99.636 | AT22: =OFFSET(P_Flows!$C$10,ROUND(12*$AD22,0),4*(AU$2-1),1,1) -> 7.9472 | AU22: =OFFSET(P_Flows!$D$10,ROUND(12*$AD22,0),4*(AU$2-1),1,1) -> 56.197 | AV22: =OFFSET(P_Flows!$E$10,ROUND(12*$AD22,0),4*(AU$2-1),1,1) -> 149.44 | AW22: =OFFSET(P_Flows!$C$10,ROUND(12*$AD22,0),4*(AX$2-1),1,1) -> 9.8594 | AX22: =OFFSET(P_Flows!$D$10,ROUND(12*$AD22,0),4*(AX$2-1),1,1) -> 70.961 | AY22: =OFFSET(P_Flows!$E$10,ROUND(12*$AD22,0),4*(AX$2-1),1,1) -> 189.2 | AZ22: =OFFSET(P_Flows!$C$10,ROUND(12*$AD22,0),4*(BA$2-1),1,1) -> 10.398 | BA22: =OFFSET(P_Flows!$D$10,ROUND(12*$AD22,0),4*(BA$2-1),1,1) -> 75.049 | BB22: =OFFSET(P_Flows!$E$10,ROUND(12*$AD22,0),4*(BA$2-1),1,1) -> 200.22 | BC22: =OFFSET(P_Flows!$C$10,ROUND(12*$AD22,0),4*(BD$2-1),1,1) -> 12.31 | BD22: =OFFSET(P_Flows!$D$10,ROUND(12*$AD22,0),4*(BD$2-1),1,1) -> 89.888 | BE22: =OFFSET(P_Flows!$E$10,ROUND(12*$AD22,0),4*(BD$2-1),1,1) -> 240.18
A23: 19 | B23: =IF(PlotControl!$B$4 = "Annual Max",MAX(OFFSET(P_Flows!$C$10,12*($A23-1),4*(C$2-1),12,1)),AVERAGE(OFFSET(P_Flows!$C$10,12*($A23-1),4*(C$2-1),12,1))) -> 2.766983333 | C23: =IF(PlotControl!$B$4 = "Annual Max",MAX(OFFSET(P_Flows!$D$10,12*($A23-1),4*(C$2-1),12,1)),AVERAGE(OFFSET(P_Flows!$D$10,12*($A23-1),4*(C$2-1),12,1))) -> 3.376958333 | D23: =IF(PlotControl!$B$4 = "Annual Max",MAX(OFFSET(P_Flows!$E$10,12*($A23-1),4*(C$2-1),12,1)),AVERAGE(OFFSET(P_Flows!$E$10,12*($A23-1),4*(C$2-1),12,1))) -> 5.945391667 | E23: =IF(PlotControl!$B$4 = "Annual Max",MAX(OFFSET(P_Flows!$C$10,12*($A23-1),4*(F$2-1),12,1)),AVERAGE(OFFSET(P_Flows!$C$10,12*($A23-1),4*(F$2-1),12,1))) -> 3.584525 | F23: =IF(PlotControl!$B$4 = "Annual Max",MAX(OFFSET(P_Flows!$D$10,12*($A23-1),4*(F$2-1),12,1)),AVERAGE(OFFSET(P_Flows!$D$10,12*($A23-1),4*(F$2-1),12,1))) -> 7.053975 | G23: =IF(PlotControl!$B$4 = "Annual Max",MAX(OFFSET(P_Flows!$E$10,12*($A23-1),4*(F$2-1),12,1)),AVERAGE(OFFSET(P_Flows!$E$10,12*($A23-1),4*(F$2-1),12,1))) -> 21.2121 | H23: =IF(PlotControl!$B$4 = "Annual Max",MAX(OFFSET(P_Flows!$C$10,12*($A23-1),4*(I$2-1),12,1)),AVERAGE(OFFSET(P_Flows!$C$10,12*($A23-1),4*(I$2-1),12,1))) -> 3.827116667 | I23: =IF(PlotControl!$B$4 = "Annual Max",MAX(OFFSET(P_Flows!$D$10,12*($A23-1),4*(I$2-1),12,1)),AVERAGE(OFFSET(P_Flows!$D$10,12*($A23-1),4*(I$2-1),12,1))) -> 8.119608333 | J23: =IF(PlotControl!$B$4 = "Annual Max",MAX(OFFSET(P_Flows!$E$10,12*($A23-1),4*(I$2-1),12,1)),AVERAGE(OFFSET(P_Flows!$E$10,12*($A23-1),4*(I$2-1),12,1))) -> 25.567625 | K23: =IF(PlotControl!$B$4 = "Annual Max",MAX(OFFSET(P_Flows!$C$10,12*($A23-1),4*(L$2-1),12,1)),AVERAGE(OFFSET(P_Flows!$C$10,12*($A23-1),4*(L$2-1),12,1))) -> 4.8555 | L23: =IF(PlotControl!$B$4 = "Annual Max",MAX(OFFSET(P_Flows!$D$10,12*($A23-1),4*(L$2-1),12,1)),AVERAGE(OFFSET(P_Flows!$D$10,12*($A23-1),4*(L$2-1),12,1))) -> 12.696675 | M23: =IF(PlotControl!$B$4 = "Annual Max",MAX(OFFSET(P_Flows!$E$10,12*($A23-1),4*(L$2-1),12,1)),AVERAGE(OFFSET(P_Flows!$E$10,12*($A23-1),4*(L$2-1),12,1))) -> 44.450425 | N23: =IF(PlotControl!$B$4 = "Annual Max",MAX(OFFSET(P_Flows!$C$10,12*($A23-1),4*(O$2-1),12,1)),AVERAGE(OFFSET(P_Flows!$C$10,12*($A23-1),4*(O$2-1),12,1))) -> 8.770691667 | O23: =IF(PlotControl!$B$4 = "Annual Max",MAX(OFFSET(P_Flows!$D$10,12*($A23-1),4*(O$2-1),12,1)),AVERAGE(OFFSET(P_Flows!$D$10,12*($A23-1),4*(O$2-1),12,1))) -> 30.03364167 | P23: =IF(PlotControl!$B$4 = "Annual Max",MAX(OFFSET(P_Flows!$E$10,12*($A23-1),4*(O$2-1),12,1)),AVERAGE(OFFSET(P_Flows!$E$10,12*($A23-1),4*(O$2-1),12,1))) -> 115.5005833 | Q23: =IF(PlotControl!$B$4 = "Annual Max",MAX(OFFSET(P_Flows!$C$10,12*($A23-1),4*(R$2-1),12,1)),AVERAGE(OFFSET(P_Flows!$C$10,12*($A23-1),4*(R$2-1),12,1))) -> 12.07120833 | R23: =IF(PlotControl!$B$4 = "Annual Max",MAX(OFFSET(P_Flows!$D$10,12*($A23-1),4*(R$2-1),12,1)),AVERAGE(OFFSET(P_Flows!$D$10,12*($A23-1),4*(R$2-1),12,1))) -> 44.638375 | S23: =IF(PlotControl!$B$4 = "Annual Max",MAX(OFFSET(P_Flows!$E$10,12*($A23-1),4*(R$2-1),12,1)),AVERAGE(OFFSET(P_Flows!$E$10,12*($A23-1),4*(R$2-1),12,1))) -> 175.6941667 | T23: =IF(PlotControl!$B$4 = "Annual Max",MAX(OFFSET(P_Flows!$C$10,12*($A23-1),4*(U$2-1),12,1)),AVERAGE(OFFSET(P_Flows!$C$10,12*($A23-1),4*(U$2-1),12,1))) -> 15.15248333 | U23: =IF(PlotControl!$B$4 = "Annual Max",MAX(OFFSET(P_Flows!$D$10,12*($A23-1),4*(U$2-1),12,1)),AVERAGE(OFFSET(P_Flows!$D$10,12*($A23-1),4*(U$2-1),12,1))) -> 58.27030833 | V23: =IF(PlotControl!$B$4 = "Annual Max",MAX(OFFSET(P_Flows!$E$10,12*($A23-1),4*(U$2-1),12,1)),AVERAGE(OFFSET(P_Flows!$E$10,12*($A23-1),4*(U$2-1),12,1))) -> 232.78425 | W23: =IF(PlotControl!$B$4 = "Annual Max",MAX(OFFSET(P_Flows!$C$10,12*($A23-1),4*(X$2-1),12,1)),AVERAGE(OFFSET(P_Flows!$C$10,12*($A23-1),4*(X$2-1),12,1))) -> 15.83955 | X23: =IF(PlotControl!$B$4 = "Annual Max",MAX(OFFSET(P_Flows!$D$10,12*($A23-1),4*(X$2-1),12,1)),AVERAGE(OFFSET(P_Flows!$D$10,12*($A23-1),4*(X$2-1),12,1))) -> 61.39819167 | Y23: =IF(PlotControl!$B$4 = "Annual Max",MAX(OFFSET(P_Flows!$E$10,12*($A23-1),4*(X$2-1),12,1)),AVERAGE(OFFSET(P_Flows!$E$10,12*($A23-1),4*(X$2-1),12,1))) -> 246.04675 | Z23: =IF(PlotControl!$B$4 = "Annual Max",MAX(OFFSET(P_Flows!$C$10,12*($A23-1),4*(AA$2-1),12,1)),AVERAGE(OFFSET(P_Flows!$C$10,12*($A23-1),4*(AA$2-1),12,1))) -> 18.51379167 | AA23: =IF(PlotControl!$B$4 = "Annual Max",MAX(OFFSET(P_Flows!$D$10,12*($A23-1),4*(AA$2-1),12,1)),AVERAGE(OFFSET(P_Flows!$D$10,12*($A23-1),4*(AA$2-1),12,1))) -> 73.27624167 | AB23: =IF(PlotControl!$B$4 = "Annual Max",MAX(OFFSET(P_Flows!$E$10,12*($A23-1),4*(AA$2-1),12,1)),AVERAGE(OFFSET(P_Flows!$E$10,12*($A23-1),4*(AA$2-1),12,1))) -> 295.2225833 | AD23: 101.5 | AE23: =OFFSET(P_Flows!$C$10,ROUND(12*$AD23,0),4*(AF$2-1),1,1) -> 0.053083 | AF23: =OFFSET(P_Flows!$D$10,ROUND(12*$AD23,0),4*(AF$2-1),1,1) -> 0.67692 | AG23: =OFFSET(P_Flows!$E$10,ROUND(12*$AD23,0),4*(AF$2-1),1,1) -> 8.7746 | AH23: =OFFSET(P_Flows!$C$10,ROUND(12*$AD23,0),4*(AI$2-1),1,1) -> 0.26084 | AI23: =OFFSET(P_Flows!$D$10,ROUND(12*$AD23,0),4*(AI$2-1),1,1) -> 3.3263 | AJ23: =OFFSET(P_Flows!$E$10,ROUND(12*$AD23,0),4*(AI$2-1),1,1) -> 43.118 | AK23: =OFFSET(P_Flows!$C$10,ROUND(12*$AD23,0),4*(AL$2-1),1,1) -> 0.31709 | AL23: =OFFSET(P_Flows!$D$10,ROUND(12*$AD23,0),4*(AL$2-1),1,1) -> 4.0436 | AM23: =OFFSET(P_Flows!$E$10,ROUND(12*$AD23,0),4*(AL$2-1),1,1) -> 52.415 | AN23: =OFFSET(P_Flows!$C$10,ROUND(12*$AD23,0),4*(AO$2-1),1,1) -> 0.59622 | AO23: =OFFSET(P_Flows!$D$10,ROUND(12*$AD23,0),4*(AO$2-1),1,1) -> 7.603 | AP23: =OFFSET(P_Flows!$E$10,ROUND(12*$AD23,0),4*(AO$2-1),1,1) -> 98.554 | AQ23: =OFFSET(P_Flows!$C$10,ROUND(12*$AD23,0),4*(AR$2-1),1,1) -> 2.2072 | AR23: =OFFSET(P_Flows!$D$10,ROUND(12*$AD23,0),4*(AR$2-1),1,1) -> 20.225 | AS23: =OFFSET(P_Flows!$E$10,ROUND(12*$AD23,0),4*(AR$2-1),1,1) -> 254.58 | AT23: =OFFSET(P_Flows!$C$10,ROUND(12*$AD23,0),4*(AU$2-1),1,1) -> 3.0639 | AU23: =OFFSET(P_Flows!$D$10,ROUND(12*$AD23,0),4*(AU$2-1),1,1) -> 30.899 | AV23: =OFFSET(P_Flows!$E$10,ROUND(12*$AD23,0),4*(AU$2-1),1,1) -> 392.94 | AW23: =OFFSET(P_Flows!$C$10,ROUND(12*$AD23,0),4*(AX$2-1),1,1) -> 3.9513 | AX23: =OFFSET(P_Flows!$D$10,ROUND(12*$AD23,0),4*(AX$2-1),1,1) -> 42.833 | AY23: =OFFSET(P_Flows!$E$10,ROUND(12*$AD23,0),4*(AX$2-1),1,1) -> 547.62 | AZ23: =OFFSET(P_Flows!$C$10,ROUND(12*$AD23,0),4*(BA$2-1),1,1) -> 4.1532 | BA23: =OFFSET(P_Flows!$D$10,ROUND(12*$AD23,0),4*(BA$2-1),1,1) -> 45.401 | BB23: =OFFSET(P_Flows!$E$10,ROUND(12*$AD23,0),4*(BA$2-1),1,1) -> 580.92 | BC23: =OFFSET(P_Flows!$C$10,ROUND(12*$AD23,0),4*(BD$2-1),1,1) -> 4.8579 | BD23: =OFFSET(P_Flows!$D$10,ROUND(12*$AD23,0),4*(BD$2-1),1,1) -> 54.367 | BE23: =OFFSET(P_Flows!$E$10,ROUND(12*$AD23,0),4*(BD$2-1),1,1) -> 697.14
A24: 20 | B24: =IF(PlotControl!$B$4 = "Annual Max",MAX(OFFSET(P_Flows!$C$10,12*($A24-1),4*(C$2-1),12,1)),AVERAGE(OFFSET(P_Flows!$C$10,12*($A24-1),4*(C$2-1),12,1))) -> 2.76875 | C24: =IF(PlotControl!$B$4 = "Annual Max",MAX(OFFSET(P_Flows!$D$10,12*($A24-1),4*(C$2-1),12,1)),AVERAGE(OFFSET(P_Flows!$D$10,12*($A24-1),4*(C$2-1),12,1))) -> 3.346866667 | D24: =IF(PlotControl!$B$4 = "Annual Max",MAX(OFFSET(P_Flows!$E$10,12*($A24-1),4*(C$2-1),12,1)),AVERAGE(OFFSET(P_Flows!$E$10,12*($A24-1),4*(C$2-1),12,1))) -> 5.746975 | E24: =IF(PlotControl!$B$4 = "Annual Max",MAX(OFFSET(P_Flows!$C$10,12*($A24-1),4*(F$2-1),12,1)),AVERAGE(OFFSET(P_Flows!$C$10,12*($A24-1),4*(F$2-1),12,1))) -> 3.608258333 | F24: =IF(PlotControl!$B$4 = "Annual Max",MAX(OFFSET(P_Flows!$D$10,12*($A24-1),4*(F$2-1),12,1)),AVERAGE(OFFSET(P_Flows!$D$10,12*($A24-1),4*(F$2-1),12,1))) -> 6.941791667 | G24: =IF(PlotControl!$B$4 = "Annual Max",MAX(OFFSET(P_Flows!$E$10,12*($A24-1),4*(F$2-1),12,1)),AVERAGE(OFFSET(P_Flows!$E$10,12*($A24-1),4*(F$2-1),12,1))) -> 20.2535 | H24: =IF(PlotControl!$B$4 = "Annual Max",MAX(OFFSET(P_Flows!$C$10,12*($A24-1),4*(I$2-1),12,1)),AVERAGE(OFFSET(P_Flows!$C$10,12*($A24-1),4*(I$2-1),12,1))) -> 3.855741667 | I24: =IF(PlotControl!$B$4 = "Annual Max",MAX(OFFSET(P_Flows!$D$10,12*($A24-1),4*(I$2-1),12,1)),AVERAGE(OFFSET(P_Flows!$D$10,12*($A24-1),4*(I$2-1),12,1))) -> 7.97365 | J24: =IF(PlotControl!$B$4 = "Annual Max",MAX(OFFSET(P_Flows!$E$10,12*($A24-1),4*(I$2-1),12,1)),AVERAGE(OFFSET(P_Flows!$E$10,12*($A24-1),4*(I$2-1),12,1))) -> 24.35791667 | K24: =IF(PlotControl!$B$4 = "Annual Max",MAX(OFFSET(P_Flows!$C$10,12*($A24-1),4*(L$2-1),12,1)),AVERAGE(OFFSET(P_Flows!$C$10,12*($A24-1),4*(L$2-1),12,1))) -> 4.907466667 | L24: =IF(PlotControl!$B$4 = "Annual Max",MAX(OFFSET(P_Flows!$D$10,12*($A24-1),4*(L$2-1),12,1)),AVERAGE(OFFSET(P_Flows!$D$10,12*($A24-1),4*(L$2-1),12,1))) -> 12.42953333 | M24: =IF(PlotControl!$B$4 = "Annual Max",MAX(OFFSET(P_Flows!$E$10,12*($A24-1),4*(L$2-1),12,1)),AVERAGE(OFFSET(P_Flows!$E$10,12*($A24-1),4*(L$2-1),12,1))) -> 42.188475 | N24: =IF(PlotControl!$B$4 = "Annual Max",MAX(OFFSET(P_Flows!$C$10,12*($A24-1),4*(O$2-1),12,1)),AVERAGE(OFFSET(P_Flows!$C$10,12*($A24-1),4*(O$2-1),12,1))) -> 8.919725 | O24: =IF(PlotControl!$B$4 = "Annual Max",MAX(OFFSET(P_Flows!$D$10,12*($A24-1),4*(O$2-1),12,1)),AVERAGE(OFFSET(P_Flows!$D$10,12*($A24-1),4*(O$2-1),12,1))) -> 29.32855 | P24: =IF(PlotControl!$B$4 = "Annual Max",MAX(OFFSET(P_Flows!$E$10,12*($A24-1),4*(O$2-1),12,1)),AVERAGE(OFFSET(P_Flows!$E$10,12*($A24-1),4*(O$2-1),12,1))) -> 109.413175 | Q24: =IF(PlotControl!$B$4 = "Annual Max",MAX(OFFSET(P_Flows!$C$10,12*($A24-1),4*(R$2-1),12,1)),AVERAGE(OFFSET(P_Flows!$C$10,12*($A24-1),4*(R$2-1),12,1))) -> 12.29635 | R24: =IF(PlotControl!$B$4 = "Annual Max",MAX(OFFSET(P_Flows!$D$10,12*($A24-1),4*(R$2-1),12,1)),AVERAGE(OFFSET(P_Flows!$D$10,12*($A24-1),4*(R$2-1),12,1))) -> 43.532175 | S24: =IF(PlotControl!$B$4 = "Annual Max",MAX(OFFSET(P_Flows!$E$10,12*($A24-1),4*(R$2-1),12,1)),AVERAGE(OFFSET(P_Flows!$E$10,12*($A24-1),4*(R$2-1),12,1))) -> 166.24075 | T24: =IF(PlotControl!$B$4 = "Annual Max",MAX(OFFSET(P_Flows!$C$10,12*($A24-1),4*(U$2-1),12,1)),AVERAGE(OFFSET(P_Flows!$C$10,12*($A24-1),4*(U$2-1),12,1))) -> 15.45188333 | U24: =IF(PlotControl!$B$4 = "Annual Max",MAX(OFFSET(P_Flows!$D$10,12*($A24-1),4*(U$2-1),12,1)),AVERAGE(OFFSET(P_Flows!$D$10,12*($A24-1),4*(U$2-1),12,1))) -> 56.76679167 | V24: =IF(PlotControl!$B$4 = "Annual Max",MAX(OFFSET(P_Flows!$E$10,12*($A24-1),4*(U$2-1),12,1)),AVERAGE(OFFSET(P_Flows!$E$10,12*($A24-1),4*(U$2-1),12,1))) -> 220.1046667 | W24: =IF(PlotControl!$B$4 = "Annual Max",MAX(OFFSET(P_Flows!$C$10,12*($A24-1),4*(X$2-1),12,1)),AVERAGE(OFFSET(P_Flows!$C$10,12*($A24-1),4*(X$2-1),12,1))) -> 16.15018333 | X24: =IF(PlotControl!$B$4 = "Annual Max",MAX(OFFSET(P_Flows!$D$10,12*($A24-1),4*(X$2-1),12,1)),AVERAGE(OFFSET(P_Flows!$D$10,12*($A24-1),4*(X$2-1),12,1))) -> 59.790075 | Y24: =IF(PlotControl!$B$4 = "Annual Max",MAX(OFFSET(P_Flows!$E$10,12*($A24-1),4*(X$2-1),12,1)),AVERAGE(OFFSET(P_Flows!$E$10,12*($A24-1),4*(X$2-1),12,1))) -> 232.60225 | Z24: =IF(PlotControl!$B$4 = "Annual Max",MAX(OFFSET(P_Flows!$C$10,12*($A24-1),4*(AA$2-1),12,1)),AVERAGE(OFFSET(P_Flows!$C$10,12*($A24-1),4*(AA$2-1),12,1))) -> 18.884825 | AA24: =IF(PlotControl!$B$4 = "Annual Max",MAX(OFFSET(P_Flows!$D$10,12*($A24-1),4*(AA$2-1),12,1)),AVERAGE(OFFSET(P_Flows!$D$10,12*($A24-1),4*(AA$2-1),12,1))) -> 71.33221667 | AB24: =IF(PlotControl!$B$4 = "Annual Max",MAX(OFFSET(P_Flows!$E$10,12*($A24-1),4*(AA$2-1),12,1)),AVERAGE(OFFSET(P_Flows!$E$10,12*($A24-1),4*(AA$2-1),12,1))) -> 279.0174167 | AD24: 101.5833333 | AE24: =OFFSET(P_Flows!$C$10,ROUND(12*$AD24,0),4*(AF$2-1),1,1) -> 0.15661 | AF24: =OFFSET(P_Flows!$D$10,ROUND(12*$AD24,0),4*(AF$2-1),1,1) -> 0.8737 | AG24: =OFFSET(P_Flows!$E$10,ROUND(12*$AD24,0),4*(AF$2-1),1,1) -> 4.8057 | AH24: =OFFSET(P_Flows!$C$10,ROUND(12*$AD24,0),4*(AI$2-1),1,1) -> 0.77342 | AI24: =OFFSET(P_Flows!$D$10,ROUND(12*$AD24,0),4*(AI$2-1),1,1) -> 4.3148 | AJ24: =OFFSET(P_Flows!$E$10,ROUND(12*$AD24,0),4*(AI$2-1),1,1) -> 23.733 | AK24: =OFFSET(P_Flows!$C$10,ROUND(12*$AD24,0),4*(AL$2-1),1,1) -> 0.93965 | AL24: =OFFSET(P_Flows!$D$10,ROUND(12*$AD24,0),4*(AL$2-1),1,1) -> 5.2422 | AM24: =OFFSET(P_Flows!$E$10,ROUND(12*$AD24,0),4*(AL$2-1),1,1) -> 28.834 | AN24: =OFFSET(P_Flows!$C$10,ROUND(12*$AD24,0),4*(AO$2-1),1,1) -> 1.6615 | AO24: =OFFSET(P_Flows!$D$10,ROUND(12*$AD24,0),4*(AO$2-1),1,1) -> 9.269 | AP24: =OFFSET(P_Flows!$E$10,ROUND(12*$AD24,0),4*(AO$2-1),1,1) -> 50.984 | AQ24: =OFFSET(P_Flows!$C$10,ROUND(12*$AD24,0),4*(AR$2-1),1,1) -> 4.887 | AR24: =OFFSET(P_Flows!$D$10,ROUND(12*$AD24,0),4*(AR$2-1),1,1) -> 24.357 | AS24: =OFFSET(P_Flows!$E$10,ROUND(12*$AD24,0),4*(AR$2-1),1,1) -> 131.11 | AT24: =OFFSET(P_Flows!$C$10,ROUND(12*$AD24,0),4*(AU$2-1),1,1) -> 6.9877 | AU24: =OFFSET(P_Flows!$D$10,ROUND(12*$AD24,0),4*(AU$2-1),1,1) -> 36.076 | AV24: =OFFSET(P_Flows!$E$10,ROUND(12*$AD24,0),4*(AU$2-1),1,1) -> 195.58 | AW24: =OFFSET(P_Flows!$C$10,ROUND(12*$AD24,0),4*(AX$2-1),1,1) -> 8.8215 | AX24: =OFFSET(P_Flows!$D$10,ROUND(12*$AD24,0),4*(AX$2-1),1,1) -> 46.306 | AY24: =OFFSET(P_Flows!$E$10,ROUND(12*$AD24,0),4*(AX$2-1),1,1) -> 251.85 | AZ24: =OFFSET(P_Flows!$C$10,ROUND(12*$AD24,0),4*(BA$2-1),1,1) -> 9.3727 | BA24: =OFFSET(P_Flows!$D$10,ROUND(12*$AD24,0),4*(BA$2-1),1,1) -> 49.381 | BB24: =OFFSET(P_Flows!$E$10,ROUND(12*$AD24,0),4*(BA$2-1),1,1) -> 268.76 | BC24: =OFFSET(P_Flows!$C$10,ROUND(12*$AD24,0),4*(BD$2-1),1,1) -> 11.123 | BD24: =OFFSET(P_Flows!$D$10,ROUND(12*$AD24,0),4*(BD$2-1),1,1) -> 59.143 | BE24: =OFFSET(P_Flows!$E$10,ROUND(12*$AD24,0),4*(BD$2-1),1,1) -> 322.46
A25: 21 | B25: =IF(PlotControl!$B$4 = "Annual Max",MAX(OFFSET(P_Flows!$C$10,12*($A25-1),4*(C$2-1),12,1)),AVERAGE(OFFSET(P_Flows!$C$10,12*($A25-1),4*(C$2-1),12,1))) -> 2.772491667 | C25: =IF(PlotControl!$B$4 = "Annual Max",MAX(OFFSET(P_Flows!$D$10,12*($A25-1),4*(C$2-1),12,1)),AVERAGE(OFFSET(P_Flows!$D$10,12*($A25-1),4*(C$2-1),12,1))) -> 3.324266667 | D25: =IF(PlotControl!$B$4 = "Annual Max",MAX(OFFSET(P_Flows!$E$10,12*($A25-1),4*(C$2-1),12,1)),AVERAGE(OFFSET(P_Flows!$E$10,12*($A25-1),4*(C$2-1),12,1))) -> 5.73635 | E25: =IF(PlotControl!$B$4 = "Annual Max",MAX(OFFSET(P_Flows!$C$10,12*($A25-1),4*(F$2-1),12,1)),AVERAGE(OFFSET(P_Flows!$C$10,12*($A25-1),4*(F$2-1),12,1))) -> 3.629033333 | F25: =IF(PlotControl!$B$4 = "Annual Max",MAX(OFFSET(P_Flows!$D$10,12*($A25-1),4*(F$2-1),12,1)),AVERAGE(OFFSET(P_Flows!$D$10,12*($A25-1),4*(F$2-1),12,1))) -> 6.810291667 | G25: =IF(PlotControl!$B$4 = "Annual Max",MAX(OFFSET(P_Flows!$E$10,12*($A25-1),4*(F$2-1),12,1)),AVERAGE(OFFSET(P_Flows!$E$10,12*($A25-1),4*(F$2-1),12,1))) -> 20.29159167 | H25: =IF(PlotControl!$B$4 = "Annual Max",MAX(OFFSET(P_Flows!$C$10,12*($A25-1),4*(I$2-1),12,1)),AVERAGE(OFFSET(P_Flows!$C$10,12*($A25-1),4*(I$2-1),12,1))) -> 3.881025 | I25: =IF(PlotControl!$B$4 = "Annual Max",MAX(OFFSET(P_Flows!$D$10,12*($A25-1),4*(I$2-1),12,1)),AVERAGE(OFFSET(P_Flows!$D$10,12*($A25-1),4*(I$2-1),12,1))) -> 7.8143 | J25: =IF(PlotControl!$B$4 = "Annual Max",MAX(OFFSET(P_Flows!$E$10,12*($A25-1),4*(I$2-1),12,1)),AVERAGE(OFFSET(P_Flows!$E$10,12*($A25-1),4*(I$2-1),12,1))) -> 24.40679167 | K25: =IF(PlotControl!$B$4 = "Annual Max",MAX(OFFSET(P_Flows!$C$10,12*($A25-1),4*(L$2-1),12,1)),AVERAGE(OFFSET(P_Flows!$C$10,12*($A25-1),4*(L$2-1),12,1))) -> 4.981858333 | L25: =IF(PlotControl!$B$4 = "Annual Max",MAX(OFFSET(P_Flows!$D$10,12*($A25-1),4*(L$2-1),12,1)),AVERAGE(OFFSET(P_Flows!$D$10,12*($A25-1),4*(L$2-1),12,1))) -> 12.262075 | M25: =IF(PlotControl!$B$4 = "Annual Max",MAX(OFFSET(P_Flows!$E$10,12*($A25-1),4*(L$2-1),12,1)),AVERAGE(OFFSET(P_Flows!$E$10,12*($A25-1),4*(L$2-1),12,1))) -> 42.848375 | N25: =IF(PlotControl!$B$4 = "Annual Max",MAX(OFFSET(P_Flows!$C$10,12*($A25-1),4*(O$2-1),12,1)),AVERAGE(OFFSET(P_Flows!$C$10,12*($A25-1),4*(O$2-1),12,1))) -> 9.020966667 | O25: =IF(PlotControl!$B$4 = "Annual Max",MAX(OFFSET(P_Flows!$D$10,12*($A25-1),4*(O$2-1),12,1)),AVERAGE(OFFSET(P_Flows!$D$10,12*($A25-1),4*(O$2-1),12,1))) -> 28.478175 | P25: =IF(PlotControl!$B$4 = "Annual Max",MAX(OFFSET(P_Flows!$E$10,12*($A25-1),4*(O$2-1),12,1)),AVERAGE(OFFSET(P_Flows!$E$10,12*($A25-1),4*(O$2-1),12,1))) -> 109.4366833 | Q25: =IF(PlotControl!$B$4 = "Annual Max",MAX(OFFSET(P_Flows!$C$10,12*($A25-1),4*(R$2-1),12,1)),AVERAGE(OFFSET(P_Flows!$C$10,12*($A25-1),4*(R$2-1),12,1))) -> 12.45435833 | R25: =IF(PlotControl!$B$4 = "Annual Max",MAX(OFFSET(P_Flows!$D$10,12*($A25-1),4*(R$2-1),12,1)),AVERAGE(OFFSET(P_Flows!$D$10,12*($A25-1),4*(R$2-1),12,1))) -> 42.2855 | S25: =IF(PlotControl!$B$4 = "Annual Max",MAX(OFFSET(P_Flows!$E$10,12*($A25-1),4*(R$2-1),12,1)),AVERAGE(OFFSET(P_Flows!$E$10,12*($A25-1),4*(R$2-1),12,1))) -> 166.4376667 | T25: =IF(PlotControl!$B$4 = "Annual Max",MAX(OFFSET(P_Flows!$C$10,12*($A25-1),4*(U$2-1),12,1)),AVERAGE(OFFSET(P_Flows!$C$10,12*($A25-1),4*(U$2-1),12,1))) -> 15.663 | U25: =IF(PlotControl!$B$4 = "Annual Max",MAX(OFFSET(P_Flows!$D$10,12*($A25-1),4*(U$2-1),12,1)),AVERAGE(OFFSET(P_Flows!$D$10,12*($A25-1),4*(U$2-1),12,1))) -> 55.20581667 | V25: =IF(PlotControl!$B$4 = "Annual Max",MAX(OFFSET(P_Flows!$E$10,12*($A25-1),4*(U$2-1),12,1)),AVERAGE(OFFSET(P_Flows!$E$10,12*($A25-1),4*(U$2-1),12,1))) -> 220.5660833 | W25: =IF(PlotControl!$B$4 = "Annual Max",MAX(OFFSET(P_Flows!$C$10,12*($A25-1),4*(X$2-1),12,1)),AVERAGE(OFFSET(P_Flows!$C$10,12*($A25-1),4*(X$2-1),12,1))) -> 16.375125 | X25: =IF(PlotControl!$B$4 = "Annual Max",MAX(OFFSET(P_Flows!$D$10,12*($A25-1),4*(X$2-1),12,1)),AVERAGE(OFFSET(P_Flows!$D$10,12*($A25-1),4*(X$2-1),12,1))) -> 58.13549167 | Y25: =IF(PlotControl!$B$4 = "Annual Max",MAX(OFFSET(P_Flows!$E$10,12*($A25-1),4*(X$2-1),12,1)),AVERAGE(OFFSET(P_Flows!$E$10,12*($A25-1),4*(X$2-1),12,1))) -> 233.0683333 | Z25: =IF(PlotControl!$B$4 = "Annual Max",MAX(OFFSET(P_Flows!$C$10,12*($A25-1),4*(AA$2-1),12,1)),AVERAGE(OFFSET(P_Flows!$C$10,12*($A25-1),4*(AA$2-1),12,1))) -> 19.15729167 | AA25: =IF(PlotControl!$B$4 = "Annual Max",MAX(OFFSET(P_Flows!$D$10,12*($A25-1),4*(AA$2-1),12,1)),AVERAGE(OFFSET(P_Flows!$D$10,12*($A25-1),4*(AA$2-1),12,1))) -> 69.351975 | AB25: =IF(PlotControl!$B$4 = "Annual Max",MAX(OFFSET(P_Flows!$E$10,12*($A25-1),4*(AA$2-1),12,1)),AVERAGE(OFFSET(P_Flows!$E$10,12*($A25-1),4*(AA$2-1),12,1))) -> 279.61775 | AD25: 101.6666667 | AE25: =OFFSET(P_Flows!$C$10,ROUND(12*$AD25,0),4*(AF$2-1),1,1) -> 0.10465 | AF25: =OFFSET(P_Flows!$D$10,ROUND(12*$AD25,0),4*(AF$2-1),1,1) -> 0.99546 | AG25: =OFFSET(P_Flows!$E$10,ROUND(12*$AD25,0),4*(AF$2-1),1,1) -> 2.8201 | AH25: =OFFSET(P_Flows!$C$10,ROUND(12*$AD25,0),4*(AI$2-1),1,1) -> 0.55903 | AI25: =OFFSET(P_Flows!$D$10,ROUND(12*$AD25,0),4*(AI$2-1),1,1) -> 5.3179 | AJ25: =OFFSET(P_Flows!$E$10,ROUND(12*$AD25,0),4*(AI$2-1),1,1) -> 15.065 | AK25: =OFFSET(P_Flows!$C$10,ROUND(12*$AD25,0),4*(AL$2-1),1,1) -> 0.69397 | AL25: =OFFSET(P_Flows!$D$10,ROUND(12*$AD25,0),4*(AL$2-1),1,1) -> 6.6015 | AM25: =OFFSET(P_Flows!$E$10,ROUND(12*$AD25,0),4*(AL$2-1),1,1) -> 18.702 | AN25: =OFFSET(P_Flows!$C$10,ROUND(12*$AD25,0),4*(AO$2-1),1,1) -> 1.2702 | AO25: =OFFSET(P_Flows!$D$10,ROUND(12*$AD25,0),4*(AO$2-1),1,1) -> 12.083 | AP25: =OFFSET(P_Flows!$E$10,ROUND(12*$AD25,0),4*(AO$2-1),1,1) -> 34.231 | AQ25: =OFFSET(P_Flows!$C$10,ROUND(12*$AD25,0),4*(AR$2-1),1,1) -> 3.9361 | AR25: =OFFSET(P_Flows!$D$10,ROUND(12*$AD25,0),4*(AR$2-1),1,1) -> 32.1 | AS25: =OFFSET(P_Flows!$E$10,ROUND(12*$AD25,0),4*(AR$2-1),1,1) -> 88.875 | AT25: =OFFSET(P_Flows!$C$10,ROUND(12*$AD25,0),4*(AU$2-1),1,1) -> 5.6051 | AU25: =OFFSET(P_Flows!$D$10,ROUND(12*$AD25,0),4*(AU$2-1),1,1) -> 47.942 | AV25: =OFFSET(P_Flows!$E$10,ROUND(12*$AD25,0),4*(AU$2-1),1,1) -> 133.76 | AW25: =OFFSET(P_Flows!$C$10,ROUND(12*$AD25,0),4*(AX$2-1),1,1) -> 7.1409 | AX25: =OFFSET(P_Flows!$D$10,ROUND(12*$AD25,0),4*(AX$2-1),1,1) -> 62.462 | AY25: =OFFSET(P_Flows!$E$10,ROUND(12*$AD25,0),4*(AX$2-1),1,1) -> 174.89 | AZ25: =OFFSET(P_Flows!$C$10,ROUND(12*$AD25,0),4*(BA$2-1),1,1) -> 7.5523 | BA25: =OFFSET(P_Flows!$D$10,ROUND(12*$AD25,0),4*(BA$2-1),1,1) -> 66.352 | BB25: =OFFSET(P_Flows!$E$10,ROUND(12*$AD25,0),4*(BA$2-1),1,1) -> 185.91 | BC25: =OFFSET(P_Flows!$C$10,ROUND(12*$AD25,0),4*(BD$2-1),1,1) -> 8.9377 | BD25: =OFFSET(P_Flows!$D$10,ROUND(12*$AD25,0),4*(BD$2-1),1,1) -> 79.45 | BE25: =OFFSET(P_Flows!$E$10,ROUND(12*$AD25,0),4*(BD$2-1),1,1) -> 223.02
